{"text_format":"1","workbook":"xlsx","n_sheets":9,"sheets":["CONTEXTO E IDENTIFICACIÓN","VALORACIÓN DE RIESGOS","CALCULO PRO","MONITOREO OPLA","Gráficas","LISTAS","Hoja2","ACTIVOS DE INFORMACIÓN","SEGURIDAD DIGITAL"],"not_rendered":{"charts":8,"images":36,"macros":1,"external_links":4,"defined_names":75,"comments":2,"pivot_tables":0},"unopened":[],"bounds":{"document_bytes":16777216,"sheet_cells":100000,"rows_first":2000,"rows_last":500,"rows_between":2000,"halvings":0,"cell_chars":16384,"cell_head_chars":4096},"cells_cut":0,"cells_raw":0,"read":"whole","date_system":"1900"}

{"sheet":"CONTEXTO E IDENTIFICACIÓN","index":0,"n_rows":40,"n_cols":12,"rows_kept":40,"cut":false,"hidden":false,"merged":[[7,6,7,8],[26,2,32,2],[15,7,15,8],[16,7,16,8],[17,7,17,8],[26,3,32,8],[25,7,25,8],[12,3,25,3],[18,7,18,8],[19,7,19,8],[20,7,20,8],[21,7,21,8],[22,7,22,8],[23,7,23,8],[24,7,24,8],[44,3,44,6],[35,1,35,6],[36,3,36,6],[37,3,37,6],[38,3,38,6],[39,3,39,6],[40,3,40,6],[41,3,41,6],[42,3,42,6],[43,3,43,6],[0,1,3,1],[0,8,1,8],[7,1,8,1],[9,7,9,8],[8,4,8,5],[9,2,25,2],[7,4,7,5],[7,2,7,3],[9,1,32,1],[13,7,13,8],[14,7,14,8],[10,7,10,8],[11,7,11,8],[12,7,12,8],[8,6,8,8],[0,2,3,7]]}
[null,null,"FORMATO: MAPA DE RIESGOS\n\nPROCESO: MEJORAMIENTO CONTINUO",null,null,null,null,null,"Versión: 3"]
[]
[null,null,null,null,null,null,null,null,"Fecha: 31/03/2023"]
[null,null,null,null,null,null,null,null,"Código: MC-F-12"]
[]
[null,"PROCESO","Documental"]
[]
[null,"OBJETIVO","CONTEXTO DEL PROCESO",null,"CONTEXTO EXTERNO",null,"CONTEXTO INTERNO"]
[null,null,"ALCANCE","RESPONSABLE","Aspectos externos",null,"Aspectos internos"]
[null,{"$f":"IF(C6=\"Seleccione un proceso\",\"Seleccione un Proceso\",IF($C$6=LISTAS!B37,LISTAS!D37,IF($C$6=LISTAS!B38,LISTAS!D38,IF($C$6=LISTAS!B39,LISTAS!D39,IF($C$6=LISTAS!B40,LISTAS!D40,IF($C$6=LISTAS!B41,LISTAS!D41,IF($C$6=LISTAS!B42,LISTAS!D42,IF($C$6=LISTAS!B43,LISTAS!D43,IF($C$6=LISTAS!B44,LISTAS!D44,(IF($C$6=LISTAS!B45,LISTAS!D45,IF($C$6=LISTAS!B46,LISTAS!D46,IF($C$6=LISTAS!B47,LISTAS!D47,IF($C$6=LISTAS!B48,LISTAS!D48,IF($C$6=LISTAS!B49,LISTAS!D49,IF($C$6=LISTAS!B50,LISTAS!D50,IF($C$6=LISTAS!B51,LISTAS!D51,IF($C$6=LISTAS!B52,LISTAS!D52,IF($C$6=LISTAS!B53,LISTAS!D53,IF($C$6=LISTAS!B54,LISTAS!D54,IF($C$6=LISTAS!B55,LISTAS!D55)))))))))))))))))))))","v":"Gestionar la documentación y material bibliográfico que genera, recibe, tramita, utiliza, conserva o adquiera la Entidad mediante el establecimiento de lineamientos para el nivel central y territorial, con el propósito de asegurar que la información a proporcionar se mantenga disponible, fiable, completa y legible para su difusión y consulta, desde su origen hasta su destino final en uso del derecho al acceso a la información y de preservación de la memoria histórica de la Procuraduría General de la Nación – PGN-."},{"$f":"IF(C6=\"Seleccione un proceso\",\"Seleccione un Proceso\",IF($C$6=LISTAS!B37,LISTAS!E37,IF($C$6=LISTAS!B38,LISTAS!E38,IF($C$6=LISTAS!B39,LISTAS!E39,IF($C$6=LISTAS!B40,LISTAS!E40,IF($C$6=LISTAS!B41,LISTAS!E41,IF($C$6=LISTAS!B42,LISTAS!E42,IF($C$6=LISTAS!B43,LISTAS!E43,IF($C$6=LISTAS!B44,LISTAS!E44,IF($C$6=LISTAS!B45,LISTAS!E45,IF($C$6=LISTAS!B46,LISTAS!E46,IF($C$6=LISTAS!B47,LISTAS!E47,IF($C$6=LISTAS!B48,LISTAS!E48,IF($C$6=LISTAS!B49,LISTAS!E49,IF($C$6=LISTAS!B50,LISTAS!E50,IF($C$6=LISTAS!B51,LISTAS!E51,IF($C$6=LISTAS!B52,LISTAS!E52,IF($C$6=LISTAS!B53,LISTAS!E53,IF($C$6=LISTAS!B54,LISTAS!E54,IF($C$6=LISTAS!B55,LISTAS!E55))))))))))))))))))))","v":"Inicia con la formulación y actualización de los instrumentos archivísticos, continua con la gestión y trámite de las solicitudes de información o documentación, la prestación de asistencias técnica y acompañamiento, hasta la administración y coordinación de los documentos generados en las dependencias de la PGN en desarrollo de sus funciones hasta su disposición final, según lo establecido en las tablas de retención y/o valoración documental o lineamientos para el nivel central y territorial conforme a las normas de Gestión Documental. Igualmente, aplica desde la adquisición de material bibliográfico, continúa con la catalogación, consulta y préstamo y el expurgo de la colección. Finaliza con el establecimiento de las acciones para la mejora continua del proceso."},{"$f":"IF(C6=\"Seleccione un proceso\",\"Seleccione un Proceso\",IF($C$6=LISTAS!B37,LISTAS!F37,IF($C$6=LISTAS!B38,LISTAS!F38,IF($C$6=LISTAS!B39,LISTAS!F39,IF($C$6=LISTAS!B40,LISTAS!F40,IF($C$6=LISTAS!B41,LISTAS!F41,IF($C$6=LISTAS!B42,LISTAS!F42,IF($C$6=LISTAS!B43,LISTAS!F43,IF($C$6=LISTAS!B44,LISTAS!F44,IF($C$6=LISTAS!B45,LISTAS!E45,IF($C$6=LISTAS!B46,LISTAS!F46,IF($C$6=LISTAS!B47,LISTAS!F47,IF($C$6=LISTAS!B48,LISTAS!F48,IF($C$6=LISTAS!B49,LISTAS!F49,IF($C$6=LISTAS!B50,LISTAS!F50,IF($C$6=LISTAS!B51,LISTAS!F51,IF($C$6=LISTAS!B52,LISTAS!F52,IF($C$6=LISTAS!B53,LISTAS!F53,IF($C$6=LISTAS!B54,LISTAS!F54,IF($C$6=LISTAS!B55,LISTAS!F55))))))))))))))))))))","v":"Jefe División de Documentación"},1,"Limitada capacidad en los equipos humanos",1,"Carencias en el gerenciamiento del talento humano: flexibilidad para adaptarse al cambio",null,null,null,{"$f":"IF(AND(#REF!=\"X\",#REF!=\"X\",#REF!=\"X\",#REF!=\"X\"),\"Corrupción\",\"Seleccione\")","v":{"$error":"#REF!"}}]
[null,null,null,"INTERRELACIÓN CON OTROS PROCESOS",2,"Altros procesos burocráticos y falta de sinergia entre las entidades para atender eficientemente a los ciudadanos",2,"Necesidad de mejoramiento de la coordinación entre dependencias: nivel central y territorial","Necesidad de mejoramiento de la coordinación entre dependencias: nivel central y territorial"]
[null,null,null,"Ver caracterización del proceso",3,"Ausencia de proyectos transversales de tecnología en las entidades",3,"Carencias institucionales en la gestión de información y del conocimiento","Carencias institucionales en la gestión de información y del conocimiento"]
[null,null,null,{"$f":"IF(C6=\"Seleccione un proceso\",\"Seleccione un Proceso\",IF($C$6=LISTAS!B37,LISTAS!G37,IF($C$6=LISTAS!B38,LISTAS!G38,IF($C$6=LISTAS!B39,LISTAS!G39,IF($C$6=LISTAS!B40,LISTAS!G40,IF($C$6=LISTAS!B41,LISTAS!G41,IF($C$6=LISTAS!B42,LISTAS!G42,IF($C$6=LISTAS!B43,LISTAS!G43,IF($C$6=LISTAS!B44,LISTAS!G44,IF($C$6=LISTAS!B45,LISTAS!E45,IF($C$6=LISTAS!B46,LISTAS!G46,IF($C$6=LISTAS!B47,LISTAS!G47,IF($C$6=LISTAS!B48,LISTAS!G48,IF($C$6=LISTAS!B49,LISTAS!G49,IF($C$6=LISTAS!B50,LISTAS!G50,IF($C$6=LISTAS!B51,LISTAS!G51,IF($C$6=LISTAS!B52,LISTAS!G52,IF($C$6=LISTAS!B53,LISTAS!G53,IF($C$6=LISTAS!B54,LISTAS!G54,IF($C$6=LISTAS!B55,LISTAS!G55))))))))))))))))))))","v":"https://www.procuraduria.gov.co/Pages/mapa-procesos.aspx"},4,"Capacidad limitada para la gestión de datos, acceso a tecnología y conectividad",4,"Necesidad de optimización de la comunicación interna y externa como soporte del liderazgo institucional de la PGN","Necesidad de optimización de la comunicación interna y externa como soporte del liderazgo institucional de la PGN"]
[null,null,null,null,5,"Presencia estatal deficiente en el territorio",5,"Necesidad de mejoramiento de la gestión financiera y administración con énfasis en el nivel territorial","Necesidad de mejoramiento de la gestión financiera y administración con énfasis en el nivel territorial"]
[null,null,null,null,6,"Servicio de atención y respuesta prestado deficiente e inoportunamente al ciudadano",6,"Se requiere promover la participación de los funcionarios de todos los niveles y áreas","Se requiere promover la participación de los funcionarios de todos los niveles y áreas"]
[null,null,null,null,7,"Políticas públicas inoperantes para prevenir la contaminación de fuentes hídricas y recursos naturales",7,"Se requiere asegurar la alineación de los indicadores de seguimiento y las metas establecidas en el PEI","Se requiere asegurar la alineación de los indicadores de seguimiento y las metas establecidas en el PEI"]
[null,null,null,null,8,null,8,"Se requiere garantizar la inducción y reinducción de los funcionarios","Se requiere garantizar la inducción y reinducción de los funcionarios"]
[null,null,null,null,9,null,9,"Se requiere crear una perspectiva de flexibilidad soportada con un proceso de gestión del cambio que facilite la comprensión al interior de la Entidad no solo de los cambios requeridos sino de la manera en que pueden efectuarse","Se requiere crear una perspectiva de flexibilidad soportada con un proceso de gestión del cambio que facilite la comprensión al interior de la Entidad no solo de los cambios requeridos sino de la manera en que pueden efectuarse"]
[null,null,null,null,10,null,10,"No hay transversalidad de la información","No hay transversalidad de la información"]
[null,null,null,null,11,null,11,"Los canales de comunicación centro-regionales unidireccionales no permiten visualizar las necesidades de información y de recursos humanos en los territorios.","Los canales de comunicación centro-regionales unidireccionales no permiten visualizar las necesidades de información y de recursos humanos en los territorios."]
[null,null,null,null,12,null,12,"Se requieren esfuerzos en la optimización de la calidad de la información, aprovechamiento de los modelos de analítica e interoperabilidad de los aplicativos existentes: SIGDEA-SIM-SIAF entre otros. ","Se requieren esfuerzos en la optimización de la calidad de la información, aprovechamiento de los modelos de analítica e interoperabilidad de los aplicativos existentes: SIGDEA-SIM-SIAF entre otros. "]
[null,null,null,null,13,null,13,"Canales internos de comunicación que tomen en cuenta las particularidades de las áreas y especialmente del nivel territorial.","Canales internos de comunicación que tomen en cuenta las particularidades de las áreas y especialmente del nivel territorial."]
[null,null,null,null,14,null,14,"Mejorar la calidad y credibilidad de los mensajes generados en la comunicación externa de la PGN.","Mejorar la calidad y credibilidad de los mensajes generados en la comunicación externa de la PGN."]
[null,null,null,null,15,null,15,"Déficit de recursos y presupuesto necesario para realizar el trabajo a nivel central y acentuado en las regiones.","Déficit de recursos y presupuesto necesario para realizar el trabajo a nivel central y acentuado en las regiones."]
[null,null,null,null,16,null,16,"Se requiere integrar las necesidades institucionales con énfasis en las procuradurías regionales y provinciales, judiciales en territorio, centros de conciliación y coordinaciones administrativas. ","Se requiere integrar las necesidades institucionales con énfasis en las procuradurías regionales y provinciales, judiciales en terriorio, centros de conciliación y coordinaciones administrativas. "]
[null,null,null,null,17,null,17,"Mejoramiento de conectividad e infraestructura tecnológica (especialmente a nivel regional)","Mejoramiento de conectividad e infraestructura tecnológica (especialmente a nivel regional)"]
[null,null,"ACTIVOS DE SEGURIDAD DIGITAL",{"$f":"IF(C6=\"Seleccione un proceso\",\"Seleccione un Proceso\",IF($C$6=LISTAS!B64,LISTAS!E64,IF($C$6=LISTAS!B65,LISTAS!E65,IF($C$6=LISTAS!B66,LISTAS!E66,IF($C$6=LISTAS!B67,LISTAS!E67,IF($C$6=LISTAS!B68,LISTAS!E68,IF($C$6=LISTAS!B69,LISTAS!E69,IF($C$6=LISTAS!B70,LISTAS!E70,IF($C$6=LISTAS!B71,LISTAS!E71,IF($C$6=LISTAS!B72,LISTAS!E72,IF($C$6=LISTAS!B73,LISTAS!E73,IF($C$6=LISTAS!B74,LISTAS!E74,IF($C$6=LISTAS!B75,LISTAS!E75,IF($C$6=LISTAS!B76,LISTAS!E76,IF($C$6=LISTAS!B77,LISTAS!E77,IF($C$6=LISTAS!B78,LISTAS!E78,IF($C$6=LISTAS!B79,LISTAS!E79,IF($C$6=LISTAS!B80,LISTAS!E80,IF($C$6=LISTAS!B81,LISTAS!C81,IF($C$6=LISTAS!B82,LISTAS!E82))))))))))))))))))))","v":"Ver Matriz de activos de información"}]
[]
[]
[null,null,null,null,null,null,null,null,null,null,null,{"$f":"IF(AND(#REF!=\"X\",#REF!=\"X\",#REF!=\"X\",#REF!=\"X\"),\"Corrupción\",\"Seleccione\")","v":{"$error":"#REF!"}}]
[]
[]
[]
[]
[]
[null,"CONTROL DE CAMBIOS"]
[null,"FECHA","VERSIÓN QUE MODIFICA","CAMBIO REALIZADO"]
[null,"2021-12-22",1,"Creación del documento."]
[null,"2022-10-26",2,"Actualización de riesgos según lo definido en la MC-G-02 Guía de administración del riesgo versión 3"]
[null,"2024-03-19",3,"Se actualiza el mapa de riesgos del proceso en el plan de acción del riesgo 1 y se incluye el riesgo 2- Seguridad de la información"]

{"sheet":"VALORACIÓN DE RIESGOS","index":1,"n_rows":137,"n_cols":39,"rows_kept":137,"cut":false,"hidden":false,"merged":[[5,35,6,37],[5,38,7,38],[0,1,2,3],[5,1,7,1],[5,2,6,12],[22,1,24,1],[8,9,17,9],[8,10,17,10],[42,27,51,27],[42,28,51,28],[8,11,17,11],[8,12,17,12],[22,35,23,37],[22,38,24,38],[25,1,34,1],[25,2,34,2],[25,3,34,3],[25,6,28,6],[25,8,34,8],[25,9,34,9],[25,10,34,10],[25,11,34,11],[25,12,34,12],[25,27,34,27],[90,13,90,20],[73,13,73,20],[73,21,74,23],[73,24,74,27],[5,13,5,20],[6,13,6,20],[5,21,6,23],[5,24,6,27],[5,28,6,34],[22,21,23,23],[22,24,23,27],[22,28,23,34],[8,26,17,26],[8,27,17,27],[8,28,17,28],[8,29,17,29],[8,13,17,13],[8,24,17,24],[8,25,17,25],[23,13,23,20],[25,13,34,13],[25,24,34,24],[25,25,34,25],[25,26,34,26],[32,0,33,0],[99,6,102,6],[110,1,119,1],[110,2,119,2],[110,3,119,3],[8,1,17,1],[8,2,17,2],[8,3,17,3],[8,8,17,8],[8,6,11,6],[12,6,13,6],[11,7,12,7],[14,7,15,7],[14,6,17,6],[110,6,113,6],[90,1,92,1],[90,2,91,12],[73,1,75,1],[73,2,74,12],[22,2,23,12],[39,1,41,1],[39,2,40,12],[46,6,47,6],[48,6,51,6],[25,28,34,28],[25,29,34,29],[28,7,29,7],[29,6,30,6],[31,6,34,6],[31,7,32,7],[22,13,22,20],[39,13,39,20],[39,21,40,23],[39,24,40,27],[39,28,40,34],[39,35,40,37],[39,38,41,38],[40,13,40,20],[42,29,51,29],[45,7,46,7],[48,7,49,7],[56,2,57,12],[56,13,56,20],[56,21,57,23],[56,24,57,27],[56,28,57,34],[42,13,51,13],[42,24,51,24],[42,25,51,25],[42,26,51,26],[56,38,58,38],[57,13,57,20],[56,35,57,37],[42,1,51,1],[42,2,51,2],[42,3,51,3],[42,6,45,6],[42,8,51,8],[42,9,51,9],[42,10,51,10],[42,11,51,11],[42,12,51,12],[59,1,68,1],[59,2,68,2],[59,3,68,3],[59,6,62,6],[59,8,68,8],[59,9,68,9],[59,10,68,10],[59,11,68,11],[59,12,68,12],[59,13,68,13],[59,24,68,24],[59,25,68,25],[59,26,68,26],[59,27,68,27],[59,28,68,28],[59,29,68,29],[62,7,63,7],[63,6,64,6],[65,6,68,6],[65,7,66,7],[56,1,58,1],[73,28,74,34],[73,35,74,37],[73,38,75,38],[74,13,74,20],[76,1,85,1],[76,2,85,2],[76,3,85,3],[76,6,79,6],[76,8,85,8],[76,9,85,9],[76,10,85,10],[76,11,85,11],[76,12,85,12],[76,13,85,13],[76,24,85,24],[76,25,85,25],[76,26,85,26],[76,27,85,27],[76,28,85,28],[76,29,85,29],[79,7,80,7],[80,6,81,6],[82,6,85,6],[82,7,83,7],[90,21,91,23],[90,24,91,27],[90,28,91,34],[90,35,91,37],[90,38,92,38],[91,13,91,20],[93,1,102,1],[93,2,102,2],[93,3,102,3],[93,6,96,6],[93,8,102,8],[93,9,102,9],[93,10,102,10],[93,11,102,11],[93,12,102,12],[93,13,102,13],[93,24,102,24],[93,25,102,25],[93,26,102,26],[93,27,102,27],[93,28,102,28],[93,29,102,29],[96,7,97,7],[97,6,98,6],[99,7,100,7],[107,1,109,1],[107,2,108,12],[107,13,107,20],[107,21,108,23],[107,24,108,27],[107,28,108,34],[107,35,108,37],[107,38,109,38],[108,13,108,20],[124,1,126,1],[124,2,125,12],[124,13,124,20],[124,21,125,23],[124,24,125,27],[124,28,125,34],[110,8,119,8],[110,9,119,9],[110,10,119,10],[110,11,119,11],[110,12,119,12],[110,13,119,13],[110,24,119,24],[110,25,119,25],[110,26,119,26],[131,6,132,6],[133,6,136,6],[133,7,134,7],[110,27,119,27],[110,28,119,28],[110,29,119,29],[113,7,114,7],[114,6,115,6],[116,6,119,6],[116,7,117,7],[0,37,0,38],[1,37,1,38],[2,37,2,38],[0,4,2,35],[124,35,125,37],[124,38,126,38],[125,13,125,20],[127,1,136,1],[127,2,136,2],[127,3,136,3],[127,6,130,6],[127,8,136,8],[127,9,136,9],[127,10,136,10],[127,11,136,11],[127,12,136,12],[127,13,136,13],[127,24,136,24],[127,25,136,25],[127,26,136,26],[127,27,136,27],[127,28,136,28],[127,29,136,29],[130,7,131,7]]}
[null,null,null,null,"FORMATO: MAPA DE RIESGOS\n\nPROCESO: MEJORAMIENTO CONTINUO",null,null,null,null,null,null,null,null,null,null,null,null,null,null,null,null,null,null,null,null,null,null,null,null,null,null,null,null,null,null,null,"Versión:",3]
[null,null,null,null,null,null,null,null,null,null,null,null,null,null,null,null,null,null,null,null,null,null,null,null,null,null,null,null,null,null,null,null,null,null,null,null,"Fecha:","2023-03-31"]
[null,null,null,null,null,null,null,null,null,null,null,null,null,null,null,null,null,null,null,null,null,null,null,null,null,null,null,null,null,null,null,null,null,null,null,null,"Código:","MC-F-12"]
[]
[]
[null,"Proceso","VALORACIÓN DE RIESGOS",null,null,null,null,null,null,null,null,null,null,"ACCIONES DE CONTROL",null,null,null,null,null,null,null,"Monitoreo por parte del Líder del Proceso",null,null,"RIESGO RESIDUAL",null,null,null,"ACCIONES DE TRATAMIENTO - PLAN DE ACCIÓN (OPORTUNIDADES)",null,null,null,null,null,null,"Monitoreo por parte del Líder del Proceso al Plan de acción",null,null,"ESTADO"]
[null,null,null,null,null,null,null,null,null,null,null,null,null,"Descripción del control"]
[null,null,"Riesgo","Descripción del riesgo","Causa Inmediata","Causa Raíz","Clasificación","Componentes para la definición de riesgos de corrupción","Activo","Amenaza","Vulnerabilidad","Probabilidad","Impacto","Zona de Riesgo Inherente","No.","Propósito\n(Iniciar con verbos: verificar, validar, conciliar, comparar, revisar o cotejar)","Descripción del control \n(Cómo se realiza)","Desviaciones de resultados","Periodicidad","Responsable","Evidencia","Monitoreo 1 (Con corte 15 de abril)\nFecha de reporte: Entre 16 y 20 abril","Monitoreo 2 (Con corte 15 de agosto)\nFecha de reporte: Entre 16 y 20 agosto","Monitoreo 3 (Con corte 15 de diciembre)\nFecha de reporte: Entre 16 y 20 diciembre","Solidez del conjunto de controles","Probabilidad","Impacto ","Zona de riesgo residual","¿Requiere Plan de Acción?","Tratamiento a seguir","Descripción de la Acción, basado en el análisis de causas","Responsable\n(Cargo)","Fecha de inicio","Fecha de Finalización","Evidencia de la acción","Monitoreo 1 (Con corte 15 de abril)\nFecha de reporte: Entre 16 y 20 abril","Monitoreo 2 (Con corte 15 de agosto)\nFecha de reporte: Entre 16 y 20 agosto","Monitoreo 3 (Con corte 15 de diciembre)\nFecha de reporte: Entre 16 y 20 diciembre"]
[null,{"$f":"'CONTEXTO E IDENTIFICACIÓN'!$C$6","v":"Documental"},1,"Posibilidad de vulneración del derecho al acceso a la información debido a la deficiente gestión de la documentación producida al interior de las dependencias para beneficio propio o de un tercero","vulneración del derecho al acceso a la información","debido a la deficiente gestión de la documentación producida al interior de las dependencias para beneficio propio o de un tercero","CORRUPCIÓN","Acción u Omisión ",null,"Seleccione","Seleccione una opción",{"$f":"IF(G9=\"Seleccione\",\"Escoja clasificación del riesgo\",IF(G9=\"Corrupción\",'CALCULO PRO'!AC6,IF(G9=\"Gestión\",'CALCULO PRO'!I6,IF(G9=\"SEGURIDAD_DE_LA_INFORMACIÓN\",'CALCULO PRO'!I6))))","v":"Probable"},{"$f":"IF(G9=\"Seleccione\",\"Escoja clasificación del riesgo\",IF(G9=\"Corrupción\",'CALCULO PRO'!T42,IF(G9=\"Gestión\",'CALCULO PRO'!M29,IF(G9=\"SEGURIDAD_DE_LA_INFORMACIÓN\",'CALCULO PRO'!M29))))","v":"Moderado"},{"$f":"IF(G9=\"Seleccione\",\"Escoja clasificación del riesgo\",IF(G9=\"Corrupción\",'CALCULO PRO'!Y42,IF(G9=\"Gestión\",'CALCULO PRO'!N29,IF(G9=\"SEGURIDAD_DE_LA_INFORMACIÓN\",'CALCULO PRO'!N29))))","v":"Alto"},1,"Verificar la aplicación de los lineamientos establecidos dentro del proceso.","El funcionario designado proyecta el cronograma de visitas a las dependencias para la vigencia, el cual es aprobado por el jefe de la División. Conforme a la planeación realizada, los funcionarios responsables efectúan las visitas contempladas en el cronograma, donde se registran las observaciones, recomendaciones y compromisos en la ficha técnica, que es firmada por los intervinientes, tanto para nivel central como para nivel territorial.","En caso de que se deba realizar un cambio en la programación de las visitas, se informa la modificación al jefe de la División y a la dependencia, sin modificar la cantidad de visitas y continuar con el seguimiento.","Semestral","División de documentación","Ficha técnica de visita y seguimiento a los archivos\n\nEn caso de desviación, correo electrónico de modificación.",null,null,null,{"$f":"IF(G9=\"Seleccione\",\"Escoja clasificación del riesgo\",IF(G9=\"Corrupción\",'CALCULO PRO'!AU71,IF(G9=\"Gestión\",\"No aplica para esta tipología\",IF(G9=\"SEGURIDAD_DE_LA_INFORMACIÓN\",\"No aplica para esta tipología\"))))","v":"Moderado"},{"$f":"IF(G9=\"Seleccione\",\"Escoja clasificación del riesgo\",IF(G9=\"Corrupción\",'CALCULO PRO'!AB42,IF(G9=\"Gestión\",'CALCULO PRO'!U71,IF(G9=\"SEGURIDAD_DE_LA_INFORMACIÓN\",'CALCULO PRO'!U71))))","v":"Improbable"},{"$f":"IF(G9=\"Seleccione\",\"Escoja clasificación del riesgo\",IF(G9=\"Corrupción\",'CALCULO PRO'!AC42,IF(G9=\"Gestión\",'CALCULO PRO'!V71,IF(G9=\"SEGURIDAD_DE_LA_INFORMACIÓN\",'CALCULO PRO'!V71))))","v":"Moderado"},{"$f":"IF(G9=\"Seleccione\",\"Escoja clasificación del riesgo\",IF(G9=\"Corrupción\",'CALCULO PRO'!AD42,IF(G9=\"Gestión\",'CALCULO PRO'!W71,IF(G9=\"SEGURIDAD_DE_LA_INFORMACIÓN\",'CALCULO PRO'!W71))))","v":"Moderado"},{"$f":"+IF(AB9=\"\",\"\",IF(OR(AB9=\"Extremo\",AB9=\"Alto\",AB9=\"Moderado\"),\"Requiere Plan de Acción\",IF(AB9=\"Bajo\",\"No requiere Plan de Acción\")))","v":"Requiere Plan de Acción"},"Reducir / Mitigar","Realizar conversatorios ético al interior de la división","Jefe de División","2024-01-01","2024-12-31","Soportes conversatorio ético"]
[null,null,null,null,null,null,null,"SI",null,null,null,null,null,null,2,"Verificar el oportuno acceso y devolución de los expedientes pertenecientes al Archivo Central de la PGN.","El servidor designado se desplaza mensualmente al Archivo Central, donde verifica y registra los datos de los préstamos realizados en el mes, con el fin de establecer el cumplimiento del lineamiento de consulta y préstamo, quien escanea las evidencias de formatos de consulta y préstamos y las planillas que soportan el seguimiento. Posteriormente, el funcionario designado revisa la consistencia del formato diligenciado frente a las evidencias tomadas.","En caso de encontrar una inconsistencia, el funcionario designado solicita la información con el Archivo Central para subsanar o aclara la inconsistencia encontrada.","Mensual","División de documentación","Formato Seguimiento a solicitudes de Archivo Central.\n\nEn caso de desviación, correo electrónico de solicitud de información."]
[null,null,null,null,null,null,null,"Uso del Poder",null,null,null,null,null,null,3,"Verificar el oportuno acceso y devolución del material bibliográfico","El funcionario designado retira la ficha de préstamo del libro para recolectar la información del usuario y fijar la fecha de devolución del material, realiza la entrega y guarda dentro del fichero en la fecha de vencimiento.\nPosteriormente, una vez devuelto el material se verifica la integridad y se reintegra la ficha dentro del libro y este a la colección. Así mismo, se registra dicho control en la matriz de préstamos, que se verifica por todos los integrantes del grupo de Biblioteca.","En caso de que llegue la fecha de devolución y no se haya recibido el material, se contacta al usuario telefónicamente para recordar la entrega del material o verificar la necesidad de renovación del periodo de préstamo.","Cuando se requiera","Funcionario designado - Biblioteca","Registro matriz de control de préstamos (Aplica en caso de desviación)"]
[null,null,null,null,null,null,null,"SI",null,null,null,null,null,null,4]
[null,null,null,null,null,null,"Tipo",null,null,null,null,null,null,null,5]
[null,null,null,null,null,null,null,"Desviación de la Gestión de lo público",null,null,null,null,null,null,6]
[null,null,null,null,null,null,"Fraude","SI",null,null,null,null,null,null,7]
[null,null,null,null,null,null,null,null,null,null,null,null,null,null,8]
[null,null,null,null,null,null,null,"Beneficio particular",null,null,null,null,null,null,9]
[null,null,null,null,null,null,null,"SI",null,null,null,null,null,null,10]
[]
[]
[]
[]
[null,"Proceso","VALORACIÓN DE RIESGOS",null,null,null,null,null,null,null,null,null,null,"ACCIONES DE CONTROL",null,null,null,null,null,null,null,"Monitoreo por parte del Líder del Proceso",null,null,"RIESGO RESIDUAL",null,null,null,"ACCIONES DE TRATAMIENTO - PLAN DE ACCIÓN (OPORTUNIDADES)",null,null,null,null,null,null,"Monitoreo por parte del Líder del Proceso al Plan de acción",null,null,"ESTADO"]
[null,null,null,null,null,null,null,null,null,null,null,null,null,"Descripción del control"]
[null,null,"Riesgo","Descripción del riesgo","Causa Inmediata","Causa Raíz","Clasificación","Componentes para la definición de riesgos de corrupción","Activo","Amenaza","Vulnerabilidad","Probabilidad","Impacto","Zona de Riesgo Inherente","No.","Propósito\n(Iniciar con verbos: verificar, validar, conciliar, comparar, revisar o cotejar)","Descripción del control \n(Cómo se realiza)","Desviaciones de resultados","Periodicidad","Responsable","Evidencia","Monitoreo 1 (Con corte 15 de abril)\nFecha de reporte: Entre 16 y 20 abril","Monitoreo 2 (Con corte 15 de agosto)\nFecha de reporte: Entre 16 y 20 agosto","Monitoreo 3 (Con corte 15 de diciembre)\nFecha de reporte: Entre 16 y 20 diciembre","Solidez del conjunto de controles","Probabilidad","Impacto ","Zona de riesgo residual","¿Requiere Plan de Acción?","Tratamiento a seguir","Descripción de la Acción, basado en el análisis de causas","Responsable\n(Cargo)","Fecha de inicio","Fecha de Finalización","Evidencia de la acción","Monitoreo 1 (Con corte 15 de abril)\nFecha de reporte: Entre 16 y 20 abril","Monitoreo 2 (Con corte 15 de agosto)\nFecha de reporte: Entre 16 y 20 agosto","Monitoreo 3 (Con corte 15 de diciembre)\nFecha de reporte: Entre 16 y 20 diciembre"]
[null,{"$f":"'CONTEXTO E IDENTIFICACIÓN'!$C$6","v":"Documental"},2,"Posibilidad de perdida de integridad de la información en el sistema de gestión documental electrónico y de archivo debido al desconocimiento del sistema por parte de los usuarios de la Entidad.","Pérdida de la información o desactualización de la información contenida en el sistema","Desconocimiento del sistema por parte de los usuarios","SEGURIDAD_DE_LA_INFORMACIÓN","Acción u Omisión ","Proyecto SGDEA","ERROR.EN.USO","Falta de conciencia de seguridad",{"$f":"IF(G26=\"Seleccione\",\"Escoja clasificación del riesgo\",IF(G26=\"Corrupción\",'CALCULO PRO'!AC7,IF(G26=\"Gestión\",'CALCULO PRO'!I7,IF(G26=\"SEGURIDAD_DE_LA_INFORMACIÓN\",'CALCULO PRO'!I7))))","v":"Muy Alta"},{"$f":"IF(G26=\"Seleccione\",\"Escoja clasificación del riesgo\",IF(G26=\"Corrupción\",'CALCULO PRO'!T43,IF(G26=\"Gestión\",'CALCULO PRO'!M30,IF(G26=\"SEGURIDAD_DE_LA_INFORMACIÓN\",'CALCULO PRO'!M30))))","v":"Moderado"},{"$f":"IF(G26=\"Seleccione\",\"Escoja clasificación del riesgo\",IF(G26=\"Corrupción\",'CALCULO PRO'!Y43,IF(G26=\"Gestión\",'CALCULO PRO'!N30,IF(G26=\"SEGURIDAD_DE_LA_INFORMACIÓN\",'CALCULO PRO'!N30))))","v":"Alto"},1,"Validar la correcta aplicación de las funcionalidades del sistema de información por parte de los usuarios.","El funcionario designado recibe a través de correo electrónico la notificación del registro de una solicitud de ayuda (caso), quien realiza la verificación de la necesidad establecida en la plataforma y realiza el análisis de la solicitud para determinar la mejor solución al caso. Posteriormente, resuelve la solicitud y cierra el caso.","En caso de que en el análisis el funcionario designado identifique que el caso tiene relación con una temática técnica, este se redirecciona al administrador técnico de la Oficina de Tecnología, Innovación y Transformación Digital","Cuando se requiera","Funcionario designado","Reporte de casos atendidos para el periodo",null,null,null,{"$f":"IF(G26=\"Seleccione\",\"Escoja clasificación del riesgo\",IF(G26=\"Corrupción\",'CALCULO PRO'!AU81,IF(G26=\"Gestión\",\"No aplica para esta tipología\",IF(G26=\"SEGURIDAD_DE_LA_INFORMACIÓN\",\"No aplica para esta tipología\"))))","v":"No aplica para esta tipología"},{"$f":"IF(G26=\"Seleccione\",\"Escoja clasificación del riesgo\",IF(G26=\"Corrupción\",'CALCULO PRO'!AB43,IF(G26=\"Gestión\",'CALCULO PRO'!U81,IF(G26=\"SEGURIDAD_DE_LA_INFORMACIÓN\",'CALCULO PRO'!U81))))","v":"Muy Alta"},{"$f":"IF(G26=\"Seleccione\",\"Escoja clasificación del riesgo\",IF(G26=\"Corrupción\",'CALCULO PRO'!AC43,IF(G26=\"Gestión\",'CALCULO PRO'!V81,IF(G26=\"SEGURIDAD_DE_LA_INFORMACIÓN\",'CALCULO PRO'!V81))))","v":"Moderado"},{"$f":"IF(G26=\"Seleccione\",\"Escoja clasificación del riesgo\",IF(G26=\"Corrupción\",'CALCULO PRO'!AD43,IF(G26=\"Gestión\",'CALCULO PRO'!W81,IF(G26=\"SEGURIDAD_DE_LA_INFORMACIÓN\",'CALCULO PRO'!W81))))","v":"Alto"},{"$f":"+IF(AB26=\"\",\"\",IF(OR(AB26=\"Extremo\",AB26=\"Alto\",AB26=\"Moderado\"),\"Requiere Plan de Acción\",IF(AB26=\"Bajo\",\"No requiere Plan de Acción\")))","v":"Requiere Plan de Acción"},"Reducir / Mitigar","Realizar una capacitación sobre el manejo del sistema de información documental y de archivo al interior de la Entidad","Grupo GED","2024-03-01","2024-12-31","Grabación de la sesión y/o Listas de asistencias"]
[null,null,null,null,null,null,null,null,null,null,null,null,null,null,2,null,null,null,"Seleccione"]
[null,null,null,null,null,null,null,"Uso del Poder",null,null,null,null,null,null,3,null,null,null,"Seleccione"]
[null,null,null,null,null,null,null,null,null,null,null,null,null,null,4,null,null,null,"Seleccione"]
[null,null,null,null,null,null,"Tipo",null,null,null,null,null,null,null,5,null,null,null,"Seleccione"]
[null,null,null,null,null,null,null,"Desviación de la Gestión de lo público",null,null,null,null,null,null,6,null,null,null,"Seleccione"]
[null,null,null,null,null,null,"Pérdida de disponibilidad",null,null,null,null,null,null,null,7,null,null,null,"Seleccione"]
[null,null,null,null,null,null,null,null,null,null,null,null,null,null,8,null,null,null,"Seleccione"]
[null,null,null,null,null,null,null,"Beneficio particular",null,null,null,null,null,null,9,null,null,null,"Seleccione"]
[null,null,null,null,null,null,null,null,null,null,null,null,null,null,10,null,null,null,"Seleccione"]
[]
[]
[]
[]
[null,"Proceso","VALORACIÓN DE RIESGOS",null,null,null,null,null,null,null,null,null,null,"ACCIONES DE CONTROL",null,null,null,null,null,null,null,"Monitoreo por parte del Líder del Proceso",null,null,"RIESGO RESIDUAL",null,null,null,"ACCIONES DE TRATAMIENTO - PLAN DE ACCIÓN (OPORTUNIDADES)",null,null,null,null,null,null,"Monitoreo por parte del Líder del Proceso al Plan de acción",null,null,"ESTADO"]
[null,null,null,null,null,null,null,null,null,null,null,null,null,"Descripción del control"]
[null,null,"Riesgo","Descripción del riesgo","Causa Inmediata","Causa Raíz","Clasificación","Componentes para la definición de riesgos de corrupción","Activo","Amenaza","Vulnerabilidad","Probabilidad","Impacto","Zona de Riesgo Inherente","No.","Propósito\n(Iniciar con verbos: verificar, validar, conciliar, comparar, revisar o cotejar)","Descripción del control \n(Cómo se realiza)","Desviaciones de resultados","Periodicidad","Responsable","Evidencia","Monitoreo 1 (Con corte 15 de abril)\nFecha de reporte: Entre 16 y 20 abril","Monitoreo 2 (Con corte 15 de agosto)\nFecha de reporte: Entre 16 y 20 agosto","Monitoreo 3 (Con corte 15 de diciembre)\nFecha de reporte: Entre 16 y 20 diciembre","Solidez del conjunto de controles","Probabilidad","Impacto ","Zona de riesgo residual","¿Requiere Plan de Acción?","Tratamiento a seguir","Descripción de la Acción, basado en el análisis de causas","Responsable\n(Cargo)","Fecha de inicio","Fecha de Finalización","Evidencia de la acción","Monitoreo 1 (Con corte 15 de abril)\nFecha de reporte: Entre 16 y 20 abril","Monitoreo 2 (Con corte 15 de agosto)\nFecha de reporte: Entre 16 y 20 agosto","Monitoreo 3 (Con corte 15 de diciembre)\nFecha de reporte: Entre 16 y 20 diciembre"]
[null,{"$f":"'CONTEXTO E IDENTIFICACIÓN'!$C$6","v":"Documental"},3,"RIESGO 3",null,null,"Seleccione","Acción u Omisión ",null,"Seleccione","Seleccione una opción",{"$f":"IF(G43=\"Seleccione\",\"Escoja clasificación del riesgo\",IF(G43=\"Corrupción\",'CALCULO PRO'!AC8,IF(G43=\"Gestión\",'CALCULO PRO'!I8,IF(G43=\"SEGURIDAD_DE_LA_INFORMACIÓN\",'CALCULO PRO'!I8))))","v":"Escoja clasificación del riesgo"},{"$f":"IF(G43=\"Seleccione\",\"Escoja clasificación del riesgo\",IF(G43=\"Corrupción\",'CALCULO PRO'!T44,IF(G43=\"Gestión\",'CALCULO PRO'!M31,IF(G43=\"SEGURIDAD_DE_LA_INFORMACIÓN\",'CALCULO PRO'!M31))))","v":"Escoja clasificación del riesgo"},{"$f":"IF(G43=\"Seleccione\",\"Escoja clasificación del riesgo\",IF(G43=\"Corrupción\",'CALCULO PRO'!Y44,IF(G43=\"Gestión\",'CALCULO PRO'!N31,IF(G43=\"SEGURIDAD_DE_LA_INFORMACIÓN\",'CALCULO PRO'!N31))))","v":"Escoja clasificación del riesgo"},1,null,null,null,"Seleccione",null,null,null,null,null,{"$f":"IF(G43=\"Seleccione\",\"Escoja clasificación del riesgo\",IF(G43=\"Corrupción\",'CALCULO PRO'!AU91,IF(G43=\"Gestión\",\"No aplica para esta tipología\",IF(G43=\"SEGURIDAD_DE_LA_INFORMACIÓN\",\"No aplica para esta tipología\"))))","v":"Escoja clasificación del riesgo"},{"$f":"IF(G43=\"Seleccione\",\"Escoja clasificación del riesgo\",IF(G43=\"Corrupción\",'CALCULO PRO'!AB44,IF(G43=\"Gestión\",'CALCULO PRO'!U91,IF(G43=\"SEGURIDAD_DE_LA_INFORMACIÓN\",'CALCULO PRO'!U91))))","v":"Escoja clasificación del riesgo"},{"$f":"IF(G43=\"Seleccione\",\"Escoja clasificación del riesgo\",IF(G43=\"Corrupción\",'CALCULO PRO'!AC44,IF(G43=\"Gestión\",'CALCULO PRO'!V91,IF(G43=\"SEGURIDAD_DE_LA_INFORMACIÓN\",'CALCULO PRO'!V91))))","v":"Escoja clasificación del riesgo"},{"$f":"IF(G43=\"Seleccione\",\"Escoja clasificación del riesgo\",IF(G43=\"Corrupción\",'CALCULO PRO'!AD44,IF(G43=\"Gestión\",'CALCULO PRO'!W91,IF(G43=\"SEGURIDAD_DE_LA_INFORMACIÓN\",'CALCULO PRO'!W91))))","v":"Escoja clasificación del riesgo"},{"$f":"+IF(AB43=\"\",\"\",IF(OR(AB43=\"Extremo\",AB43=\"Alto\",AB43=\"Moderado\"),\"Requiere Plan de Acción\",IF(AB43=\"Bajo\",\"No requiere Plan de Acción\")))","v":false}]
[null,null,null,null,null,null,null,null,null,null,null,null,null,null,2,null,null,null,"Seleccione"]
[null,null,null,null,null,null,null,"Uso del Poder",null,null,null,null,null,null,3,null,null,null,"Seleccione"]
[null,null,null,null,null,null,null,null,null,null,null,null,null,null,4,null,null,null,"Seleccione"]
[null,null,null,null,null,null,"Tipo",null,null,null,null,null,null,null,5,null,null,null,"Seleccione"]
[null,null,null,null,null,null,null,"Desviación de la Gestión de lo público",null,null,null,null,null,null,6,null,null,null,"Seleccione"]
[null,null,null,null,null,null,"Seleccione una opción",null,null,null,null,null,null,null,7,null,null,null,"Seleccione"]
[null,null,null,null,null,null,null,null,null,null,null,null,null,null,8,null,null,null,"Seleccione"]
[null,null,null,null,null,null,null,"Beneficio particular",null,null,null,null,null,null,9,null,null,null,"Seleccione"]
[null,null,null,null,null,null,null,null,null,null,null,null,null,null,10,null,null,null,"Seleccione"]
[]
[]
[]
[]
[null,"Proceso","VALORACIÓN DE RIESGOS",null,null,null,null,null,null,null,null,null,null,"ACCIONES DE CONTROL",null,null,null,null,null,null,null,"Monitoreo por parte del Líder del Proceso",null,null,"RIESGO RESIDUAL",null,null,null,"ACCIONES DE TRATAMIENTO - PLAN DE ACCIÓN (OPORTUNIDADES)",null,null,null,null,null,null,"Monitoreo por parte del Líder del Proceso al Plan de acción",null,null,"ESTADO"]
[null,null,null,null,null,null,null,null,null,null,null,null,null,"Descripción del control"]
[null,null,"Riesgo","Descripción del riesgo","Causa Inmediata","Causa Raíz","Clasificación","Componentes para la definición de riesgos de corrupción","Activo","Amenaza","Vulnerabilidad","Probabilidad","Impacto","Zona de Riesgo Inherente","No.","Propósito\n(Iniciar con verbos: verificar, validar, conciliar, comparar, revisar o cotejar)","Descripción del control \n(Cómo se realiza)","Desviaciones de resultados","Periodicidad","Responsable","Evidencia","Monitoreo 1 (Con corte 15 de abril)\nFecha de reporte: Entre 16 y 20 abril","Monitoreo 2 (Con corte 15 de agosto)\nFecha de reporte: Entre 16 y 20 agosto","Monitoreo 3 (Con corte 15 de diciembre)\nFecha de reporte: Entre 16 y 20 diciembre","Solidez del conjunto de controles","Probabilidad","Impacto ","Zona de riesgo residual","¿Requiere Plan de Acción?","Tratamiento a seguir","Descripción de la Acción, basado en el análisis de causas","Responsable\n(Cargo)","Fecha de inicio","Fecha de Finalización","Evidencia de la acción","Monitoreo 1 (Con corte 15 de abril)\nFecha de reporte: Entre 16 y 20 abril","Monitoreo 2 (Con corte 15 de agosto)\nFecha de reporte: Entre 16 y 20 agosto","Monitoreo 3 (Con corte 15 de diciembre)\nFecha de reporte: Entre 16 y 20 diciembre"]
[null,{"$f":"'CONTEXTO E IDENTIFICACIÓN'!$C$6","v":"Documental"},4,"RIESGO 4",null,null,"Seleccione","Acción u Omisión ",null,"Seleccione","Seleccione una opción",{"$f":"IF(G60=\"Seleccione\",\"Escoja clasificación del riesgo\",IF(G60=\"Corrupción\",'CALCULO PRO'!AC9,IF(G60=\"Gestión\",'CALCULO PRO'!I9,IF(G60=\"SEGURIDAD_DE_LA_INFORMACIÓN\",'CALCULO PRO'!I9))))","v":"Escoja clasificación del riesgo"},{"$f":"IF(G60=\"Seleccione\",\"Escoja clasificación del riesgo\",IF(G60=\"Corrupción\",'CALCULO PRO'!T45,IF(G60=\"Gestión\",'CALCULO PRO'!M32,IF(G60=\"SEGURIDAD_DE_LA_INFORMACIÓN\",'CALCULO PRO'!M32))))","v":"Escoja clasificación del riesgo"},{"$f":"IF(G60=\"Seleccione\",\"Escoja clasificación del riesgo\",IF(G60=\"Corrupción\",'CALCULO PRO'!Y45,IF(G60=\"Gestión\",'CALCULO PRO'!N32,IF(G60=\"SEGURIDAD_DE_LA_INFORMACIÓN\",'CALCULO PRO'!N32))))","v":"Escoja clasificación del riesgo"},1,null,null,null,"Seleccione",null,null,null,null,null,{"$f":"IF(G60=\"Seleccione\",\"Escoja clasificación del riesgo\",IF(G60=\"Corrupción\",'CALCULO PRO'!AU101,IF(G60=\"Gestión\",\"No aplica para esta tipología\",IF(G60=\"SEGURIDAD_DE_LA_INFORMACIÓN\",\"No aplica para esta tipología\"))))","v":"Escoja clasificación del riesgo"},{"$f":"IF(G60=\"Seleccione\",\"Escoja clasificación del riesgo\",IF(G60=\"Corrupción\",'CALCULO PRO'!AB45,IF(G60=\"Gestión\",'CALCULO PRO'!U101,IF(G60=\"SEGURIDAD_DE_LA_INFORMACIÓN\",'CALCULO PRO'!U101))))","v":"Escoja clasificación del riesgo"},{"$f":"IF(G60=\"Seleccione\",\"Escoja clasificación del riesgo\",IF(G60=\"Corrupción\",'CALCULO PRO'!AC45,IF(G60=\"Gestión\",'CALCULO PRO'!V101,IF(G60=\"SEGURIDAD_DE_LA_INFORMACIÓN\",'CALCULO PRO'!V101))))","v":"Escoja clasificación del riesgo"},{"$f":"IF(G60=\"Seleccione\",\"Escoja clasificación del riesgo\",IF(G60=\"Corrupción\",'CALCULO PRO'!AD45,IF(G60=\"Gestión\",'CALCULO PRO'!W101,IF(G60=\"SEGURIDAD_DE_LA_INFORMACIÓN\",'CALCULO PRO'!W101))))","v":"Escoja clasificación del riesgo"},{"$f":"+IF(AB60=\"\",\"\",IF(OR(AB60=\"Extremo\",AB60=\"Alto\",AB60=\"Moderado\"),\"Requiere Plan de Acción\",IF(AB60=\"Bajo\",\"No requiere Plan de Acción\")))","v":false}]
[null,null,null,null,null,null,null,null,null,null,null,null,null,null,2,null,null,null,"Seleccione"]
[null,null,null,null,null,null,null,"Uso del Poder",null,null,null,null,null,null,3,null,null,null,"Seleccione"]
[null,null,null,null,null,null,null,null,null,null,null,null,null,null,4,null,null,null,"Seleccione"]
[null,null,null,null,null,null,"Tipo",null,null,null,null,null,null,null,5,null,null,null,"Seleccione"]
[null,null,null,null,null,null,null,"Desviación de la Gestión de lo público",null,null,null,null,null,null,6,null,null,null,"Seleccione"]
[null,null,null,null,null,null,"Seleccione una opción",null,null,null,null,null,null,null,7,null,null,null,"Seleccione"]
[null,null,null,null,null,null,null,null,null,null,null,null,null,null,8,null,null,null,"Seleccione"]
[null,null,null,null,null,null,null,"Beneficio particular",null,null,null,null,null,null,9,null,null,null,"Seleccione"]
[null,null,null,null,null,null,null,null,null,null,null,null,null,null,10,null,null,null,"Seleccione"]
[]
[]
[]
[]
[null,"Proceso","VALORACIÓN DE RIESGOS",null,null,null,null,null,null,null,null,null,null,"ACCIONES DE CONTROL",null,null,null,null,null,null,null,"Monitoreo por parte del Líder del Proceso",null,null,"RIESGO RESIDUAL",null,null,null,"ACCIONES DE TRATAMIENTO - PLAN DE ACCIÓN (OPORTUNIDADES)",null,null,null,null,null,null,"Monitoreo por parte del Líder del Proceso al Plan de acción",null,null,"ESTADO"]
[null,null,null,null,null,null,null,null,null,null,null,null,null,"Descripción del control"]
[null,null,"Riesgo","Descripción del riesgo","Causa Inmediata","Causa Raíz","Clasificación","Componentes para la definición de riesgos de corrupción","Activo","Amenaza","Vulnerabilidad","Probabilidad","Impacto","Zona de Riesgo Inherente","No.","Propósito\n(Iniciar con verbos: verificar, validar, conciliar, comparar, revisar o cotejar)","Descripción del control \n(Cómo se realiza)","Desviaciones de resultados","Periodicidad","Responsable","Evidencia","Monitoreo 1 (Con corte 15 de abril)\nFecha de reporte: Entre 16 y 20 abril","Monitoreo 2 (Con corte 15 de agosto)\nFecha de reporte: Entre 16 y 20 agosto","Monitoreo 3 (Con corte 15 de diciembre)\nFecha de reporte: Entre 16 y 20 diciembre","Solidez del conjunto de controles","Probabilidad","Impacto ","Zona de riesgo residual","¿Requiere Plan de Acción?","Tratamiento a seguir","Descripción de la Acción, basado en el análisis de causas","Responsable\n(Cargo)","Fecha de inicio","Fecha de Finalización","Evidencia de la acción","Monitoreo 1 (Con corte 15 de abril)\nFecha de reporte: Entre 16 y 20 abril","Monitoreo 2 (Con corte 15 de agosto)\nFecha de reporte: Entre 16 y 20 agosto","Monitoreo 3 (Con corte 15 de diciembre)\nFecha de reporte: Entre 16 y 20 diciembre"]
[null,{"$f":"'CONTEXTO E IDENTIFICACIÓN'!$C$6","v":"Documental"},5,"RIESGO 5",null,null,"Seleccione","Acción u Omisión ",null,"Seleccione","Seleccione una opción",{"$f":"IF(G77=\"Seleccione\",\"Escoja clasificación del riesgo\",IF(G77=\"Corrupción\",'CALCULO PRO'!AC10,IF(G77=\"Gestión\",'CALCULO PRO'!I10,IF(G77=\"SEGURIDAD_DE_LA_INFORMACIÓN\",'CALCULO PRO'!I10))))","v":"Escoja clasificación del riesgo"},{"$f":"IF(G77=\"Seleccione\",\"Escoja clasificación del riesgo\",IF(G77=\"Corrupción\",'CALCULO PRO'!T46,IF(G77=\"Gestión\",'CALCULO PRO'!M33,IF(G77=\"SEGURIDAD_DE_LA_INFORMACIÓN\",'CALCULO PRO'!M33))))","v":"Escoja clasificación del riesgo"},{"$f":"IF(G77=\"Seleccione\",\"Escoja clasificación del riesgo\",IF(G77=\"Corrupción\",'CALCULO PRO'!Y46,IF(G77=\"Gestión\",'CALCULO PRO'!N33,IF(G77=\"SEGURIDAD_DE_LA_INFORMACIÓN\",'CALCULO PRO'!N33))))","v":"Escoja clasificación del riesgo"},1,null,null,null,"Seleccione",null,null,null,null,null,{"$f":"IF(G77=\"Seleccione\",\"Escoja clasificación del riesgo\",IF(G77=\"Corrupción\",'CALCULO PRO'!AU111,IF(G77=\"Gestión\",\"No aplica para esta tipología\",IF(G77=\"SEGURIDAD_DE_LA_INFORMACIÓN\",\"No aplica para esta tipología\"))))","v":"Escoja clasificación del riesgo"},{"$f":"IF(G77=\"Seleccione\",\"Escoja clasificación del riesgo\",IF(G77=\"Corrupción\",'CALCULO PRO'!AB46,IF(G77=\"Gestión\",'CALCULO PRO'!U111,IF(G77=\"SEGURIDAD_DE_LA_INFORMACIÓN\",'CALCULO PRO'!U111))))","v":"Escoja clasificación del riesgo"},{"$f":"IF(G77=\"Seleccione\",\"Escoja clasificación del riesgo\",IF(G77=\"Corrupción\",'CALCULO PRO'!AC46,IF(G77=\"Gestión\",'CALCULO PRO'!V111,IF(G77=\"SEGURIDAD_DE_LA_INFORMACIÓN\",'CALCULO PRO'!V111))))","v":"Escoja clasificación del riesgo"},{"$f":"IF(G77=\"Seleccione\",\"Escoja clasificación del riesgo\",IF(G77=\"Corrupción\",'CALCULO PRO'!AD46,IF(G77=\"Gestión\",'CALCULO PRO'!W111,IF(G77=\"SEGURIDAD_DE_LA_INFORMACIÓN\",'CALCULO PRO'!W111))))","v":"Escoja clasificación del riesgo"},{"$f":"+IF(AB77=\"\",\"\",IF(OR(AB77=\"Extremo\",AB77=\"Alto\",AB77=\"Moderado\"),\"Requiere Plan de Acción\",IF(AB77=\"Bajo\",\"No requiere Plan de Acción\")))","v":false}]
[null,null,null,null,null,null,null,null,null,null,null,null,null,null,2,null,null,null,"Seleccione"]
[null,null,null,null,null,null,null,"Uso del Poder",null,null,null,null,null,null,3,null,null,null,"Seleccione"]
[null,null,null,null,null,null,null,null,null,null,null,null,null,null,4,null,null,null,"Seleccione"]
[null,null,null,null,null,null,"Tipo",null,null,null,null,null,null,null,5,null,null,null,"Seleccione"]
[null,null,null,null,null,null,null,"Desviación de la Gestión de lo público",null,null,null,null,null,null,6,null,null,null,"Seleccione"]
[null,null,null,null,null,null,"Seleccione una opción",null,null,null,null,null,null,null,7,null,null,null,"Seleccione"]
[null,null,null,null,null,null,null,null,null,null,null,null,null,null,8,null,null,null,"Seleccione"]
[null,null,null,null,null,null,null,"Beneficio particular",null,null,null,null,null,null,9,null,null,null,"Seleccione"]
[null,null,null,null,null,null,null,null,null,null,null,null,null,null,10,null,null,null,"Seleccione"]
[]
[]
[]
[]
[null,"Proceso","VALORACIÓN DE RIESGOS",null,null,null,null,null,null,null,null,null,null,"ACCIONES DE CONTROL",null,null,null,null,null,null,null,"Monitoreo por parte del Líder del Proceso",null,null,"RIESGO RESIDUAL",null,null,null,"ACCIONES DE TRATAMIENTO - PLAN DE ACCIÓN (OPORTUNIDADES)",null,null,null,null,null,null,"Monitoreo por parte del Líder del Proceso al Plan de acción",null,null,"ESTADO"]
[null,null,null,null,null,null,null,null,null,null,null,null,null,"Descripción del control"]
[null,null,"Riesgo","Descripción del riesgo","Causa Inmediata","Causa Raíz","Clasificación","Componentes para la definición de riesgos de corrupción","Activo","Amenaza","Vulnerabilidad","Probabilidad","Impacto","Zona de Riesgo Inherente","No.","Propósito\n(Iniciar con verbos: verificar, validar, conciliar, comparar, revisar o cotejar)","Descripción del control \n(Cómo se realiza)","Desviaciones de resultados","Periodicidad","Responsable","Evidencia","Monitoreo 1 (Con corte 15 de abril)\nFecha de reporte: Entre 16 y 20 abril","Monitoreo 2 (Con corte 15 de agosto)\nFecha de reporte: Entre 16 y 20 agosto","Monitoreo 3 (Con corte 15 de diciembre)\nFecha de reporte: Entre 16 y 20 diciembre","Solidez del conjunto de controles","Probabilidad","Impacto ","Zona de riesgo residual","¿Requiere Plan de Acción?","Tratamiento a seguir","Descripción de la Acción, basado en el análisis de causas","Responsable\n(Cargo)","Fecha de inicio","Fecha de Finalización","Evidencia de la acción","Monitoreo 1 (Con corte 15 de abril)\nFecha de reporte: Entre 16 y 20 abril","Monitoreo 2 (Con corte 15 de agosto)\nFecha de reporte: Entre 16 y 20 agosto","Monitoreo 3 (Con corte 15 de diciembre)\nFecha de reporte: Entre 16 y 20 diciembre"]
[null,{"$f":"'CONTEXTO E IDENTIFICACIÓN'!$C$6","v":"Documental"},6,"RIESGO 6",null,null,"Seleccione","Acción u Omisión ",null,"Seleccione","Seleccione una opción",{"$f":"IF(G94=\"Seleccione\",\"Escoja clasificación del riesgo\",IF(G94=\"Corrupción\",'CALCULO PRO'!AC11,IF(G94=\"Gestión\",'CALCULO PRO'!I11,IF(G94=\"SEGURIDAD_DE_LA_INFORMACIÓN\",'CALCULO PRO'!I11))))","v":"Escoja clasificación del riesgo"},{"$f":"IF(G94=\"Seleccione\",\"Escoja clasificación del riesgo\",IF(G94=\"Corrupción\",'CALCULO PRO'!T47,IF(G94=\"Gestión\",'CALCULO PRO'!M34,IF(G94=\"SEGURIDAD_DE_LA_INFORMACIÓN\",'CALCULO PRO'!M34))))","v":"Escoja clasificación del riesgo"},{"$f":"IF(G94=\"Seleccione\",\"Escoja clasificación del riesgo\",IF(G94=\"Corrupción\",'CALCULO PRO'!Y47,IF(G94=\"Gestión\",'CALCULO PRO'!N34,IF(G94=\"SEGURIDAD_DE_LA_INFORMACIÓN\",'CALCULO PRO'!N34))))","v":"Escoja clasificación del riesgo"},1,null,null,null,"Seleccione",null,null,null,null,null,{"$f":"IF(G94=\"Seleccione\",\"Escoja clasificación del riesgo\",IF(G94=\"Corrupción\",'CALCULO PRO'!AU121,IF(G94=\"Gestión\",\"No aplica para esta tipología\",IF(G94=\"SEGURIDAD_DE_LA_INFORMACIÓN\",\"No aplica para esta tipología\"))))","v":"Escoja clasificación del riesgo"},{"$f":"IF(G94=\"Seleccione\",\"Escoja clasificación del riesgo\",IF(G94=\"Corrupción\",'CALCULO PRO'!AB47,IF(G94=\"Gestión\",'CALCULO PRO'!U121,IF(G94=\"SEGURIDAD_DE_LA_INFORMACIÓN\",'CALCULO PRO'!U121))))","v":"Escoja clasificación del riesgo"},{"$f":"IF(G94=\"Seleccione\",\"Escoja clasificación del riesgo\",IF(G94=\"Corrupción\",'CALCULO PRO'!AC47,IF(G94=\"Gestión\",'CALCULO PRO'!V121,IF(G94=\"SEGURIDAD_DE_LA_INFORMACIÓN\",'CALCULO PRO'!V121))))","v":"Escoja clasificación del riesgo"},{"$f":"IF(G94=\"Seleccione\",\"Escoja clasificación del riesgo\",IF(G94=\"Corrupción\",'CALCULO PRO'!AD47,IF(G94=\"Gestión\",'CALCULO PRO'!W121,IF(G94=\"SEGURIDAD_DE_LA_INFORMACIÓN\",'CALCULO PRO'!W121))))","v":"Escoja clasificación del riesgo"},{"$f":"+IF(AB94=\"\",\"\",IF(OR(AB94=\"Extremo\",AB94=\"Alto\",AB94=\"Moderado\"),\"Requiere Plan de Acción\",IF(AB94=\"Bajo\",\"No requiere Plan de Acción\")))","v":false}]
[null,null,null,null,null,null,null,null,null,null,null,null,null,null,2,null,null,null,"Seleccione"]
[null,null,null,null,null,null,null,"Uso del Poder",null,null,null,null,null,null,3,null,null,null,"Seleccione"]
[null,null,null,null,null,null,null,null,null,null,null,null,null,null,4,null,null,null,"Seleccione"]
[null,null,null,null,null,null,"Tipo",null,null,null,null,null,null,null,5,null,null,null,"Seleccione"]
[null,null,null,null,null,null,null,"Desviación de la Gestión de lo público",null,null,null,null,null,null,6,null,null,null,"Seleccione"]
[null,null,null,null,null,null,"Seleccione una opción",null,null,null,null,null,null,null,7,null,null,null,"Seleccione"]
[null,null,null,null,null,null,null,null,null,null,null,null,null,null,8,null,null,null,"Seleccione"]
[null,null,null,null,null,null,null,"Beneficio particular",null,null,null,null,null,null,9,null,null,null,"Seleccione"]
[null,null,null,null,null,null,null,null,null,null,null,null,null,null,10,null,null,null,"Seleccione"]
[]
[]
[]
[]
[null,"Proceso","VALORACIÓN DE RIESGOS",null,null,null,null,null,null,null,null,null,null,"ACCIONES DE CONTROL",null,null,null,null,null,null,null,"Monitoreo por parte del Líder del Proceso",null,null,"RIESGO RESIDUAL",null,null,null,"ACCIONES DE TRATAMIENTO - PLAN DE ACCIÓN (OPORTUNIDADES)",null,null,null,null,null,null,"Monitoreo por parte del Líder del Proceso al Plan de acción",null,null,"ESTADO"]
[null,null,null,null,null,null,null,null,null,null,null,null,null,"Descripción del control"]
[null,null,"Riesgo","Descripción del riesgo","Causa Inmediata","Causa Raíz","Clasificación","Componentes para la definición de riesgos de corrupción","Activo","Amenaza","Vulnerabilidad","Probabilidad","Impacto","Zona de Riesgo Inherente","No.","Propósito\n(Iniciar con verbos: verificar, validar, conciliar, comparar, revisar o cotejar)","Descripción del control \n(Cómo se realiza)","Desviaciones de resultados","Periodicidad","Responsable","Evidencia","Monitoreo 1 (Con corte 15 de abril)\nFecha de reporte: Entre 16 y 20 abril","Monitoreo 2 (Con corte 15 de agosto)\nFecha de reporte: Entre 16 y 20 agosto","Monitoreo 3 (Con corte 15 de diciembre)\nFecha de reporte: Entre 16 y 20 diciembre","Solidez del conjunto de controles","Probabilidad","Impacto ","Zona de riesgo residual","¿Requiere Plan de Acción?","Tratamiento a seguir","Descripción de la Acción, basado en el análisis de causas","Responsable\n(Cargo)","Fecha de inicio","Fecha de Finalización","Evidencia de la acción","Monitoreo 1 (Con corte 15 de abril)\nFecha de reporte: Entre 16 y 20 abril","Monitoreo 2 (Con corte 15 de agosto)\nFecha de reporte: Entre 16 y 20 agosto","Monitoreo 3 (Con corte 15 de diciembre)\nFecha de reporte: Entre 16 y 20 diciembre"]
[null,{"$f":"'CONTEXTO E IDENTIFICACIÓN'!$C$6","v":"Documental"},7,"RIESGO 7",null,null,"Seleccione","Acción u Omisión ",null,"Seleccione","Seleccione una opción",{"$f":"IF(G111=\"Seleccione\",\"Escoja clasificación del riesgo\",IF(G111=\"Corrupción\",'CALCULO PRO'!AC12,IF(G111=\"Gestión\",'CALCULO PRO'!I12,IF(G111=\"SEGURIDAD_DE_LA_INFORMACIÓN\",'CALCULO PRO'!I12))))","v":"Escoja clasificación del riesgo"},{"$f":"IF(G111=\"Seleccione\",\"Escoja clasificación del riesgo\",IF(G111=\"Corrupción\",'CALCULO PRO'!T48,IF(G111=\"Gestión\",'CALCULO PRO'!M35,IF(G111=\"SEGURIDAD_DE_LA_INFORMACIÓN\",'CALCULO PRO'!M35))))","v":"Escoja clasificación del riesgo"},{"$f":"IF(G111=\"Seleccione\",\"Escoja clasificación del riesgo\",IF(G111=\"Corrupción\",'CALCULO PRO'!Y48,IF(G111=\"Gestión\",'CALCULO PRO'!N35,IF(G111=\"SEGURIDAD_DE_LA_INFORMACIÓN\",'CALCULO PRO'!N35))))","v":"Escoja clasificación del riesgo"},1,null,null,null,"Seleccione",null,null,null,null,null,{"$f":"IF(G111=\"Seleccione\",\"Escoja clasificación del riesgo\",IF(G111=\"Corrupción\",'CALCULO PRO'!AU131,IF(G111=\"Gestión\",\"No aplica para esta tipología\",IF(G111=\"SEGURIDAD_DE_LA_INFORMACIÓN\",\"No aplica para esta tipología\"))))","v":"Escoja clasificación del riesgo"},{"$f":"IF(G111=\"Seleccione\",\"Escoja clasificación del riesgo\",IF(G111=\"Corrupción\",'CALCULO PRO'!AB48,IF(G111=\"Gestión\",'CALCULO PRO'!U131,IF(G111=\"SEGURIDAD_DE_LA_INFORMACIÓN\",'CALCULO PRO'!U131))))","v":"Escoja clasificación del riesgo"},{"$f":"IF(G111=\"Seleccione\",\"Escoja clasificación del riesgo\",IF(G111=\"Corrupción\",'CALCULO PRO'!AC48,IF(G111=\"Gestión\",'CALCULO PRO'!V131,IF(G111=\"SEGURIDAD_DE_LA_INFORMACIÓN\",'CALCULO PRO'!V131))))","v":"Escoja clasificación del riesgo"},{"$f":"IF(G111=\"Seleccione\",\"Escoja clasificación del riesgo\",IF(G111=\"Corrupción\",'CALCULO PRO'!AD48,IF(G111=\"Gestión\",'CALCULO PRO'!W131,IF(G111=\"SEGURIDAD_DE_LA_INFORMACIÓN\",'CALCULO PRO'!W131))))","v":"Escoja clasificación del riesgo"},{"$f":"+IF(AB111=\"\",\"\",IF(OR(AB111=\"Extremo\",AB111=\"Alto\",AB111=\"Moderado\"),\"Requiere Plan de Acción\",IF(AB111=\"Bajo\",\"No requiere Plan de Acción\")))","v":false}]
[null,null,null,null,null,null,null,null,null,null,null,null,null,null,2,null,null,null,"Seleccione"]
[null,null,null,null,null,null,null,"Uso del Poder",null,null,null,null,null,null,3,null,null,null,"Seleccione"]
[null,null,null,null,null,null,null,null,null,null,null,null,null,null,4,null,null,null,"Seleccione"]
[null,null,null,null,null,null,"Tipo",null,null,null,null,null,null,null,5,null,null,null,"Seleccione"]
[null,null,null,null,null,null,null,"Desviación de la Gestión de lo público",null,null,null,null,null,null,6,null,null,null,"Seleccione"]
[null,null,null,null,null,null,"Seleccione una opción",null,null,null,null,null,null,null,7,null,null,null,"Seleccione"]
[null,null,null,null,null,null,null,null,null,null,null,null,null,null,8,null,null,null,"Seleccione"]
[null,null,null,null,null,null,null,"Beneficio particular",null,null,null,null,null,null,9,null,null,null,"Seleccione"]
[null,null,null,null,null,null,null,null,null,null,null,null,null,null,10,null,null,null,"Seleccione"]
[]
[]
[]
[]
[null,"Proceso","VALORACIÓN DE RIESGOS",null,null,null,null,null,null,null,null,null,null,"ACCIONES DE CONTROL",null,null,null,null,null,null,null,"Monitoreo por parte del Líder del Proceso",null,null,"RIESGO RESIDUAL",null,null,null,"ACCIONES DE TRATAMIENTO - PLAN DE ACCIÓN (OPORTUNIDADES)",null,null,null,null,null,null,"Monitoreo por parte del Líder del Proceso al Plan de acción",null,null,"ESTADO"]
[null,null,null,null,null,null,null,null,null,null,null,null,null,"Descripción del control"]
[null,null,"Riesgo","Descripción del riesgo","Causa Inmediata","Causa Raíz","Clasificación","Componentes para la definición de riesgos de corrupción","Activo","Amenaza","Vulnerabilidad","Probabilidad","Impacto","Zona de Riesgo Inherente","No.","Propósito\n(Iniciar con verbos: verificar, validar, conciliar, comparar, revisar o cotejar)","Descripción del control \n(Cómo se realiza)","Desviaciones de resultados","Periodicidad","Responsable","Evidencia","Monitoreo 1 (Con corte 15 de abril)\nFecha de reporte: Entre 16 y 20 abril","Monitoreo 2 (Con corte 15 de agosto)\nFecha de reporte: Entre 16 y 20 agosto","Monitoreo 3 (Con corte 15 de diciembre)\nFecha de reporte: Entre 16 y 20 diciembre","Solidez del conjunto de controles","Probabilidad","Impacto ","Zona de riesgo residual","¿Requiere Plan de Acción?","Tratamiento a seguir","Descripción de la Acción, basado en el análisis de causas","Responsable\n(Cargo)","Fecha de inicio","Fecha de Finalización","Evidencia de la acción","Monitoreo 1 (Con corte 15 de abril)\nFecha de reporte: Entre 16 y 20 abril","Monitoreo 2 (Con corte 15 de agosto)\nFecha de reporte: Entre 16 y 20 agosto","Monitoreo 3 (Con corte 15 de diciembre)\nFecha de reporte: Entre 16 y 20 diciembre"]
[null,{"$f":"'CONTEXTO E IDENTIFICACIÓN'!$C$6","v":"Documental"},8,"RIESGO 8",null,null,"Seleccione","Acción u Omisión ",null,"Seleccione","Seleccione una opción",{"$f":"IF(G128=\"Seleccione\",\"Escoja clasificación del riesgo\",IF(G128=\"Corrupción\",'CALCULO PRO'!AC13,IF(G128=\"Gestión\",'CALCULO PRO'!I13,IF(G128=\"SEGURIDAD_DE_LA_INFORMACIÓN\",'CALCULO PRO'!I13))))","v":"Escoja clasificación del riesgo"},{"$f":"IF(G128=\"Seleccione\",\"Escoja clasificación del riesgo\",IF(G128=\"Corrupción\",'CALCULO PRO'!T49,IF(G128=\"Gestión\",'CALCULO PRO'!M36,IF(G128=\"SEGURIDAD_DE_LA_INFORMACIÓN\",'CALCULO PRO'!M36))))","v":"Escoja clasificación del riesgo"},{"$f":"IF(G128=\"Seleccione\",\"Escoja clasificación del riesgo\",IF(G128=\"Corrupción\",'CALCULO PRO'!Y49,IF(G128=\"Gestión\",'CALCULO PRO'!N36,IF(G128=\"SEGURIDAD_DE_LA_INFORMACIÓN\",'CALCULO PRO'!N36))))","v":"Escoja clasificación del riesgo"},1,null,null,null,"Seleccione",null,null,null,null,null,{"$f":"IF(G128=\"Seleccione\",\"Escoja clasificación del riesgo\",IF(G128=\"Corrupción\",'CALCULO PRO'!AU141,IF(G128=\"Gestión\",\"No aplica para esta tipología\",IF(G128=\"SEGURIDAD_DE_LA_INFORMACIÓN\",\"No aplica para esta tipología\"))))","v":"Escoja clasificación del riesgo"},{"$f":"IF(G128=\"Seleccione\",\"Escoja clasificación del riesgo\",IF(G128=\"Corrupción\",'CALCULO PRO'!AB49,IF(G128=\"Gestión\",'CALCULO PRO'!U141,IF(G128=\"SEGURIDAD_DE_LA_INFORMACIÓN\",'CALCULO PRO'!U141))))","v":"Escoja clasificación del riesgo"},{"$f":"IF(G128=\"Seleccione\",\"Escoja clasificación del riesgo\",IF(G128=\"Corrupción\",'CALCULO PRO'!AC49,IF(G128=\"Gestión\",'CALCULO PRO'!V141,IF(G128=\"SEGURIDAD_DE_LA_INFORMACIÓN\",'CALCULO PRO'!V141))))","v":"Escoja clasificación del riesgo"},{"$f":"IF(G128=\"Seleccione\",\"Escoja clasificación del riesgo\",IF(G128=\"Corrupción\",'CALCULO PRO'!AD49,IF(G128=\"Gestión\",'CALCULO PRO'!W141,IF(G128=\"SEGURIDAD_DE_LA_INFORMACIÓN\",'CALCULO PRO'!W141))))","v":"Escoja clasificación del riesgo"},{"$f":"+IF(AB128=\"\",\"\",IF(OR(AB128=\"Extremo\",AB128=\"Alto\",AB128=\"Moderado\"),\"Requiere Plan de Acción\",IF(AB128=\"Bajo\",\"No requiere Plan de Acción\")))","v":false}]
[null,null,null,null,null,null,null,null,null,null,null,null,null,null,2,null,null,null,"Seleccione"]
[null,null,null,null,null,null,null,"Uso del Poder",null,null,null,null,null,null,3,null,null,null,"Seleccione"]
[null,null,null,null,null,null,null,null,null,null,null,null,null,null,4,null,null,null,"Seleccione"]
[null,null,null,null,null,null,"Tipo",null,null,null,null,null,null,null,5,null,null,null,"Seleccione"]
[null,null,null,null,null,null,null,"Desviación de la Gestión de lo público",null,null,null,null,null,null,6,null,null,null,"Seleccione"]
[null,null,null,null,null,null,"Seleccione una opción",null,null,null,null,null,null,null,7,null,null,null,"Seleccione"]
[null,null,null,null,null,null,null,null,null,null,null,null,null,null,8,null,null,null,"Seleccione"]
[null,null,null,null,null,null,null,"Beneficio particular",null,null,null,null,null,null,9,null,null,null,"Seleccione"]
[null,null,null,null,null,null,null,null,null,null,null,null,null,null,10,null,null,null,"Seleccione"]

{"sheet":"CALCULO PRO","index":2,"n_rows":172,"n_cols":48,"rows_kept":172,"cut":false,"hidden":false,"merged":[[120,24,129,24],[120,25,129,25],[130,24,139,24],[130,25,139,25],[140,24,149,24],[140,25,149,25],[67,27,67,46],[65,5,65,46],[70,24,79,24],[70,25,79,25],[80,24,89,24],[80,25,89,25],[90,24,99,24],[90,25,99,25],[100,24,109,24],[100,25,109,25],[110,24,119,24],[110,25,119,25],[120,46,129,46],[70,45,79,45],[70,46,79,46],[68,43,69,46],[80,45,89,45],[80,46,89,46],[168,28,171,28],[68,31,68,32],[68,33,68,34],[68,35,68,36],[153,28,156,28],[157,28,158,28],[159,28,161,28],[162,28,163,28],[164,28,167,28],[130,45,139,45],[130,46,139,46],[140,45,149,45],[140,46,149,46],[100,45,109,45],[100,46,109,46],[110,45,119,45],[110,46,119,46],[120,45,129,45],[90,45,99,45],[90,46,99,46],[38,5,38,8],[24,5,24,34],[39,15,40,16],[39,29,40,29],[39,18,39,20],[39,17,40,17],[26,5,26,7],[26,8,26,10],[26,11,26,13],[52,18,58,18],[52,20,52,24],[51,5,58,5],[39,22,39,24],[39,25,39,28],[68,5,69,5],[68,6,69,6],[68,7,68,11],[68,12,68,14],[68,15,69,15],[68,20,68,22],[90,20,99,20],[90,21,99,21],[1,5,1,25],[15,4,15,8],[4,19,4,20],[4,21,4,22],[4,23,4,24],[3,5,3,8],[4,13,4,14],[4,17,4,18],[3,13,3,28],[4,15,4,16],[110,18,119,18],[110,19,119,19],[120,18,129,18],[120,19,129,19],[130,18,139,18],[130,19,139,19],[68,37,68,38],[68,39,68,40],[68,41,68,42],[70,18,79,18],[70,19,79,19],[80,18,89,18],[80,19,89,19],[70,20,79,20],[70,21,79,21],[70,22,79,22],[80,20,89,20],[80,21,89,21],[80,22,89,22],[68,29,68,30],[68,27,68,28],[69,27,69,28],[90,22,99,22],[130,20,139,20],[140,18,149,18],[140,19,149,19],[70,1,79,1],[70,2,79,2],[70,3,79,3],[80,1,89,1],[80,2,89,2],[80,3,89,3],[90,1,99,1],[90,2,99,2],[90,3,99,3],[100,1,109,1],[100,2,109,2],[100,3,109,3],[110,1,119,1],[110,2,119,2],[110,3,119,3],[120,1,129,1],[120,2,129,2],[120,3,129,3],[90,18,99,18],[90,19,99,19],[100,18,109,18],[100,19,109,19],[152,6,152,8],[154,11,154,12],[164,11,164,12],[154,14,154,16],[130,1,139,1],[130,2,139,2],[130,3,139,3],[140,1,149,1],[140,2,149,2],[140,3,149,3],[130,21,139,21],[130,22,139,22],[140,20,149,20],[140,21,149,21],[140,22,149,22],[100,20,109,20],[100,21,109,21],[100,22,109,22],[110,20,119,20],[110,21,119,21],[110,22,119,22],[120,20,129,20],[120,21,129,21],[120,22,129,22]]}
[]
[null,null,null,null,null,"PROBABILIDAD INHERENTE"]
[]
[null,null,null,null,null,"RIESGOS DE GESTIÓN Y SEGURIDAD DE LA INFORMACIÓN",null,null,null,null,null,null,null,"RIESGOS DE CORRUPCIÓN"]
[null,"No.","Riesgo","Tipo",null,"No. veces que realiza la actividad al año","Frecuencia de la Actividad","% Probabilidad","Nivel Probabilidad",null,"No.","Riesgo",null,"Participante 1",null,"Participante 2",null,"Participante 3",null,"Participante 4",null,"Participante 5",null,"Participante 6",null,"TOTAL","PROMEDIO","RESULTADO","Nivel Probabilidad"]
[null,1,{"$f":"'VALORACIÓN DE RIESGOS'!$D$9","v":"Posibilidad de vulneración del derecho al acceso a la información debido a la deficiente gestión de la documentación producida al interior de las dependencias para beneficio propio o de un tercero"},{"$f":"'VALORACIÓN DE RIESGOS'!$G$9","v":"CORRUPCIÓN"},null,null,{"$f":"+IF(F6=\"\",\"\",IF(F6<=$H$18,$F$18,IF(F6<=$H$19,$F$19,IF(F6<=$H$20,$F$20,IF(F6<=$H$21,$F$21,IF(F6>=$G$22,$F$22,\"\"))))))","v":""},{"$f":"+IF(G6=\"\",\"\",IF(G6=$F$18,$I$18,IF(G6=$F$19,$I$19,IF(G6=$F$20,$I$20,IF(G6=$F$21,$I$21,IF(G6=$F$22,$I$22))))))","v":""},{"$f":"+IF(G6=\"\",\"\",IF(G6=$F$18,$E$18,IF(G6=$F$19,$E$19,IF(G6=$F$20,$E$20,IF(G6=$F$21,$E$21,IF(G6=$F$22,$E$22))))))","v":""},null,1,{"$f":"'VALORACIÓN DE RIESGOS'!$D$9","v":"Posibilidad de vulneración del derecho al acceso a la información debido a la deficiente gestión de la documentación producida al interior de las dependencias para beneficio propio o de un tercero"},null,"Es viable que el evento ocurra en la mayoría de las circunstancias / Al menos una vez en el último año.",{"$f":"IF(N6=$Q$17,$S$17,IF(N6=$Q$18,$S$18,IF(N6=$Q$19,$S$19,IF(N6=$Q$20,$S$20,IF(N6=$Q$21,$S$21)))))","v":4},"El evento podrá ocurrir en algún momento /Al menos una vez en los últimos 2 años.",{"$f":"IF(P6=$Q$17,$S$17,IF(P6=$Q$18,$S$18,IF(P6=$Q$19,$S$19,IF(P6=$Q$20,$S$20,IF(P6=$Q$21,$S$21)))))","v":3},"Es viable que el evento ocurra en la mayoría de las circunstancias / Al menos una vez en el último año.",{"$f":"IF(R6=$Q$17,$S$17,IF(R6=$Q$18,$S$18,IF(R6=$Q$19,$S$19,IF(R6=$Q$20,$S$20,IF(R6=$Q$21,$S$21)))))","v":4},"El evento podrá ocurrir en algún momento /Al menos una vez en los últimos 2 años.",{"$f":"IF(T6=$Q$17,$S$17,IF(T6=$Q$18,$S$18,IF(T6=$Q$19,$S$19,IF(T6=$Q$20,$S$20,IF(T6=$Q$21,$S$21)))))","v":3},null,{"$f":"IF(V6=$Q$17,$S$17,IF(V6=$Q$18,$S$18,IF(V6=$Q$19,$S$19,IF(V6=$Q$20,$S$20,IF(V6=$Q$21,$S$21)))))","v":false},null,{"$f":"IF(X6=$Q$17,$S$17,IF(X6=$Q$18,$S$18,IF(X6=$Q$19,$S$19,IF(X6=$Q$20,$S$20,IF(X6=$Q$21,$S$21)))))","v":false},{"$f":"O6+Q6+S6+U6+W6+Y6","v":14},{"$f":"Z6/(COUNT(O6,Q6,S6,U6,W6,Y6))","v":3.5},{"$f":"IF(AA6=$S$17,$Q$17,IF(AND(AA6>=3.5,AA6<5),$Q$18,IF(AND(AA6>=2.5,AA6<4),$Q$19,IF(AND(AA6>=1.5,AA6<3),$Q$20,IF(AND(AA6>=0.5,AA6<2),$Q$21)))))","v":"Es viable que el evento ocurra en la mayoría de las circunstancias / Al menos una vez en el último año."},{"$f":"IF(AB6=$Q$17,$R$17,IF(AB6=$Q$18,$R$18,IF(AB6=$Q$19,$R$19,IF(AB6=$Q$20,$R$20,IF(AB6=$Q$21,$R$21)))))","v":"Probable"}]
[null,2,{"$f":"'VALORACIÓN DE RIESGOS'!$D$26","v":"Posibilidad de perdida de integridad de la información en el sistema de gestión documental electrónico y de archivo debido al desconocimiento del sistema por parte de los usuarios de la Entidad."},{"$f":"'VALORACIÓN DE RIESGOS'!$G$26","v":"SEGURIDAD_DE_LA_INFORMACIÓN"},null,165152,"La actividad que conlleva el riesgo se ejecuta más de 5.001 veces por año",1,"Muy Alta",null,2,{"$f":"'VALORACIÓN DE RIESGOS'!$D$26","v":"Posibilidad de perdida de integridad de la información en el sistema de gestión documental electrónico y de archivo debido al desconocimiento del sistema por parte de los usuarios de la Entidad."},null,null,{"$f":"IF(N7=$Q$17,$S$17,IF(N7=$Q$18,$S$18,IF(N7=$Q$19,$S$19,IF(N7=$Q$20,$S$20,IF(N7=$Q$21,$S$21)))))","v":false},null,false,null,{"$f":"IF(R7=$Q$17,$S$17,IF(R7=$Q$18,$S$18,IF(R7=$Q$19,$S$19,IF(R7=$Q$20,$S$20,IF(R7=$Q$21,$S$21)))))","v":false},null,{"$f":"IF(T7=$Q$17,$S$17,IF(T7=$Q$18,$S$18,IF(T7=$Q$19,$S$19,IF(T7=$Q$20,$S$20,IF(T7=$Q$21,$S$21)))))","v":false},null,{"$f":"IF(V7=$Q$17,$S$17,IF(V7=$Q$18,$S$18,IF(V7=$Q$19,$S$19,IF(V7=$Q$20,$S$20,IF(V7=$Q$21,$S$21)))))","v":false},null,{"$f":"IF(X7=$Q$17,$S$17,IF(X7=$Q$18,$S$18,IF(X7=$Q$19,$S$19,IF(X7=$Q$20,$S$20,IF(X7=$Q$21,$S$21)))))","v":false},{"$f":"O7+Q7+S7+U7+W7+Y7","v":0},{"$f":"Z7/(COUNT(O7,Q7,S7,U7,W7,Y7))","v":{"$error":"#DIV/0!"}},{"$f":"IF(AA7=$S$17,$Q$17,IF(AND(AA7>=3.5,AA7<5),$Q$18,IF(AND(AA7>=2.5,AA7<4),$Q$19,IF(AND(AA7>=1.5,AA7<3),$Q$20,IF(AND(AA7>=0.5,AA7<2),$Q$21)))))","v":{"$error":"#DIV/0!"}},{"$f":"IF(AB7=$Q$17,$R$17,IF(AB7=$Q$18,$R$18,IF(AB7=$Q$19,$R$19,IF(AB7=$Q$20,$R$20,IF(AB7=$Q$21,$R$21)))))","v":{"$error":"#DIV/0!"}}]
[null,3,{"$f":"'VALORACIÓN DE RIESGOS'!$D$43","v":"RIESGO 3"},{"$f":"'VALORACIÓN DE RIESGOS'!$G$43","v":"Seleccione"},null,null,"","","",null,3,{"$f":"'VALORACIÓN DE RIESGOS'!$D$43","v":"RIESGO 3"},null,null,false,null,false,null,{"$f":"IF(R8=$Q$17,$S$17,IF(R8=$Q$18,$S$18,IF(R8=$Q$19,$S$19,IF(R8=$Q$20,$S$20,IF(R8=$Q$21,$S$21)))))","v":false},null,{"$f":"IF(T8=$Q$17,$S$17,IF(T8=$Q$18,$S$18,IF(T8=$Q$19,$S$19,IF(T8=$Q$20,$S$20,IF(T8=$Q$21,$S$21)))))","v":false},null,{"$f":"IF(V8=$Q$17,$S$17,IF(V8=$Q$18,$S$18,IF(V8=$Q$19,$S$19,IF(V8=$Q$20,$S$20,IF(V8=$Q$21,$S$21)))))","v":false},null,{"$f":"IF(X8=$Q$17,$S$17,IF(X8=$Q$18,$S$18,IF(X8=$Q$19,$S$19,IF(X8=$Q$20,$S$20,IF(X8=$Q$21,$S$21)))))","v":false},0,{"$error":"#DIV/0!"},{"$error":"#DIV/0!"},{"$error":"#DIV/0!"}]
[null,4,{"$f":"'VALORACIÓN DE RIESGOS'!$D$60","v":"RIESGO 4"},{"$f":"'VALORACIÓN DE RIESGOS'!$G$60","v":"Seleccione"},null,null,"","","",null,4,{"$f":"'VALORACIÓN DE RIESGOS'!$D$60","v":"RIESGO 4"},null,null,false,null,false,null,{"$f":"IF(R9=$Q$17,$S$17,IF(R9=$Q$18,$S$18,IF(R9=$Q$19,$S$19,IF(R9=$Q$20,$S$20,IF(R9=$Q$21,$S$21)))))","v":false},null,{"$f":"IF(T9=$Q$17,$S$17,IF(T9=$Q$18,$S$18,IF(T9=$Q$19,$S$19,IF(T9=$Q$20,$S$20,IF(T9=$Q$21,$S$21)))))","v":false},null,{"$f":"IF(V9=$Q$17,$S$17,IF(V9=$Q$18,$S$18,IF(V9=$Q$19,$S$19,IF(V9=$Q$20,$S$20,IF(V9=$Q$21,$S$21)))))","v":false},null,{"$f":"IF(X9=$Q$17,$S$17,IF(X9=$Q$18,$S$18,IF(X9=$Q$19,$S$19,IF(X9=$Q$20,$S$20,IF(X9=$Q$21,$S$21)))))","v":false},0,{"$error":"#DIV/0!"},{"$error":"#DIV/0!"},{"$error":"#DIV/0!"}]
[null,5,{"$f":"'VALORACIÓN DE RIESGOS'!$D$77","v":"RIESGO 5"},{"$f":"'VALORACIÓN DE RIESGOS'!$G$77","v":"Seleccione"},null,null,"","","",null,5,{"$f":"'VALORACIÓN DE RIESGOS'!$D$77","v":"RIESGO 5"},null,null,false,null,false,null,{"$f":"IF(R10=$Q$17,$S$17,IF(R10=$Q$18,$S$18,IF(R10=$Q$19,$S$19,IF(R10=$Q$20,$S$20,IF(R10=$Q$21,$S$21)))))","v":false},null,{"$f":"IF(T10=$Q$17,$S$17,IF(T10=$Q$18,$S$18,IF(T10=$Q$19,$S$19,IF(T10=$Q$20,$S$20,IF(T10=$Q$21,$S$21)))))","v":false},null,{"$f":"IF(V10=$Q$17,$S$17,IF(V10=$Q$18,$S$18,IF(V10=$Q$19,$S$19,IF(V10=$Q$20,$S$20,IF(V10=$Q$21,$S$21)))))","v":false},null,{"$f":"IF(X10=$Q$17,$S$17,IF(X10=$Q$18,$S$18,IF(X10=$Q$19,$S$19,IF(X10=$Q$20,$S$20,IF(X10=$Q$21,$S$21)))))","v":false},0,{"$error":"#DIV/0!"},{"$error":"#DIV/0!"},{"$error":"#DIV/0!"}]
[null,6,{"$f":"'VALORACIÓN DE RIESGOS'!$D$94","v":"RIESGO 6"},{"$f":"'VALORACIÓN DE RIESGOS'!$G$94","v":"Seleccione"},null,null,"","","",null,6,{"$f":"'VALORACIÓN DE RIESGOS'!$D$94","v":"RIESGO 6"},null,null,false,null,false,null,{"$f":"IF(R11=$Q$17,$S$17,IF(R11=$Q$18,$S$18,IF(R11=$Q$19,$S$19,IF(R11=$Q$20,$S$20,IF(R11=$Q$21,$S$21)))))","v":false},null,{"$f":"IF(T11=$Q$17,$S$17,IF(T11=$Q$18,$S$18,IF(T11=$Q$19,$S$19,IF(T11=$Q$20,$S$20,IF(T11=$Q$21,$S$21)))))","v":false},null,{"$f":"IF(V11=$Q$17,$S$17,IF(V11=$Q$18,$S$18,IF(V11=$Q$19,$S$19,IF(V11=$Q$20,$S$20,IF(V11=$Q$21,$S$21)))))","v":false},null,{"$f":"IF(X11=$Q$17,$S$17,IF(X11=$Q$18,$S$18,IF(X11=$Q$19,$S$19,IF(X11=$Q$20,$S$20,IF(X11=$Q$21,$S$21)))))","v":false},{"$f":"O11+Q11+S11+U11+W11+Y11","v":0},{"$error":"#DIV/0!"},{"$error":"#DIV/0!"},{"$error":"#DIV/0!"}]
[null,7,{"$f":"'VALORACIÓN DE RIESGOS'!$D$111","v":"RIESGO 7"},{"$f":"'VALORACIÓN DE RIESGOS'!$G$111","v":"Seleccione"},null,null,"","","",null,7,{"$f":"'VALORACIÓN DE RIESGOS'!$D$111","v":"RIESGO 7"},null,null,false,null,false,null,{"$f":"IF(R12=$Q$17,$S$17,IF(R12=$Q$18,$S$18,IF(R12=$Q$19,$S$19,IF(R12=$Q$20,$S$20,IF(R12=$Q$21,$S$21)))))","v":false},null,{"$f":"IF(T12=$Q$17,$S$17,IF(T12=$Q$18,$S$18,IF(T12=$Q$19,$S$19,IF(T12=$Q$20,$S$20,IF(T12=$Q$21,$S$21)))))","v":false},null,{"$f":"IF(V12=$Q$17,$S$17,IF(V12=$Q$18,$S$18,IF(V12=$Q$19,$S$19,IF(V12=$Q$20,$S$20,IF(V12=$Q$21,$S$21)))))","v":false},null,{"$f":"IF(X12=$Q$17,$S$17,IF(X12=$Q$18,$S$18,IF(X12=$Q$19,$S$19,IF(X12=$Q$20,$S$20,IF(X12=$Q$21,$S$21)))))","v":false},0,{"$error":"#DIV/0!"},{"$error":"#DIV/0!"},{"$error":"#DIV/0!"}]
[null,8,{"$f":"'VALORACIÓN DE RIESGOS'!$D$128","v":"RIESGO 8"},{"$f":"'VALORACIÓN DE RIESGOS'!$G$128","v":"Seleccione"},null,null,"","","",null,8,{"$f":"'VALORACIÓN DE RIESGOS'!$D$128","v":"RIESGO 8"},null,null,false,null,false,null,{"$f":"IF(R13=$Q$17,$S$17,IF(R13=$Q$18,$S$18,IF(R13=$Q$19,$S$19,IF(R13=$Q$20,$S$20,IF(R13=$Q$21,$S$21)))))","v":false},null,{"$f":"IF(T13=$Q$17,$S$17,IF(T13=$Q$18,$S$18,IF(T13=$Q$19,$S$19,IF(T13=$Q$20,$S$20,IF(T13=$Q$21,$S$21)))))","v":false},null,{"$f":"IF(V13=$Q$17,$S$17,IF(V13=$Q$18,$S$18,IF(V13=$Q$19,$S$19,IF(V13=$Q$20,$S$20,IF(V13=$Q$21,$S$21)))))","v":false},null,{"$f":"IF(X13=$Q$17,$S$17,IF(X13=$Q$18,$S$18,IF(X13=$Q$19,$S$19,IF(X13=$Q$20,$S$20,IF(X13=$Q$21,$S$21)))))","v":false},0,{"$error":"#DIV/0!"},{"$error":"#DIV/0!"},{"$error":"#DIV/0!"}]
[]
[]
[null,null,null,null,"PROBABILIDAD",null,null,null,null,null,null,null,null,null,null,null,"PROBABILIDAD RIESGOS DE CORRUPCIÓN",null,"NIVEL"]
[null,null,null,null,"Nivel","Frecuencia de la Actividad","Mínimo","Máximo","Probabilidad",null,null,null,null,null,null,null,"Se espera que el evento ocurra en la mayoría de las circunstancias / Más de una vez al año.","Casi Seguro",5]
[null,null,null,null,"Muy Baja","La actividad que conlleva el riesgo se ejecuta como máximos 2 veces por año",0,2,0.2,null,null,null,null,null,null,null,"Es viable que el evento ocurra en la mayoría de las circunstancias / Al menos una vez en el último año.","Probable",4]
[null,null,null,null,"Baja","La actividad que conlleva el riesgo se ejecuta de 3 a 24 veces por año",3,24,0.4,null,null,null,null,null,null,null,"El evento podrá ocurrir en algún momento /Al menos una vez en los últimos 2 años.","Posible",3]
[null,null,null,null,"Media","La actividad que conlleva el riesgo se ejecuta de 25 a 500 veces por año",25,500,0.6,null,null,null,null,null,null,null,"El evento puede ocurrir en algún momento /Al menos una vez en los últimos 5 años.","Improbable",2]
[null,null,null,null,"Alta","La actividad que conlleva el riesgo se ejecuta mínimo 501 veces al año y máximo 5.000 veces por año",501,5000,0.8,null,null,null,null,null,null,null,"El evento puede ocurrir solo en circunstancias excepcionales (poco comunes o anormales) / No se ha presentado en los últimos cinco (5) años.","Rara Vez",1]
[null,null,null,null,"Muy Alta","La actividad que conlleva el riesgo se ejecuta más de 5.001 veces por año",5001,null,1,null,null,null,null,null,null,null,"Seleccione"]
[]
[]
[null,null,null,null,null,"IMPACTO INHERENTE"]
[]
[null,null,null,null,null,"Afectación Económica",null,null,"Reputacional",null,null,"Resultado"]
[null,"No.","Riesgo","Tipo",null,"Afectación Económica","%","Nivel","Reputacional","%","Nivel","Porcentaje de Impacto","Nivel de Impacto","RIESGO INHERENTE",null,"No.","Riesgo",null,"¿Afecta al grupo de funcionarios del proceso?","¿Afectar el cumplimiento de metas y objetivos de las dependencias?","¿Afecta el cumplimiento de la misión de la entidad?","¿Afecta el cumplimiento de la misión del sector al que pertenece la entidad?","¿Genera pérdida de confianza de la entidad, afectando su reputación?","¿Generar pérdida de recursos económicos?","¿Afecta la generación de productos o la prestación de servicios?","¿Da lugar al detrimento de calidad de vida de la comunidad por la pérdida del bien, servicios o los recursos públicos?","¿Generar pérdida de información de la entidad?","¿Generar intervención de los órganos de control, de la fiscalía u otro Ente?","¿Dar lugar a procesos sancionatorios?","¿Dar lugar a procesos disciplinarios?","¿Dar lugar a procesos fiscales?","¿Dar lugar a procesos penales?","¿Generar pérdida de credibilidad de la entidad?","¿Generar pérdida de credibilidad del sector?","¿Ocasionar lesiones físicas o pérdida de vidas humanas? ","¿Afectar la imagen regional?","¿Afectar la imagen nacional?","¿Generar daño ambiental?"]
[null,1,{"$f":"'VALORACIÓN DE RIESGOS'!$D$9","v":"Posibilidad de vulneración del derecho al acceso a la información debido a la deficiente gestión de la documentación producida al interior de las dependencias para beneficio propio o de un tercero"},{"$f":"'VALORACIÓN DE RIESGOS'!$G$9","v":"CORRUPCIÓN"},null,null,{"$f":"+IF(F29=\"\",\"\",IF(F29=\"N/A\",\"\",IF(OR(F29=$H$41,F29=$I$41),$G$41,IF(OR(F29=$H$42,F29=$I$42),$G$42,IF(OR(F29=$H$43,F29=$I$43),$G$43,IF(OR(F29=$H$44,F29=$I$44),$G$44,IF(OR(F29=$H$45,F29=$I$45),$G$45)))))))","v":""},{"$f":"+IF(F29=\"\",\"\",IF(F29=\"N/A\",\"\",IF(OR(F29=$H$41,F29=$I$41),$F$41,IF(OR(F29=$H$42,F29=$I$42),$F$42,IF(OR(F29=$H$43,F29=$I$43),$F$43,IF(OR(F29=$H$44,F29=$I$44),$F$44,IF(OR(F29=$H$45,F29=$I$45),$F$45)))))))","v":""},null,{"$f":"+IF(I29=\"\",\"\",IF(I29=\"N/A\",\"\",IF(OR(I29=$H$41,I29=$I$41),$G$41,IF(OR(I29=$H$42,I29=$I$42),$G$42,IF(OR(I29=$H$43,I29=$I$43),$G$43,IF(OR(I29=$H$44,I29=$I$44),$G$44,IF(OR(I29=$H$45,I29=$I$45),$G$45)))))))","v":""},{"$f":"+IF(I29=\"\",\"\",IF(I29=\"N/A\",\"\",IF(OR(I29=$H$41,I29=$I$41),$F$41,IF(OR(I29=$H$42,I29=$I$42),$F$42,IF(OR(I29=$H$43,I29=$I$43),$F$43,IF(OR(I29=$H$44,I29=$I$44),$F$44,IF(OR(I29=$H$45,I29=$I$45),$F$45)))))))","v":""},{"$f":"+IF(G29=\"\",J29,IF(J29=\"\",G29,IF(G29>J29,G29,J29)))","v":""},{"$f":"+IF(L29=\"\",\"\",IF(L29=$G$41,$F$41,IF(L29=$G$42,$F$42,IF(L29=$G$43,$F$43,IF(L29=$G$44,$F$44,IF(L29=$G$45,$F$45))))))","v":""},{"$f":"+IF(I6=$H$55,IF(M29=$I$54,$I$55,IF(M29=$J$54,$J$55,IF(M29=$K$54,$K$55,IF(M29=$L$54,$L$55,IF(M29=$M$54,$M$55))))),IF(I6=$H$56,IF(M29=$I$54,$I$56,IF(M29=$J$54,$J$56,IF(M29=$K$54,$K$56,IF(M29=$L$54,$L$56,IF(M29=$M$54,$M$56))))),IF(I6=$H$57,IF(M29=$I$54,$I$57,IF(M29=$J$54,$J$57,IF(M29=$K$54,$K$57,IF(M29=$L$54,$L$57,IF(M29=$M$54,$M$57))))),IF(I6=$H$58,IF(M29=$I$54,$I$58,IF(M29=$J$54,$J$58,IF(M29=$K$54,$K$58,IF(M29=$L$54,$L$58,IF(M29=$M$54,$M$58))))),IF(I6=$H$59,IF(M29=$I$54,$I$59,IF(M29=$J$54,$J$59,IF(M29=$K$54,$K$59,IF(M29=$L$54,$L$59,IF(M29=$M$54,$M$59))))),\"\")))))","v":""},null,1,{"$f":"'VALORACIÓN DE RIESGOS'!$D$9","v":"Posibilidad de vulneración del derecho al acceso a la información debido a la deficiente gestión de la documentación producida al interior de las dependencias para beneficio propio o de un tercero"},null,"NO","NO","NO","NO","NO","NO","NO","NO","SI","SI","SI","SI","NO","NO","SI","NO","NO","NO","NO","NO"]
[null,2,{"$f":"'VALORACIÓN DE RIESGOS'!$D$26","v":"Posibilidad de perdida de integridad de la información en el sistema de gestión documental electrónico y de archivo debido al desconocimiento del sistema por parte de los usuarios de la Entidad."},{"$f":"'VALORACIÓN DE RIESGOS'!$G$26","v":"SEGURIDAD_DE_LA_INFORMACIÓN"},null,"N/A",{"$f":"+IF(F30=\"\",\"\",IF(F30=\"N/A\",\"\",IF(OR(F30=$H$41,F30=$I$41),$G$41,IF(OR(F30=$H$42,F30=$I$42),$G$42,IF(OR(F30=$H$43,F30=$I$43),$G$43,IF(OR(F30=$H$44,F30=$I$44),$G$44,IF(OR(F30=$H$45,F30=$I$45),$G$45)))))))","v":""},{"$f":"+IF(F30=\"\",\"\",IF(F30=\"N/A\",\"\",IF(OR(F30=$H$41,F30=$I$41),$F$41,IF(OR(F30=$H$42,F30=$I$42),$F$42,IF(OR(F30=$H$43,F30=$I$43),$F$43,IF(OR(F30=$H$44,F30=$I$44),$F$44,IF(OR(F30=$H$45,F30=$I$45),$F$45)))))))","v":""},"El riesgo afecta la imagen de la entidad con algunos usuarios de relevancia frente al logro de los objetivos.",{"$f":"+IF(I30=\"\",\"\",IF(I30=\"N/A\",\"\",IF(OR(I30=$H$41,I30=$I$41),$G$41,IF(OR(I30=$H$42,I30=$I$42),$G$42,IF(OR(I30=$H$43,I30=$I$43),$G$43,IF(OR(I30=$H$44,I30=$I$44),$G$44,IF(OR(I30=$H$45,I30=$I$45),$G$45)))))))","v":0.6},{"$f":"+IF(I30=\"\",\"\",IF(I30=\"N/A\",\"\",IF(OR(I30=$H$41,I30=$I$41),$F$41,IF(OR(I30=$H$42,I30=$I$42),$F$42,IF(OR(I30=$H$43,I30=$I$43),$F$43,IF(OR(I30=$H$44,I30=$I$44),$F$44,IF(OR(I30=$H$45,I30=$I$45),$F$45)))))))","v":"Moderado"},{"$f":"+IF(G30=\"\",J30,IF(J30=\"\",G30,IF(G30>J30,G30,J30)))","v":0.6},{"$f":"+IF(L30=\"\",\"\",IF(L30=$G$41,$F$41,IF(L30=$G$42,$F$42,IF(L30=$G$43,$F$43,IF(L30=$G$44,$F$44,IF(L30=$G$45,$F$45))))))","v":"Moderado"},{"$f":"+IF(I7=$H$55,IF(M30=$I$54,$I$55,IF(M30=$J$54,$J$55,IF(M30=$K$54,$K$55,IF(M30=$L$54,$L$55,IF(M30=$M$54,$M$55))))),IF(I7=$H$56,IF(M30=$I$54,$I$56,IF(M30=$J$54,$J$56,IF(M30=$K$54,$K$56,IF(M30=$L$54,$L$56,IF(M30=$M$54,$M$56))))),IF(I7=$H$57,IF(M30=$I$54,$I$57,IF(M30=$J$54,$J$57,IF(M30=$K$54,$K$57,IF(M30=$L$54,$L$57,IF(M30=$M$54,$M$57))))),IF(I7=$H$58,IF(M30=$I$54,$I$58,IF(M30=$J$54,$J$58,IF(M30=$K$54,$K$58,IF(M30=$L$54,$L$58,IF(M30=$M$54,$M$58))))),IF(I7=$H$59,IF(M30=$I$54,$I$59,IF(M30=$J$54,$J$59,IF(M30=$K$54,$K$59,IF(M30=$L$54,$L$59,IF(M30=$M$54,$M$59))))),\"\")))))","v":"Alto"},null,2,{"$f":"'VALORACIÓN DE RIESGOS'!$D$26","v":"Posibilidad de perdida de integridad de la información en el sistema de gestión documental electrónico y de archivo debido al desconocimiento del sistema por parte de los usuarios de la Entidad."}]
[null,3,{"$f":"'VALORACIÓN DE RIESGOS'!$D$43","v":"RIESGO 3"},{"$f":"'VALORACIÓN DE RIESGOS'!$G$43","v":"Seleccione"},null,null,"","",null,"","",{"$f":"+IF(G31=\"\",J31,IF(J31=\"\",G31,IF(G31>J31,G31,J31)))","v":""},"","",null,3,{"$f":"'VALORACIÓN DE RIESGOS'!$D$43","v":"RIESGO 3"}]
[null,4,{"$f":"'VALORACIÓN DE RIESGOS'!$D$60","v":"RIESGO 4"},{"$f":"'VALORACIÓN DE RIESGOS'!$G$60","v":"Seleccione"},null,null,"","",null,"","","","","",null,4,{"$f":"'VALORACIÓN DE RIESGOS'!$D$60","v":"RIESGO 4"}]
[null,5,{"$f":"'VALORACIÓN DE RIESGOS'!$D$77","v":"RIESGO 5"},{"$f":"'VALORACIÓN DE RIESGOS'!$G$77","v":"Seleccione"},null,null,"","",null,"","","","","",null,5,{"$f":"'VALORACIÓN DE RIESGOS'!$D$77","v":"RIESGO 5"}]
[null,6,{"$f":"'VALORACIÓN DE RIESGOS'!$D$94","v":"RIESGO 6"},{"$f":"'VALORACIÓN DE RIESGOS'!$G$94","v":"Seleccione"},null,null,"","",null,"","",{"$f":"+IF(G34=\"\",J34,IF(J34=\"\",G34,IF(G34>J34,G34,J34)))","v":""},"","",null,6,{"$f":"'VALORACIÓN DE RIESGOS'!$D$94","v":"RIESGO 6"}]
[null,7,{"$f":"'VALORACIÓN DE RIESGOS'!$D$111","v":"RIESGO 7"},{"$f":"'VALORACIÓN DE RIESGOS'!$G$111","v":"Seleccione"},null,null,"","",null,"","","","","",null,7,{"$f":"'VALORACIÓN DE RIESGOS'!$D$111","v":"RIESGO 7"}]
[null,8,{"$f":"'VALORACIÓN DE RIESGOS'!$D$128","v":"RIESGO 8"},{"$f":"'VALORACIÓN DE RIESGOS'!$G$128","v":"Seleccione"},null,null,"","",null,"","","","","",null,8,{"$f":"'VALORACIÓN DE RIESGOS'!$D$128","v":"RIESGO 8"}]
[]
[]
[null,null,null,null,null,"IMPACTO"]
[null,null,null,null,null,"Nivel","% Impacto","Afectación_Económica","Reputacional",null,null,null,null,null,null,"NIVEL",null,"Rango","Impacto inherente",null,null,null,"RIESGO INHERENTE",null,null,"RIESGO RESIDUAL",null,null,null,"RESULTADO"]
[null,null,null,null,null,"Leve",0.2,"Menor a 10 SMLMV","El riesgo afecta la imagen de algún área de la organización.",null,null,null,null,null,null,null,null,null,"Corrupción","NIVEL","PUNTUACIÓN",null,"PROBABILIDAD","IMPACTO","RESULTADO","SOLIDEZ CONTROL","DISMINUCIÓN","PROBABILIDAD","IMPACTO"]
[null,null,null,null,null,"Menor",0.4,"Entre 10 y 50 SMLMV","El riesgo afecta la imagen de la entidad internamente, de conocimiento general nivel interno, de junta directiva y accionistas y/o de proveedores.",null,null,null,null,null,null,"Catastrófico",5,">11","Riesgo 1",{"$f":"IF(U42<=5,$P$44,IF(AND(U42>=6,U42<=11),$P$43,IF(U42>=12,$P$42,SI)))","v":"Moderado"},{"$f":"COUNTIF(S29:AL29,\"SI\")","v":5},null,{"$f":"AC6","v":"Probable"},{"$f":"T42","v":"Moderado"},{"$f":"+IF(W42=$T$55,IF(X42=$U$54,$U$55,IF(X42=$V$54,$V$55,IF(X42=$W$54,$W$55,IF(X42=$X$54,$X$55,IF(X42=$Y$54,$Y$55))))),IF(W42=$T$56,IF(X42=$U$54,$U$56,IF(X42=$V$54,$V$56,IF(X42=$W$54,$W$56,IF(X42=$X$54,$X$56,IF(X42=$Y$54,$Y$56))))),IF(W42=$T$57,IF(X42=$U$54,$U$57,IF(X42=$V$54,$V$57,IF(X42=$W$54,$W$57,IF(X42=$X$54,$X$57,IF(X42=$Y$54,$Y$57))))),IF(W42=$T$58,IF(X42=$U$54,$U$58,IF(X42=$V$54,$V$58,IF(X42=$W$54,$W$58,IF(X42=$X$54,$X$58,IF(X42=$Y$54,$Y$58))))),IF(W42=$T$59,IF(X42=$U$54,$U$59,IF(X42=$V$54,$V$59,IF(X42=$W$54,$W$59,IF(X42=$X$54,$X$59,IF(X42=$Y$54,$Y$59))))),\"\")))))","v":"Alto"},{"$f":"AU71","v":"Moderado"},"DIRECTO",{"$f":"IF(AND(AA42=$AC$54,W42=$T$55),$T$57,IF(AND(AA42=$AC$54,W42=$T$56),$T$58,IF(AND(AA42=$AC$54,W42=$T$57),$T$59,IF(AND(AA42=$AC$54,W42=$T$58),$T$59,IF(AND(AA42=$AC$54,W42=$T$59),$T$59,IF(AND(AA42=$AC$55,W42=$T$55),$T$56,IF(AND(AA42=$AC$55,W42=$T$56),$T$57,IF(AND(AA42=$AC$55,W42=$T$57),$T$58,IF(AND(AA42=$AC$55,W42=$T$58),$T$59,IF(AND(AA42=$AC$55,W42=$T$59),$T$59,IF(AA42=$AC$56,W42,\"\")))))))))))","v":"Improbable"},{"$f":"X42","v":"Moderado"},{"$f":"+IF(AB42=$T$55,IF(AC42=$U$54,$U$55,IF(AC42=$V$54,$V$55,IF(AC42=$W$54,$W$55,IF(AC42=$X$54,$X$55,IF(AC42=$Y$54,$Y$55))))),IF(AB42=$T$56,IF(AC42=$U$54,$U$56,IF(AC42=$V$54,$V$56,IF(AC42=$W$54,$W$56,IF(AC42=$X$54,$X$56,IF(AC42=$Y$54,$Y$56))))),IF(AB42=$T$57,IF(AC42=$U$54,$U$57,IF(AC42=$V$54,$V$57,IF(AC42=$W$54,$W$57,IF(AC42=$X$54,$X$57,IF(AC42=$Y$54,$Y$57))))),IF(AB42=$T$58,IF(AC42=$U$54,$U$58,IF(AC42=$V$54,$V$58,IF(AC42=$W$54,$W$58,IF(AC42=$X$54,$X$58,IF(AC42=$Y$54,$Y$58))))),IF(AB42=$T$59,IF(AC42=$U$54,$U$59,IF(AC42=$V$54,$V$59,IF(AC42=$W$54,$W$59,IF(AC42=$X$54,$X$59,IF(AC42=$Y$54,$Y$59))))),\"\")))))","v":"Moderado"}]
[null,null,null,null,null,"Moderado",0.6,"Entre 51 y 100 SMLMV","El riesgo afecta la imagen de la entidad con algunos usuarios de relevancia frente al logro de los objetivos.",null,null,null,null,null,null,"Mayor",4,"6 - 11","Riesgo 2",{"$f":"IF(U43<=5,$P$44,IF(AND(U43>=6,U43<=11),$P$43,IF(U43>=12,$P$42,SI)))","v":"Moderado"},0,null,{"$error":"#DIV/0!"},{"$f":"T43","v":"Moderado"},{"$f":"+IF(W43=$T$55,IF(X43=$U$54,$U$55,IF(X43=$V$54,$V$55,IF(X43=$W$54,$W$55,IF(X43=$X$54,$X$55,IF(X43=$Y$54,$Y$55))))),IF(W43=$T$56,IF(X43=$U$54,$U$56,IF(X43=$V$54,$V$56,IF(X43=$W$54,$W$56,IF(X43=$X$54,$X$56,IF(X43=$Y$54,$Y$56))))),IF(W43=$T$57,IF(X43=$U$54,$U$57,IF(X43=$V$54,$V$57,IF(X43=$W$54,$W$57,IF(X43=$X$54,$X$57,IF(X43=$Y$54,$Y$57))))),IF(W43=$T$58,IF(X43=$U$54,$U$58,IF(X43=$V$54,$V$58,IF(X43=$W$54,$W$58,IF(X43=$X$54,$X$58,IF(X43=$Y$54,$Y$58))))),IF(W43=$T$59,IF(X43=$U$54,$U$59,IF(X43=$V$54,$V$59,IF(X43=$W$54,$W$59,IF(X43=$X$54,$X$59,IF(X43=$Y$54,$Y$59))))),\"\")))))","v":{"$error":"#DIV/0!"}},{"$f":"AU81","v":{"$error":"#DIV/0!"}},null,{"$f":"IF(AND(AA43=$AC$54,W43=$T$55),$T$57,IF(AND(AA43=$AC$54,W43=$T$56),$T$58,IF(AND(AA43=$AC$54,W43=$T$57),$T$59,IF(AND(AA43=$AC$54,W43=$T$58),$T$59,IF(AND(AA43=$AC$54,W43=$T$59),$T$59,IF(AND(AA43=$AC$55,W43=$T$55),$T$56,IF(AND(AA43=$AC$55,W43=$T$56),$T$57,IF(AND(AA43=$AC$55,W43=$T$57),$T$58,IF(AND(AA43=$AC$55,W43=$T$58),$T$59,IF(AND(AA43=$AC$55,W43=$T$59),$T$59,IF(AA43=$AC$56,W43,\"\")))))))))))","v":{"$error":"#DIV/0!"}},{"$f":"X43","v":"Moderado"},{"$f":"+IF(AB43=$T$55,IF(AC43=$U$54,$U$55,IF(AC43=$V$54,$V$55,IF(AC43=$W$54,$W$55,IF(AC43=$X$54,$X$55,IF(AC43=$Y$54,$Y$55))))),IF(AB43=$T$56,IF(AC43=$U$54,$U$56,IF(AC43=$V$54,$V$56,IF(AC43=$W$54,$W$56,IF(AC43=$X$54,$X$56,IF(AC43=$Y$54,$Y$56))))),IF(AB43=$T$57,IF(AC43=$U$54,$U$57,IF(AC43=$V$54,$V$57,IF(AC43=$W$54,$W$57,IF(AC43=$X$54,$X$57,IF(AC43=$Y$54,$Y$57))))),IF(AB43=$T$58,IF(AC43=$U$54,$U$58,IF(AC43=$V$54,$V$58,IF(AC43=$W$54,$W$58,IF(AC43=$X$54,$X$58,IF(AC43=$Y$54,$Y$58))))),IF(AB43=$T$59,IF(AC43=$U$54,$U$59,IF(AC43=$V$54,$V$59,IF(AC43=$W$54,$W$59,IF(AC43=$X$54,$X$59,IF(AC43=$Y$54,$Y$59))))),\"\")))))","v":{"$error":"#DIV/0!"}}]
[null,null,null,null,null,"Mayor",0.8,"Entre 101 y 500 SMLMV","El riesgo afecta la imagen de la entidad con efecto publicitario sostenido a nivel de sector administrativo, nivel departamental o municipal.",null,null,null,null,null,null,"Moderado",3,"1 - 5","Riesgo 3",{"$f":"IF(U44<=5,$P$44,IF(AND(U44>=6,U44<=11),$P$43,IF(U44>=12,$P$42,SI)))","v":"Moderado"},0,null,{"$error":"#DIV/0!"},"Moderado",{"$error":"#DIV/0!"},{"$f":"AU91","v":{"$error":"#DIV/0!"}},null,{"$f":"IF(AND(AA44=$AC$54,W44=$T$55),$T$57,IF(AND(AA44=$AC$54,W44=$T$56),$T$58,IF(AND(AA44=$AC$54,W44=$T$57),$T$59,IF(AND(AA44=$AC$54,W44=$T$58),$T$59,IF(AND(AA44=$AC$54,W44=$T$59),$T$59,IF(AND(AA44=$AC$55,W44=$T$55),$T$56,IF(AND(AA44=$AC$55,W44=$T$56),$T$57,IF(AND(AA44=$AC$55,W44=$T$57),$T$58,IF(AND(AA44=$AC$55,W44=$T$58),$T$59,IF(AND(AA44=$AC$55,W44=$T$59),$T$59,IF(AA44=$AC$56,W44,\"\")))))))))))","v":{"$error":"#DIV/0!"}},"Moderado",{"$error":"#DIV/0!"}]
[null,null,null,null,null,"Catastrófico",1,"Mayor a 500 SMLMV","El riesgo afecta la imagen de la entidad a nivel nacional, con efecto publicitario sostenido a nivel país",null,null,null,null,null,null,null,null,null,"Riesgo 4",{"$f":"IF(U45<=5,$P$44,IF(AND(U45>=6,U45<=11),$P$43,IF(U45>=12,$P$42,SI)))","v":"Moderado"},0,null,{"$error":"#DIV/0!"},"Moderado",{"$error":"#DIV/0!"},{"$f":"AU101","v":{"$error":"#DIV/0!"}},null,{"$error":"#DIV/0!"},{"$f":"X45","v":"Moderado"},{"$error":"#DIV/0!"}]
[null,null,null,null,null,null,null,"N/A","N/A",null,null,null,null,null,null,null,null,null,"Riesgo 5",{"$f":"IF(U46<=5,$P$44,IF(AND(U46>=6,U46<=11),$P$43,IF(U46>=12,$P$42,SI)))","v":"Moderado"},0,null,{"$error":"#DIV/0!"},"Moderado",{"$error":"#DIV/0!"},{"$f":"AU111","v":{"$error":"#DIV/0!"}},null,{"$error":"#DIV/0!"},"Moderado",{"$error":"#DIV/0!"}]
[null,null,null,null,null,null,null,null,null,null,null,null,null,null,null,null,null,null,"Riesgo 6",{"$f":"IF(U47<=5,$P$44,IF(AND(U47>=6,U47<=11),$P$43,IF(U47>=12,$P$42,SI)))","v":"Moderado"},0,null,{"$error":"#DIV/0!"},"Moderado",{"$error":"#DIV/0!"},{"$f":"AU121","v":{"$error":"#DIV/0!"}},null,{"$error":"#DIV/0!"},{"$f":"X47","v":"Moderado"},{"$error":"#DIV/0!"}]
[null,null,null,null,null,null,null,null,null,null,null,null,null,null,null,null,null,null,"Riesgo 7",{"$f":"IF(U48<=5,$P$44,IF(AND(U48>=6,U48<=11),$P$43,IF(U48>=12,$P$42,SI)))","v":"Moderado"},0,null,{"$error":"#DIV/0!"},"Moderado",{"$error":"#DIV/0!"},{"$f":"AU131","v":{"$error":"#DIV/0!"}},null,{"$error":"#DIV/0!"},"Moderado",{"$error":"#DIV/0!"}]
[null,null,null,null,null,null,null,null,null,null,null,null,null,null,null,null,null,null,"Riesgo 8",{"$f":"IF(U49<=5,$P$44,IF(AND(U49>=6,U49<=11),$P$43,IF(U49>=12,$P$42,SI)))","v":"Moderado"},0,null,{"$error":"#DIV/0!"},"Moderado",{"$error":"#DIV/0!"},{"$f":"AU141","v":{"$error":"#DIV/0!"}},null,{"$error":"#DIV/0!"},"Moderado",{"$f":"+IF(AB49=$T$55,IF(AC49=$U$54,$U$55,IF(AC49=$V$54,$V$55,IF(AC49=$W$54,$W$55,IF(AC49=$X$54,$X$55,IF(AC49=$Y$54,$Y$55))))),IF(AB49=$T$56,IF(AC49=$U$54,$U$56,IF(AC49=$V$54,$V$56,IF(AC49=$W$54,$W$56,IF(AC49=$X$54,$X$56,IF(AC49=$Y$54,$Y$56))))),IF(AB49=$T$57,IF(AC49=$U$54,$U$57,IF(AC49=$V$54,$V$57,IF(AC49=$W$54,$W$57,IF(AC49=$X$54,$X$57,IF(AC49=$Y$54,$Y$57))))),IF(AB49=$T$58,IF(AC49=$U$54,$U$58,IF(AC49=$V$54,$V$58,IF(AC49=$W$54,$W$58,IF(AC49=$X$54,$X$58,IF(AC49=$Y$54,$Y$58))))),IF(AB49=$T$59,IF(AC49=$U$54,$U$59,IF(AC49=$V$54,$V$59,IF(AC49=$W$54,$W$59,IF(AC49=$X$54,$X$59,IF(AC49=$Y$54,$Y$59))))),\"\")))))","v":{"$error":"#DIV/0!"}}]
[]
[]
[null,null,null,null,null,"Probabilidad",null,null,"Impacto"]
[null,null,null,null,null,null,null,null,0.2,0.4,0.6,0.8,1,null,null,null,null,null,"Probabilidad",null,"Impacto",null,null,null,null,null,null,null,"DISMINUCIÓN PROBABILIDAD",null,"NIVELES DE RIESGO","Tratamiento","¿Requiere Plan de Acción?",null,"Reducir_mitigar_Transferir_Evitar",null,"Estado"]
[null,null,null,null,null,null,null,null,"Leve","Menor","Moderado","Mayor","Catastrófico",null,null,null,null,null,null,null,"Insignificante","Menor","Moderado","Mayor","Catastrófico",null,null,null,"DIRECTO",null,"Extremo","Reducir_mitigar_Transferir_Evitar","Requiere Plan de Acción",null,"Reducir / Mitigar",null,"Sin Iniciar"]
[null,null,null,null,null,null,1,"Muy Alta","Alto","Alto","Alto","Alto","Extremo",null,null,null,null,null,null,"Casi seguro","Alto","Alto","Extremo","Extremo","Extremo",null,null,null,"INDIRECTO",null,"Alto","Reducir_mitigar_Transferir_Evitar","Requiere Plan de Acción",null,"Reducir / Transferir",null,"En proceso"]
[null,null,null,null,null,null,0.8,"Alta","Moderado","Moderado","Alto","Alto","Extremo",null,null,null,null,null,null,"Probable","Moderado","Alto","Alto","Extremo","Extremo",null,null,null,"NO DISMINUYE",null,"Moderado","Reducir_mitigar_Transferir_Evitar","Requiere Plan de Acción",null,"Evitar",null,"Cumplida"]
[null,null,null,null,null,null,0.6,"Media","Moderado","Moderado","Moderado","Alto","Extremo",null,null,null,null,null,null,"Posible","Bajo","Moderado","Alto","Extremo","Extremo",null,null,null,null,null,"Bajo","Aceptar","No requiere Plan de Acción",null,"Aceptar",null,"Vencida"]
[null,null,null,null,null,null,0.4,"Baja","Bajo","Moderado","Moderado","Alto","Extremo",null,null,null,null,null,null,"Improbable","Bajo","Bajo","Moderado","Alto","Extremo",null,null,null,null,null,null,null,null,null,"No aplica"]
[null,null,null,null,null,null,0.2,"Muy Baja","Bajo","Bajo","Moderado","Alto","Extremo",null,null,null,null,null,null,"Rara vez","Bajo","Bajo","Moderado","Alto","Extremo"]
[]
[]
[]
[]
[]
[]
[null,null,null,null,null,"RIESGO RESIDUAL"]
[]
[null,null,null,null,null,null,null,null,null,null,null,null,null,null,null,null,null,null,null,null,null,null,null,null,null,null,null,"SOLIDEZ DEL DISEÑO DE CONTROLES"]
[null,null,null,null,null,"No. Control","Descripción del control","Eficiencia",null,null,null,null,"Informativos",null,null,"Valor Total del Control\n(Peso del Control + Peso de la implementación )","% Probabilidad Riesgo Inherente-(% Probabilidad Riesgo Inherente*Valor Total del Control)","% Impacto Riesgo Inherente-(% Impacto Riesgo Inherente*Valor Total del Control)",null,null,"CALIFICACIÓN RIESGO RESIDUAL",null,null,null,null,null,null,"Criterio de evaluación",null,"Responsable",null,"Segregación y autoridad del responsable",null,"Periodicidad",null,"Próposito",null,"Cómo se realiza la actividad de control",null,"Qué pasa con las desviaciones",null,"Evidencia de la ejecución del control",null,"Resultado"]
[null,"No.","Riesgo","Tipo",null,null,null,"Tipo de control","Peso del Control","Afectación o Desplazamiento en la Matriz","Implementación","Peso de la implementación","Documentación","Frecuencia","Evidencia",null,"Probabilidad residual","Impacto Residual","Probabilidad residual Final","Impacto Residual Final","Probabilidad","Impacto","Severidad \n(Nivel de Riesgo)",null,"No.","Riesgo",null,"Aspecto a evaluar en el diseño del control",null,"¿Existe un responsable asignado a la ejecución del control?","Puntaje","¿El responsable tiene la autoridad y adecuada segregación de funciones en la ejecución del control?","Puntaje","¿La oportunidad en que se ejecuta el control ayuda a prevenir la mitigación del riesgo o a detectar la materialización del riesgo de manera oportuna?","Puntaje","¿Las actividades que se desarrollan en el control realmente buscan por si sola prevenir o detectar las causas que pueden dar origen al riesgo, ejemplo Verificar, Validar Cotejar, Comparar, Revisar, etc.?","Puntaje","¿La fuente de información que se utiliza en el desarrollo del control es información confiable que permita mitigar el riesgo?","Puntaje","¿Las observaciones, desviaciones o diferencias identificadas como resultados de la ejecución del control son investigadas y resueltas de manera oportuna?","Puntaje","¿Se deja evidencia o rastro de la ejecución del control, que permita a cualquier tercero con la evidencia, llegar a la misma conclusión?","Puntaje"]
[null,1,{"$f":"'VALORACIÓN DE RIESGOS'!$D$9","v":"Posibilidad de vulneración del derecho al acceso a la información debido a la deficiente gestión de la documentación producida al interior de las dependencias para beneficio propio o de un tercero"},{"$f":"'VALORACIÓN DE RIESGOS'!$G$9","v":"CORRUPCIÓN"},null,1,{"$f":"'VALORACIÓN DE RIESGOS'!$Q$9","v":"El funcionario designado proyecta el cronograma de visitas a las dependencias para la vigencia, el cual es aprobado por el jefe de la División. Conforme a la planeación realizada, los funcionarios responsables efectúan las visitas contempladas en el cronograma, donde se registran las observaciones, recomendaciones y compromisos en la ficha técnica, que es firmada por los intervinientes, tanto para nivel central como para nivel territorial."},null,{"$f":"+IF(H71=$L$157,$M$157,IF(H71=$L$158,$M$158,IF(H71=$L$159,$M$159,\"\")))","v":""},{"$f":"+IF(OR(H71=$L$167,H71=$L$168),$M$167,IF(H71=$L$169,$M$169,\"\"))","v":""},null,{"$f":"+IF(K71=$L$162,$M$162,IF(K71=$L$163,$M$163,\"\"))","v":""},null,null,null,{"$f":"+IFERROR(I71+L71,\"\")","v":""},{"$f":"IF(J71=$M$168,H6-(H6*P71),H6)","v":""},{"$f":"IF(J71=$M$169,L29-(L29*P71),L29)","v":""},{"$f":"+IF(Q80=\"\",\"\",Q80)","v":""},{"$f":"+IF(R80=\"\",\"\",R80)","v":""},{"$f":"+IF(S71=0,\"\",IF(S71<=$G$59,$H$59,IF(S71<=$G$58,$H$58,IF(S71<=$G$57,$H$57,IF(S71<=$G$56,$H$56,IF(S71<=$G$55,$H$55,\"\"))))))","v":""},{"$f":"+IF(T71=0,\"\",IF(T71<=$I$53,$I$54,IF(T71<=$J$53,$J$54,IF(T71<=$K$53,$K$54,IF(T71<=$L$53,$L$54,IF(T71<=$M$53,$M$54,\"\"))))))","v":""},{"$f":"+IF(U71=$H$55,IF(V71=$I$54,$I$55,IF(V71=$J$54,$J$55,IF(V71=$K$54,$K$55,IF(V71=$L$54,$L$55,IF(V71=$M$54,$M$55))))),IF(U71=$H$56,IF(V71=$I$54,$I$56,IF(V71=$J$54,$J$56,IF(V71=$K$54,$K$56,IF(V71=$L$54,$L$56,IF(V71=$M$54,$M$56))))),IF(U71=$H$57,IF(V71=$I$54,$I$57,IF(V71=$J$54,$J$57,IF(V71=$K$54,$K$57,IF(V71=$L$54,$L$57,IF(V71=$M$54,$M$57))))),IF(U71=$H$58,IF(V71=$I$54,$I$58,IF(V71=$J$54,$J$58,IF(V71=$K$54,$K$58,IF(V71=$L$54,$L$58,IF(V71=$M$54,$M$58))))),IF(U71=$H$59,IF(V71=$I$54,$I$59,IF(V71=$J$54,$J$59,IF(V71=$K$54,$K$59,IF(V71=$L$54,$L$59,IF(V71=$M$54,$M$59))))),\"\")))))","v":""},null,1,{"$f":"'VALORACIÓN DE RIESGOS'!$D$9","v":"Posibilidad de vulneración del derecho al acceso a la información debido a la deficiente gestión de la documentación producida al interior de las dependencias para beneficio propio o de un tercero"},null,"Control 1",{"$f":"'VALORACIÓN DE RIESGOS'!$Q$9","v":"El funcionario designado proyecta el cronograma de visitas a las dependencias para la vigencia, el cual es aprobado por el jefe de la División. Conforme a la planeación realizada, los funcionarios responsables efectúan las visitas contempladas en el cronograma, donde se registran las observaciones, recomendaciones y compromisos en la ficha técnica, que es firmada por los intervinientes, tanto para nivel central como para nivel territorial."},"Asignado",{"$f":"IF(AD71=$AD$154,$AE$154,IF(AD71=$AD$155,$AE$155))","v":15},"Adecuado",{"$f":"IF(AF71=$AD$156,$AE$156,IF(AF71=$AD$157,$AE$157))","v":15},"Oportuna",{"$f":"IF(AH71=$AD$158,$AE$158,IF(AH71=$AD$159,$AE$159))","v":15},"Detectar",{"$f":"IF(AJ71=$AD$160,$AE$160,(IF(AJ71=$AD$161,$AE$161,(IF(AJ71=$AD$162,$AE$162,\"\")))))","v":10},"Confiable",{"$f":"IF(AL71=$AD$163,$AE$163,IF(AL71=$AD$164,$AE$164))","v":15},"Se investigan y resuelven oportunamente",{"$f":"IF(AN71=$AD$165,$AE$165,(IF(AN71=$AD$166,$AE$166,(IF(AN71=$AD$167,$AE$167,(IF(AN71=$AD$168,$AE$168,\"\")))))))","v":15},"Completa",{"$f":"IF(AP71=$AD$169,$AE$169,(IF(AP71=$AD$170,$AE$170,(IF(AP71=$AD$171,$AE$171,(IF(AP71=$AD$172,$AE$172,\"\")))))))","v":10},{"$f":"SUM(AE71,AG71,AI71,AK71,AM71,AO71,AQ71)","v":95},{"$f":"IF(AR71=0, \"N/A\",IF(AR71<=85,$AG$154,IF(AND(AR71>=86,AR71<=94),$AG$155,IF(AND(AR71>=95,AR71<=100),AG$156))))","v":"Fuerte"},{"$f":"(SUM(AR71:AR80))/AV71","v":98.333333333333329},{"$f":"IF(AT71<=50,$AG$154,IF(AND(AT71>=51,AT71<=99),$AG$155,IF(AND(AT71>=99.5,AT71<=100),$AG$156)))","v":"Moderado"},{"$f":"COUNTIF(AR71:AR80,\">0\")","v":3}]
[null,null,null,null,null,2,{"$f":"'VALORACIÓN DE RIESGOS'!$Q$10","v":"El servidor designado se desplaza mensualmente al Archivo Central, donde verifica y registra los datos de los préstamos realizados en el mes, con el fin de establecer el cumplimiento del lineamiento de consulta y préstamo, quien escanea las evidencias de formatos de consulta y préstamos y las planillas que soportan el seguimiento. Posteriormente, el funcionario designado revisa la consistencia del formato diligenciado frente a las evidencias tomadas."},null,{"$f":"+IF(H72=$L$157,$M$157,IF(H72=$L$158,$M$158,IF(H72=$L$159,$M$159,\"\")))","v":""},{"$f":"+IF(OR(H72=$L$167,H72=$L$168),$M$167,IF(H72=$L$169,$M$169,\"\"))","v":""},null,{"$f":"+IF(K72=$L$162,$M$162,IF(K72=$L$163,$M$163,\"\"))","v":""},null,null,null,{"$f":"+IFERROR(I72+L72,\"\")","v":""},{"$f":"IF(J72=$M$168,Q71-(Q71*P72),Q71)","v":""},{"$f":"IF(J72=$M$169,R71-(R71*P72),R71)","v":""},null,null,null,null,null,null,null,null,null,"Control 2",{"$f":"'VALORACIÓN DE RIESGOS'!$Q$10","v":"El servidor designado se desplaza mensualmente al Archivo Central, donde verifica y registra los datos de los préstamos realizados en el mes, con el fin de establecer el cumplimiento del lineamiento de consulta y préstamo, quien escanea las evidencias de formatos de consulta y préstamos y las planillas que soportan el seguimiento. Posteriormente, el funcionario designado revisa la consistencia del formato diligenciado frente a las evidencias tomadas."},"Asignado",{"$f":"IF(AD72=$AD$154,$AE$154,IF(AD72=$AD$155,$AE$155))","v":15},"Adecuado",{"$f":"IF(AF72=$AD$156,$AE$156,IF(AF72=$AD$157,$AE$157))","v":15},"Oportuna",{"$f":"IF(AH72=$AD$158,$AE$158,IF(AH72=$AD$159,$AE$159))","v":15},"Prevenir ",{"$f":"IF(AJ72=$AD$160,$AE$160,(IF(AJ72=$AD$161,$AE$161,(IF(AJ72=$AD$162,$AE$162,\"\")))))","v":15},"Confiable",{"$f":"IF(AL72=$AD$163,$AE$163,IF(AL72=$AD$164,$AE$164))","v":15},"Se investigan y resuelven oportunamente",{"$f":"IF(AN72=$AD$165,$AE$165,(IF(AN72=$AD$166,$AE$166,(IF(AN72=$AD$167,$AE$167,(IF(AN72=$AD$168,$AE$168,\"\")))))))","v":15},"Completa",{"$f":"IF(AP72=$AD$169,$AE$169,(IF(AP72=$AD$170,$AE$170,(IF(AP72=$AD$171,$AE$171,(IF(AP72=$AD$172,$AE$172,\"\")))))))","v":10},{"$f":"SUM(AE72,AG72,AI72,AK72,AM72,AO72,AQ72)","v":100},"Fuerte"]
[null,null,null,null,null,3,{"$f":"'VALORACIÓN DE RIESGOS'!$Q$11","v":"El funcionario designado retira la ficha de préstamo del libro para recolectar la información del usuario y fijar la fecha de devolución del material, realiza la entrega y guarda dentro del fichero en la fecha de vencimiento.\nPosteriormente, una vez devuelto el material se verifica la integridad y se reintegra la ficha dentro del libro y este a la colección. Así mismo, se registra dicho control en la matriz de préstamos, que se verifica por todos los integrantes del grupo de Biblioteca."},null,"","",null,"",null,null,null,{"$f":"+IFERROR(I73+L73,\"\")","v":""},"","",null,null,null,null,null,null,null,null,null,"Control 3",{"$f":"'VALORACIÓN DE RIESGOS'!$Q$11","v":"El funcionario designado retira la ficha de préstamo del libro para recolectar la información del usuario y fijar la fecha de devolución del material, realiza la entrega y guarda dentro del fichero en la fecha de vencimiento.\nPosteriormente, una vez devuelto el material se verifica la integridad y se reintegra la ficha dentro del libro y este a la colección. Así mismo, se registra dicho control en la matriz de préstamos, que se verifica por todos los integrantes del grupo de Biblioteca."},"Asignado",15,"Adecuado",15,"Oportuna",15,"Prevenir ",15,"Confiable",15,"Se investigan y resuelven oportunamente",15,"Completa",10,100,"Fuerte"]
[null,null,null,null,null,4,{"$f":"'VALORACIÓN DE RIESGOS'!$Q$12","v":0},null,"","",null,"",null,null,null,{"$f":"+IFERROR(I74+L74,\"\")","v":""},"","",null,null,null,null,null,null,null,null,null,"Control 4",{"$f":"'VALORACIÓN DE RIESGOS'!$Q$12","v":0},null,false,null,false,null,false,null,"",null,false,null,"",null,"",0,"N/A"]
[null,null,null,null,null,5,{"$f":"'VALORACIÓN DE RIESGOS'!$Q$13","v":0},null,"","",null,"",null,null,null,"","","",null,null,null,null,null,null,null,null,null,"Control 5",{"$f":"'VALORACIÓN DE RIESGOS'!$Q$13","v":0},null,false,null,false,null,false,null,"",null,false,null,"",null,"",0,"N/A"]
[null,null,null,null,null,6,{"$f":"'VALORACIÓN DE RIESGOS'!$Q$14","v":0},null,"","",null,"",null,null,null,"","","",null,null,null,null,null,null,null,null,null,"Control 6",{"$f":"'VALORACIÓN DE RIESGOS'!$Q$14","v":0},null,false,null,false,null,false,null,"",null,false,null,"",null,"",0,"N/A"]
[null,null,null,null,null,7,{"$f":"'VALORACIÓN DE RIESGOS'!$Q$15","v":0},null,"","",null,"",null,null,null,"","","",null,null,null,null,null,null,null,null,null,"Control 7",{"$f":"'VALORACIÓN DE RIESGOS'!$Q$15","v":0},null,false,null,false,null,false,null,"",null,false,null,"",null,"",0,"N/A"]
[null,null,null,null,null,8,{"$f":"'VALORACIÓN DE RIESGOS'!$Q$16","v":0},null,"","",null,"",null,null,null,"","","",null,null,null,null,null,null,null,null,null,"Control 8",{"$f":"'VALORACIÓN DE RIESGOS'!$Q$16","v":0},null,false,null,false,null,false,null,"",null,false,null,"",null,"",0,"N/A"]
[null,null,null,null,null,9,{"$f":"'VALORACIÓN DE RIESGOS'!$Q$17","v":0},null,"","",null,"",null,null,null,"","","",null,null,null,null,null,null,null,null,null,"Control 9",{"$f":"'VALORACIÓN DE RIESGOS'!$Q$17","v":0},null,false,null,false,null,false,null,"",null,false,null,"",null,"",0,"N/A"]
[null,null,null,null,null,10,{"$f":"'VALORACIÓN DE RIESGOS'!$Q$18","v":0},null,"","",null,"",null,null,null,"","","",null,null,null,null,null,null,null,null,null,"Control 10",{"$f":"'VALORACIÓN DE RIESGOS'!$Q$18","v":0},null,false,null,false,null,false,null,"",null,false,null,"",null,"",0,"N/A"]
[null,2,{"$f":"'VALORACIÓN DE RIESGOS'!$D$26","v":"Posibilidad de perdida de integridad de la información en el sistema de gestión documental electrónico y de archivo debido al desconocimiento del sistema por parte de los usuarios de la Entidad."},{"$f":"'VALORACIÓN DE RIESGOS'!$G$26","v":"SEGURIDAD_DE_LA_INFORMACIÓN"},null,1,{"$f":"'VALORACIÓN DE RIESGOS'!$Q$26","v":"El funcionario designado recibe a través de correo electrónico la notificación del registro de una solicitud de ayuda (caso), quien realiza la verificación de la necesidad establecida en la plataforma y realiza el análisis de la solicitud para determinar la mejor solución al caso. Posteriormente, resuelve la solicitud y cierra el caso."},"Correctivo",0.1,"Impacto","Manual",0.15,"Documentado","Continua","Con Registro",{"$f":"+IFERROR(I81+L81,\"\")","v":0.25},{"$f":"IF(J81=$M$168,H7-(H7*P81),H7)","v":1},{"$f":"IF(J81=$M$169,L30-(L30*P81),L30)","v":0.44999999999999996},{"$f":"+IF(Q90=\"\",\"\",Q90)","v":1},{"$f":"+IF(R90=\"\",\"\",R90)","v":0.44999999999999996},{"$f":"+IF(S81=0,\"\",IF(S81<=$G$59,$H$59,IF(S81<=$G$58,$H$58,IF(S81<=$G$57,$H$57,IF(S81<=$G$56,$H$56,IF(S81<=$G$55,$H$55,\"\"))))))","v":"Muy Alta"},{"$f":"+IF(T81=0,\"\",IF(T81<=$I$53,$I$54,IF(T81<=$J$53,$J$54,IF(T81<=$K$53,$K$54,IF(T81<=$L$53,$L$54,IF(T81<=$M$53,$M$54,\"\"))))))","v":"Moderado"},{"$f":"+IF(U81=$H$55,IF(V81=$I$54,$I$55,IF(V81=$J$54,$J$55,IF(V81=$K$54,$K$55,IF(V81=$L$54,$L$55,IF(V81=$M$54,$M$55))))),IF(U81=$H$56,IF(V81=$I$54,$I$56,IF(V81=$J$54,$J$56,IF(V81=$K$54,$K$56,IF(V81=$L$54,$L$56,IF(V81=$M$54,$M$56))))),IF(U81=$H$57,IF(V81=$I$54,$I$57,IF(V81=$J$54,$J$57,IF(V81=$K$54,$K$57,IF(V81=$L$54,$L$57,IF(V81=$M$54,$M$57))))),IF(U81=$H$58,IF(V81=$I$54,$I$58,IF(V81=$J$54,$J$58,IF(V81=$K$54,$K$58,IF(V81=$L$54,$L$58,IF(V81=$M$54,$M$58))))),IF(U81=$H$59,IF(V81=$I$54,$I$59,IF(V81=$J$54,$J$59,IF(V81=$K$54,$K$59,IF(V81=$L$54,$L$59,IF(V81=$M$54,$M$59))))),\"\")))))","v":"Alto"},null,2,{"$f":"'VALORACIÓN DE RIESGOS'!$D$26","v":"Posibilidad de perdida de integridad de la información en el sistema de gestión documental electrónico y de archivo debido al desconocimiento del sistema por parte de los usuarios de la Entidad."},null,"Control 1",{"$f":"'VALORACIÓN DE RIESGOS'!$Q$26","v":"El funcionario designado recibe a través de correo electrónico la notificación del registro de una solicitud de ayuda (caso), quien realiza la verificación de la necesidad establecida en la plataforma y realiza el análisis de la solicitud para determinar la mejor solución al caso. Posteriormente, resuelve la solicitud y cierra el caso."},null,{"$f":"IF(AD81=$AD$154,$AE$154,IF(AD81=$AD$155,$AE$155))","v":false},null,{"$f":"IF(AF81=$AD$156,$AE$156,IF(AF81=$AD$157,$AE$157))","v":false},null,{"$f":"IF(AH81=$AD$158,$AE$158,IF(AH81=$AD$159,$AE$159))","v":false},null,{"$f":"IF(AJ81=$AD$160,$AE$160,(IF(AJ81=$AD$161,$AE$161,(IF(AJ81=$AD$162,$AE$162,\"\")))))","v":""},null,{"$f":"IF(AL81=$AD$163,$AE$163,IF(AL81=$AD$164,$AE$164))","v":false},null,{"$f":"IF(AN81=$AD$165,$AE$165,(IF(AN81=$AD$166,$AE$166,(IF(AN81=$AD$167,$AE$167,(IF(AN81=$AD$168,$AE$168,\"\")))))))","v":""},null,{"$f":"IF(AP81=$AD$169,$AE$169,(IF(AP81=$AD$170,$AE$170,(IF(AP81=$AD$171,$AE$171,(IF(AP81=$AD$172,$AE$172,\"\")))))))","v":""},{"$f":"SUM(AE81,AG81,AI81,AK81,AM81,AO81,AQ81)","v":0},"N/A",{"$f":"(SUM(AR81:AR90))/AV81","v":{"$error":"#DIV/0!"}},{"$f":"IF(AT81<=50,$AG$154,IF(AND(AT81>=51,AT81<=99),$AG$155,IF(AND(AT81>=99.5,AT81<=100),$AG$156)))","v":{"$error":"#DIV/0!"}},{"$f":"COUNTIF(AR81:AR90,\">0\")","v":0}]
[null,null,null,null,null,2,{"$f":"'VALORACIÓN DE RIESGOS'!$Q$27","v":0},null,"","",null,"",null,null,null,{"$f":"+IFERROR(I82+L82,\"\")","v":""},{"$f":"IF(J82=$M$168,Q81-(Q81*P82),Q81)","v":1},{"$f":"IF(J82=$M$169,R81-(R81*P82),R81)","v":0.44999999999999996},null,null,null,null,null,null,null,null,null,"Control 2",{"$f":"'VALORACIÓN DE RIESGOS'!$Q$27","v":0},null,false,null,false,null,false,null,"",null,false,null,"",null,"",{"$f":"SUM(AE82,AG82,AI82,AK82,AM82,AO82,AQ82)","v":0},"N/A"]
[null,null,null,null,null,3,{"$f":"'VALORACIÓN DE RIESGOS'!$Q$28","v":0},null,"","",null,"",null,null,null,{"$f":"+IFERROR(I83+L83,\"\")","v":""},1,0.44999999999999996,null,null,null,null,null,null,null,null,null,"Control 3",{"$f":"'VALORACIÓN DE RIESGOS'!$Q$28","v":0},null,false,null,false,null,false,null,"",null,false,null,"",null,"",0,"N/A"]
[null,null,null,null,null,4,{"$f":"'VALORACIÓN DE RIESGOS'!$Q$29","v":0},null,"","",null,"",null,null,null,"",1,0.44999999999999996,null,null,null,null,null,null,null,null,null,"Control 4",{"$f":"'VALORACIÓN DE RIESGOS'!$Q$29","v":0},null,false,null,false,null,false,null,"",null,false,null,"",null,"",0,"N/A"]
[null,null,null,null,null,5,{"$f":"'VALORACIÓN DE RIESGOS'!$Q$30","v":0},null,"","",null,"",null,null,null,"",1,0.44999999999999996,null,null,null,null,null,null,null,null,null,"Control 5",{"$f":"'VALORACIÓN DE RIESGOS'!$Q$30","v":0},null,false,null,false,null,false,null,"",null,false,null,"",null,"",0,"N/A"]
[null,null,null,null,null,6,{"$f":"'VALORACIÓN DE RIESGOS'!$Q$31","v":0},null,"","",null,"",null,null,null,"",1,0.44999999999999996,null,null,null,null,null,null,null,null,null,"Control 6",{"$f":"'VALORACIÓN DE RIESGOS'!$Q$31","v":0},null,false,null,false,null,false,null,"",null,false,null,"",null,"",0,"N/A"]
[null,null,null,null,null,7,{"$f":"'VALORACIÓN DE RIESGOS'!$Q$32","v":0},null,"","",null,"",null,null,null,"",1,0.44999999999999996,null,null,null,null,null,null,null,null,null,"Control 7",{"$f":"'VALORACIÓN DE RIESGOS'!$Q$32","v":0},null,false,null,false,null,false,null,"",null,false,null,"",null,"",0,"N/A"]
[null,null,null,null,null,8,{"$f":"'VALORACIÓN DE RIESGOS'!$Q$33","v":0},null,"","",null,"",null,null,null,"",1,0.44999999999999996,null,null,null,null,null,null,null,null,null,"Control 8",{"$f":"'VALORACIÓN DE RIESGOS'!$Q$33","v":0},null,false,null,false,null,false,null,"",null,false,null,"",null,"",0,"N/A"]
[null,null,null,null,null,9,{"$f":"'VALORACIÓN DE RIESGOS'!$Q$34","v":0},null,"","",null,"",null,null,null,"",1,0.44999999999999996,null,null,null,null,null,null,null,null,null,"Control 9",{"$f":"'VALORACIÓN DE RIESGOS'!$Q$34","v":0},null,false,null,false,null,false,null,"",null,false,null,"",null,"",0,"N/A"]
[null,null,null,null,null,10,{"$f":"'VALORACIÓN DE RIESGOS'!$Q$35","v":0},null,"","",null,"",null,null,null,"",1,0.44999999999999996,null,null,null,null,null,null,null,null,null,"Control 10",{"$f":"'VALORACIÓN DE RIESGOS'!$Q$35","v":0},null,false,null,false,null,false,null,"",null,false,null,"",null,"",0,"N/A"]
[null,3,{"$f":"'VALORACIÓN DE RIESGOS'!$D$43","v":"RIESGO 3"},{"$f":"'VALORACIÓN DE RIESGOS'!$G$43","v":"Seleccione"},null,1,{"$f":"'VALORACIÓN DE RIESGOS'!$Q$43","v":0},null,"","",null,"",null,null,null,{"$f":"+IFERROR(I91+L91,\"\")","v":""},{"$f":"IF(J91=$M$168,H8-(H8*P91),H8)","v":""},{"$f":"IF(J91=$M$169,L31-(L31*P91),L31)","v":""},{"$f":"+IF(Q100=\"\",\"\",Q100)","v":""},{"$f":"+IF(R100=\"\",\"\",R100)","v":""},{"$f":"+IF(S91=0,\"\",IF(S91<=$G$59,$H$59,IF(S91<=$G$58,$H$58,IF(S91<=$G$57,$H$57,IF(S91<=$G$56,$H$56,IF(S91<=$G$55,$H$55,\"\"))))))","v":""},{"$f":"+IF(T91=0,\"\",IF(T91<=$I$53,$I$54,IF(T91<=$J$53,$J$54,IF(T91<=$K$53,$K$54,IF(T91<=$L$53,$L$54,IF(T91<=$M$53,$M$54,\"\"))))))","v":""},{"$f":"+IF(U91=$H$55,IF(V91=$I$54,$I$55,IF(V91=$J$54,$J$55,IF(V91=$K$54,$K$55,IF(V91=$L$54,$L$55,IF(V91=$M$54,$M$55))))),IF(U91=$H$56,IF(V91=$I$54,$I$56,IF(V91=$J$54,$J$56,IF(V91=$K$54,$K$56,IF(V91=$L$54,$L$56,IF(V91=$M$54,$M$56))))),IF(U91=$H$57,IF(V91=$I$54,$I$57,IF(V91=$J$54,$J$57,IF(V91=$K$54,$K$57,IF(V91=$L$54,$L$57,IF(V91=$M$54,$M$57))))),IF(U91=$H$58,IF(V91=$I$54,$I$58,IF(V91=$J$54,$J$58,IF(V91=$K$54,$K$58,IF(V91=$L$54,$L$58,IF(V91=$M$54,$M$58))))),IF(U91=$H$59,IF(V91=$I$54,$I$59,IF(V91=$J$54,$J$59,IF(V91=$K$54,$K$59,IF(V91=$L$54,$L$59,IF(V91=$M$54,$M$59))))),\"\")))))","v":""},null,3,{"$f":"'VALORACIÓN DE RIESGOS'!$D$43","v":"RIESGO 3"},null,"Control 1",{"$f":"'VALORACIÓN DE RIESGOS'!$Q$43","v":0},null,{"$f":"IF(AD91=$AD$154,$AE$154,IF(AD91=$AD$155,$AE$155))","v":false},null,{"$f":"IF(AF91=$AD$156,$AE$156,IF(AF91=$AD$157,$AE$157))","v":false},null,{"$f":"IF(AH91=$AD$158,$AE$158,IF(AH91=$AD$159,$AE$159))","v":false},null,{"$f":"IF(AJ91=$AD$160,$AE$160,(IF(AJ91=$AD$161,$AE$161,(IF(AJ91=$AD$162,$AE$162,\"\")))))","v":""},null,{"$f":"IF(AL91=$AD$163,$AE$163,IF(AL91=$AD$164,$AE$164))","v":false},null,{"$f":"IF(AN91=$AD$165,$AE$165,(IF(AN91=$AD$166,$AE$166,(IF(AN91=$AD$167,$AE$167,(IF(AN91=$AD$168,$AE$168,\"\")))))))","v":""},null,{"$f":"IF(AP91=$AD$169,$AE$169,(IF(AP91=$AD$170,$AE$170,(IF(AP91=$AD$171,$AE$171,(IF(AP91=$AD$172,$AE$172,\"\")))))))","v":""},{"$f":"SUM(AE91,AG91,AI91,AK91,AM91,AO91,AQ91)","v":0},"N/A",{"$f":"(SUM(AR91:AR100))/AV91","v":{"$error":"#DIV/0!"}},{"$f":"IF(AT91<=50,$AG$154,IF(AND(AT91>=51,AT91<=99),$AG$155,IF(AND(AT91>=99.5,AT91<=100),$AG$156)))","v":{"$error":"#DIV/0!"}},{"$f":"COUNTIF(AR91:AR100,\">0\")","v":0}]
[null,null,null,null,null,2,{"$f":"'VALORACIÓN DE RIESGOS'!$Q$44","v":0},null,"","",null,"",null,null,null,{"$f":"+IFERROR(I92+L92,\"\")","v":""},{"$f":"IF(J92=$M$168,Q91-(Q91*P92),Q91)","v":""},{"$f":"IF(J92=$M$169,R91-(R91*P92),R91)","v":""},null,null,null,null,null,null,null,null,null,"Control 2",{"$f":"'VALORACIÓN DE RIESGOS'!$Q$44","v":0},null,false,null,false,null,false,null,"",null,false,null,"",null,"",{"$f":"SUM(AE92,AG92,AI92,AK92,AM92,AO92,AQ92)","v":0},"N/A"]
[null,null,null,null,null,3,{"$f":"'VALORACIÓN DE RIESGOS'!$Q$45","v":0},null,"","",null,"",null,null,null,{"$f":"+IFERROR(I93+L93,\"\")","v":""},"","",null,null,null,null,null,null,null,null,null,"Control 3",{"$f":"'VALORACIÓN DE RIESGOS'!$Q$45","v":0},null,false,null,false,null,false,null,"",null,false,null,"",null,"",0,"N/A"]
[null,null,null,null,null,4,{"$f":"'VALORACIÓN DE RIESGOS'!$Q$46","v":0},null,"","",null,"",null,null,null,{"$f":"+IFERROR(I94+L94,\"\")","v":""},"","",null,null,null,null,null,null,null,null,null,"Control 4",{"$f":"'VALORACIÓN DE RIESGOS'!$Q$46","v":0},null,false,null,false,null,false,null,"",null,false,null,"",null,"",0,"N/A"]
[null,null,null,null,null,5,{"$f":"'VALORACIÓN DE RIESGOS'!$Q$47","v":0},null,"","",null,"",null,null,null,"","","",null,null,null,null,null,null,null,null,null,"Control 5",{"$f":"'VALORACIÓN DE RIESGOS'!$Q$47","v":0},null,false,null,false,null,false,null,"",null,false,null,"",null,"",0,"N/A"]
[null,null,null,null,null,6,{"$f":"'VALORACIÓN DE RIESGOS'!$Q$48","v":0},null,"","",null,"",null,null,null,"","","",null,null,null,null,null,null,null,null,null,"Control 6",{"$f":"'VALORACIÓN DE RIESGOS'!$Q$48","v":0},null,false,null,false,null,false,null,"",null,false,null,"",null,"",0,"N/A"]
[null,null,null,null,null,7,{"$f":"'VALORACIÓN DE RIESGOS'!$Q$49","v":0},null,"","",null,"",null,null,null,"","","",null,null,null,null,null,null,null,null,null,"Control 7",{"$f":"'VALORACIÓN DE RIESGOS'!$Q$49","v":0},null,false,null,false,null,false,null,"",null,false,null,"",null,"",0,"N/A"]
[null,null,null,null,null,8,{"$f":"'VALORACIÓN DE RIESGOS'!$Q$50","v":0},null,"","",null,"",null,null,null,"","","",null,null,null,null,null,null,null,null,null,"Control 8",{"$f":"'VALORACIÓN DE RIESGOS'!$Q$50","v":0},null,false,null,false,null,false,null,"",null,false,null,"",null,"",0,"N/A"]
[null,null,null,null,null,9,{"$f":"'VALORACIÓN DE RIESGOS'!$Q$51","v":0},null,"","",null,"",null,null,null,"","","",null,null,null,null,null,null,null,null,null,"Control 9",{"$f":"'VALORACIÓN DE RIESGOS'!$Q$51","v":0},null,false,null,false,null,false,null,"",null,false,null,"",null,"",0,"N/A"]
[null,null,null,null,null,10,{"$f":"'VALORACIÓN DE RIESGOS'!$Q$52","v":0},null,"","",null,"",null,null,null,"","","",null,null,null,null,null,null,null,null,null,"Control 10",{"$f":"'VALORACIÓN DE RIESGOS'!$Q$52","v":0},null,false,null,false,null,false,null,"",null,false,null,"",null,"",0,"N/A"]
[null,4,{"$f":"'VALORACIÓN DE RIESGOS'!$D$60","v":"RIESGO 4"},{"$f":"'VALORACIÓN DE RIESGOS'!$G$60","v":"Seleccione"},null,1,{"$f":"'VALORACIÓN DE RIESGOS'!$Q$60","v":0},null,"","",null,"",null,null,null,{"$f":"+IFERROR(I101+L101,\"\")","v":""},{"$f":"IF(J101=$M$168,H9-(H9*P101),H9)","v":""},{"$f":"IF(J101=$M$169,L32-(L32*P101),L32)","v":""},{"$f":"+IF(Q110=\"\",\"\",Q110)","v":""},{"$f":"+IF(R110=\"\",\"\",R110)","v":""},{"$f":"+IF(S101=0,\"\",IF(S101<=$G$59,$H$59,IF(S101<=$G$58,$H$58,IF(S101<=$G$57,$H$57,IF(S101<=$G$56,$H$56,IF(S101<=$G$55,$H$55,\"\"))))))","v":""},{"$f":"+IF(T101=0,\"\",IF(T101<=$I$53,$I$54,IF(T101<=$J$53,$J$54,IF(T101<=$K$53,$K$54,IF(T101<=$L$53,$L$54,IF(T101<=$M$53,$M$54,\"\"))))))","v":""},{"$f":"+IF(U101=$H$55,IF(V101=$I$54,$I$55,IF(V101=$J$54,$J$55,IF(V101=$K$54,$K$55,IF(V101=$L$54,$L$55,IF(V101=$M$54,$M$55))))),IF(U101=$H$56,IF(V101=$I$54,$I$56,IF(V101=$J$54,$J$56,IF(V101=$K$54,$K$56,IF(V101=$L$54,$L$56,IF(V101=$M$54,$M$56))))),IF(U101=$H$57,IF(V101=$I$54,$I$57,IF(V101=$J$54,$J$57,IF(V101=$K$54,$K$57,IF(V101=$L$54,$L$57,IF(V101=$M$54,$M$57))))),IF(U101=$H$58,IF(V101=$I$54,$I$58,IF(V101=$J$54,$J$58,IF(V101=$K$54,$K$58,IF(V101=$L$54,$L$58,IF(V101=$M$54,$M$58))))),IF(U101=$H$59,IF(V101=$I$54,$I$59,IF(V101=$J$54,$J$59,IF(V101=$K$54,$K$59,IF(V101=$L$54,$L$59,IF(V101=$M$54,$M$59))))),\"\")))))","v":""},null,4,{"$f":"'VALORACIÓN DE RIESGOS'!$D$60","v":"RIESGO 4"},null,"Control 1",{"$f":"'VALORACIÓN DE RIESGOS'!$Q$60","v":0},null,{"$f":"IF(AD101=$AD$154,$AE$154,IF(AD101=$AD$155,$AE$155))","v":false},null,{"$f":"IF(AF101=$AD$156,$AE$156,IF(AF101=$AD$157,$AE$157))","v":false},null,{"$f":"IF(AH101=$AD$158,$AE$158,IF(AH101=$AD$159,$AE$159))","v":false},null,{"$f":"IF(AJ101=$AD$160,$AE$160,(IF(AJ101=$AD$161,$AE$161,(IF(AJ101=$AD$162,$AE$162,\"\")))))","v":""},null,{"$f":"IF(AL101=$AD$163,$AE$163,IF(AL101=$AD$164,$AE$164))","v":false},null,{"$f":"IF(AN101=$AD$165,$AE$165,(IF(AN101=$AD$166,$AE$166,(IF(AN101=$AD$167,$AE$167,(IF(AN101=$AD$168,$AE$168,\"\")))))))","v":""},null,{"$f":"IF(AP101=$AD$169,$AE$169,(IF(AP101=$AD$170,$AE$170,(IF(AP101=$AD$171,$AE$171,(IF(AP101=$AD$172,$AE$172,\"\")))))))","v":""},{"$f":"SUM(AE101,AG101,AI101,AK101,AM101,AO101,AQ101)","v":0},"N/A",{"$f":"(SUM(AR101:AR110))/AV101","v":{"$error":"#DIV/0!"}},{"$f":"IF(AT101<=50,$AG$154,IF(AND(AT101>=51,AT101<=99),$AG$155,IF(AND(AT101>=99.5,AT101<=100),$AG$156)))","v":{"$error":"#DIV/0!"}},{"$f":"COUNTIF(AR101:AR110,\">0\")","v":0}]
[null,null,null,null,null,2,{"$f":"'VALORACIÓN DE RIESGOS'!$Q$61","v":0},null,"","",null,"",null,null,null,{"$f":"+IFERROR(I102+L102,\"\")","v":""},{"$f":"IF(J102=$M$168,Q101-(Q101*P102),Q101)","v":""},{"$f":"IF(J102=$M$169,R101-(R101*P102),R101)","v":""},null,null,null,null,null,null,null,null,null,"Control 2",{"$f":"'VALORACIÓN DE RIESGOS'!$Q$61","v":0},null,false,null,false,null,false,null,"",null,false,null,"",null,"",{"$f":"SUM(AE102,AG102,AI102,AK102,AM102,AO102,AQ102)","v":0},"N/A"]
[null,null,null,null,null,3,{"$f":"'VALORACIÓN DE RIESGOS'!$Q$62","v":0},null,"","",null,"",null,null,null,{"$f":"+IFERROR(I103+L103,\"\")","v":""},"","",null,null,null,null,null,null,null,null,null,"Control 3",{"$f":"'VALORACIÓN DE RIESGOS'!$Q$62","v":0},null,false,null,false,null,false,null,"",null,false,null,"",null,"",0,{"$f":"IF(AR103=0, \"N/A\",IF(AR103<=85,$AG$154,IF(AND(AR103>=86,AR103<=94),$AG$155,IF(AND(AR103>=95,AR103<=100),AG$156))))","v":"N/A"}]
[null,null,null,null,null,4,{"$f":"'VALORACIÓN DE RIESGOS'!$Q$63","v":0},null,"","",null,"",null,null,null,{"$f":"+IFERROR(I104+L104,\"\")","v":""},"","",null,null,null,null,null,null,null,null,null,"Control 4",{"$f":"'VALORACIÓN DE RIESGOS'!$Q$63","v":0},null,false,null,false,null,false,null,"",null,false,null,"",null,"",0,"N/A"]
[null,null,null,null,null,5,{"$f":"'VALORACIÓN DE RIESGOS'!$Q$64","v":0},null,"","",null,"",null,null,null,"","","",null,null,null,null,null,null,null,null,null,"Control 5",{"$f":"'VALORACIÓN DE RIESGOS'!$Q$64","v":0},null,false,null,false,null,false,null,"",null,false,null,"",null,"",0,"N/A"]
[null,null,null,null,null,6,{"$f":"'VALORACIÓN DE RIESGOS'!$Q$65","v":0},null,"","",null,"",null,null,null,"","","",null,null,null,null,null,null,null,null,null,"Control 6",{"$f":"'VALORACIÓN DE RIESGOS'!$Q$65","v":0},null,false,null,false,null,false,null,"",null,false,null,"",null,"",0,"N/A"]
[null,null,null,null,null,7,{"$f":"'VALORACIÓN DE RIESGOS'!$Q$66","v":0},null,"","",null,"",null,null,null,"","","",null,null,null,null,null,null,null,null,null,"Control 7",{"$f":"'VALORACIÓN DE RIESGOS'!$Q$66","v":0},null,false,null,false,null,false,null,"",null,false,null,"",null,"",0,"N/A"]
[null,null,null,null,null,8,{"$f":"'VALORACIÓN DE RIESGOS'!$Q$67","v":0},null,"","",null,"",null,null,null,"","","",null,null,null,null,null,null,null,null,null,"Control 8",{"$f":"'VALORACIÓN DE RIESGOS'!$Q$67","v":0},null,false,null,false,null,false,null,"",null,false,null,"",null,"",0,"N/A"]
[null,null,null,null,null,9,{"$f":"'VALORACIÓN DE RIESGOS'!$Q$68","v":0},null,"","",null,"",null,null,null,"","","",null,null,null,null,null,null,null,null,null,"Control 9",{"$f":"'VALORACIÓN DE RIESGOS'!$Q$68","v":0},null,false,null,false,null,false,null,"",null,false,null,"",null,"",0,"N/A"]
[null,null,null,null,null,10,{"$f":"'VALORACIÓN DE RIESGOS'!$Q$69","v":0},null,"","",null,"",null,null,null,"","","",null,null,null,null,null,null,null,null,null,"Control 10",{"$f":"'VALORACIÓN DE RIESGOS'!$Q$69","v":0},null,false,null,false,null,false,null,"",null,false,null,"",null,"",0,"N/A"]
[null,5,{"$f":"'VALORACIÓN DE RIESGOS'!$D$77","v":"RIESGO 5"},{"$f":"'VALORACIÓN DE RIESGOS'!$G$77","v":"Seleccione"},null,1,{"$f":"'VALORACIÓN DE RIESGOS'!$Q$77","v":0},null,"","",null,"",null,null,null,{"$f":"+IFERROR(I111+L111,\"\")","v":""},{"$f":"IF(J111=$M$168,H10-(H10*P111),H10)","v":""},{"$f":"IF(J111=$M$169,L33-(L33*P111),L33)","v":""},{"$f":"+IF(Q120=\"\",\"\",Q120)","v":""},{"$f":"+IF(R120=\"\",\"\",R120)","v":""},{"$f":"+IF(S111=0,\"\",IF(S111<=$G$59,$H$59,IF(S111<=$G$58,$H$58,IF(S111<=$G$57,$H$57,IF(S111<=$G$56,$H$56,IF(S111<=$G$55,$H$55,\"\"))))))","v":""},{"$f":"+IF(T111=0,\"\",IF(T111<=$I$53,$I$54,IF(T111<=$J$53,$J$54,IF(T111<=$K$53,$K$54,IF(T111<=$L$53,$L$54,IF(T111<=$M$53,$M$54,\"\"))))))","v":""},{"$f":"+IF(U111=$H$55,IF(V111=$I$54,$I$55,IF(V111=$J$54,$J$55,IF(V111=$K$54,$K$55,IF(V111=$L$54,$L$55,IF(V111=$M$54,$M$55))))),IF(U111=$H$56,IF(V111=$I$54,$I$56,IF(V111=$J$54,$J$56,IF(V111=$K$54,$K$56,IF(V111=$L$54,$L$56,IF(V111=$M$54,$M$56))))),IF(U111=$H$57,IF(V111=$I$54,$I$57,IF(V111=$J$54,$J$57,IF(V111=$K$54,$K$57,IF(V111=$L$54,$L$57,IF(V111=$M$54,$M$57))))),IF(U111=$H$58,IF(V111=$I$54,$I$58,IF(V111=$J$54,$J$58,IF(V111=$K$54,$K$58,IF(V111=$L$54,$L$58,IF(V111=$M$54,$M$58))))),IF(U111=$H$59,IF(V111=$I$54,$I$59,IF(V111=$J$54,$J$59,IF(V111=$K$54,$K$59,IF(V111=$L$54,$L$59,IF(V111=$M$54,$M$59))))),\"\")))))","v":""},null,5,{"$f":"'VALORACIÓN DE RIESGOS'!$D$77","v":"RIESGO 5"},null,"Control 1",{"$f":"'VALORACIÓN DE RIESGOS'!$Q$77","v":0},null,{"$f":"IF(AD111=$AD$154,$AE$154,IF(AD111=$AD$155,$AE$155))","v":false},null,{"$f":"IF(AF111=$AD$156,$AE$156,IF(AF111=$AD$157,$AE$157))","v":false},null,{"$f":"IF(AH111=$AD$158,$AE$158,IF(AH111=$AD$159,$AE$159))","v":false},null,{"$f":"IF(AJ111=$AD$160,$AE$160,(IF(AJ111=$AD$161,$AE$161,(IF(AJ111=$AD$162,$AE$162,\"\")))))","v":""},null,{"$f":"IF(AL111=$AD$163,$AE$163,IF(AL111=$AD$164,$AE$164))","v":false},null,{"$f":"IF(AN111=$AD$165,$AE$165,(IF(AN111=$AD$166,$AE$166,(IF(AN111=$AD$167,$AE$167,(IF(AN111=$AD$168,$AE$168,\"\")))))))","v":""},null,{"$f":"IF(AP111=$AD$169,$AE$169,(IF(AP111=$AD$170,$AE$170,(IF(AP111=$AD$171,$AE$171,(IF(AP111=$AD$172,$AE$172,\"\")))))))","v":""},{"$f":"SUM(AE111,AG111,AI111,AK111,AM111,AO111,AQ111)","v":0},"N/A",{"$f":"(SUM(AR111:AR120))/AV111","v":{"$error":"#DIV/0!"}},{"$f":"IF(AT111<=50,$AG$154,IF(AND(AT111>=51,AT111<=99),$AG$155,IF(AND(AT111>=99.5,AT111<=100),$AG$156)))","v":{"$error":"#DIV/0!"}},{"$f":"COUNTIF(AR111:AR120,\">0\")","v":0}]
[null,null,null,null,null,2,{"$f":"'VALORACIÓN DE RIESGOS'!$Q$78","v":0},null,"","",null,"",null,null,null,{"$f":"+IFERROR(I112+L112,\"\")","v":""},{"$f":"IF(J112=$M$168,Q111-(Q111*P112),Q111)","v":""},{"$f":"IF(J112=$M$169,R111-(R111*P112),R111)","v":""},null,null,null,null,null,null,null,null,null,"Control 2",{"$f":"'VALORACIÓN DE RIESGOS'!$Q$78","v":0},null,false,null,false,null,false,null,"",null,false,null,"",null,"",{"$f":"SUM(AE112,AG112,AI112,AK112,AM112,AO112,AQ112)","v":0},"N/A"]
[null,null,null,null,null,3,{"$f":"'VALORACIÓN DE RIESGOS'!$Q$79","v":0},null,"","",null,"",null,null,null,{"$f":"+IFERROR(I113+L113,\"\")","v":""},"","",null,null,null,null,null,null,null,null,null,"Control 3",{"$f":"'VALORACIÓN DE RIESGOS'!$Q$79","v":0},null,false,null,false,null,false,null,"",null,false,null,"",null,"",0,"N/A"]
[null,null,null,null,null,4,{"$f":"'VALORACIÓN DE RIESGOS'!$Q$80","v":0},null,"","",null,"",null,null,null,{"$f":"+IFERROR(I114+L114,\"\")","v":""},"","",null,null,null,null,null,null,null,null,null,"Control 4",{"$f":"'VALORACIÓN DE RIESGOS'!$Q$80","v":0},null,false,null,false,null,false,null,"",null,false,null,"",null,"",0,"N/A"]
[null,null,null,null,null,5,{"$f":"'VALORACIÓN DE RIESGOS'!$Q$81","v":0},null,"","",null,"",null,null,null,"","","",null,null,null,null,null,null,null,null,null,"Control 5",{"$f":"'VALORACIÓN DE RIESGOS'!$Q$81","v":0},null,false,null,false,null,false,null,"",null,false,null,"",null,"",0,"N/A"]
[null,null,null,null,null,6,{"$f":"'VALORACIÓN DE RIESGOS'!$Q$82","v":0},null,"","",null,"",null,null,null,"","","",null,null,null,null,null,null,null,null,null,"Control 6",{"$f":"'VALORACIÓN DE RIESGOS'!$Q$82","v":0},null,false,null,false,null,false,null,"",null,false,null,"",null,"",0,"N/A"]
[null,null,null,null,null,7,{"$f":"'VALORACIÓN DE RIESGOS'!$Q$83","v":0},null,"","",null,"",null,null,null,"","","",null,null,null,null,null,null,null,null,null,"Control 7",{"$f":"'VALORACIÓN DE RIESGOS'!$Q$83","v":0},null,false,null,false,null,false,null,"",null,false,null,"",null,"",0,"N/A"]
[null,null,null,null,null,8,{"$f":"'VALORACIÓN DE RIESGOS'!$Q$84","v":0},null,"","",null,"",null,null,null,"","","",null,null,null,null,null,null,null,null,null,"Control 8",{"$f":"'VALORACIÓN DE RIESGOS'!$Q$84","v":0},null,false,null,false,null,false,null,"",null,false,null,"",null,"",0,"N/A"]
[null,null,null,null,null,9,{"$f":"'VALORACIÓN DE RIESGOS'!$Q$85","v":0},null,"","",null,"",null,null,null,"","","",null,null,null,null,null,null,null,null,null,"Control 9",{"$f":"'VALORACIÓN DE RIESGOS'!$Q$85","v":0},null,false,null,false,null,false,null,"",null,false,null,"",null,"",0,"N/A"]
[null,null,null,null,null,10,{"$f":"'VALORACIÓN DE RIESGOS'!$Q$86","v":0},null,"","",null,"",null,null,null,"","","",null,null,null,null,null,null,null,null,null,"Control 10",{"$f":"'VALORACIÓN DE RIESGOS'!$Q$86","v":0},null,false,null,false,null,false,null,"",null,false,null,"",null,"",0,"N/A"]
[null,6,{"$f":"'VALORACIÓN DE RIESGOS'!$D$94","v":"RIESGO 6"},{"$f":"'VALORACIÓN DE RIESGOS'!$G$94","v":"Seleccione"},null,1,{"$f":"'VALORACIÓN DE RIESGOS'!$Q$94","v":0},null,"","",null,"",null,null,null,{"$f":"+IFERROR(I121+L121,\"\")","v":""},{"$f":"IF(J121=$M$168,H11-(H11*P121),H11)","v":""},{"$f":"IF(J121=$M$169,L34-(L34*P121),L34)","v":""},{"$f":"+IF(Q130=\"\",\"\",Q130)","v":""},{"$f":"+IF(R130=\"\",\"\",R130)","v":""},{"$f":"+IF(S121=0,\"\",IF(S121<=$G$59,$H$59,IF(S121<=$G$58,$H$58,IF(S121<=$G$57,$H$57,IF(TF121<=$G$56,$H$56,IF(S121<=$G$55,$H$55,\"\"))))))","v":"Alta"},{"$f":"+IF(T121=0,\"\",IF(T121<=$I$53,$I$54,IF(T121<=$J$53,$J$54,IF(T121<=$K$53,$K$54,IF(T121<=$L$53,$L$54,IF(T121<=$M$53,$M$54,\"\"))))))","v":""},{"$f":"+IF(U121=$H$55,IF(V121=$I$54,$I$55,IF(V121=$J$54,$J$55,IF(V121=$K$54,$K$55,IF(V121=$L$54,$L$55,IF(V121=$M$54,$M$55))))),IF(U121=$H$56,IF(V121=$I$54,$I$56,IF(V121=$J$54,$J$56,IF(V121=$K$54,$K$56,IF(V121=$L$54,$L$56,IF(V121=$M$54,$M$56))))),IF(U121=$H$57,IF(V121=$I$54,$I$57,IF(V121=$J$54,$J$57,IF(V121=$K$54,$K$57,IF(V121=$L$54,$L$57,IF(V121=$M$54,$M$57))))),IF(U121=$H$58,IF(V121=$I$54,$I$58,IF(V121=$J$54,$J$58,IF(V121=$K$54,$K$58,IF(V121=$L$54,$L$58,IF(V121=$M$54,$M$58))))),IF(U121=$H$59,IF(V121=$I$54,$I$59,IF(V121=$J$54,$J$59,IF(V121=$K$54,$K$59,IF(V121=$L$54,$L$59,IF(V121=$M$54,$M$59))))),\"\")))))","v":false},null,6,{"$f":"'VALORACIÓN DE RIESGOS'!$D$94","v":"RIESGO 6"},null,"Control 1",{"$f":"'VALORACIÓN DE RIESGOS'!$Q$94","v":0},null,{"$f":"IF(AD121=$AD$154,$AE$154,IF(AD121=$AD$155,$AE$155))","v":false},null,{"$f":"IF(AF121=$AD$156,$AE$156,IF(AF121=$AD$157,$AE$157))","v":false},null,{"$f":"IF(AH121=$AD$158,$AE$158,IF(AH121=$AD$159,$AE$159))","v":false},null,{"$f":"IF(AJ121=$AD$160,$AE$160,(IF(AJ121=$AD$161,$AE$161,(IF(AJ121=$AD$162,$AE$162,\"\")))))","v":""},null,{"$f":"IF(AL121=$AD$163,$AE$163,IF(AL121=$AD$164,$AE$164))","v":false},null,{"$f":"IF(AN121=$AD$165,$AE$165,(IF(AN121=$AD$166,$AE$166,(IF(AN121=$AD$167,$AE$167,(IF(AN121=$AD$168,$AE$168,\"\")))))))","v":""},null,{"$f":"IF(AP121=$AD$169,$AE$169,(IF(AP121=$AD$170,$AE$170,(IF(AP121=$AD$171,$AE$171,(IF(AP121=$AD$172,$AE$172,\"\")))))))","v":""},{"$f":"SUM(AE121,AG121,AI121,AK121,AM121,AO121,AQ121)","v":0},"N/A",{"$f":"(SUM(AR121:AR130))/AV121","v":{"$error":"#DIV/0!"}},{"$f":"IF(AT121<=50,$AG$154,IF(AND(AT121>=51,AT121<=99),$AG$155,IF(AND(AT121>=99.5,AT121<=100),$AG$156)))","v":{"$error":"#DIV/0!"}},{"$f":"COUNTIF(AR121:AR130,\">0\")","v":0}]
[null,null,null,null,null,2,{"$f":"'VALORACIÓN DE RIESGOS'!$Q$95","v":0},null,"","",null,"",null,null,null,{"$f":"+IFERROR(I122+L122,\"\")","v":""},{"$f":"IF(J122=$M$168,Q121-(Q121*P122),Q121)","v":""},{"$f":"IF(J122=$M$169,R121-(R121*P122),R121)","v":""},null,null,null,null,null,null,null,null,null,"Control 2",{"$f":"'VALORACIÓN DE RIESGOS'!$Q$95","v":0},null,false,null,false,null,false,null,"",null,false,null,"",null,"",{"$f":"SUM(AE122,AG122,AI122,AK122,AM122,AO122,AQ122)","v":0},"N/A"]
[null,null,null,null,null,3,{"$f":"'VALORACIÓN DE RIESGOS'!$Q$96","v":0},null,"","",null,"",null,null,null,{"$f":"+IFERROR(I123+L123,\"\")","v":""},"","",null,null,null,null,null,null,null,null,null,"Control 3",{"$f":"'VALORACIÓN DE RIESGOS'!$Q$96","v":0},null,false,null,false,null,false,null,"",null,false,null,"",null,"",0,"N/A"]
[null,null,null,null,null,4,{"$f":"'VALORACIÓN DE RIESGOS'!$Q$97","v":0},null,"","",null,"",null,null,null,{"$f":"+IFERROR(I124+L124,\"\")","v":""},"","",null,null,null,null,null,null,null,null,null,"Control 4",{"$f":"'VALORACIÓN DE RIESGOS'!$Q$97","v":0},null,false,null,false,null,false,null,"",null,false,null,"",null,"",0,"N/A"]
[null,null,null,null,null,5,{"$f":"'VALORACIÓN DE RIESGOS'!$Q$98","v":0},null,"","",null,"",null,null,null,"","","",null,null,null,null,null,null,null,null,null,"Control 5",{"$f":"'VALORACIÓN DE RIESGOS'!$Q$98","v":0},null,false,null,false,null,false,null,"",null,false,null,"",null,"",0,"N/A"]
[null,null,null,null,null,6,{"$f":"'VALORACIÓN DE RIESGOS'!$Q$99","v":0},null,"","",null,"",null,null,null,"","","",null,null,null,null,null,null,null,null,null,"Control 6",{"$f":"'VALORACIÓN DE RIESGOS'!$Q$99","v":0},null,false,null,false,null,false,null,"",null,false,null,"",null,"",0,"N/A"]
[null,null,null,null,null,7,{"$f":"'VALORACIÓN DE RIESGOS'!$Q$100","v":0},null,"","",null,"",null,null,null,"","","",null,null,null,null,null,null,null,null,null,"Control 7",{"$f":"'VALORACIÓN DE RIESGOS'!$Q$100","v":0},null,false,null,false,null,false,null,"",null,false,null,"",null,"",0,"N/A"]
[null,null,null,null,null,8,{"$f":"'VALORACIÓN DE RIESGOS'!$Q$101","v":0},null,"","",null,"",null,null,null,"","","",null,null,null,null,null,null,null,null,null,"Control 8",{"$f":"'VALORACIÓN DE RIESGOS'!$Q$101","v":0},null,false,null,false,null,false,null,"",null,false,null,"",null,"",0,"N/A"]
[null,null,null,null,null,9,{"$f":"'VALORACIÓN DE RIESGOS'!$Q$102","v":0},null,"","",null,"",null,null,null,"","","",null,null,null,null,null,null,null,null,null,"Control 9",{"$f":"'VALORACIÓN DE RIESGOS'!$Q$102","v":0},null,false,null,false,null,false,null,"",null,false,null,"",null,"",0,"N/A"]
[null,null,null,null,null,10,{"$f":"'VALORACIÓN DE RIESGOS'!$Q$103","v":0},null,"","",null,"",null,null,null,"","","",null,null,null,null,null,null,null,null,null,"Control 10",{"$f":"'VALORACIÓN DE RIESGOS'!$Q$103","v":0},null,false,null,false,null,false,null,"",null,false,null,"",null,"",0,"N/A"]
[null,7,{"$f":"'VALORACIÓN DE RIESGOS'!$D$111","v":"RIESGO 7"},{"$f":"'VALORACIÓN DE RIESGOS'!$G$111","v":"Seleccione"},null,1,{"$f":"'VALORACIÓN DE RIESGOS'!$Q$111","v":0},null,"","",null,"",null,null,null,{"$f":"+IFERROR(I131+L131,\"\")","v":""},{"$f":"IF(J131=$M$168,H12-(H12*P131),H12)","v":""},{"$f":"IF(J131=$M$169,L35-(E131*L35),L35)","v":""},{"$f":"+IF(Q140=\"\",\"\",Q140)","v":""},{"$f":"+IF(R140=\"\",\"\",R140)","v":""},{"$f":"+IF(S131=0,\"\",IF(S131<=$G$59,$H$59,IF(S131<=$G$58,$H$58,IF(S131<=$G$57,$H$57,IF(S131<=$G$56,$H$56,IF(S131<=$G$55,$H$55,\"\"))))))","v":""},{"$f":"+IF(T131=0,\"\",IF(T131<=$I$53,$I$54,IF(T131<=$J$53,$J$54,IF(T131<=$K$53,$K$54,IF(T131<=$L$53,$L$54,IF(T131<=$M$53,$M$54,\"\"))))))","v":""},{"$f":"+IF(U131=$H$55,IF(V131=$I$54,$I$55,IF(V131=$J$54,$J$55,IF(V131=$K$54,$K$55,IF(V131=$L$54,$L$55,IF(V131=$M$54,$M$55))))),IF(U131=$H$56,IF(V131=$I$54,$I$56,IF(V131=$J$54,$J$56,IF(V131=$K$54,$K$56,IF(V131=$L$54,$L$56,IF(V131=$M$54,$M$56))))),IF(U131=$H$57,IF(V131=$I$54,$I$57,IF(V131=$J$54,$J$57,IF(V131=$K$54,$K$57,IF(V131=$L$54,$L$57,IF(V131=$M$54,$M$57))))),IF(U131=$H$58,IF(V131=$I$54,$I$58,IF(V131=$J$54,$J$58,IF(V131=$K$54,$K$58,IF(V131=$L$54,$L$58,IF(V131=$M$54,$M$58))))),IF(U131=$H$59,IF(V131=$I$54,$I$59,IF(V131=$J$54,$J$59,IF(V131=$K$54,$K$59,IF(V131=$L$54,$L$59,IF(V131=$M$54,$M$59))))),\"\")))))","v":""},null,7,{"$f":"'VALORACIÓN DE RIESGOS'!$D$111","v":"RIESGO 7"},null,"Control 1",{"$f":"'VALORACIÓN DE RIESGOS'!$Q$111","v":0},null,{"$f":"IF(AD131=$AD$154,$AE$154,IF(AD131=$AD$155,$AE$155))","v":false},null,{"$f":"IF(AF131=$AD$156,$AE$156,IF(AF131=$AD$157,$AE$157))","v":false},null,{"$f":"IF(AH131=$AD$158,$AE$158,IF(AH131=$AD$159,$AE$159))","v":false},null,{"$f":"IF(AJ131=$AD$160,$AE$160,(IF(AJ131=$AD$161,$AE$161,(IF(AJ131=$AD$162,$AE$162,\"\")))))","v":""},null,{"$f":"IF(AL131=$AD$163,$AE$163,IF(AL131=$AD$164,$AE$164))","v":false},null,{"$f":"IF(AN131=$AD$165,$AE$165,(IF(AN131=$AD$166,$AE$166,(IF(AN131=$AD$167,$AE$167,(IF(AN131=$AD$168,$AE$168,\"\")))))))","v":""},null,{"$f":"IF(AP131=$AD$169,$AE$169,(IF(AP131=$AD$170,$AE$170,(IF(AP131=$AD$171,$AE$171,(IF(AP131=$AD$172,$AE$172,\"\")))))))","v":""},{"$f":"SUM(AE131,AG131,AI131,AK131,AM131,AO131,AQ131)","v":0},"N/A",{"$f":"(SUM(AR131:AR140))/AV131","v":{"$error":"#DIV/0!"}},{"$f":"IF(AT131<=50,$AG$154,IF(AND(AT131>=51,AT131<=99),$AG$155,IF(AND(AT131>=99.5,AT131<=100),$AG$156)))","v":{"$error":"#DIV/0!"}},{"$f":"COUNTIF(AR131:AR140,\">0\")","v":0}]
[null,null,null,null,null,2,{"$f":"'VALORACIÓN DE RIESGOS'!$Q$112","v":0},null,"","",null,"",null,null,null,{"$f":"+IFERROR(I132+L132,\"\")","v":""},{"$f":"IF(J132=$M$168,Q131-(Q131*P132),Q131)","v":""},{"$f":"IF(J132=$M$169,R131-(R131*P132),R131)","v":""},null,null,null,null,null,null,null,null,null,"Control 2",{"$f":"'VALORACIÓN DE RIESGOS'!$Q$112","v":0},null,false,null,false,null,false,null,"",null,false,null,"",null,"",{"$f":"SUM(AE132,AG132,AI132,AK132,AM132,AO132,AQ132)","v":0},"N/A"]
[null,null,null,null,null,3,{"$f":"'VALORACIÓN DE RIESGOS'!$Q$113","v":0},null,"","",null,"",null,null,null,{"$f":"+IFERROR(I133+L133,\"\")","v":""},"","",null,null,null,null,null,null,null,null,null,"Control 3",{"$f":"'VALORACIÓN DE RIESGOS'!$Q$113","v":0},null,false,null,false,null,false,null,"",null,false,null,"",null,"",0,"N/A"]
[null,null,null,null,null,4,{"$f":"'VALORACIÓN DE RIESGOS'!$Q$114","v":0},null,"","",null,"",null,null,null,{"$f":"+IFERROR(I134+L134,\"\")","v":""},"","",null,null,null,null,null,null,null,null,null,"Control 4",{"$f":"'VALORACIÓN DE RIESGOS'!$Q$114","v":0},null,false,null,false,null,false,null,"",null,false,null,"",null,"",0,"N/A"]
[null,null,null,null,null,5,{"$f":"'VALORACIÓN DE RIESGOS'!$Q$115","v":0},null,"","",null,"",null,null,null,"","","",null,null,null,null,null,null,null,null,null,"Control 5",{"$f":"'VALORACIÓN DE RIESGOS'!$Q$115","v":0},null,false,null,false,null,false,null,"",null,false,null,"",null,"",0,{"$f":"IF(AR135=0, \"N/A\",IF(AR135<=85,$AG$154,IF(AND(AR135>=86,AR135<=94),$AG$155,IF(AND(AR135>=95,AR135<=100),AG$156))))","v":"N/A"}]
[null,null,null,null,null,6,{"$f":"'VALORACIÓN DE RIESGOS'!$Q$116","v":0},null,{"$f":"+IF(H136=$L$157,$M$157,IF(H136=$L$158,$M$158,IF(H136=$L$159,$M$159,\"\")))","v":""},{"$f":"+IF(OR(H136=$L$167,H136=$L$168),$M$167,IF(H136=$L$169,$M$169,\"\"))","v":""},null,{"$f":"+IF(K136=$L$162,$M$162,IF(K136=$L$163,$M$163,\"\"))","v":""},null,null,null,"","","",null,null,null,null,null,null,null,null,null,"Control 6",{"$f":"'VALORACIÓN DE RIESGOS'!$Q$116","v":0},null,{"$f":"IF(AD136=$AD$154,$AE$154,IF(AD136=$AD$155,$AE$155))","v":false},null,{"$f":"IF(AF136=$AD$156,$AE$156,IF(AF136=$AD$157,$AE$157))","v":false},null,{"$f":"IF(AH136=$AD$158,$AE$158,IF(AH136=$AD$159,$AE$159))","v":false},null,{"$f":"IF(AJ136=$AD$160,$AE$160,(IF(AJ136=$AD$161,$AE$161,(IF(AJ136=$AD$162,$AE$162,\"\")))))","v":""},null,{"$f":"IF(AL136=$AD$163,$AE$163,IF(AL136=$AD$164,$AE$164))","v":false},null,{"$f":"IF(AN136=$AD$165,$AE$165,(IF(AN136=$AD$166,$AE$166,(IF(AN136=$AD$167,$AE$167,(IF(AN136=$AD$168,$AE$168,\"\")))))))","v":""},null,{"$f":"IF(AP136=$AD$169,$AE$169,(IF(AP136=$AD$170,$AE$170,(IF(AP136=$AD$171,$AE$171,(IF(AP136=$AD$172,$AE$172,\"\")))))))","v":""},0,"N/A"]
[null,null,null,null,null,7,{"$f":"'VALORACIÓN DE RIESGOS'!$Q$117","v":0},null,"","",null,"",null,null,null,"","","",null,null,null,null,null,null,null,null,null,"Control 7",{"$f":"'VALORACIÓN DE RIESGOS'!$Q$117","v":0},null,false,null,false,null,false,null,"",null,false,null,"",null,"",0,"N/A"]
[null,null,null,null,null,8,{"$f":"'VALORACIÓN DE RIESGOS'!$Q$118","v":0},null,"","",null,"",null,null,null,"","","",null,null,null,null,null,null,null,null,null,"Control 8",{"$f":"'VALORACIÓN DE RIESGOS'!$Q$118","v":0},null,false,null,false,null,false,null,"",null,false,null,"",null,"",0,"N/A"]
[null,null,null,null,null,9,{"$f":"'VALORACIÓN DE RIESGOS'!$Q$119","v":0},null,"","",null,"",null,null,null,"","","",null,null,null,null,null,null,null,null,null,"Control 9",{"$f":"'VALORACIÓN DE RIESGOS'!$Q$119","v":0},null,false,null,false,null,false,null,"",null,false,null,"",null,"",0,"N/A"]
[null,null,null,null,null,10,{"$f":"'VALORACIÓN DE RIESGOS'!$Q$120","v":0},null,"","",null,"",null,null,null,"","","",null,null,null,null,null,null,null,null,null,"Control 10",{"$f":"'VALORACIÓN DE RIESGOS'!$Q$120","v":0},null,false,null,false,null,false,null,"",null,false,null,"",null,"",0,"N/A"]
[null,8,{"$f":"'VALORACIÓN DE RIESGOS'!$D$128","v":"RIESGO 8"},{"$f":"'VALORACIÓN DE RIESGOS'!$G$128","v":"Seleccione"},null,1,{"$f":"'VALORACIÓN DE RIESGOS'!$Q$128","v":0},null,"","",null,"",null,null,null,{"$f":"+IFERROR(I141+L141,\"\")","v":""},{"$f":"IF(J141=$M$168,H13-(H13*P141),H13)","v":""},{"$f":"IF(J141=$M$169,L36-(E141*L36),L36)","v":""},{"$f":"+IF(Q150=\"\",\"\",Q150)","v":""},{"$f":"+IF(R150=\"\",\"\",R150)","v":""},{"$f":"+IF(S141=0,\"\",IF(S141<=$G$59,$H$59,IF(S141<=$G$58,$H$58,IF(S141<=$G$57,$H$57,IF(S141<=$G$56,$H$56,IF(S141<=$G$55,$H$55,\"\"))))))","v":""},{"$f":"+IF(T141=0,\"\",IF(T141<=$I$53,$I$54,IF(T141<=$J$53,$J$54,IF(T141<=$K$53,$K$54,IF(T141<=$L$53,$L$54,IF(T141<=$M$53,$M$54,\"\"))))))","v":""},{"$f":"+IF(U141=$H$55,IF(V141=$I$54,$I$55,IF(V141=$J$54,$J$55,IF(V141=$K$54,$K$55,IF(V141=$L$54,$L$55,IF(V141=$M$54,$M$55))))),IF(U141=$H$56,IF(V141=$I$54,$I$56,IF(V141=$J$54,$J$56,IF(V141=$K$54,$K$56,IF(V141=$L$54,$L$56,IF(V141=$M$54,$M$56))))),IF(U141=$H$57,IF(V141=$I$54,$I$57,IF(V141=$J$54,$J$57,IF(V141=$K$54,$K$57,IF(V141=$L$54,$L$57,IF(V141=$M$54,$M$57))))),IF(U141=$H$58,IF(V141=$I$54,$I$58,IF(V141=$J$54,$J$58,IF(V141=$K$54,$K$58,IF(V141=$L$54,$L$58,IF(V141=$M$54,$M$58))))),IF(U141=$H$59,IF(V141=$I$54,$I$59,IF(V141=$J$54,$J$59,IF(V141=$K$54,$K$59,IF(V141=$L$54,$L$59,IF(V141=$M$54,$M$59))))),\"\")))))","v":""},null,8,{"$f":"'VALORACIÓN DE RIESGOS'!$D$128","v":"RIESGO 8"},null,"Control 1",{"$f":"'VALORACIÓN DE RIESGOS'!$Q$128","v":0},null,{"$f":"IF(AD141=$AD$154,$AE$154,IF(AD141=$AD$155,$AE$155))","v":false},null,{"$f":"IF(AF141=$AD$156,$AE$156,IF(AF141=$AD$157,$AE$157))","v":false},null,{"$f":"IF(AH141=$AD$158,$AE$158,IF(AH141=$AD$159,$AE$159))","v":false},null,{"$f":"IF(AJ141=$AD$160,$AE$160,(IF(AJ141=$AD$161,$AE$161,(IF(AJ141=$AD$162,$AE$162,\"\")))))","v":""},null,{"$f":"IF(AL141=$AD$163,$AE$163,IF(AL141=$AD$164,$AE$164))","v":false},null,{"$f":"IF(AN141=$AD$165,$AE$165,(IF(AN141=$AD$166,$AE$166,(IF(AN141=$AD$167,$AE$167,(IF(AN141=$AD$168,$AE$168,\"\")))))))","v":""},null,{"$f":"IF(AP141=$AD$169,$AE$169,(IF(AP141=$AD$170,$AE$170,(IF(AP141=$AD$171,$AE$171,(IF(AP141=$AD$172,$AE$172,\"\")))))))","v":""},{"$f":"SUM(AE141,AG141,AI141,AK141,AM141,AO141,AQ141)","v":0},"N/A",{"$f":"(SUM(AR141:AR150))/AV141","v":{"$error":"#DIV/0!"}},{"$f":"IF(AT141<=50,$AG$154,IF(AND(AT141>=51,AT141<=99),$AG$155,IF(AND(AT141>=99.5,AT141<=100),$AG$156)))","v":{"$error":"#DIV/0!"}},{"$f":"COUNTIF(AR141:AR150,\">0\")","v":0}]
[null,null,null,null,null,2,{"$f":"'VALORACIÓN DE RIESGOS'!$Q$129","v":0},null,"","",null,"",null,null,null,{"$f":"+IFERROR(I142+L142,\"\")","v":""},{"$f":"IF(J142=$M$168,Q141-(Q141*P142),Q141)","v":""},{"$f":"IF(J142=$M$169,R141-(R141*P142),R141)","v":""},null,null,null,null,null,null,null,null,null,"Control 2",{"$f":"'VALORACIÓN DE RIESGOS'!$Q$129","v":0},null,{"$f":"IF(AD142=$AD$154,$AE$154,IF(AD142=$AD$155,$AE$155))","v":false},null,{"$f":"IF(AF142=$AD$156,$AE$156,IF(AF142=$AD$157,$AE$157))","v":false},null,{"$f":"IF(AH142=$AD$158,$AE$158,IF(AH142=$AD$159,$AE$159))","v":false},null,{"$f":"IF(AJ142=$AD$160,$AE$160,(IF(AJ142=$AD$161,$AE$161,(IF(AJ142=$AD$162,$AE$162,\"\")))))","v":""},null,{"$f":"IF(AL142=$AD$163,$AE$163,IF(AL142=$AD$164,$AE$164))","v":false},null,{"$f":"IF(AN142=$AD$165,$AE$165,(IF(AN142=$AD$166,$AE$166,(IF(AN142=$AD$167,$AE$167,(IF(AN142=$AD$168,$AE$168,\"\")))))))","v":""},null,{"$f":"IF(AP142=$AD$169,$AE$169,(IF(AP142=$AD$170,$AE$170,(IF(AP142=$AD$171,$AE$171,(IF(AP142=$AD$172,$AE$172,\"\")))))))","v":""},{"$f":"SUM(AE142,AG142,AI142,AK142,AM142,AO142,AQ142)","v":0},"N/A"]
[null,null,null,null,null,3,{"$f":"'VALORACIÓN DE RIESGOS'!$Q$130","v":0},null,"","",null,"",null,null,null,{"$f":"+IFERROR(I143+L143,\"\")","v":""},"","",null,null,null,null,null,null,null,null,null,"Control 3",{"$f":"'VALORACIÓN DE RIESGOS'!$Q$130","v":0},null,false,null,false,null,false,null,"",null,false,null,"",null,"",0,"N/A"]
[null,null,null,null,null,4,{"$f":"'VALORACIÓN DE RIESGOS'!$Q$131","v":0},null,"","",null,"",null,null,null,{"$f":"+IFERROR(I144+L144,\"\")","v":""},"","",null,null,null,null,null,null,null,null,null,"Control 4",{"$f":"'VALORACIÓN DE RIESGOS'!$Q$131","v":0},null,false,null,false,null,false,null,"",null,false,null,"",null,"",0,"N/A"]
[null,null,null,null,null,5,{"$f":"'VALORACIÓN DE RIESGOS'!$Q$132","v":0},null,"","",null,"",null,null,null,"","","",null,null,null,null,null,null,null,null,null,"Control 5",{"$f":"'VALORACIÓN DE RIESGOS'!$Q$132","v":0},null,false,null,false,null,false,null,"",null,false,null,"",null,"",0,"N/A"]
[null,null,null,null,null,6,{"$f":"'VALORACIÓN DE RIESGOS'!$Q$133","v":0},null,"","",null,"",null,null,null,"","","",null,null,null,null,null,null,null,null,null,"Control 6",{"$f":"'VALORACIÓN DE RIESGOS'!$Q$133","v":0},null,false,null,false,null,false,null,"",null,false,null,"",null,"",0,"N/A"]
[null,null,null,null,null,7,{"$f":"'VALORACIÓN DE RIESGOS'!$Q$134","v":0},null,"","",null,"",null,null,null,"","","",null,null,null,null,null,null,null,null,null,"Control 7",{"$f":"'VALORACIÓN DE RIESGOS'!$Q$134","v":0},null,false,null,false,null,false,null,"",null,false,null,"",null,"",0,"N/A"]
[null,null,null,null,null,8,{"$f":"'VALORACIÓN DE RIESGOS'!$Q$135","v":0},null,"","",null,"",null,null,null,"","","",null,null,null,null,null,null,null,null,null,"Control 8",{"$f":"'VALORACIÓN DE RIESGOS'!$Q$135","v":0},null,false,null,false,null,false,null,"",null,false,null,"",null,"",0,"N/A"]
[null,null,null,null,null,9,{"$f":"'VALORACIÓN DE RIESGOS'!$Q$136","v":0},null,"","",null,"",null,null,null,"","","",null,null,null,null,null,null,null,null,null,"Control 9",{"$f":"'VALORACIÓN DE RIESGOS'!$Q$136","v":0},null,false,null,false,null,false,null,"",null,false,null,"",null,"",0,"N/A"]
[null,null,null,null,null,10,{"$f":"'VALORACIÓN DE RIESGOS'!$Q$137","v":0},null,"","",null,"",null,null,null,"",{"$f":"Q149","v":""},"",null,null,null,null,null,null,null,null,null,"Control 10",{"$f":"'VALORACIÓN DE RIESGOS'!$Q$137","v":0},null,false,null,false,null,false,null,"",null,false,null,"",null,"",0,"N/A"]
[]
[]
[null,null,null,null,null,null,"NIVEL",null,null,null,null,null,null,null,null,null,null,null,null,null,null,null,null,null,null,null,null,null,"Criterio solidez controles","Respuestas","Peso",null,"Rango"]
[null,null,null,null,null,null,"Nivel","% MIN","% MAX",null,null,null,null,null,null,null,null,null,null,null,null,null,null,null,null,null,null,null,"Responsable","Asignado",15,null,"Débil"]
[null,null,null,null,null,null,"Muy Baja",0.01,0.2,null,null,"Eficiencia",null,null,"Atributos Informativos",null,null,null,null,null,null,null,null,null,null,null,null,null,null,"No asignado",0,null,"Moderado"]
[null,null,null,null,null,null,"Baja",0.21,0.4,null,null,"Tipo de control","Peso del Control",null,"Documentación","Frecuencia","Evidencia",null,null,null,null,null,null,null,null,null,null,null,null,"Adecuado",15,null,"Fuerte"]
[null,null,null,null,null,null,"Media",0.41,0.6,null,null,"Preventivo",0.25,null,"Documentado","Continua","Con Registro",null,null,null,null,null,null,null,null,null,null,null,null,"Inadecuado",0]
[null,null,null,null,null,null,"Alta",0.61,0.8,null,null,"Detectivo",0.15,null,"Sin Documentar","Aleatoria","Sin Registro",null,null,null,null,null,null,null,null,null,null,null,"Periodicidad","Oportuna",15]
[null,null,null,null,null,null,"Muy Alta",0.81,1,null,null,"Correctivo",0.1,null,null,null,null,null,null,null,null,null,null,null,null,null,null,null,null,"Inoportuna",0]
[null,null,null,null,null,null,null,null,null,null,null,null,null,null,null,null,null,null,null,null,null,null,null,null,null,null,null,null,"Próposito","Prevenir ",15]
[null,null,null,null,null,null,null,null,null,null,null,"Implementación","Peso de la implementación",null,null,null,null,null,null,null,null,null,null,null,null,null,null,null,null,"Detectar",10]
[null,null,null,null,null,null,null,null,null,null,null,"Automático",0.25,null,null,null,null,null,null,null,null,null,null,null,null,null,null,null,null,"No es un control",0]
[null,null,null,null,null,null,null,null,null,null,null,"Manual",0.15,null,null,null,null,null,null,null,null,null,null,null,null,null,null,null,"Cómo se realiza la actividad de control","Confiable",15]
[null,null,null,null,null,null,"TIPO",null,null,null,null,null,null,null,null,null,null,null,null,null,null,null,null,null,null,null,null,null,null,"No confiable ",0]
[null,null,null,null,null,null,"Correctivo",null,null,null,null,"Afectación o Desplazamiento en la Matriz",null,null,null,null,null,null,null,null,null,null,null,null,null,null,null,null,"Qué pasa con las desviaciones","Se investigan y resuelven oportunamente",15]
[null,null,null,null,null,null,"Detectivo",null,null,null,null,"Tipo de control","Afecta",null,null,null,null,null,null,null,null,null,null,null,null,null,null,null,null,"No se investigan y resuelven oportunamente",0]
[null,null,null,null,null,null,"Preventivo",null,null,null,null,"Preventivo","Probabilidad",null,null,null,null,null,null,null,null,null,null,null,null,null,null,null,null,"No se ha ejecutado el control",0]
[null,null,null,null,null,null,null,null,null,null,null,"Detectivo","Probabilidad",null,null,null,null,null,null,null,null,null,null,null,null,null,null,null,null,"No se han presentado desviaciones en la ejecución del control",15]
[null,null,null,null,null,null,null,null,null,null,null,"Correctivo","Impacto",null,null,null,null,null,null,null,null,null,null,null,null,null,null,null,"Evidencia de la ejecución del control","Completa",10]
[null,null,null,null,null,null,null,null,null,null,null,null,null,null,null,null,null,null,null,null,null,null,null,null,null,null,null,null,null,"Incompleta",5]
[null,null,null,null,null,null,null,null,null,null,null,null,null,null,null,null,null,null,null,null,null,null,null,null,null,null,null,null,null,"No existe",0]
[null,null,null,null,null,null,null,null,null,null,null,null,null,null,null,null,null,null,null,null,null,null,null,null,null,null,null,null,null,"No se ha ejecutado el control",0]

{"sheet":"MONITOREO OPLA","index":3,"n_rows":164,"n_cols":31,"rows_kept":164,"cut":false,"hidden":false,"merged":[[144,0,163,0],[144,1,153,1],[144,11,153,11],[144,21,153,21],[154,1,163,1],[124,0,143,0],[124,1,133,1],[124,11,133,11],[124,21,133,21],[134,1,143,1],[104,0,123,0],[104,1,113,1],[104,11,113,11],[104,21,113,21],[114,1,123,1],[0,0,3,1],[0,3,0,10],[0,13,0,20],[0,23,0,30],[1,3,1,10],[1,13,1,20],[1,23,1,30],[2,3,2,10],[2,13,2,20],[2,23,2,30],[24,0,43,0],[24,1,33,1],[24,11,33,11],[24,21,33,21],[34,1,43,1],[4,0,23,0],[4,1,13,1],[4,11,13,11],[4,21,13,21],[14,1,23,1],[64,0,83,0],[64,1,73,1],[64,11,73,11],[64,21,73,21],[74,1,83,1],[44,0,63,0],[44,1,53,1],[44,11,53,11],[44,21,53,21],[54,1,63,1],[84,0,103,0],[84,1,93,1],[84,11,93,11],[84,21,93,21],[94,1,103,1]]}
["MONITOREO \nOFICINA DE PLANEACIÓN",null,"PERIODO","Monitoreo 1 (Con corte 15 de abril)\nFecha de reporte: Entre 21 y 30 abril",null,null,null,null,null,null,null,null,"PERIODO","Monitoreo 2 (Con corte 15 de agosto)\nFecha de reporte: Entre 21 y 30 agosto",null,null,null,null,null,null,null,null,"PERIODO","Monitoreo 3 (Con corte 15 de diciembre)\nFecha de reporte: Entre 21 y 30 diciembre"]
[null,null,"FECHA","2023-04-26",null,null,null,null,null,null,null,null,"FECHA","2023-08-25",null,null,null,null,null,null,null,null,"FECHA"]
[null,null,"RESPONSABLE","Alexandra Cortes - Contratista OPLA",null,null,null,null,null,null,null,null,"RESPONSABLE","ALEXANDRA CORTES - CONTRATISTA OPLA",null,null,null,null,null,null,null,null,"RESPONSABLE"]
[null,null,"Criterios de calificación ","¿El análisis cualitativo describe la operatividad del control (cómo se realiza) y el comportamiento de la desviación? ","¿El reporte de monitoreo y la evidencia fueron entregados oportunamente?","¿Las evidencias corresponden al periodo analizado?  ","¿Las evidencias son coherentes con la descripción del control?  ","¿Las evidencias y/ o muestras son completas de acuerdo con el registro del monitoreo?  ","Porcentaje de calificación","EFICACIA","Observaciones",null,"Criterios de calificación ","¿El análisis cualitativo describe la operatividad del control (cómo se realiza) y el comportamiento de la desviación? ","El reporte de monitoreo y la evidencia fueron entregados oportunamente","¿Las evidencias corresponden al periodo analizado?  ","¿Las evidencias son coherentes con la descripción del control?  ","¿Las evidencias y/ o muestras son completas de acuerdo con el registro del monitoreo?  ","Porcentaje de calificación","EFICACIA","Observaciones",null,"Criterios de calificación ","¿El análisis cualitativo describe la operatividad del control (cómo se realiza) y el comportamiento de la desviación? ","El reporte de monitoreo y la evidencia fueron entregados oportunamente","¿Las evidencias corresponden al periodo analizado?  ","¿Las evidencias son coherentes con la descripción del control?  ","¿Las evidencias y/ o muestras son completas de acuerdo con el registro del monitoreo?  ","Porcentaje de calificación","EFICACIA","Observaciones"]
["Riesgo 1","CONTROLES",{"$f":"'VALORACIÓN DE RIESGOS'!$Q$9","v":"El funcionario designado proyecta el cronograma de visitas a las dependencias para la vigencia, el cual es aprobado por el jefe de la División. Conforme a la planeación realizada, los funcionarios responsables efectúan las visitas contempladas en el cronograma, donde se registran las observaciones, recomendaciones y compromisos en la ficha técnica, que es firmada por los intervinientes, tanto para nivel central como para nivel territorial."},"SI","SI","SI","SI","SI",{"$f":"IF((COUNTIF(D5:H5,\"si\"))=5,100%,IF((COUNTIF(D5:H5,\"si\"))=4,80%,IF((COUNTIF(D5:H5,\"si\"))=3,60%,IF((COUNTIF(D5:H5,\"si\"))=2,40%,IF((COUNTIF(D5:H5,\"si\"))=1,20%,IF((COUNTIF(D5:H5,\"no\"))=5,0%,IF((COUNTIF(D5:H5,\"no\"))=4,20%,IF((COUNTIF(D5:H5,\"no\"))=3,40%,IF((COUNTIF(D5:H5,\"no\"))=2,60%,IF((COUNTIF(D5:H5,\"no\"))=1,80%,\"0%\"))))))))))","v":1},{"$f":"IF(I5=\"0%\",\"NO EFICAZ\",IF(I5>=80%,\"EFICAZ\",\"NO EFICAZ\"))","v":"EFICAZ"},"De acuerdo con el monitoreo presentado por el proceso, el control no operó en el presente corte debido a que su periodicidad de operación es semestral y se encuentra en proceso de programación el cronograma de visitas.",null,{"$f":"'VALORACIÓN DE RIESGOS'!$Q$9","v":"El funcionario designado proyecta el cronograma de visitas a las dependencias para la vigencia, el cual es aprobado por el jefe de la División. Conforme a la planeación realizada, los funcionarios responsables efectúan las visitas contempladas en el cronograma, donde se registran las observaciones, recomendaciones y compromisos en la ficha técnica, que es firmada por los intervinientes, tanto para nivel central como para nivel territorial."},null,null,null,null,null,{"$f":"IF((COUNTIF(N5:R5,\"si\"))=5,100%,IF((COUNTIF(N5:R5,\"si\"))=4,80%,IF((COUNTIF(N5:R5,\"si\"))=3,60%,IF((COUNTIF(N5:R5,\"si\"))=2,40%,IF((COUNTIF(N5:R5,\"si\"))=1,20%,IF((COUNTIF(N5:R5,\"no\"))=5,0%,IF((COUNTIF(N5:R5,\"no\"))=4,20%,IF((COUNTIF(N5:R5,\"no\"))=3,40%,IF((COUNTIF(N5:R5,\"no\"))=2,60%,IF((COUNTIF(N5:R5,\"no\"))=1,80%,\"0%\"))))))))))","v":"0%"},{"$f":"IF(S5=\"0%\",\"NO EFICAZ\",IF(S5>=80%,\"EFICAZ\",\"NO EFICAZ\"))","v":"NO EFICAZ"},"El monitoreo y evidencias aportadas por el proceso permiten corroborar la operatividad del control. Se encuentra en proceso la aprobación del cronograma de visitas de seguimiento a los archivos de gestión, por lo cual, se insta al proceso a priorizar esta actividad, toda vez que permite visualizar la labor como segunda defensa en esta materia.",null,{"$f":"'VALORACIÓN DE RIESGOS'!$Q$9","v":"El funcionario designado proyecta el cronograma de visitas a las dependencias para la vigencia, el cual es aprobado por el jefe de la División. Conforme a la planeación realizada, los funcionarios responsables efectúan las visitas contempladas en el cronograma, donde se registran las observaciones, recomendaciones y compromisos en la ficha técnica, que es firmada por los intervinientes, tanto para nivel central como para nivel territorial."},null,null,null,null,null,{"$f":"IF((COUNTIF(X5:AB5,\"si\"))=5,100%,IF((COUNTIF(X5:AB5,\"si\"))=4,80%,IF((COUNTIF(X5:AB5,\"si\"))=3,60%,IF((COUNTIF(X5:AB5,\"si\"))=2,40%,IF((COUNTIF(X5:AB5,\"si\"))=1,20%,IF((COUNTIF(X5:AB5,\"no\"))=5,0%,IF((COUNTIF(X5:AB5,\"no\"))=4,20%,IF((COUNTIF(X5:AB5,\"no\"))=3,40%,IF((COUNTIF(X5:AB5,\"no\"))=2,60%,IF((COUNTIF(X5:AB5,\"no\"))=1,80%,\"0%\"))))))))))","v":"0%"},{"$f":"IF(AC5=\"0%\",\"NO EFICAZ\",IF(AC5>=80%,\"EFICAZ\",\"NO EFICAZ\"))","v":"NO EFICAZ"}]
[null,null,{"$f":"'VALORACIÓN DE RIESGOS'!$Q$10","v":"El servidor designado se desplaza mensualmente al Archivo Central, donde verifica y registra los datos de los préstamos realizados en el mes, con el fin de establecer el cumplimiento del lineamiento de consulta y préstamo, quien escanea las evidencias de formatos de consulta y préstamos y las planillas que soportan el seguimiento. Posteriormente, el funcionario designado revisa la consistencia del formato diligenciado frente a las evidencias tomadas."},"SI","SI","SI","SI","SI",{"$f":"IF((COUNTIF(D6:H6,\"si\"))=5,100%,IF((COUNTIF(D6:H6,\"si\"))=4,80%,IF((COUNTIF(D6:H6,\"si\"))=3,60%,IF((COUNTIF(D6:H6,\"si\"))=2,40%,IF((COUNTIF(D6:H6,\"si\"))=1,20%,IF((COUNTIF(D6:H6,\"no\"))=5,0%,IF((COUNTIF(D6:H6,\"no\"))=4,20%,IF((COUNTIF(D6:H6,\"no\"))=3,40%,IF((COUNTIF(D6:H6,\"no\"))=2,60%,IF((COUNTIF(D6:H6,\"no\"))=1,80%,\"0%\"))))))))))","v":1},{"$f":"IF(I6=\"0%\",\"NO EFICAZ\",IF(I6>=80%,\"EFICAZ\",\"NO EFICAZ\"))","v":"EFICAZ"},"El monitoreo y evidencias aportadas por el proceso permiten corroborar la operatividad del control, considerando el formato de seguimiento aportado. La OPLA en su rol de segunda línea de defensa recomienda mantener las estrategias de autocontrol que se han establecido al interior del proceso, especialmente sobre el fortalecimiento del monitoreo respecto a la descripción de las desviaciones presentadas o no en la ejecución del control.",null,{"$f":"'VALORACIÓN DE RIESGOS'!$Q$10","v":"El servidor designado se desplaza mensualmente al Archivo Central, donde verifica y registra los datos de los préstamos realizados en el mes, con el fin de establecer el cumplimiento del lineamiento de consulta y préstamo, quien escanea las evidencias de formatos de consulta y préstamos y las planillas que soportan el seguimiento. Posteriormente, el funcionario designado revisa la consistencia del formato diligenciado frente a las evidencias tomadas."},null,null,null,null,null,{"$f":"IF((COUNTIF(N6:R6,\"si\"))=5,100%,IF((COUNTIF(N6:R6,\"si\"))=4,80%,IF((COUNTIF(N6:R6,\"si\"))=3,60%,IF((COUNTIF(N6:R6,\"si\"))=2,40%,IF((COUNTIF(N6:R6,\"si\"))=1,20%,IF((COUNTIF(N6:R6,\"no\"))=5,0%,IF((COUNTIF(N6:R6,\"no\"))=4,20%,IF((COUNTIF(N6:R6,\"no\"))=3,40%,IF((COUNTIF(N6:R6,\"no\"))=2,60%,IF((COUNTIF(N6:R6,\"no\"))=1,80%,\"0%\"))))))))))","v":"0%"},{"$f":"IF(S6=\"0%\",\"NO EFICAZ\",IF(S6>=80%,\"EFICAZ\",\"NO EFICAZ\"))","v":"NO EFICAZ"},"El monitoreo y evidencias aportadas por el proceso permiten corroborar la operatividad del control respecto al seguimiento y control de la documentación consultada en el Archivo Central. La OPLA en su rol de segunda línea de defensa recomienda mantener las estrategias de autocontrol que se han establecido al interior del proceso.",null,{"$f":"'VALORACIÓN DE RIESGOS'!$Q$10","v":"El servidor designado se desplaza mensualmente al Archivo Central, donde verifica y registra los datos de los préstamos realizados en el mes, con el fin de establecer el cumplimiento del lineamiento de consulta y préstamo, quien escanea las evidencias de formatos de consulta y préstamos y las planillas que soportan el seguimiento. Posteriormente, el funcionario designado revisa la consistencia del formato diligenciado frente a las evidencias tomadas."},null,null,null,null,null,{"$f":"IF((COUNTIF(X6:AB6,\"si\"))=5,100%,IF((COUNTIF(X6:AB6,\"si\"))=4,80%,IF((COUNTIF(X6:AB6,\"si\"))=3,60%,IF((COUNTIF(X6:AB6,\"si\"))=2,40%,IF((COUNTIF(X6:AB6,\"si\"))=1,20%,IF((COUNTIF(X6:AB6,\"no\"))=5,0%,IF((COUNTIF(X6:AB6,\"no\"))=4,20%,IF((COUNTIF(X6:AB6,\"no\"))=3,40%,IF((COUNTIF(X6:AB6,\"no\"))=2,60%,IF((COUNTIF(X6:AB6,\"no\"))=1,80%,\"0%\"))))))))))","v":"0%"},{"$f":"IF(AC6=\"0%\",\"NO EFICAZ\",IF(AC6>=80%,\"EFICAZ\",\"NO EFICAZ\"))","v":"NO EFICAZ"}]
[null,null,{"$f":"'VALORACIÓN DE RIESGOS'!$Q$11","v":"El funcionario designado retira la ficha de préstamo del libro para recolectar la información del usuario y fijar la fecha de devolución del material, realiza la entrega y guarda dentro del fichero en la fecha de vencimiento.\nPosteriormente, una vez devuelto el material se verifica la integridad y se reintegra la ficha dentro del libro y este a la colección. Así mismo, se registra dicho control en la matriz de préstamos, que se verifica por todos los integrantes del grupo de Biblioteca."},"SI","SI","SI","SI","SI",1,"EFICAZ","El monitoreo y evidencias aportadas por el proceso permiten corroborar la operatividad del control, considerando el formato de seguimiento aportado para la Biblioteca. La OPLA en su rol de segunda línea de defensa recomienda mantener las estrategias de autocontrol que se han establecido al interior del proceso, especialmente sobre el fortalecimiento del monitoreo respecto a la descripción de las desviaciones presentadas o no en la ejecución del control.",null,{"$f":"'VALORACIÓN DE RIESGOS'!$Q$11","v":"El funcionario designado retira la ficha de préstamo del libro para recolectar la información del usuario y fijar la fecha de devolución del material, realiza la entrega y guarda dentro del fichero en la fecha de vencimiento.\nPosteriormente, una vez devuelto el material se verifica la integridad y se reintegra la ficha dentro del libro y este a la colección. Así mismo, se registra dicho control en la matriz de préstamos, que se verifica por todos los integrantes del grupo de Biblioteca."},null,null,null,null,null,"0%","NO EFICAZ","El monitoreo y evidencias aportadas por el proceso permiten corroborar la operatividad del control respecto al seguimiento y control de la documentación consultada en la Biblioteca. La OPLA en su rol de segunda línea de defensa recomienda mantener las estrategias de autocontrol que se han establecido al interior del proceso.",null,{"$f":"'VALORACIÓN DE RIESGOS'!$Q$11","v":"El funcionario designado retira la ficha de préstamo del libro para recolectar la información del usuario y fijar la fecha de devolución del material, realiza la entrega y guarda dentro del fichero en la fecha de vencimiento.\nPosteriormente, una vez devuelto el material se verifica la integridad y se reintegra la ficha dentro del libro y este a la colección. Así mismo, se registra dicho control en la matriz de préstamos, que se verifica por todos los integrantes del grupo de Biblioteca."},null,null,null,null,null,"0%","NO EFICAZ"]
[null,null,{"$f":"'VALORACIÓN DE RIESGOS'!$Q$12","v":0},null,null,null,null,null,"0%","NO EFICAZ",null,null,{"$f":"'VALORACIÓN DE RIESGOS'!$Q$12","v":0},null,null,null,null,null,"0%","NO EFICAZ",null,null,{"$f":"'VALORACIÓN DE RIESGOS'!$Q$12","v":0},null,null,null,null,null,"0%","NO EFICAZ"]
[null,null,{"$f":"'VALORACIÓN DE RIESGOS'!$Q$13","v":0},null,null,null,null,null,"0%","NO EFICAZ",null,null,{"$f":"'VALORACIÓN DE RIESGOS'!$Q$13","v":0},null,null,null,null,null,"0%","NO EFICAZ",null,null,{"$f":"'VALORACIÓN DE RIESGOS'!$Q$13","v":0},null,null,null,null,null,"0%","NO EFICAZ"]
[null,null,{"$f":"'VALORACIÓN DE RIESGOS'!$Q$14","v":0},null,null,null,null,null,"0%","NO EFICAZ",null,null,{"$f":"'VALORACIÓN DE RIESGOS'!$Q$14","v":0},null,null,null,null,null,"0%","NO EFICAZ",null,null,{"$f":"'VALORACIÓN DE RIESGOS'!$Q$14","v":0},null,null,null,null,null,"0%","NO EFICAZ"]
[null,null,{"$f":"'VALORACIÓN DE RIESGOS'!$Q$15","v":0},null,null,null,null,null,"0%","NO EFICAZ",null,null,{"$f":"'VALORACIÓN DE RIESGOS'!$Q$15","v":0},null,null,null,null,null,"0%","NO EFICAZ",null,null,{"$f":"'VALORACIÓN DE RIESGOS'!$Q$15","v":0},null,null,null,null,null,"0%","NO EFICAZ"]
[null,null,{"$f":"'VALORACIÓN DE RIESGOS'!$Q$16","v":0},null,null,null,null,null,"0%","NO EFICAZ",null,null,{"$f":"'VALORACIÓN DE RIESGOS'!$Q$16","v":0},null,null,null,null,null,"0%","NO EFICAZ",null,null,{"$f":"'VALORACIÓN DE RIESGOS'!$Q$16","v":0},null,null,null,null,null,"0%","NO EFICAZ"]
[null,null,{"$f":"'VALORACIÓN DE RIESGOS'!$Q$17","v":0},null,null,null,null,null,"0%","NO EFICAZ",null,null,{"$f":"'VALORACIÓN DE RIESGOS'!$Q$17","v":0},null,null,null,null,null,"0%","NO EFICAZ",null,null,{"$f":"'VALORACIÓN DE RIESGOS'!$Q$17","v":0},null,null,null,null,null,"0%","NO EFICAZ"]
[null,null,{"$f":"'VALORACIÓN DE RIESGOS'!$Q$18","v":0},null,null,null,null,null,"0%","NO EFICAZ",null,null,{"$f":"'VALORACIÓN DE RIESGOS'!$Q$18","v":0},null,null,null,null,null,"0%","NO EFICAZ",null,null,{"$f":"'VALORACIÓN DE RIESGOS'!$Q$18","v":0},null,null,null,null,null,"0%","NO EFICAZ"]
[null,"PLAN DE ACCIÓN",{"$f":"'VALORACIÓN DE RIESGOS'!AE9","v":"Realizar conversatorios ético al interior de la división"},"SI","SI","SI","SI","SI",1,"EFICAZ","El monitoreo y evidencias aportadas por el proceso permiten corroborar la ejecución de la acción complementaria, considerando el formato de seguimiento aportado. La OPLA en su rol de segunda línea de defensa recomienda mantener las estrategias de autocontrol que se han establecido al interior del proceso.",null,{"$f":"'VALORACIÓN DE RIESGOS'!AE9","v":"Realizar conversatorios ético al interior de la división"},null,null,null,null,null,"0%","NO EFICAZ","El monitoreo y evidencias aportadas por el proceso permiten corroborar el cumplimiento de la actividad complementaria conforme a los soportes de los conversatorios éticos. La OPLA en su rol de segunda línea de defensa recomienda mantener las estrategias de autocontrol que se han establecido al interior del proceso.",null,{"$f":"'VALORACIÓN DE RIESGOS'!AY9","v":0},null,null,null,null,null,"0%","NO EFICAZ"]
[null,null,{"$f":"'VALORACIÓN DE RIESGOS'!AE10","v":0},null,null,null,null,null,"0%","NO EFICAZ",null,null,{"$f":"'VALORACIÓN DE RIESGOS'!AO10","v":0},null,null,null,null,null,"0%","NO EFICAZ",null,null,{"$f":"'VALORACIÓN DE RIESGOS'!AY10","v":0},null,null,null,null,null,"0%","NO EFICAZ"]
[null,null,{"$f":"'VALORACIÓN DE RIESGOS'!AE11","v":0},null,null,null,null,null,"0%","NO EFICAZ",null,null,{"$f":"'VALORACIÓN DE RIESGOS'!AO11","v":0},null,null,null,null,null,"0%","NO EFICAZ",null,null,{"$f":"'VALORACIÓN DE RIESGOS'!AY11","v":0},null,null,null,null,null,"0%","NO EFICAZ"]
[null,null,{"$f":"'VALORACIÓN DE RIESGOS'!AE12","v":0},null,null,null,null,null,"0%","NO EFICAZ",null,null,{"$f":"'VALORACIÓN DE RIESGOS'!AO12","v":0},null,null,null,null,null,"0%","NO EFICAZ",null,null,{"$f":"'VALORACIÓN DE RIESGOS'!AY12","v":0},null,null,null,null,null,"0%","NO EFICAZ"]
[null,null,{"$f":"'VALORACIÓN DE RIESGOS'!AE13","v":0},null,null,null,null,null,"0%","NO EFICAZ",null,null,{"$f":"'VALORACIÓN DE RIESGOS'!AO13","v":0},null,null,null,null,null,"0%","NO EFICAZ",null,null,{"$f":"'VALORACIÓN DE RIESGOS'!AY13","v":0},null,null,null,null,null,"0%","NO EFICAZ"]
[null,null,{"$f":"'VALORACIÓN DE RIESGOS'!AE14","v":0},null,null,null,null,null,"0%","NO EFICAZ",null,null,{"$f":"'VALORACIÓN DE RIESGOS'!AO14","v":0},null,null,null,null,null,"0%","NO EFICAZ",null,null,{"$f":"'VALORACIÓN DE RIESGOS'!AY14","v":0},null,null,null,null,null,"0%","NO EFICAZ"]
[null,null,{"$f":"'VALORACIÓN DE RIESGOS'!AE15","v":0},null,null,null,null,null,"0%","NO EFICAZ",null,null,{"$f":"'VALORACIÓN DE RIESGOS'!AO15","v":0},null,null,null,null,null,"0%","NO EFICAZ",null,null,{"$f":"'VALORACIÓN DE RIESGOS'!AY15","v":0},null,null,null,null,null,"0%","NO EFICAZ"]
[null,null,{"$f":"'VALORACIÓN DE RIESGOS'!AE16","v":0},null,null,null,null,null,"0%","NO EFICAZ",null,null,{"$f":"'VALORACIÓN DE RIESGOS'!AO16","v":0},null,null,null,null,null,"0%","NO EFICAZ",null,null,{"$f":"'VALORACIÓN DE RIESGOS'!AY16","v":0},null,null,null,null,null,"0%","NO EFICAZ"]
[null,null,{"$f":"'VALORACIÓN DE RIESGOS'!AE17","v":0},null,null,null,null,null,"0%","NO EFICAZ",null,null,{"$f":"'VALORACIÓN DE RIESGOS'!AO17","v":0},null,null,null,null,null,"0%","NO EFICAZ",null,null,{"$f":"'VALORACIÓN DE RIESGOS'!AY17","v":0},null,null,null,null,null,"0%","NO EFICAZ"]
[null,null,{"$f":"'VALORACIÓN DE RIESGOS'!AE18","v":0},null,null,null,null,null,"0%","NO EFICAZ",null,null,{"$f":"'VALORACIÓN DE RIESGOS'!AO18","v":0},null,null,null,null,null,"0%","NO EFICAZ",null,null,{"$f":"'VALORACIÓN DE RIESGOS'!AY18","v":0},null,null,null,null,null,"0%","NO EFICAZ"]
["Riesgo 2","CONTROLES",{"$f":"'VALORACIÓN DE RIESGOS'!$Q$26","v":"El funcionario designado recibe a través de correo electrónico la notificación del registro de una solicitud de ayuda (caso), quien realiza la verificación de la necesidad establecida en la plataforma y realiza el análisis de la solicitud para determinar la mejor solución al caso. Posteriormente, resuelve la solicitud y cierra el caso."},null,null,null,null,null,"0%","NO EFICAZ",null,null,{"$f":"'VALORACIÓN DE RIESGOS'!$Q$26","v":"El funcionario designado recibe a través de correo electrónico la notificación del registro de una solicitud de ayuda (caso), quien realiza la verificación de la necesidad establecida en la plataforma y realiza el análisis de la solicitud para determinar la mejor solución al caso. Posteriormente, resuelve la solicitud y cierra el caso."},null,null,null,null,null,"0%","NO EFICAZ",null,null,{"$f":"'VALORACIÓN DE RIESGOS'!$Q$26","v":"El funcionario designado recibe a través de correo electrónico la notificación del registro de una solicitud de ayuda (caso), quien realiza la verificación de la necesidad establecida en la plataforma y realiza el análisis de la solicitud para determinar la mejor solución al caso. Posteriormente, resuelve la solicitud y cierra el caso."},null,null,null,null,null,"0%","NO EFICAZ"]
[null,null,{"$f":"'VALORACIÓN DE RIESGOS'!$Q$27","v":0},null,null,null,null,null,"0%","NO EFICAZ",null,null,{"$f":"'VALORACIÓN DE RIESGOS'!$Q$27","v":0},null,null,null,null,null,"0%","NO EFICAZ",null,null,{"$f":"'VALORACIÓN DE RIESGOS'!$Q$27","v":0},null,null,null,null,null,"0%","NO EFICAZ"]
[null,null,{"$f":"'VALORACIÓN DE RIESGOS'!$Q$28","v":0},null,null,null,null,null,"0%","NO EFICAZ",null,null,{"$f":"'VALORACIÓN DE RIESGOS'!$Q$28","v":0},null,null,null,null,null,"0%","NO EFICAZ",null,null,{"$f":"'VALORACIÓN DE RIESGOS'!$Q$28","v":0},null,null,null,null,null,"0%","NO EFICAZ"]
[null,null,{"$f":"'VALORACIÓN DE RIESGOS'!$Q$29","v":0},null,null,null,null,null,"0%","NO EFICAZ",null,null,{"$f":"'VALORACIÓN DE RIESGOS'!$Q$29","v":0},null,null,null,null,null,"0%","NO EFICAZ",null,null,{"$f":"'VALORACIÓN DE RIESGOS'!$Q$29","v":0},null,null,null,null,null,"0%","NO EFICAZ"]
[null,null,{"$f":"'VALORACIÓN DE RIESGOS'!$Q$30","v":0},null,null,null,null,null,"0%","NO EFICAZ",null,null,{"$f":"'VALORACIÓN DE RIESGOS'!$Q$30","v":0},null,null,null,null,null,"0%","NO EFICAZ",null,null,{"$f":"'VALORACIÓN DE RIESGOS'!$Q$30","v":0},null,null,null,null,null,"0%","NO EFICAZ"]
[null,null,{"$f":"'VALORACIÓN DE RIESGOS'!$Q$31","v":0},null,null,null,null,null,"0%","NO EFICAZ",null,null,{"$f":"'VALORACIÓN DE RIESGOS'!$Q$31","v":0},null,null,null,null,null,"0%","NO EFICAZ",null,null,{"$f":"'VALORACIÓN DE RIESGOS'!$Q$31","v":0},null,null,null,null,null,"0%","NO EFICAZ"]
[null,null,{"$f":"'VALORACIÓN DE RIESGOS'!$Q$32","v":0},null,null,null,null,null,"0%","NO EFICAZ",null,null,{"$f":"'VALORACIÓN DE RIESGOS'!$Q$32","v":0},null,null,null,null,null,"0%","NO EFICAZ",null,null,{"$f":"'VALORACIÓN DE RIESGOS'!$Q$32","v":0},null,null,null,null,null,"0%","NO EFICAZ"]
[null,null,{"$f":"'VALORACIÓN DE RIESGOS'!$Q$33","v":0},null,null,null,null,null,"0%","NO EFICAZ",null,null,{"$f":"'VALORACIÓN DE RIESGOS'!$Q$33","v":0},null,null,null,null,null,"0%","NO EFICAZ",null,null,{"$f":"'VALORACIÓN DE RIESGOS'!$Q$33","v":0},null,null,null,null,null,"0%","NO EFICAZ"]
[null,null,{"$f":"'VALORACIÓN DE RIESGOS'!$Q$34","v":0},null,null,null,null,null,"0%","NO EFICAZ",null,null,{"$f":"'VALORACIÓN DE RIESGOS'!$Q$34","v":0},null,null,null,null,null,"0%","NO EFICAZ",null,null,{"$f":"'VALORACIÓN DE RIESGOS'!$Q$34","v":0},null,null,null,null,null,"0%","NO EFICAZ"]
[null,null,{"$f":"'VALORACIÓN DE RIESGOS'!$Q$35","v":0},null,null,null,null,null,"0%","NO EFICAZ",null,null,{"$f":"'VALORACIÓN DE RIESGOS'!$Q$35","v":0},null,null,null,null,null,"0%","NO EFICAZ",null,null,{"$f":"'VALORACIÓN DE RIESGOS'!$Q$35","v":0},null,null,null,null,null,"0%","NO EFICAZ"]
[null,"PLAN DE ACCIÓN",{"$f":"'VALORACIÓN DE RIESGOS'!AE26","v":"Realizar una capacitación sobre el manejo del sistema de información documental y de archivo al interior de la Entidad"},null,null,null,null,null,"0%","NO EFICAZ",null,null,{"$f":"'VALORACIÓN DE RIESGOS'!AO26","v":0},null,null,null,null,null,"0%","NO EFICAZ",null,null,{"$f":"'VALORACIÓN DE RIESGOS'!AY26","v":0},null,null,null,null,null,"0%","NO EFICAZ"]
[null,null,{"$f":"'VALORACIÓN DE RIESGOS'!AE27","v":0},null,null,null,null,null,"0%","NO EFICAZ",null,null,{"$f":"'VALORACIÓN DE RIESGOS'!AO27","v":0},null,null,null,null,null,"0%","NO EFICAZ",null,null,{"$f":"'VALORACIÓN DE RIESGOS'!AY27","v":0},null,null,null,null,null,"0%","NO EFICAZ"]
[null,null,{"$f":"'VALORACIÓN DE RIESGOS'!AE28","v":0},null,null,null,null,null,"0%","NO EFICAZ",null,null,{"$f":"'VALORACIÓN DE RIESGOS'!AO28","v":0},null,null,null,null,null,"0%","NO EFICAZ",null,null,{"$f":"'VALORACIÓN DE RIESGOS'!AY28","v":0},null,null,null,null,null,"0%","NO EFICAZ"]
[null,null,{"$f":"'VALORACIÓN DE RIESGOS'!AE29","v":0},null,null,null,null,null,"0%","NO EFICAZ",null,null,{"$f":"'VALORACIÓN DE RIESGOS'!AO29","v":0},null,null,null,null,null,"0%","NO EFICAZ",null,null,{"$f":"'VALORACIÓN DE RIESGOS'!AY29","v":0},null,null,null,null,null,"0%","NO EFICAZ"]
[null,null,{"$f":"'VALORACIÓN DE RIESGOS'!AE30","v":0},null,null,null,null,null,"0%","NO EFICAZ",null,null,{"$f":"'VALORACIÓN DE RIESGOS'!AO30","v":0},null,null,null,null,null,"0%","NO EFICAZ",null,null,{"$f":"'VALORACIÓN DE RIESGOS'!AY30","v":0},null,null,null,null,null,"0%","NO EFICAZ"]
[null,null,{"$f":"'VALORACIÓN DE RIESGOS'!AE31","v":0},null,null,null,null,null,"0%","NO EFICAZ",null,null,{"$f":"'VALORACIÓN DE RIESGOS'!AO31","v":0},null,null,null,null,null,"0%","NO EFICAZ",null,null,{"$f":"'VALORACIÓN DE RIESGOS'!AY31","v":0},null,null,null,null,null,"0%","NO EFICAZ"]
[null,null,{"$f":"'VALORACIÓN DE RIESGOS'!AE32","v":0},null,null,null,null,null,"0%","NO EFICAZ",null,null,{"$f":"'VALORACIÓN DE RIESGOS'!AO32","v":0},null,null,null,null,null,"0%","NO EFICAZ",null,null,{"$f":"'VALORACIÓN DE RIESGOS'!AY32","v":0},null,null,null,null,null,"0%","NO EFICAZ"]
[null,null,{"$f":"'VALORACIÓN DE RIESGOS'!AE33","v":0},null,null,null,null,null,"0%","NO EFICAZ",null,null,{"$f":"'VALORACIÓN DE RIESGOS'!AO33","v":0},null,null,null,null,null,"0%","NO EFICAZ",null,null,{"$f":"'VALORACIÓN DE RIESGOS'!AY33","v":0},null,null,null,null,null,"0%","NO EFICAZ"]
[null,null,{"$f":"'VALORACIÓN DE RIESGOS'!AE34","v":0},null,null,null,null,null,"0%","NO EFICAZ",null,null,{"$f":"'VALORACIÓN DE RIESGOS'!AO34","v":0},null,null,null,null,null,"0%","NO EFICAZ",null,null,{"$f":"'VALORACIÓN DE RIESGOS'!AY34","v":0},null,null,null,null,null,"0%","NO EFICAZ"]
[null,null,{"$f":"'VALORACIÓN DE RIESGOS'!AE35","v":0},null,null,null,null,null,"0%","NO EFICAZ",null,null,{"$f":"'VALORACIÓN DE RIESGOS'!AO35","v":0},null,null,null,null,null,"0%","NO EFICAZ",null,null,{"$f":"'VALORACIÓN DE RIESGOS'!AY35","v":0},null,null,null,null,null,"0%","NO EFICAZ"]
["Riesgo 3","CONTROLES",{"$f":"'VALORACIÓN DE RIESGOS'!$Q$43","v":0},null,null,null,null,null,"0%","NO EFICAZ",null,null,{"$f":"'VALORACIÓN DE RIESGOS'!$Q$43","v":0},null,null,null,null,null,"0%","NO EFICAZ",null,null,{"$f":"'VALORACIÓN DE RIESGOS'!$Q$43","v":0},null,null,null,null,null,"0%","NO EFICAZ"]
[null,null,{"$f":"'VALORACIÓN DE RIESGOS'!$Q$44","v":0},null,null,null,null,null,"0%","NO EFICAZ",null,null,{"$f":"'VALORACIÓN DE RIESGOS'!$Q$44","v":0},null,null,null,null,null,"0%","NO EFICAZ",null,null,{"$f":"'VALORACIÓN DE RIESGOS'!$Q$44","v":0},null,null,null,null,null,"0%","NO EFICAZ"]
[null,null,{"$f":"'VALORACIÓN DE RIESGOS'!$Q$45","v":0},null,null,null,null,null,"0%","NO EFICAZ",null,null,{"$f":"'VALORACIÓN DE RIESGOS'!$Q$45","v":0},null,null,null,null,null,"0%","NO EFICAZ",null,null,{"$f":"'VALORACIÓN DE RIESGOS'!$Q$45","v":0},null,null,null,null,null,"0%","NO EFICAZ"]
[null,null,{"$f":"'VALORACIÓN DE RIESGOS'!$Q$46","v":0},null,null,null,null,null,"0%","NO EFICAZ",null,null,{"$f":"'VALORACIÓN DE RIESGOS'!$Q$46","v":0},null,null,null,null,null,"0%","NO EFICAZ",null,null,{"$f":"'VALORACIÓN DE RIESGOS'!$Q$46","v":0},null,null,null,null,null,"0%","NO EFICAZ"]
[null,null,{"$f":"'VALORACIÓN DE RIESGOS'!$Q$47","v":0},null,null,null,null,null,"0%","NO EFICAZ",null,null,{"$f":"'VALORACIÓN DE RIESGOS'!$Q$47","v":0},null,null,null,null,null,"0%","NO EFICAZ",null,null,{"$f":"'VALORACIÓN DE RIESGOS'!$Q$47","v":0},null,null,null,null,null,"0%","NO EFICAZ"]
[null,null,{"$f":"'VALORACIÓN DE RIESGOS'!$Q$48","v":0},null,null,null,null,null,"0%","NO EFICAZ",null,null,{"$f":"'VALORACIÓN DE RIESGOS'!$Q$48","v":0},null,null,null,null,null,"0%","NO EFICAZ",null,null,{"$f":"'VALORACIÓN DE RIESGOS'!$Q$48","v":0},null,null,null,null,null,"0%","NO EFICAZ"]
[null,null,{"$f":"'VALORACIÓN DE RIESGOS'!$Q$49","v":0},null,null,null,null,null,"0%","NO EFICAZ",null,null,{"$f":"'VALORACIÓN DE RIESGOS'!$Q$49","v":0},null,null,null,null,null,"0%","NO EFICAZ",null,null,{"$f":"'VALORACIÓN DE RIESGOS'!$Q$49","v":0},null,null,null,null,null,"0%","NO EFICAZ"]
[null,null,{"$f":"'VALORACIÓN DE RIESGOS'!$Q$50","v":0},null,null,null,null,null,"0%","NO EFICAZ",null,null,{"$f":"'VALORACIÓN DE RIESGOS'!$Q$50","v":0},null,null,null,null,null,"0%","NO EFICAZ",null,null,{"$f":"'VALORACIÓN DE RIESGOS'!$Q$50","v":0},null,null,null,null,null,"0%","NO EFICAZ"]
[null,null,{"$f":"'VALORACIÓN DE RIESGOS'!$Q$51","v":0},null,null,null,null,null,"0%","NO EFICAZ",null,null,{"$f":"'VALORACIÓN DE RIESGOS'!$Q$51","v":0},null,null,null,null,null,"0%","NO EFICAZ",null,null,{"$f":"'VALORACIÓN DE RIESGOS'!$Q$51","v":0},null,null,null,null,null,"0%","NO EFICAZ"]
[null,null,{"$f":"'VALORACIÓN DE RIESGOS'!$Q$52","v":0},null,null,null,null,null,"0%","NO EFICAZ",null,null,{"$f":"'VALORACIÓN DE RIESGOS'!$Q$52","v":0},null,null,null,null,null,"0%","NO EFICAZ",null,null,{"$f":"'VALORACIÓN DE RIESGOS'!$Q$52","v":0},null,null,null,null,null,"0%","NO EFICAZ"]
[null,"PLAN DE ACCIÓN",{"$f":"'VALORACIÓN DE RIESGOS'!AE43","v":0},null,null,null,null,null,"0%","NO EFICAZ",null,null,{"$f":"'VALORACIÓN DE RIESGOS'!AO43","v":0},null,null,null,null,null,"0%","NO EFICAZ",null,null,{"$f":"'VALORACIÓN DE RIESGOS'!AY43","v":0},null,null,null,null,null,"0%","NO EFICAZ"]
[null,null,{"$f":"'VALORACIÓN DE RIESGOS'!AE44","v":0},null,null,null,null,null,"0%","NO EFICAZ",null,null,{"$f":"'VALORACIÓN DE RIESGOS'!AO44","v":0},null,null,null,null,null,"0%","NO EFICAZ",null,null,{"$f":"'VALORACIÓN DE RIESGOS'!AY44","v":0},null,null,null,null,null,"0%","NO EFICAZ"]
[null,null,{"$f":"'VALORACIÓN DE RIESGOS'!AE45","v":0},null,null,null,null,null,"0%","NO EFICAZ",null,null,{"$f":"'VALORACIÓN DE RIESGOS'!AO45","v":0},null,null,null,null,null,"0%","NO EFICAZ",null,null,{"$f":"'VALORACIÓN DE RIESGOS'!AY45","v":0},null,null,null,null,null,"0%","NO EFICAZ"]
[null,null,{"$f":"'VALORACIÓN DE RIESGOS'!AE46","v":0},null,null,null,null,null,"0%","NO EFICAZ",null,null,{"$f":"'VALORACIÓN DE RIESGOS'!AO46","v":0},null,null,null,null,null,"0%","NO EFICAZ",null,null,{"$f":"'VALORACIÓN DE RIESGOS'!AY46","v":0},null,null,null,null,null,"0%","NO EFICAZ"]
[null,null,{"$f":"'VALORACIÓN DE RIESGOS'!AE47","v":0},null,null,null,null,null,"0%","NO EFICAZ",null,null,{"$f":"'VALORACIÓN DE RIESGOS'!AO47","v":0},null,null,null,null,null,"0%","NO EFICAZ",null,null,{"$f":"'VALORACIÓN DE RIESGOS'!AY47","v":0},null,null,null,null,null,"0%","NO EFICAZ"]
[null,null,{"$f":"'VALORACIÓN DE RIESGOS'!AE48","v":0},null,null,null,null,null,"0%","NO EFICAZ",null,null,{"$f":"'VALORACIÓN DE RIESGOS'!AO48","v":0},null,null,null,null,null,"0%","NO EFICAZ",null,null,{"$f":"'VALORACIÓN DE RIESGOS'!AY48","v":0},null,null,null,null,null,"0%","NO EFICAZ"]
[null,null,{"$f":"'VALORACIÓN DE RIESGOS'!AE49","v":0},null,null,null,null,null,"0%","NO EFICAZ",null,null,{"$f":"'VALORACIÓN DE RIESGOS'!AO49","v":0},null,null,null,null,null,"0%","NO EFICAZ",null,null,{"$f":"'VALORACIÓN DE RIESGOS'!AY49","v":0},null,null,null,null,null,"0%","NO EFICAZ"]
[null,null,{"$f":"'VALORACIÓN DE RIESGOS'!AE50","v":0},null,null,null,null,null,"0%","NO EFICAZ",null,null,{"$f":"'VALORACIÓN DE RIESGOS'!AO50","v":0},null,null,null,null,null,"0%","NO EFICAZ",null,null,{"$f":"'VALORACIÓN DE RIESGOS'!AY50","v":0},null,null,null,null,null,"0%","NO EFICAZ"]
[null,null,{"$f":"'VALORACIÓN DE RIESGOS'!AE51","v":0},null,null,null,null,null,"0%","NO EFICAZ",null,null,{"$f":"'VALORACIÓN DE RIESGOS'!AO51","v":0},null,null,null,null,null,"0%","NO EFICAZ",null,null,{"$f":"'VALORACIÓN DE RIESGOS'!AY51","v":0},null,null,null,null,null,"0%","NO EFICAZ"]
[null,null,{"$f":"'VALORACIÓN DE RIESGOS'!AE52","v":0},null,null,null,null,null,"0%","NO EFICAZ",null,null,{"$f":"'VALORACIÓN DE RIESGOS'!AO52","v":0},null,null,null,null,null,"0%","NO EFICAZ",null,null,{"$f":"'VALORACIÓN DE RIESGOS'!AY52","v":0},null,null,null,null,null,"0%","NO EFICAZ"]
["Riesgo 4","CONTROLES",{"$f":"'VALORACIÓN DE RIESGOS'!$Q$60","v":0},null,null,null,null,null,"0%","NO EFICAZ",null,null,{"$f":"'VALORACIÓN DE RIESGOS'!$Q$60","v":0},null,null,null,null,null,"0%","NO EFICAZ",null,null,{"$f":"'VALORACIÓN DE RIESGOS'!$Q$60","v":0},null,null,null,null,null,"0%","NO EFICAZ"]
[null,null,{"$f":"'VALORACIÓN DE RIESGOS'!$Q$61","v":0},null,null,null,null,null,"0%","NO EFICAZ",null,null,{"$f":"'VALORACIÓN DE RIESGOS'!$Q$61","v":0},null,null,null,null,null,"0%","NO EFICAZ",null,null,{"$f":"'VALORACIÓN DE RIESGOS'!$Q$61","v":0},null,null,null,null,null,"0%","NO EFICAZ"]
[null,null,{"$f":"'VALORACIÓN DE RIESGOS'!$Q$62","v":0},null,null,null,null,null,"0%","NO EFICAZ",null,null,{"$f":"'VALORACIÓN DE RIESGOS'!$Q$62","v":0},null,null,null,null,null,"0%","NO EFICAZ",null,null,{"$f":"'VALORACIÓN DE RIESGOS'!$Q$62","v":0},null,null,null,null,null,"0%","NO EFICAZ"]
[null,null,{"$f":"'VALORACIÓN DE RIESGOS'!$Q$63","v":0},null,null,null,null,null,"0%","NO EFICAZ",null,null,{"$f":"'VALORACIÓN DE RIESGOS'!$Q$63","v":0},null,null,null,null,null,"0%","NO EFICAZ",null,null,{"$f":"'VALORACIÓN DE RIESGOS'!$Q$63","v":0},null,null,null,null,null,"0%","NO EFICAZ"]
[null,null,{"$f":"'VALORACIÓN DE RIESGOS'!$Q$64","v":0},null,null,null,null,null,"0%","NO EFICAZ",null,null,{"$f":"'VALORACIÓN DE RIESGOS'!$Q$64","v":0},null,null,null,null,null,"0%","NO EFICAZ",null,null,{"$f":"'VALORACIÓN DE RIESGOS'!$Q$64","v":0},null,null,null,null,null,"0%","NO EFICAZ"]
[null,null,{"$f":"'VALORACIÓN DE RIESGOS'!$Q$65","v":0},null,null,null,null,null,{"$f":"IF((COUNTIF(D70:H70,\"si\"))=5,100%,IF((COUNTIF(D70:H70,\"si\"))=4,80%,IF((COUNTIF(D70:H70,\"si\"))=3,60%,IF((COUNTIF(D70:H70,\"si\"))=2,40%,IF((COUNTIF(D70:H70,\"si\"))=1,20%,IF((COUNTIF(D70:H70,\"no\"))=5,0%,IF((COUNTIF(D70:H70,\"no\"))=4,20%,IF((COUNTIF(D70:H70,\"no\"))=3,40%,IF((COUNTIF(D70:H70,\"no\"))=2,60%,IF((COUNTIF(D70:H70,\"no\"))=1,80%,\"0%\"))))))))))","v":"0%"},{"$f":"IF(I70=\"0%\",\"NO EFICAZ\",IF(I70>=80%,\"EFICAZ\",\"NO EFICAZ\"))","v":"NO EFICAZ"},null,null,{"$f":"'VALORACIÓN DE RIESGOS'!$Q$65","v":0},null,null,null,null,null,{"$f":"IF((COUNTIF(N70:R70,\"si\"))=5,100%,IF((COUNTIF(N70:R70,\"si\"))=4,80%,IF((COUNTIF(N70:R70,\"si\"))=3,60%,IF((COUNTIF(N70:R70,\"si\"))=2,40%,IF((COUNTIF(N70:R70,\"si\"))=1,20%,IF((COUNTIF(N70:R70,\"no\"))=5,0%,IF((COUNTIF(N70:R70,\"no\"))=4,20%,IF((COUNTIF(N70:R70,\"no\"))=3,40%,IF((COUNTIF(N70:R70,\"no\"))=2,60%,IF((COUNTIF(N70:R70,\"no\"))=1,80%,\"0%\"))))))))))","v":"0%"},{"$f":"IF(S70=\"0%\",\"NO EFICAZ\",IF(S70>=80%,\"EFICAZ\",\"NO EFICAZ\"))","v":"NO EFICAZ"},null,null,{"$f":"'VALORACIÓN DE RIESGOS'!$Q$65","v":0},null,null,null,null,null,{"$f":"IF((COUNTIF(X70:AB70,\"si\"))=5,100%,IF((COUNTIF(X70:AB70,\"si\"))=4,80%,IF((COUNTIF(X70:AB70,\"si\"))=3,60%,IF((COUNTIF(X70:AB70,\"si\"))=2,40%,IF((COUNTIF(X70:AB70,\"si\"))=1,20%,IF((COUNTIF(X70:AB70,\"no\"))=5,0%,IF((COUNTIF(X70:AB70,\"no\"))=4,20%,IF((COUNTIF(X70:AB70,\"no\"))=3,40%,IF((COUNTIF(X70:AB70,\"no\"))=2,60%,IF((COUNTIF(X70:AB70,\"no\"))=1,80%,\"0%\"))))))))))","v":"0%"},{"$f":"IF(AC70=\"0%\",\"NO EFICAZ\",IF(AC70>=80%,\"EFICAZ\",\"NO EFICAZ\"))","v":"NO EFICAZ"}]
[null,null,{"$f":"'VALORACIÓN DE RIESGOS'!$Q$66","v":0},null,null,null,null,null,"0%","NO EFICAZ",null,null,{"$f":"'VALORACIÓN DE RIESGOS'!$Q$66","v":0},null,null,null,null,null,"0%","NO EFICAZ",null,null,{"$f":"'VALORACIÓN DE RIESGOS'!$Q$66","v":0},null,null,null,null,null,"0%","NO EFICAZ"]
[null,null,{"$f":"'VALORACIÓN DE RIESGOS'!$Q$67","v":0},null,null,null,null,null,"0%","NO EFICAZ",null,null,{"$f":"'VALORACIÓN DE RIESGOS'!$Q$67","v":0},null,null,null,null,null,"0%","NO EFICAZ",null,null,{"$f":"'VALORACIÓN DE RIESGOS'!$Q$67","v":0},null,null,null,null,null,"0%","NO EFICAZ"]
[null,null,{"$f":"'VALORACIÓN DE RIESGOS'!$Q$68","v":0},null,null,null,null,null,"0%","NO EFICAZ",null,null,{"$f":"'VALORACIÓN DE RIESGOS'!$Q$68","v":0},null,null,null,null,null,"0%","NO EFICAZ",null,null,{"$f":"'VALORACIÓN DE RIESGOS'!$Q$68","v":0},null,null,null,null,null,"0%","NO EFICAZ"]
[null,null,{"$f":"'VALORACIÓN DE RIESGOS'!$Q$69","v":0},null,null,null,null,null,"0%","NO EFICAZ",null,null,{"$f":"'VALORACIÓN DE RIESGOS'!$Q$69","v":0},null,null,null,null,null,"0%","NO EFICAZ",null,null,{"$f":"'VALORACIÓN DE RIESGOS'!$Q$69","v":0},null,null,null,null,null,"0%","NO EFICAZ"]
[null,"PLAN DE ACCIÓN",{"$f":"'VALORACIÓN DE RIESGOS'!AE60","v":0},null,null,null,null,null,"0%","NO EFICAZ",null,null,{"$f":"'VALORACIÓN DE RIESGOS'!AO60","v":0},null,null,null,null,null,"0%","NO EFICAZ",null,null,{"$f":"'VALORACIÓN DE RIESGOS'!AY60","v":0},null,null,null,null,null,"0%","NO EFICAZ"]
[null,null,{"$f":"'VALORACIÓN DE RIESGOS'!AE61","v":0},null,null,null,null,null,"0%","NO EFICAZ",null,null,{"$f":"'VALORACIÓN DE RIESGOS'!AO61","v":0},null,null,null,null,null,"0%","NO EFICAZ",null,null,{"$f":"'VALORACIÓN DE RIESGOS'!AY61","v":0},null,null,null,null,null,"0%","NO EFICAZ"]
[null,null,{"$f":"'VALORACIÓN DE RIESGOS'!AE62","v":0},null,null,null,null,null,"0%","NO EFICAZ",null,null,{"$f":"'VALORACIÓN DE RIESGOS'!AO62","v":0},null,null,null,null,null,"0%","NO EFICAZ",null,null,{"$f":"'VALORACIÓN DE RIESGOS'!AY62","v":0},null,null,null,null,null,"0%","NO EFICAZ"]
[null,null,{"$f":"'VALORACIÓN DE RIESGOS'!AE63","v":0},null,null,null,null,null,"0%","NO EFICAZ",null,null,{"$f":"'VALORACIÓN DE RIESGOS'!AO63","v":0},null,null,null,null,null,"0%","NO EFICAZ",null,null,{"$f":"'VALORACIÓN DE RIESGOS'!AY63","v":0},null,null,null,null,null,"0%","NO EFICAZ"]
[null,null,{"$f":"'VALORACIÓN DE RIESGOS'!AE64","v":0},null,null,null,null,null,"0%","NO EFICAZ",null,null,{"$f":"'VALORACIÓN DE RIESGOS'!AO64","v":0},null,null,null,null,null,"0%","NO EFICAZ",null,null,{"$f":"'VALORACIÓN DE RIESGOS'!AY64","v":0},null,null,null,null,null,"0%","NO EFICAZ"]
[null,null,{"$f":"'VALORACIÓN DE RIESGOS'!AE65","v":0},null,null,null,null,null,"0%","NO EFICAZ",null,null,{"$f":"'VALORACIÓN DE RIESGOS'!AO65","v":0},null,null,null,null,null,"0%","NO EFICAZ",null,null,{"$f":"'VALORACIÓN DE RIESGOS'!AY65","v":0},null,null,null,null,null,"0%","NO EFICAZ"]
[null,null,{"$f":"'VALORACIÓN DE RIESGOS'!AE66","v":0},null,null,null,null,null,"0%","NO EFICAZ",null,null,{"$f":"'VALORACIÓN DE RIESGOS'!AO66","v":0},null,null,null,null,null,"0%","NO EFICAZ",null,null,{"$f":"'VALORACIÓN DE RIESGOS'!AY66","v":0},null,null,null,null,null,"0%","NO EFICAZ"]
[null,null,{"$f":"'VALORACIÓN DE RIESGOS'!AE67","v":0},null,null,null,null,null,"0%","NO EFICAZ",null,null,{"$f":"'VALORACIÓN DE RIESGOS'!AO67","v":0},null,null,null,null,null,"0%","NO EFICAZ",null,null,{"$f":"'VALORACIÓN DE RIESGOS'!AY67","v":0},null,null,null,null,null,"0%","NO EFICAZ"]
[null,null,{"$f":"'VALORACIÓN DE RIESGOS'!AE68","v":0},null,null,null,null,null,"0%","NO EFICAZ",null,null,{"$f":"'VALORACIÓN DE RIESGOS'!AO68","v":0},null,null,null,null,null,"0%","NO EFICAZ",null,null,{"$f":"'VALORACIÓN DE RIESGOS'!AY68","v":0},null,null,null,null,null,"0%","NO EFICAZ"]
[null,null,{"$f":"'VALORACIÓN DE RIESGOS'!AE69","v":0},null,null,null,null,null,"0%","NO EFICAZ",null,null,{"$f":"'VALORACIÓN DE RIESGOS'!AO69","v":0},null,null,null,null,null,"0%","NO EFICAZ",null,null,{"$f":"'VALORACIÓN DE RIESGOS'!AY69","v":0},null,null,null,null,null,"0%","NO EFICAZ"]
["Riesgo 5","CONTROLES",{"$f":"'VALORACIÓN DE RIESGOS'!$Q$77","v":0},null,null,null,null,null,"0%","NO EFICAZ",null,null,{"$f":"'VALORACIÓN DE RIESGOS'!$Q$77","v":0},null,null,null,null,null,"0%","NO EFICAZ",null,null,{"$f":"'VALORACIÓN DE RIESGOS'!$Q$77","v":0},null,null,null,null,null,"0%","NO EFICAZ"]
[null,null,{"$f":"'VALORACIÓN DE RIESGOS'!$Q$78","v":0},null,null,null,null,null,"0%","NO EFICAZ",null,null,{"$f":"'VALORACIÓN DE RIESGOS'!$Q$78","v":0},null,null,null,null,null,"0%","NO EFICAZ",null,null,{"$f":"'VALORACIÓN DE RIESGOS'!$Q$78","v":0},null,null,null,null,null,"0%","NO EFICAZ"]
[null,null,{"$f":"'VALORACIÓN DE RIESGOS'!$Q$79","v":0},null,null,null,null,null,"0%","NO EFICAZ",null,null,{"$f":"'VALORACIÓN DE RIESGOS'!$Q$79","v":0},null,null,null,null,null,"0%","NO EFICAZ",null,null,{"$f":"'VALORACIÓN DE RIESGOS'!$Q$79","v":0},null,null,null,null,null,"0%","NO EFICAZ"]
[null,null,{"$f":"'VALORACIÓN DE RIESGOS'!$Q$80","v":0},null,null,null,null,null,"0%","NO EFICAZ",null,null,{"$f":"'VALORACIÓN DE RIESGOS'!$Q$80","v":0},null,null,null,null,null,"0%","NO EFICAZ",null,null,{"$f":"'VALORACIÓN DE RIESGOS'!$Q$80","v":0},null,null,null,null,null,"0%","NO EFICAZ"]
[null,null,{"$f":"'VALORACIÓN DE RIESGOS'!$Q$81","v":0},null,null,null,null,null,"0%","NO EFICAZ",null,null,{"$f":"'VALORACIÓN DE RIESGOS'!$Q$81","v":0},null,null,null,null,null,"0%","NO EFICAZ",null,null,{"$f":"'VALORACIÓN DE RIESGOS'!$Q$81","v":0},null,null,null,null,null,"0%","NO EFICAZ"]
[null,null,{"$f":"'VALORACIÓN DE RIESGOS'!$Q$82","v":0},null,null,null,null,null,"0%","NO EFICAZ",null,null,{"$f":"'VALORACIÓN DE RIESGOS'!$Q$82","v":0},null,null,null,null,null,"0%","NO EFICAZ",null,null,{"$f":"'VALORACIÓN DE RIESGOS'!$Q$82","v":0},null,null,null,null,null,"0%","NO EFICAZ"]
[null,null,{"$f":"'VALORACIÓN DE RIESGOS'!$Q$83","v":0},null,null,null,null,null,"0%","NO EFICAZ",null,null,{"$f":"'VALORACIÓN DE RIESGOS'!$Q$83","v":0},null,null,null,null,null,"0%","NO EFICAZ",null,null,{"$f":"'VALORACIÓN DE RIESGOS'!$Q$83","v":0},null,null,null,null,null,"0%","NO EFICAZ"]
[null,null,{"$f":"'VALORACIÓN DE RIESGOS'!$Q$84","v":0},null,null,null,null,null,"0%","NO EFICAZ",null,null,{"$f":"'VALORACIÓN DE RIESGOS'!$Q$84","v":0},null,null,null,null,null,"0%","NO EFICAZ",null,null,{"$f":"'VALORACIÓN DE RIESGOS'!$Q$84","v":0},null,null,null,null,null,"0%","NO EFICAZ"]
[null,null,{"$f":"'VALORACIÓN DE RIESGOS'!$Q$85","v":0},null,null,null,null,null,"0%","NO EFICAZ",null,null,{"$f":"'VALORACIÓN DE RIESGOS'!$Q$85","v":0},null,null,null,null,null,"0%","NO EFICAZ",null,null,{"$f":"'VALORACIÓN DE RIESGOS'!$Q$85","v":0},null,null,null,null,null,"0%","NO EFICAZ"]
[null,null,{"$f":"'VALORACIÓN DE RIESGOS'!$Q$86","v":0},null,null,null,null,null,"0%","NO EFICAZ",null,null,{"$f":"'VALORACIÓN DE RIESGOS'!$Q$86","v":0},null,null,null,null,null,"0%","NO EFICAZ",null,null,{"$f":"'VALORACIÓN DE RIESGOS'!$Q$86","v":0},null,null,null,null,null,"0%","NO EFICAZ"]
[null,"PLAN DE ACCIÓN",{"$f":"'VALORACIÓN DE RIESGOS'!AE77","v":0},null,null,null,null,null,"0%","NO EFICAZ",null,null,{"$f":"'VALORACIÓN DE RIESGOS'!AO77","v":0},null,null,null,null,null,"0%","NO EFICAZ",null,null,{"$f":"'VALORACIÓN DE RIESGOS'!AY77","v":0},null,null,null,null,null,"0%","NO EFICAZ"]
[null,null,{"$f":"'VALORACIÓN DE RIESGOS'!AE78","v":0},null,null,null,null,null,"0%","NO EFICAZ",null,null,{"$f":"'VALORACIÓN DE RIESGOS'!AO78","v":0},null,null,null,null,null,"0%","NO EFICAZ",null,null,{"$f":"'VALORACIÓN DE RIESGOS'!AY78","v":0},null,null,null,null,null,"0%","NO EFICAZ"]
[null,null,{"$f":"'VALORACIÓN DE RIESGOS'!AE79","v":0},null,null,null,null,null,"0%","NO EFICAZ",null,null,{"$f":"'VALORACIÓN DE RIESGOS'!AO79","v":0},null,null,null,null,null,"0%","NO EFICAZ",null,null,{"$f":"'VALORACIÓN DE RIESGOS'!AY79","v":0},null,null,null,null,null,"0%","NO EFICAZ"]
[null,null,{"$f":"'VALORACIÓN DE RIESGOS'!AE80","v":0},null,null,null,null,null,"0%","NO EFICAZ",null,null,{"$f":"'VALORACIÓN DE RIESGOS'!AO80","v":0},null,null,null,null,null,"0%","NO EFICAZ",null,null,{"$f":"'VALORACIÓN DE RIESGOS'!AY80","v":0},null,null,null,null,null,"0%","NO EFICAZ"]
[null,null,{"$f":"'VALORACIÓN DE RIESGOS'!AE81","v":0},null,null,null,null,null,"0%","NO EFICAZ",null,null,{"$f":"'VALORACIÓN DE RIESGOS'!AO81","v":0},null,null,null,null,null,"0%","NO EFICAZ",null,null,{"$f":"'VALORACIÓN DE RIESGOS'!AY81","v":0},null,null,null,null,null,"0%","NO EFICAZ"]
[null,null,{"$f":"'VALORACIÓN DE RIESGOS'!AE82","v":0},null,null,null,null,null,"0%","NO EFICAZ",null,null,{"$f":"'VALORACIÓN DE RIESGOS'!AO82","v":0},null,null,null,null,null,"0%","NO EFICAZ",null,null,{"$f":"'VALORACIÓN DE RIESGOS'!AY82","v":0},null,null,null,null,null,"0%","NO EFICAZ"]
[null,null,{"$f":"'VALORACIÓN DE RIESGOS'!AE83","v":0},null,null,null,null,null,"0%","NO EFICAZ",null,null,{"$f":"'VALORACIÓN DE RIESGOS'!AO83","v":0},null,null,null,null,null,"0%","NO EFICAZ",null,null,{"$f":"'VALORACIÓN DE RIESGOS'!AY83","v":0},null,null,null,null,null,"0%","NO EFICAZ"]
[null,null,{"$f":"'VALORACIÓN DE RIESGOS'!AE84","v":0},null,null,null,null,null,"0%","NO EFICAZ",null,null,{"$f":"'VALORACIÓN DE RIESGOS'!AO84","v":0},null,null,null,null,null,"0%","NO EFICAZ",null,null,{"$f":"'VALORACIÓN DE RIESGOS'!AY84","v":0},null,null,null,null,null,"0%","NO EFICAZ"]
[null,null,{"$f":"'VALORACIÓN DE RIESGOS'!AE85","v":0},null,null,null,null,null,"0%","NO EFICAZ",null,null,{"$f":"'VALORACIÓN DE RIESGOS'!AO85","v":0},null,null,null,null,null,"0%","NO EFICAZ",null,null,{"$f":"'VALORACIÓN DE RIESGOS'!AY85","v":0},null,null,null,null,null,"0%","NO EFICAZ"]
[null,null,{"$f":"'VALORACIÓN DE RIESGOS'!AE86","v":0},null,null,null,null,null,"0%","NO EFICAZ",null,null,{"$f":"'VALORACIÓN DE RIESGOS'!AO86","v":0},null,null,null,null,null,"0%","NO EFICAZ",null,null,{"$f":"'VALORACIÓN DE RIESGOS'!AY86","v":0},null,null,null,null,null,"0%","NO EFICAZ"]
["Riesgo 6","CONTROLES",{"$f":"'VALORACIÓN DE RIESGOS'!$Q$94","v":0},null,null,null,null,null,{"$f":"IF((COUNTIF(D105:H105,\"si\"))=5,100%,IF((COUNTIF(D105:H105,\"si\"))=4,80%,IF((COUNTIF(D105:H105,\"si\"))=3,60%,IF((COUNTIF(D105:H105,\"si\"))=2,40%,IF((COUNTIF(D105:H105,\"si\"))=1,20%,IF((COUNTIF(D105:H105,\"no\"))=5,0%,IF((COUNTIF(D105:H105,\"no\"))=4,20%,IF((COUNTIF(D105:H105,\"no\"))=3,40%,IF((COUNTIF(D105:H105,\"no\"))=2,60%,IF((COUNTIF(D105:H105,\"no\"))=1,80%,\"0%\"))))))))))","v":"0%"},"NO EFICAZ",null,null,{"$f":"'VALORACIÓN DE RIESGOS'!$Q$94","v":0},null,null,null,null,null,{"$f":"IF((COUNTIF(N105:R105,\"si\"))=5,100%,IF((COUNTIF(N105:R105,\"si\"))=4,80%,IF((COUNTIF(N105:R105,\"si\"))=3,60%,IF((COUNTIF(N105:R105,\"si\"))=2,40%,IF((COUNTIF(N105:R105,\"si\"))=1,20%,IF((COUNTIF(N105:R105,\"no\"))=5,0%,IF((COUNTIF(N105:R105,\"no\"))=4,20%,IF((COUNTIF(N105:R105,\"no\"))=3,40%,IF((COUNTIF(N105:R105,\"no\"))=2,60%,IF((COUNTIF(N105:R105,\"no\"))=1,80%,\"0%\"))))))))))","v":"0%"},"NO EFICAZ",null,null,{"$f":"'VALORACIÓN DE RIESGOS'!$Q$94","v":0},null,null,null,null,null,{"$f":"IF((COUNTIF(X105:AB105,\"si\"))=5,100%,IF((COUNTIF(X105:AB105,\"si\"))=4,80%,IF((COUNTIF(X105:AB105,\"si\"))=3,60%,IF((COUNTIF(X105:AB105,\"si\"))=2,40%,IF((COUNTIF(X105:AB105,\"si\"))=1,20%,IF((COUNTIF(X105:AB105,\"no\"))=5,0%,IF((COUNTIF(X105:AB105,\"no\"))=4,20%,IF((COUNTIF(X105:AB105,\"no\"))=3,40%,IF((COUNTIF(X105:AB105,\"no\"))=2,60%,IF((COUNTIF(X105:AB105,\"no\"))=1,80%,\"0%\"))))))))))","v":"0%"},"NO EFICAZ"]
[null,null,{"$f":"'VALORACIÓN DE RIESGOS'!$Q$95","v":0},null,null,null,null,null,"0%","NO EFICAZ",null,null,{"$f":"'VALORACIÓN DE RIESGOS'!$Q$95","v":0},null,null,null,null,null,"0%","NO EFICAZ",null,null,{"$f":"'VALORACIÓN DE RIESGOS'!$Q$95","v":0},null,null,null,null,null,"0%","NO EFICAZ"]
[null,null,{"$f":"'VALORACIÓN DE RIESGOS'!$Q$96","v":0},null,null,null,null,null,"0%","NO EFICAZ",null,null,{"$f":"'VALORACIÓN DE RIESGOS'!$Q$96","v":0},null,null,null,null,null,"0%","NO EFICAZ",null,null,{"$f":"'VALORACIÓN DE RIESGOS'!$Q$96","v":0},null,null,null,null,null,"0%","NO EFICAZ"]
[null,null,{"$f":"'VALORACIÓN DE RIESGOS'!$Q$97","v":0},null,null,null,null,null,"0%","NO EFICAZ",null,null,{"$f":"'VALORACIÓN DE RIESGOS'!$Q$97","v":0},null,null,null,null,null,"0%","NO EFICAZ",null,null,{"$f":"'VALORACIÓN DE RIESGOS'!$Q$97","v":0},null,null,null,null,null,"0%","NO EFICAZ"]
[null,null,{"$f":"'VALORACIÓN DE RIESGOS'!$Q$98","v":0},null,null,null,null,null,"0%","NO EFICAZ",null,null,{"$f":"'VALORACIÓN DE RIESGOS'!$Q$98","v":0},null,null,null,null,null,"0%","NO EFICAZ",null,null,{"$f":"'VALORACIÓN DE RIESGOS'!$Q$98","v":0},null,null,null,null,null,"0%","NO EFICAZ"]
[null,null,{"$f":"'VALORACIÓN DE RIESGOS'!$Q$99","v":0},null,null,null,null,null,"0%","NO EFICAZ",null,null,{"$f":"'VALORACIÓN DE RIESGOS'!$Q$99","v":0},null,null,null,null,null,"0%","NO EFICAZ",null,null,{"$f":"'VALORACIÓN DE RIESGOS'!$Q$99","v":0},null,null,null,null,null,"0%","NO EFICAZ"]
[null,null,{"$f":"'VALORACIÓN DE RIESGOS'!$Q$100","v":0},null,null,null,null,null,"0%","NO EFICAZ",null,null,{"$f":"'VALORACIÓN DE RIESGOS'!$Q$100","v":0},null,null,null,null,null,"0%","NO EFICAZ",null,null,{"$f":"'VALORACIÓN DE RIESGOS'!$Q$100","v":0},null,null,null,null,null,"0%","NO EFICAZ"]
[null,null,{"$f":"'VALORACIÓN DE RIESGOS'!$Q$101","v":0},null,null,null,null,null,"0%","NO EFICAZ",null,null,{"$f":"'VALORACIÓN DE RIESGOS'!$Q$101","v":0},null,null,null,null,null,"0%","NO EFICAZ",null,null,{"$f":"'VALORACIÓN DE RIESGOS'!$Q$101","v":0},null,null,null,null,null,"0%","NO EFICAZ"]
[null,null,{"$f":"'VALORACIÓN DE RIESGOS'!$Q$102","v":0},null,null,null,null,null,"0%","NO EFICAZ",null,null,{"$f":"'VALORACIÓN DE RIESGOS'!$Q$102","v":0},null,null,null,null,null,"0%","NO EFICAZ",null,null,{"$f":"'VALORACIÓN DE RIESGOS'!$Q$102","v":0},null,null,null,null,null,"0%","NO EFICAZ"]
[null,null,{"$f":"'VALORACIÓN DE RIESGOS'!$Q$103","v":0},null,null,null,null,null,"0%","NO EFICAZ",null,null,{"$f":"'VALORACIÓN DE RIESGOS'!$Q$103","v":0},null,null,null,null,null,"0%","NO EFICAZ",null,null,{"$f":"'VALORACIÓN DE RIESGOS'!$Q$103","v":0},null,null,null,null,null,"0%","NO EFICAZ"]
[null,"PLAN DE ACCIÓN",{"$f":"'VALORACIÓN DE RIESGOS'!AE94","v":0},null,null,null,null,null,"0%","NO EFICAZ",null,null,{"$f":"'VALORACIÓN DE RIESGOS'!AO94","v":0},null,null,null,null,null,"0%","NO EFICAZ",null,null,{"$f":"'VALORACIÓN DE RIESGOS'!AY94","v":0},null,null,null,null,null,"0%","NO EFICAZ"]
[null,null,{"$f":"'VALORACIÓN DE RIESGOS'!AE95","v":0},null,null,null,null,null,"0%","NO EFICAZ",null,null,{"$f":"'VALORACIÓN DE RIESGOS'!AO95","v":0},null,null,null,null,null,"0%","NO EFICAZ",null,null,{"$f":"'VALORACIÓN DE RIESGOS'!AY95","v":0},null,null,null,null,null,"0%","NO EFICAZ"]
[null,null,{"$f":"'VALORACIÓN DE RIESGOS'!AE96","v":0},null,null,null,null,null,"0%","NO EFICAZ",null,null,{"$f":"'VALORACIÓN DE RIESGOS'!AO96","v":0},null,null,null,null,null,"0%","NO EFICAZ",null,null,{"$f":"'VALORACIÓN DE RIESGOS'!AY96","v":0},null,null,null,null,null,"0%","NO EFICAZ"]
[null,null,{"$f":"'VALORACIÓN DE RIESGOS'!AE97","v":0},null,null,null,null,null,"0%","NO EFICAZ",null,null,{"$f":"'VALORACIÓN DE RIESGOS'!AO97","v":0},null,null,null,null,null,"0%","NO EFICAZ",null,null,{"$f":"'VALORACIÓN DE RIESGOS'!AY97","v":0},null,null,null,null,null,"0%","NO EFICAZ"]
[null,null,{"$f":"'VALORACIÓN DE RIESGOS'!AE98","v":0},null,null,null,null,null,"0%","NO EFICAZ",null,null,{"$f":"'VALORACIÓN DE RIESGOS'!AO98","v":0},null,null,null,null,null,"0%","NO EFICAZ",null,null,{"$f":"'VALORACIÓN DE RIESGOS'!AY98","v":0},null,null,null,null,null,"0%","NO EFICAZ"]
[null,null,{"$f":"'VALORACIÓN DE RIESGOS'!AE99","v":0},null,null,null,null,null,"0%","NO EFICAZ",null,null,{"$f":"'VALORACIÓN DE RIESGOS'!AO99","v":0},null,null,null,null,null,"0%","NO EFICAZ",null,null,{"$f":"'VALORACIÓN DE RIESGOS'!AY99","v":0},null,null,null,null,null,"0%","NO EFICAZ"]
[null,null,{"$f":"'VALORACIÓN DE RIESGOS'!AE100","v":0},null,null,null,null,null,"0%","NO EFICAZ",null,null,{"$f":"'VALORACIÓN DE RIESGOS'!AO100","v":0},null,null,null,null,null,"0%","NO EFICAZ",null,null,{"$f":"'VALORACIÓN DE RIESGOS'!AY100","v":0},null,null,null,null,null,"0%","NO EFICAZ"]
[null,null,{"$f":"'VALORACIÓN DE RIESGOS'!AE101","v":0},null,null,null,null,null,"0%","NO EFICAZ",null,null,{"$f":"'VALORACIÓN DE RIESGOS'!AO101","v":0},null,null,null,null,null,"0%","NO EFICAZ",null,null,{"$f":"'VALORACIÓN DE RIESGOS'!AY101","v":0},null,null,null,null,null,"0%","NO EFICAZ"]
[null,null,{"$f":"'VALORACIÓN DE RIESGOS'!AE102","v":0},null,null,null,null,null,"0%","NO EFICAZ",null,null,{"$f":"'VALORACIÓN DE RIESGOS'!AO102","v":0},null,null,null,null,null,"0%","NO EFICAZ",null,null,{"$f":"'VALORACIÓN DE RIESGOS'!AY102","v":0},null,null,null,null,null,"0%","NO EFICAZ"]
[null,null,{"$f":"'VALORACIÓN DE RIESGOS'!AE103","v":0},null,null,null,null,null,"0%","NO EFICAZ",null,null,{"$f":"'VALORACIÓN DE RIESGOS'!AO103","v":0},null,null,null,null,null,"0%","NO EFICAZ",null,null,{"$f":"'VALORACIÓN DE RIESGOS'!AY103","v":0},null,null,null,null,null,"0%","NO EFICAZ"]
["Riesgo 7","CONTROLES",{"$f":"'VALORACIÓN DE RIESGOS'!$Q$111","v":0},null,null,null,null,null,"0%","NO EFICAZ",null,null,{"$f":"'VALORACIÓN DE RIESGOS'!$Q$111","v":0},null,null,null,null,null,"0%","NO EFICAZ",null,null,{"$f":"'VALORACIÓN DE RIESGOS'!$Q$111","v":0},null,null,null,null,null,"0%","NO EFICAZ"]
[null,null,{"$f":"'VALORACIÓN DE RIESGOS'!$Q$112","v":0},null,null,null,null,null,"0%","NO EFICAZ",null,null,{"$f":"'VALORACIÓN DE RIESGOS'!$Q$112","v":0},null,null,null,null,null,"0%","NO EFICAZ",null,null,{"$f":"'VALORACIÓN DE RIESGOS'!$Q$112","v":0},null,null,null,null,null,"0%","NO EFICAZ"]
[null,null,{"$f":"'VALORACIÓN DE RIESGOS'!$Q$113","v":0},null,null,null,null,null,"0%","NO EFICAZ",null,null,{"$f":"'VALORACIÓN DE RIESGOS'!$Q$113","v":0},null,null,null,null,null,"0%","NO EFICAZ",null,null,{"$f":"'VALORACIÓN DE RIESGOS'!$Q$113","v":0},null,null,null,null,null,"0%","NO EFICAZ"]
[null,null,{"$f":"'VALORACIÓN DE RIESGOS'!$Q$114","v":0},null,null,null,null,null,"0%","NO EFICAZ",null,null,{"$f":"'VALORACIÓN DE RIESGOS'!$Q$114","v":0},null,null,null,null,null,"0%","NO EFICAZ",null,null,{"$f":"'VALORACIÓN DE RIESGOS'!$Q$114","v":0},null,null,null,null,null,"0%","NO EFICAZ"]
[null,null,{"$f":"'VALORACIÓN DE RIESGOS'!$Q$115","v":0},null,null,null,null,null,"0%","NO EFICAZ",null,null,{"$f":"'VALORACIÓN DE RIESGOS'!$Q$115","v":0},null,null,null,null,null,"0%","NO EFICAZ",null,null,{"$f":"'VALORACIÓN DE RIESGOS'!$Q$115","v":0},null,null,null,null,null,"0%","NO EFICAZ"]
[null,null,{"$f":"'VALORACIÓN DE RIESGOS'!$Q$116","v":0},null,null,null,null,null,"0%","NO EFICAZ",null,null,{"$f":"'VALORACIÓN DE RIESGOS'!$Q$116","v":0},null,null,null,null,null,"0%","NO EFICAZ",null,null,{"$f":"'VALORACIÓN DE RIESGOS'!$Q$116","v":0},null,null,null,null,null,"0%","NO EFICAZ"]
[null,null,{"$f":"'VALORACIÓN DE RIESGOS'!$Q$117","v":0},null,null,null,null,null,"0%","NO EFICAZ",null,null,{"$f":"'VALORACIÓN DE RIESGOS'!$Q$117","v":0},null,null,null,null,null,"0%","NO EFICAZ",null,null,{"$f":"'VALORACIÓN DE RIESGOS'!$Q$117","v":0},null,null,null,null,null,"0%","NO EFICAZ"]
[null,null,{"$f":"'VALORACIÓN DE RIESGOS'!$Q$118","v":0},null,null,null,null,null,"0%","NO EFICAZ",null,null,{"$f":"'VALORACIÓN DE RIESGOS'!$Q$118","v":0},null,null,null,null,null,"0%","NO EFICAZ",null,null,{"$f":"'VALORACIÓN DE RIESGOS'!$Q$118","v":0},null,null,null,null,null,"0%","NO EFICAZ"]
[null,null,{"$f":"'VALORACIÓN DE RIESGOS'!$Q$119","v":0},null,null,null,null,null,"0%","NO EFICAZ",null,null,{"$f":"'VALORACIÓN DE RIESGOS'!$Q$119","v":0},null,null,null,null,null,"0%","NO EFICAZ",null,null,{"$f":"'VALORACIÓN DE RIESGOS'!$Q$119","v":0},null,null,null,null,null,"0%","NO EFICAZ"]
[null,null,{"$f":"'VALORACIÓN DE RIESGOS'!$Q$120","v":0},null,null,null,null,null,"0%",{"$f":"IF(I134=\"0%\",\"NO EFICAZ\",IF(I134>=80%,\"EFICAZ\",\"NO EFICAZ\"))","v":"NO EFICAZ"},null,null,{"$f":"'VALORACIÓN DE RIESGOS'!$Q$120","v":0},null,null,null,null,null,"0%",{"$f":"IF(S134=\"0%\",\"NO EFICAZ\",IF(S134>=80%,\"EFICAZ\",\"NO EFICAZ\"))","v":"NO EFICAZ"},null,null,{"$f":"'VALORACIÓN DE RIESGOS'!$Q$120","v":0},null,null,null,null,null,"0%",{"$f":"IF(AC134=\"0%\",\"NO EFICAZ\",IF(AC134>=80%,\"EFICAZ\",\"NO EFICAZ\"))","v":"NO EFICAZ"}]
[null,"PLAN DE ACCIÓN",{"$f":"'VALORACIÓN DE RIESGOS'!AE111","v":0},null,null,null,null,null,"0%","NO EFICAZ",null,null,{"$f":"'VALORACIÓN DE RIESGOS'!AO111","v":0},null,null,null,null,null,"0%","NO EFICAZ",null,null,{"$f":"'VALORACIÓN DE RIESGOS'!AY111","v":0},null,null,null,null,null,"0%","NO EFICAZ"]
[null,null,{"$f":"'VALORACIÓN DE RIESGOS'!AE112","v":0},null,null,null,null,null,"0%","NO EFICAZ",null,null,{"$f":"'VALORACIÓN DE RIESGOS'!AO112","v":0},null,null,null,null,null,"0%","NO EFICAZ",null,null,{"$f":"'VALORACIÓN DE RIESGOS'!AY112","v":0},null,null,null,null,null,"0%","NO EFICAZ"]
[null,null,{"$f":"'VALORACIÓN DE RIESGOS'!AE113","v":0},null,null,null,null,null,"0%","NO EFICAZ",null,null,{"$f":"'VALORACIÓN DE RIESGOS'!AO113","v":0},null,null,null,null,null,"0%","NO EFICAZ",null,null,{"$f":"'VALORACIÓN DE RIESGOS'!AY113","v":0},null,null,null,null,null,"0%","NO EFICAZ"]
[null,null,{"$f":"'VALORACIÓN DE RIESGOS'!AE114","v":0},null,null,null,null,null,"0%","NO EFICAZ",null,null,{"$f":"'VALORACIÓN DE RIESGOS'!AO114","v":0},null,null,null,null,null,"0%","NO EFICAZ",null,null,{"$f":"'VALORACIÓN DE RIESGOS'!AY114","v":0},null,null,null,null,null,"0%","NO EFICAZ"]
[null,null,{"$f":"'VALORACIÓN DE RIESGOS'!AE115","v":0},null,null,null,null,null,"0%","NO EFICAZ",null,null,{"$f":"'VALORACIÓN DE RIESGOS'!AO115","v":0},null,null,null,null,null,"0%","NO EFICAZ",null,null,{"$f":"'VALORACIÓN DE RIESGOS'!AY115","v":0},null,null,null,null,null,"0%","NO EFICAZ"]
[null,null,{"$f":"'VALORACIÓN DE RIESGOS'!AE116","v":0},null,null,null,null,null,"0%","NO EFICAZ",null,null,{"$f":"'VALORACIÓN DE RIESGOS'!AO116","v":0},null,null,null,null,null,"0%","NO EFICAZ",null,null,{"$f":"'VALORACIÓN DE RIESGOS'!AY116","v":0},null,null,null,null,null,"0%","NO EFICAZ"]
[null,null,{"$f":"'VALORACIÓN DE RIESGOS'!AE117","v":0},null,null,null,null,null,"0%","NO EFICAZ",null,null,{"$f":"'VALORACIÓN DE RIESGOS'!AO117","v":0},null,null,null,null,null,"0%","NO EFICAZ",null,null,{"$f":"'VALORACIÓN DE RIESGOS'!AY117","v":0},null,null,null,null,null,"0%","NO EFICAZ"]
[null,null,{"$f":"'VALORACIÓN DE RIESGOS'!AE118","v":0},null,null,null,null,null,"0%","NO EFICAZ",null,null,{"$f":"'VALORACIÓN DE RIESGOS'!AO118","v":0},null,null,null,null,null,"0%","NO EFICAZ",null,null,{"$f":"'VALORACIÓN DE RIESGOS'!AY118","v":0},null,null,null,null,null,"0%","NO EFICAZ"]
[null,null,{"$f":"'VALORACIÓN DE RIESGOS'!AE119","v":0},null,null,null,null,null,"0%","NO EFICAZ",null,null,{"$f":"'VALORACIÓN DE RIESGOS'!AO119","v":0},null,null,null,null,null,"0%","NO EFICAZ",null,null,{"$f":"'VALORACIÓN DE RIESGOS'!AY119","v":0},null,null,null,null,null,"0%","NO EFICAZ"]
[null,null,{"$f":"'VALORACIÓN DE RIESGOS'!AE120","v":0},null,null,null,null,null,"0%","NO EFICAZ",null,null,{"$f":"'VALORACIÓN DE RIESGOS'!AO120","v":0},null,null,null,null,null,"0%","NO EFICAZ",null,null,{"$f":"'VALORACIÓN DE RIESGOS'!AY120","v":0},null,null,null,null,null,"0%","NO EFICAZ"]
["Riesgo 8","CONTROLES",{"$f":"'VALORACIÓN DE RIESGOS'!$Q$128","v":0},null,null,null,null,null,"0%","NO EFICAZ",null,null,{"$f":"'VALORACIÓN DE RIESGOS'!$Q$128","v":0},null,null,null,null,null,"0%","NO EFICAZ",null,null,{"$f":"'VALORACIÓN DE RIESGOS'!$Q$128","v":0},null,null,null,null,null,"0%","NO EFICAZ"]
[null,null,{"$f":"'VALORACIÓN DE RIESGOS'!$Q$129","v":0},null,null,null,null,null,"0%","NO EFICAZ",null,null,{"$f":"'VALORACIÓN DE RIESGOS'!$Q$129","v":0},null,null,null,null,null,"0%","NO EFICAZ",null,null,{"$f":"'VALORACIÓN DE RIESGOS'!$Q$129","v":0},null,null,null,null,null,"0%","NO EFICAZ"]
[null,null,{"$f":"'VALORACIÓN DE RIESGOS'!$Q$130","v":0},null,null,null,null,null,"0%","NO EFICAZ",null,null,{"$f":"'VALORACIÓN DE RIESGOS'!$Q$130","v":0},null,null,null,null,null,"0%","NO EFICAZ",null,null,{"$f":"'VALORACIÓN DE RIESGOS'!$Q$130","v":0},null,null,null,null,null,"0%","NO EFICAZ"]
[null,null,{"$f":"'VALORACIÓN DE RIESGOS'!$Q$131","v":0},null,null,null,null,null,"0%","NO EFICAZ",null,null,{"$f":"'VALORACIÓN DE RIESGOS'!$Q$131","v":0},null,null,null,null,null,"0%","NO EFICAZ",null,null,{"$f":"'VALORACIÓN DE RIESGOS'!$Q$131","v":0},null,null,null,null,null,"0%","NO EFICAZ"]
[null,null,{"$f":"'VALORACIÓN DE RIESGOS'!$Q$132","v":0},null,null,null,null,null,"0%","NO EFICAZ",null,null,{"$f":"'VALORACIÓN DE RIESGOS'!$Q$132","v":0},null,null,null,null,null,"0%","NO EFICAZ",null,null,{"$f":"'VALORACIÓN DE RIESGOS'!$Q$132","v":0},null,null,null,null,null,"0%","NO EFICAZ"]
[null,null,{"$f":"'VALORACIÓN DE RIESGOS'!$Q$133","v":0},null,null,null,null,null,"0%","NO EFICAZ",null,null,{"$f":"'VALORACIÓN DE RIESGOS'!$Q$133","v":0},null,null,null,null,null,"0%","NO EFICAZ",null,null,{"$f":"'VALORACIÓN DE RIESGOS'!$Q$133","v":0},null,null,null,null,null,"0%","NO EFICAZ"]
[null,null,{"$f":"'VALORACIÓN DE RIESGOS'!$Q$134","v":0},null,null,null,null,null,"0%","NO EFICAZ",null,null,{"$f":"'VALORACIÓN DE RIESGOS'!$Q$134","v":0},null,null,null,null,null,"0%","NO EFICAZ",null,null,{"$f":"'VALORACIÓN DE RIESGOS'!$Q$134","v":0},null,null,null,null,null,"0%","NO EFICAZ"]
[null,null,{"$f":"'VALORACIÓN DE RIESGOS'!$Q$135","v":0},null,null,null,null,null,"0%","NO EFICAZ",null,null,{"$f":"'VALORACIÓN DE RIESGOS'!$Q$135","v":0},null,null,null,null,null,"0%","NO EFICAZ",null,null,{"$f":"'VALORACIÓN DE RIESGOS'!$Q$135","v":0},null,null,null,null,null,"0%","NO EFICAZ"]
[null,null,{"$f":"'VALORACIÓN DE RIESGOS'!$Q$136","v":0},null,null,null,null,null,"0%","NO EFICAZ",null,null,{"$f":"'VALORACIÓN DE RIESGOS'!$Q$136","v":0},null,null,null,null,null,"0%","NO EFICAZ",null,null,{"$f":"'VALORACIÓN DE RIESGOS'!$Q$136","v":0},null,null,null,null,null,"0%","NO EFICAZ"]
[null,null,{"$f":"'VALORACIÓN DE RIESGOS'!$Q$137","v":0},null,null,null,null,null,"0%","NO EFICAZ",null,null,{"$f":"'VALORACIÓN DE RIESGOS'!$Q$137","v":0},null,null,null,null,null,"0%","NO EFICAZ",null,null,{"$f":"'VALORACIÓN DE RIESGOS'!$Q$137","v":0},null,null,null,null,null,"0%","NO EFICAZ"]
[null,"PLAN DE ACCIÓN",{"$f":"'VALORACIÓN DE RIESGOS'!AE128","v":0},null,null,null,null,null,"0%","NO EFICAZ",null,null,{"$f":"'VALORACIÓN DE RIESGOS'!AO128","v":0},null,null,null,null,null,"0%","NO EFICAZ",null,null,{"$f":"'VALORACIÓN DE RIESGOS'!AY128","v":0},null,null,null,null,null,"0%","NO EFICAZ"]
[null,null,{"$f":"'VALORACIÓN DE RIESGOS'!AE129","v":0},null,null,null,null,null,"0%","NO EFICAZ",null,null,{"$f":"'VALORACIÓN DE RIESGOS'!AO129","v":0},null,null,null,null,null,"0%","NO EFICAZ",null,null,{"$f":"'VALORACIÓN DE RIESGOS'!AY129","v":0},null,null,null,null,null,"0%","NO EFICAZ"]
[null,null,{"$f":"'VALORACIÓN DE RIESGOS'!AE130","v":0},null,null,null,null,null,"0%","NO EFICAZ",null,null,{"$f":"'VALORACIÓN DE RIESGOS'!AO130","v":0},null,null,null,null,null,"0%","NO EFICAZ",null,null,{"$f":"'VALORACIÓN DE RIESGOS'!AY130","v":0},null,null,null,null,null,"0%","NO EFICAZ"]
[null,null,{"$f":"'VALORACIÓN DE RIESGOS'!AE131","v":0},null,null,null,null,null,"0%","NO EFICAZ",null,null,{"$f":"'VALORACIÓN DE RIESGOS'!AO131","v":0},null,null,null,null,null,"0%","NO EFICAZ",null,null,{"$f":"'VALORACIÓN DE RIESGOS'!AY131","v":0},null,null,null,null,null,"0%","NO EFICAZ"]
[null,null,{"$f":"'VALORACIÓN DE RIESGOS'!AE132","v":0},null,null,null,null,null,"0%","NO EFICAZ",null,null,{"$f":"'VALORACIÓN DE RIESGOS'!AO132","v":0},null,null,null,null,null,"0%","NO EFICAZ",null,null,{"$f":"'VALORACIÓN DE RIESGOS'!AY132","v":0},null,null,null,null,null,"0%","NO EFICAZ"]
[null,null,{"$f":"'VALORACIÓN DE RIESGOS'!AE133","v":0},null,null,null,null,null,"0%","NO EFICAZ",null,null,{"$f":"'VALORACIÓN DE RIESGOS'!AO133","v":0},null,null,null,null,null,"0%","NO EFICAZ",null,null,{"$f":"'VALORACIÓN DE RIESGOS'!AY133","v":0},null,null,null,null,null,"0%","NO EFICAZ"]
[null,null,{"$f":"'VALORACIÓN DE RIESGOS'!AE134","v":0},null,null,null,null,null,"0%","NO EFICAZ",null,null,{"$f":"'VALORACIÓN DE RIESGOS'!AO134","v":0},null,null,null,null,null,"0%","NO EFICAZ",null,null,{"$f":"'VALORACIÓN DE RIESGOS'!AY134","v":0},null,null,null,null,null,"0%","NO EFICAZ"]
[null,null,{"$f":"'VALORACIÓN DE RIESGOS'!AE135","v":0},null,null,null,null,null,"0%","NO EFICAZ",null,null,{"$f":"'VALORACIÓN DE RIESGOS'!AO135","v":0},null,null,null,null,null,"0%","NO EFICAZ",null,null,{"$f":"'VALORACIÓN DE RIESGOS'!AY135","v":0},null,null,null,null,null,"0%","NO EFICAZ"]
[null,null,{"$f":"'VALORACIÓN DE RIESGOS'!AE136","v":0},null,null,null,null,null,"0%","NO EFICAZ",null,null,{"$f":"'VALORACIÓN DE RIESGOS'!AO136","v":0},null,null,null,null,null,"0%","NO EFICAZ",null,null,{"$f":"'VALORACIÓN DE RIESGOS'!AY136","v":0},null,null,null,null,null,"0%","NO EFICAZ"]
[null,null,{"$f":"'VALORACIÓN DE RIESGOS'!AE137","v":0},null,null,null,null,null,"0%","NO EFICAZ",null,null,{"$f":"'VALORACIÓN DE RIESGOS'!AO137","v":0},null,null,null,null,null,"0%","NO EFICAZ",null,null,{"$f":"'VALORACIÓN DE RIESGOS'!AY137","v":0},null,null,null,null,null,"0%","NO EFICAZ"]

{"sheet":"Gráficas","index":4,"n_rows":9,"n_cols":4,"rows_kept":9,"cut":false,"hidden":true,"merged":[]}
["Numero","Zona ","Zona inherente","Zona Residual"]
["Riesgo 1",4,{"$f":"'VALORACIÓN DE RIESGOS'!N9","v":"Alto"},{"$f":"'VALORACIÓN DE RIESGOS'!AB9","v":"Moderado"}]
["Riesgo 2",4,{"$f":"'VALORACIÓN DE RIESGOS'!N26","v":"Alto"},{"$f":"'VALORACIÓN DE RIESGOS'!AB26","v":"Alto"}]
["Riesgo 3",4,{"$f":"'VALORACIÓN DE RIESGOS'!N43","v":"Escoja clasificación del riesgo"},{"$f":"'VALORACIÓN DE RIESGOS'!AB43","v":"Escoja clasificación del riesgo"}]
["Riesgo 4",4,{"$f":"'VALORACIÓN DE RIESGOS'!N60","v":"Escoja clasificación del riesgo"},{"$f":"'VALORACIÓN DE RIESGOS'!AB60","v":"Escoja clasificación del riesgo"}]
["Riesgo 5",4,{"$f":"'VALORACIÓN DE RIESGOS'!N77","v":"Escoja clasificación del riesgo"},{"$f":"'VALORACIÓN DE RIESGOS'!AB77","v":"Escoja clasificación del riesgo"}]
["Riesgo 6",4,{"$f":"'VALORACIÓN DE RIESGOS'!N94","v":"Escoja clasificación del riesgo"},{"$f":"'VALORACIÓN DE RIESGOS'!AB94","v":"Escoja clasificación del riesgo"}]
["Riesgo 7",4,{"$f":"'VALORACIÓN DE RIESGOS'!N111","v":"Escoja clasificación del riesgo"},{"$f":"'VALORACIÓN DE RIESGOS'!AB111","v":"Escoja clasificación del riesgo"}]
["Riesgo 8",4,{"$f":"'VALORACIÓN DE RIESGOS'!N128","v":"Escoja clasificación del riesgo"},{"$f":"'VALORACIÓN DE RIESGOS'!AB128","v":"Escoja clasificación del riesgo"}]

{"sheet":"LISTAS","index":5,"n_rows":145,"n_cols":14,"rows_kept":145,"cut":false,"hidden":false,"merged":[[160,1,161,1],[157,1,158,1],[61,1,61,2],[151,3,151,4],[144,1,144,2],[145,1,145,2]]}
["INTERNO","Carencias en la integralidad de la construcción de la estrategia institucional y aseguramiento de su despliegue","EXTERNO","Información publicada en los canales de comunicación de las entidades públicas deficiente y de difícil acceso"]
[null,"Carencias en el gerenciamiento del talento humano: flexibilidad para adaptarse al cambio",null,"Vulneración al derecho de petición"]
[null,"Necesidad de mejoramiento de la coordinación entre dependencias: nivel central y territorial",null,"Niños, niñas y adolescentes alimentados deficientemente"]
[null,"Carencias institucionales en la gestión de información y del conocimiento",null,"Oferta pública incumplida e insuficiente para la atención de las minorías"]
[null,"Necesidad de optimización de la comunicación interna y externa como soporte del liderazgo institucional de la PGN",null,"Oferta pública incumplida e insuficiente para la atención a la población desplazada"]
[null,"Necesidad de mejoramiento de la gestión financiera y administración con énfasis en el nivel territorial",null,"Acuerdos de paz incumplidos"]
[null,"Se requiere promover la participación de los funcionarios de todos los niveles y áreas",null,"Políticas públicas diseñadas inadecuada e ineficientemente"]
[null,"Se requiere asegurar la alineación de los indicadores de seguimiento y las metas establecidas en el PEI",null,"Personal vinculado por contratación direccionada"]
[null,"Se requiere garantizar la inducción y reinducción de los funcionarios",null,"Servicios públicos ofertados deficientemente"]
[null,"Se requiere crear una perspectiva de flexibilidad soportada con un proceso de gestión del cambio que facilite la comprensión al interior de la Entidad no solo de los cambios requeridos sino de la manera en que pueden efectuarse",null,"Justicia inoperante ante las necesidades de la ciudadanía"]
[null,"No hay transversalidad de la información",null,"Téminos procesales incumplidos por los administradores de la justicia"]
[null,"Excesivo número de comités que podrían optimizarse",null,"Contratos diseñados y ejecutados de forma direccionada"]
[null,"Los canales de comunicación centro-regionales unidireccionales no permiten visualizar las necesidades de información y de recursos humanos en los territorios.",null,"Contratos planeados y ejecutados deficientemente"]
[null,"Se requieren esfuerzos en la optimización de la calidad de la información, aprovechamiento de los modelos de analítica e interoperabilidad de los aplicativos existentes: SIGDEA-SIM-SIAF",null,"Políticas públicas inoperantes para prevenir la contaminación de fuentes hídricas y recursos naturales"]
[null,"Canales internos de comunicación que tomen en cuenta las particularidades de las áreas y especialmente del nivel territorial.",null,"Servicio de atención y respuesta prestado deficiente e inoportunamente al ciudadano"]
[null,"Mejorar la calidad y credibilidad de los mensajes generados en la comunicación externa de la PGN.",null,"Presencia estatal deficiente en el territorio"]
[null,"Transmitir a la ciudadanía de manera comprensible el alcance misional y la relevancia que tiene la PGN en el ordenamiento estatal colombiano.",null,"Servicios de salud prestados ineficientes por parte de las EPS"]
[null,"Déficit de planeación y ejecución financiera a nivel central y acentuado en las regiones.",null,"Innovación del Estado en los procesos o servicios limitada por consecuencias en materia de potenciales investigaciones o afectación en el patrimonio público"]
[null,"Los mecanismos presupuestales no están cláramente definidos, no son comunicados o monitoreados.",null,"Servicio de educación pública prestado con bajos estándares de calidad"]
[null,"Déficit de recursos y presupuesto necesario para realizar el trabajo a nivel central y acentuado en las regiones.",null,"Capacidad limitada para la gestión de datos, acceso a tecnología y conectividad"]
[null,"Se requiere integrar las necesidades institucionales con énfasis en las procuradurías regionales y provinciales.",null,"Ausencia de proyectos transversales de tecnología en las entidades"]
[null,"Promover la participación de los funcionarios en todos los niveles y áreas.",null,"La estructura de las entidades limita la eficiencia y eficacia de los procesos"]
[null,"Si bien existe un capital humano formado es necesaria su especialización sobre temas específicos tratados en la misionalidad de la PGN.",null,"Falta de claridad de las competencias de las entidades: cadena de valor"]
[null,"Mejoramiento de conectividad e infraestructura tecnológica (especialmente a nivel regional)",null,"Las políticas públicas no responden a las necesidades de la ciudadanía"]
[null,null,null,"Dificultad para la medición de impacto de las políticas y evaluar la relación costo-beneficio"]
[null,null,null,"Poca presencia de las entidades del estado a nivel regional"]
[null,null,null,"Recursos limitados, insuficiencia de funcionarios, desarticulación entre instituciones y una baja comunicación con el nivel central"]
[null,null,null,"Altros procesos burocráticos y falta de sinergia entre las entidades para atender eficientemente a los ciudadanos"]
[null,null,null,"Ausencia de procesos pedagógicos que capaciten a los ciudadanos en torno a los servicios que presta cada entidad"]
[null,null,null,"Falencias dentro de los esquemas de contratación, tanto a nivel de la planta de personal como para la ejecución de proyectos"]
[null,null,null,"Exceso de contratación directa y abuso de los regímenes especiales de contratación"]
[null,null,null,"Limitada capacidad en los equipos humanos"]
[null,null,null,"Procesos de selección poco idóneos para las necesidades de las entidades públicas"]
[null,"PROCESOS DEL MVCT"]
["No.","PROCESO","TIPO","OBJETIVO","ALCANCE","RESPONSABLE","CARACTERIZACIÓN"]
[null,"Seleccione un proceso","Seleccione un proceso","Seleccione un proceso","Seleccione un proceso","Seleccione un proceso","Seleccione un proceso"]
[1,"Direccionamiento y planeación institucional","Estratégico","Orientar la gestión de la entidad para que la planeacion estrategica, presupuestal y de los proyectos financiados por la Cooperacion internacional, se articulen de forma eficiente con las necesidades de las partes interesadas y asi contribuir a una optimización del uso de los recursos en el logro de los objetivos institucionales","Inicia con la formulación de la planeación estratégica y continua la ejecución y seguimiento de planes, proyectos y recursos asignados,  finalizando  con la actualización de los planes y proyectos","Jefe Oficina de Planeación","https://www.procuraduria.gov.co/Pages/mapa-procesos.aspx"]
[2,"Talento Humano","Estratégico","Gestionar la selección, vinculación, desarrollo integral, administración y desvinculación del talento humano mediante la formulación de políticas, planes y programas que contribuyan al cumplimiento de los objetivos estratégicos y la promoción del trabajo digno de los servidores de la Procuraduría General de la Nación de acuerdo con la normatividad vigente.","Inicia con el estudio y análisis de planta de personal para determinar las necesidades de la selección y vinculación del talento humano, continúa con la formulación del plan estratégico del talento humano y su implementación y finaliza con el retiro de los servidores públicos de la entidad.","Jefe División de Gestión Humana \nJefe Oficina de Selección y Carrera\nDirector Instituto de Estudios del Ministerio Público","https://www.procuraduria.gov.co/Pages/mapa-procesos.aspx"]
[3,"Tecnologías de la información","Estratégico","Definir, gestionar, administrar e implementar los servicios y herramientas de tecnologías de la información, incorporando el componente de innovación y transformación digital, teniendo como base los lineamientos y mejores prácticas de Gobierno de TI, generando alineación con el Plan Estratégico Institucional - PEI de la Entidad y valor a los grupos de valor, a través de herramientas y modelos de mejoramiento continuo tecnológico.","Inicia con la Definición, Implementación y Actualización de la Planeación Estratégica de TI (PETI), Generando una Alineación con el PEI de la Entidad eI ncorporando un Análisis Permanente del Entorno (DOFA),Obteniendo como Resultado, la  Identificación eI mplementación de Iniciativas y Proyectos de Innovación Tecnológica y Transformación Digital de la Entidad, así como la Definición, Implementación, Divulgación de los Procedimientos, Políticas y Lineamientos de Adquisición, Montaje y Mantenimiento de los Servicios, Infraestructura y Herramientas Tecnológicas, Finalizando con la Implementación de la Estrategia de Uso y Apropiación de los Servicios TICS.","Jefe Oficina de Tecnología, Innovación y Transformación Digital","https://www.procuraduria.gov.co/Pages/mapa-procesos.aspx"]
[4,"Comunicaciones","Estratégico","Gestionar la comunicación de la Procuraduría General de la Nación con criterios de veracidad, calidad y oportunidad; atendiendo la ley, normatividad vigente, conductos  y las directrices que establezca el Despacho del Procurador(a) y/o Viceprocurador(a), para informar a los públicos objetivo, grupos de valor y partes interesadas con los que interactúa la entidad a través de sus diferentes canales, acerca de la gestión institucional que desarrolla","Inicia con el diseño de la Política y del Plan de Comunicaciones de la PGN, continua con la solicitud de difusión de información, generación de contenidos y su publicación, finaliza con la medición de la gestión realizada.","Jefe de la Oficina de Prensa ","https://www.procuraduria.gov.co/Pages/mapa-procesos.aspx"]
[5,"Conocimiento e innovación","Estratégico","Gestionar el conocimiento y la innovación en todas sus fases para la Procuraduría General de la Nación, mediante la implementación de acciones, mecanismos e instrumentos a fin de fortalecer la gestión en la entidad","Inicia con la identificación del estado de la implementación de la política de gestión de conocimiento e innovación en la entidad, continua con el análisis del contexto institucional, la definición de la ruta de implementación, el seguimiento, la evaluación y el ajuste de esta. Aplica a nivel nacional y territorial.","Jefe de la Oficina de Planeación","https://www.procuraduria.gov.co/Pages/mapa-procesos.aspx"]
[6,"Disciplinario","Misional","Adelantar el procedimiento disciplinario en contra de los sujetos disciplinables, con observancia formal y material de las normas que determinen la ritualidad del proceso en los términos que establece el Código Único Disciplinario y el Código General Disciplinario garantizando la imparcialidad y la transparencia en los resultados de las investigaciones, así como el cumplimiento de sus fines tales como la búsqueda de la verdad material, la garantía de los derechos de las personas que en él intervienen. ","La acción disciplinaria se origina en las quejas, informes, noticias disciplinarias, de oficio o cualquier otro medio que indique una conducta disciplinariamente reprochable, las cuales son evaluadas conforme al procedimiento establecido en el ordenamiento disciplinario. Las etapas de la actuación disciplinaria de instrucción y juzgamiento se adelantan por servidores distintos; para la etapa de instrucción inicia con indagación previa o investigación según sea el caso y culmina con el archivo o formulación de cargos y/o citación de audiencia debidamente notificada y para la etapa de juzgamiento inicia con la fijación del procedimiento a seguir (verbal u ordinario)y culmina con la terminación anticipada del proceso o fallo en primera instancia. Contra el fallo de  primera instancia procede el recurso de apelación, el cual al ser interpuesto da inicio al trámite de segunda instancia, si en sede de alzada se llegase a imponer sanción por primera vez, procede recurso de doble conformidad. Eventualmente contra las decisiones de fallo o de archivo ejecuturiadas podra promoverse acción de revocatoria directa o pérdida de fuerza ejecutoria (en este último caso solo para fallos sancionatorios).",null,"https://www.procuraduria.gov.co/Pages/mapa-procesos.aspx"]
[7,"Preventivo","Misional","Anticipar y evitar la ocurrencia de hechos que afecten los derechos de las personas, mediante la detección y advertencia temprana de riesgos en la gestión pública, la prevención, promoción, garantía y defensa de los derechos colectivos e integrales, la vigilancia del cumplimiento de la normatividad en entidades públicas con competencias constitucionales y legales, con el fin de mitigar y/o restituir derechos que fueron afectados, así como orientar y promover el ejercicio y goce efectivo de los derechos constitucionales.","Inicia con la formulación y elaboración del plan preventivo, continua con la focalización y priorización, clasificación y gestión de las acciones por parte de las dependencias con funciones preventivas y de control de gestión que lo componen en los escenarios de: anticipación, mitigación y/o restitutición y orientación al público y finaliza con el establecimiento de acciones de mejoramiento continuo para el proceso","Procuraduría Delegada Preventiva y de Control de Gestión N° 1. Primera para la Vigilancia Preventiva de la Función Pública\nProcuraduría Delegada con Funciones Mixtas 4. Para Asuntos Civiles","https://www.procuraduria.gov.co/Pages/mapa-procesos.aspx"]
[8,"Intervención","Misional","Actuar en los procesos y asuntos de su competencia, a traves del estudio del expediente y la emisión del concepto, documento o intervención ante autoridades judiciales y/o administrativas, cuando sea necesario en defensa de los derechos y garantías fundamentales del ordenamiento jurídico y del patrimonio público o por solictud del usuario.","Inicia con la definición del plan de acción institucional, la recepción y/o notificación de los procesos y asuntos por parte de la dependencia competente y su reparto, continúa con el tramite de actuación y la emisión del pronunciamiento y finaliza con el registro del cierre de la intervención en los sistemas de información.","Procuraduría Delegada para la Conciliación Administrativa (Res. 168 de 2021)","https://www.procuraduria.gov.co/Pages/mapa-procesos.aspx"]
[9,"Conciliación","Misional","Gestionar las actividades de conciliación y demás mecanismos alternativos de solución de conflictos por solicitud, a través de las actuaciones de los funcionarios competentes con el fin de facilitar el acceso a la justicia, generar condiciones aptas para el diálogo y la convivencia pacífica, y servir como instrumento para la construcción de paz y de tejido social.","Inicia con la definición del plan de acción institucional, se tramita la solicitud, se realizan las actuaciones internas para la solución del conflicto y finaliza con el registro del cierre en los sistemas de información.","Procuraduría Delegada para Asuntos Civiles\nProcuraduría Delegada para la Conciliación Administrativa\nProcuraduría Delegada para la Defensa de los Derechos de la Infancia, la Adolescencia, la Familia y la Mujer.","https://www.procuraduria.gov.co/Pages/mapa-procesos.aspx"]
[10,"Control Interno Disciplinario","Apoyo","Investigar y/o Sancionar las conductas disciplinables de los servidores y exservidores públicos de la entidad, a través del procedimiento establecido en la Ley, con el fin de preservar el cumplimiento de los principios que rigen la función pública y su correcto ejercicio","Inicia con la formulación del plan de acción institucional, continua con el análisis de viabilidad disciplinaria de la queja, informe o noticia disciplinaria y finaliza con la decisión de archivo o el fallo debidamente ejecutoriado y la toma de acciones de mejora del proceso.","Veedor","https://www.procuraduria.gov.co/Pages/mapa-procesos.aspx"]
[11,"Administración de Recursos y Seguridad","Apoyo","Administrar, mantener y preservar los bienes muebles e inmuebles de la entidad cubriendo los requerimientos de insumos, bienes muebles, infraestructura, servicios públicos, transporte, protección y seguridad, con el fin de satisfacer las necesidades de operación y bienestar integral de los servidores de la PGN.","Inicia con la proyección de necesidades, mantenimiento de bienes, la adquisición de bienes y servicios, programa de seguridad, continua con la actualización de inventarios, atención oportuna a los requerimientos de seguridad, estudios de  seguridad y medidas de protección para los servidores, exservidores, bienes y servicios finalizando con el suministro de las recursos a las dependencias y la seguridad y custodia de los bienes y personas de la PGN a nivel nacional así como el  seguimiento y actualización de los planes de acuerdo a las brechas que se puedan generar ","COORDINADOR DIVISIÓN ADMINISTRATIVA\nCOORDINACIÓN DIVISIÓN DE SEGURIDAD","https://www.procuraduria.gov.co/Pages/mapa-procesos.aspx"]
[12,"Adquisición de bienes y servicios","Apoyo","Gestionar  los trámites precontractuales, contractuales y postcontractuales a través del acompañamiento en las distintas etapas del contrato, con el fin de contribuir a satisfacer las necesidades que la entidad requiera para el cumplimiento de su misión.","Inicia con la formulación del plan de acción institucional,  continua con el acompñamiento precontractual y contractual y finaliza con la legalización de la liquidación del contrato, el seguimiento al proceso y la toma de acciones requeridas.","Coordinador Grupo de contratación","https://www.procuraduria.gov.co/Pages/mapa-procesos.aspx"]
[13,"Documental","Apoyo","Gestionar la documentación y material bibliográfico que genera, recibe, tramita, utiliza, conserva o adquiera la Entidad mediante el establecimiento de lineamientos para el nivel central y territorial, con el propósito de asegurar que la información a proporcionar se mantenga disponible, fiable, completa y legible para su difusión y consulta, desde su origen hasta su destino final en uso del derecho al acceso a la información y de preservación de la memoria histórica de la Procuraduría General de la Nación – PGN-.","Inicia con la formulación y actualización de los instrumentos archivísticos, continua con la gestión y trámite de las solicitudes de información o documentación, la prestación de asistencias técnica y acompañamiento, hasta la administración y coordinación de los documentos generados en las dependencias de la PGN en desarrollo de sus funciones hasta su disposición final, según lo establecido en las tablas de retención y/o valoración documental o lineamientos para el nivel central y territorial conforme a las normas de Gestión Documental. Igualmente, aplica desde la adquisición de material bibliográfico, continúa con la catalogación, consulta y préstamo y el expurgo de la colección. Finaliza con el establecimiento de las acciones para la mejora continua del proceso.","Jefe División de Documentación","https://www.procuraduria.gov.co/Pages/mapa-procesos.aspx"]
[14,"Financiera","Apoyo","Planear, analizar, verificar y registrar  la ejecución de los recursos presupuestales asignados a la PGN, a traves de la aplicación de lineamientos presupuestales, financieros y contables para garantizar la oportunidad y adecuada administración de estos recursos conforme al marco legal vigente","Inicia con la definición del plan de acción institucional y las actividades de coordinación con la Oficina de Planeación  para la  formulación del anteproyecto de presupuesto, continua con la ejecución presupuestal, financiera  y el registro contable y finaliza con la generación, presentación y publicación de informes presupuestales y financieros,  para la toma de decisiones  y acciones de mejora frente a los resultados obtenidos en la operación del proceso.","Jefe División Financiera","https://www.procuraduria.gov.co/Pages/mapa-procesos.aspx"]
[15,"Jurídica","Apoyo","Brindar asesoría jurídica al Procurador General de la Nación, al Secretario General y a los demás servidores del nivel directivo de la entidad, en asuntos jurídicos y administrativos que interesen a la misma, absolver las consultas que se le  formulen en estas materias y representar judicialmente a la entidad, conforme a lo señalado en el artículo 15 del Decreto 262 de 2000, en cumplimiento de lo establecido en la ley 1755 de 2015 y el artículo 23 de la Constitución Política, con el fin de garantizar una adecuada gestión de sus derechos e intereses. ","Inicia con la programación de los comité principal y especializados de conciliaciones continua con la asesoría jurídica mediante la emisión del acto administrativo respectivo, la notificación de la providencia final del proceso judicial o notificación de la sentencia o fallo definitivo y finaliza con la formulación acciones que permitan optimizar la acción jurídica.","Jefe de Oficina Jurídica","https://www.procuraduria.gov.co/Pages/mapa-procesos.aspx"]
[16,"Relatoría","Apoyo","Contribuir al mantenimiento de la memoria histórica de la entidad  y el cumplimiento de las obligaciones legales, el ejercicio del derecho a la información, la participación ciudadana  y la protección de los derechos del habeas data y la intimidad, a través del desarrollo de los procedimientos de recopilación y remisión de información, administración de documentos, publicación de documentos, asesoramiento y construcción de líneas doctrinales, y en general los establecidos en la normatividad relativa al sistema de Relatoría de la PGN, para garantizar el acceso a la información y el ejercicio de los derechos de la ciudadanía.","Inicia con la planificación del proceso con la definición del PAI , plan de acción de servidores y plan de acuerdo, continúa con la recepción de información , análisis, clasificación, administración y actualización, publicación de documentos normativos y asesoramiento solicitados y   finaliza en la generación de productos que garanticen el acceso a la información por parte de los usuarios, la identificación y gestión de las acciones de mejora del proceso.","Coordinador Grupo de Relatoría","https://www.procuraduria.gov.co/Pages/mapa-procesos.aspx"]
[17,"Atención al Ciudadano","Apoyo","Articular las actividades y canales de atencion a las personas que requieran los servicios que presta la Procuraduria General de la Nacion dentro de su objeto misional, en todos los niveles de la entidad, conforme a criterios de oportunidad, calidad y eficiencia","Inicia con el diseño y formulación de los lineamientos institucionales, continua con la promoción de la simplificación de los trámites, la recepción, atención, trámite y distribución de los requerimientos de la ciudadania en  general, el acompañamiento en el diseño y desarrollo de espacios de participación y rendición de cuentas, la orientacion y acompañamiento a los ciudadanos, la expedición de los certificados de antecedentes disciplinario, el seguimiento y medición de la satisfacción y finaliza con el establecimiento de las acciones para la mejora continua del proceso. El proceso aplica a todos los funcionarios y servidores de la PGN","Jefe División de Relacionamiento con el ciudadano","https://www.procuraduria.gov.co/Pages/mapa-procesos.aspx"]
[18,"Evaluación Institucional","Evaluación y control","Evaluar de forma independiente, oportuna, objetiva e imparcial la efectividad del Sistema de Control Interno, mediante asesorías, acompañamientos, auditorías y seguimientos, que permitan mitigar la materialización de los riesgos que puedan afectar el cumplimiento de los objetivos, aportando elementos de valor que contribuyan con el mejoramiento continuo de la gestión institucional.","Inicia con la formulación del Plan Anual de Auditoria - PAA, en el marco de los cinco (5) roles (Liderazgo Estratégico, Enfoque hacia la prevención, Evaluación de la Gestión de Riesgos, Evaluación y seguimiento y relación con entes externos de control), con un enfoque basado en riesgos, continua con la ejecución de las actividades programadas en el mencionado plan y finaliza con la verificación del cumplimiento de las acciones planteadas en los planes de mejoramiento.","Jefe de la Oficina de Control Interno","https://www.procuraduria.gov.co/Pages/mapa-procesos.aspx"]
[19,"Mejoramiento Continuo","Evaluación y control","Administrar de manera permanente la implementación del Sistema de Gestión de la Calidad- SGC, mediante la aplicación de lineamientos de operación y seguimiento; con el fin de asegurar la mejora continua de los procesos y la toma de decisiones frente a la gestión de la entidad.","Inicia con la definición del plan de acción institucional y plan de trabajo para el mantenimiento y control del SGC, continúa con el desarrollo del plan de trabajo del SGC y finaliza con la toma de acciones frente a resultados obtenidos en la gestión del proceso","Jefe Oficina de Planeación","https://www.procuraduria.gov.co/Pages/mapa-procesos.aspx"]
[]
[]
[]
[null,"EVALUACIÓN PRELIMINAR","Columna1"]
[null,"Si","X"]
[null,"No","N/A"]
[null,"PROCEDIMIENTOS"]
[null,"PROCESO","NOMBRE DEL DOCUMENTO","CANTIDAD","ACTIVOS DE SEGURIDAD",null,"PERIODICIDAD CAUSAS"]
[null,"Direccionamiento y planeación institucional",null,null,"Ver Matriz de activos de información",null,"Diario "]
[null,"Talento Humano",null,null,"Ver Matriz de activos de información",null,"Semanal"]
[null,"Tecnologías de la información",null,null,"Ver Matriz de activos de información",null,"Mensual"]
[null,"Comunicaciones",null,null,"Ver Matriz de activos de información",null,"Trimestral"]
[null,"Conocimiento e innovación",null,null,"Ver Matriz de activos de información",null,"Cuatrimestral"]
[null,"Disciplinario",null,null,"Ver Matriz de activos de información",null,"Semestral"]
[null,"Preventivo",null,null,"Ver Matriz de activos de información",null,"Anual"]
[null,"Conciliación",null,null,"Ver Matriz de activos de información"]
[null,"Intervención",null,null,"Ver Matriz de activos de información"]
[null,"Control Interno Disciplinario",null,null,"Ver Matriz de activos de información"]
[null,"Administración de Recursos y Seguridad",null,null,"Ver Matriz de activos de información"]
[null,"Adquisición de bienes y servicios",null,null,"Ver Matriz de activos de información"]
[null,"Documental",null,null,"Ver Matriz de activos de información"]
[null,"Financiera",null,null,"Ver Matriz de activos de información"]
[null,"Jurídica",null,null,"Ver Matriz de activos de información"]
[null,"Relatoría",null,null,"Ver Matriz de activos de información"]
[null,"Atención al Ciudadano",null,null,"Ver Matriz de activos de información"]
[null,"Evaluación Institucional",null,null,"Ver Matriz de activos de información"]
[null,"Mejoramiento Continuo",null,null,"Ver Matriz de activos de información"]
[]
[null,"CLASIFICACIÓN ",null,"GESTIÓN"]
[null,"Seleccione",null,"Seleccione"]
[null,"CORRUPCIÓN",null,"Ejecución y administración de procesos"]
[null,"GESTIÓN",null,"Fraude Externo"]
[null,"SEGURIDAD_DE_LA_INFORMACIÓN",null,"Fraude Interno",null,"SEGURIDAD.DIGITAL"]
[null,null,null,"Fallas Tecnológicas",null,"Confidencialidad"]
[null,"SEGURIDAD_DE_LA_INFORMACIÓN",null,"Relaciones laborales",null,"Integridad"]
[null,"Seleccione",null,"Usuarios, productos y prácticas",null,"Disponibilidad"]
[null,"Pérdida de confidencialidad",null,"Daño a activos fijos / Eventos externos",null,"Confidencialidad e Integridad"]
[null,"Pérdida de integridad",null,null,null,"Confidencialidad y Disponibilidad"]
[null,"Pérdida de disponibilidad",null,null,null,"Integridad y Disponibilidad"]
[null,null,null,null,null,"Confidencialidad, Integridad y Disponibilidad"]
[null,"CORRUPCIÓN"]
[null,"Seleccione"]
[null,"Soborno",null,null,null,null,null,null,null,"Seleccione una opción"]
[null,"Piratería",null,null,null,null,null,null,null,"Seleccione una opción"]
[null,"Fraude",null,null,null,null,null,null,null,"Seleccione una opción"]
[]
[null,null,null,null,null,"ACTIVOS",null,"Amenaza",null,"INCENDIO",null,"DAÑOS.POR.AGUA",null,"SATURACIÓN.DEL.SISTEMA.DE.INFORMACIÓN"]
[null,null,null,null,null,"Seleccione",null,"Seleccione",null,"Falla o ausencia de un sistema contrainciendio",null,"Ubicación en un área susceptible a inundación",null,"Gestión inadecuada de la red"]
[null,null,null,null,null,"Hardware",null,"INCENDIO",null,"Ausencia de planes de continuidad",null,"Ausencia de planes de continuidad",null,"Ausencia de sistemas de protección contra ataques de DoS"]
[null,null,null,null,null,"Software",null,"DAÑOS.POR.AGUA"]
[null,null,null,null,null,"Aplicación Institucional",null,"DESTRUCCIÓN.DE.EQUIPOS.O.MEDIOS",null,"DESTRUCCIÓN.DE.EQUIPOS.O.MEDIOS",null,"POLVO.CORROSIÓN.CONGELAMIENTO",null,"MAL.FUNCIONAMIENTO.DEL.SOFTWARE"]
[null,null,null,null,null,"Servicio Web",null,"POLVO.CORROSIÓN.CONGELAMIENTO",null,"Ausencia de un esquema de reemplazo periódico",null,"Suceptibilidad a la humedad, el polvo y la suciedad",null,"Software nuevo o inmaduro"]
[null,null,null,null,null,"Red",null,"FENÓMENOS.SÍSMICOS",null,"Ausencia de planes de continuidad",null,"Ausencia de acuerdos de nivel de servicios o insuficiencia de los mismos",null,"Especificaciones incompletas o no claras para los desarrolladores"]
[null,null,null,null,null,"Información digital",null,"FENÓMENOS.METEREOLÓGICOS",null,null,null,"Mantenimiento insuficiente",null,"Ausencia de control de cambios eficaz"]
[null,null,null,"   ",null,"Información personal",null,"INUNDACIÓN",null,"FENÓMENOS.SÍSMICOS"]
[null,null,null,"    ",null,"Tecnologías de la información",null,"PÉRDIDA.DEL.SUMINISTRO.DE.ENERGÍA",null,"Ausencia de planes de continuidad",null,"FENÓMENOS.METEREOLÓGICOS",null,"INCUMPLIMIENTO.EN.EL.MANTENIMIENTO.DEL.SISTEMA.DE.INFORMACIÓN"]
[null,null,null,"   ",null,"No aplica",null,"FALLA.EN.EL.SISTEMA.DE.AIRE.ACONDICIONADO",null,null,null,"Susceptibilidad a las variaciones de temperatura",null,"Mantenimiento insuficiente / instalación fallida de los medios de almacenamiento"]
[null,null,null,"   ",null,null,null,"FALLA.EN.EQUIPOS.DE.TELECOMUNICACIONES",null,"INUNDACIÓN",null,"Ausencia de planes de continuidad",null,"Ausencia de acuerdos de nivel de servicios o insuficiencia de los mismos"]
[null,null,null,"   ",null,null,null,"RADIACIÓN.ELECTROMAGNÉTICA",null,"Ubicación en un área susceptible a inundación"]
[null,null,null,"   ",null,null,null,"RADIACIÓN.TÉRMICA",null,"Auencia de planes de continuidad",null,"PÉRDIDA.DEL.SUMINISTRO.DE.ENERGÍA",null,"USO.NO.AUTORIZADO.DEL.EQUIPO"]
[null,null,null,"  ",null,null,null,"IMPULSOS.ELECTROMAGNÉTICOS",null,null,null,"Susceptibilidad a las variaciones de voltaje",null,"Conexión de red pública sin protección"]
[null,null,null,"  ",null,null,null,"HURTO.DE.EQUIPO",null,"FALLA.EN.EL.SISTEMA.DE.AIRE.ACONDICIONADO",null,"Ausencia de un sistema de alimentación ininterrumpida",null,"Ausencia de mecanismos de autenticación para conexiones no autorizadas"]
[null,null,null,"  ",null,null,null,"MANIPULACIÓN.DE.HARDWARE",null,"Ausencia de un sistema de respaldo de aire acondicionado",null,"Red eléctrica inestable",null,"Ausencia de políticas para el uso correcto de los medios de telecomunicación y mensajería"]
[null,null,null,"   ",null,null,null,"MANIPULACIÓN.DE.SOFTWARE",null,"Ausencia de sistema de alerta por deficiencias de aclimatación"]
[null,null,"     ",null,null,null,null,"FALLA.DEL.EQUIPO",null,null,null,"FALLA.EN.EQUIPOS.DE.TELECOMUNICACIONES",null,"CORRUPCIÓN.DE.DATOS"]
[null,null,"     ",null,null,null,null,"MAL.FUNCIONAMIENTO.DEL.EQUIPO",null,"RADIACIÓN.ELECTROMAGNÉTICA",null,"Conexión deficiente de los cables",null,"Utilización de datos errados en el sistema"]
[null,null,"     ",null,null,null,null,"SATURACIÓN.DEL.SISTEMA.DE.INFORMACIÓN",null,"Sensibilidad a la radiación electromagnética",null,"Punto único de falla",null,"Ausencia de un seguimiento formal para el control de la documentación"]
[null,null,null,"TRATAMIENTO","PERIODICIDAD ",null,null,"MAL.FUNCIONAMIENTO.DEL.SOFTWARE",null,"Ausencia de planes de continuidad",null,"Ausencia de acuerdos de nivel de servicios o insuficiencia de los mismos",null,"Ausencia de respaldo de información"]
[null,null,null,"Evitar / Transferir","Seleccione",null,null,"INCUMPLIMIENTO.EN.EL.MANTENIMIENTO.DEL.SISTEMA.DE.INFORMACIÓN"]
[null,null,null,"Reducir / Transferir","Cuando se requiera",null,null,"USO.NO.AUTORIZADO.DEL.EQUIPO",null,"RADIACIÓN.TÉRMICA",null,"IMPULSOS.ELECTROMAGNÉTICOS"]
[null,null,null,"Asumir","Diaria","SI",null,"CORRUPCIÓN.DE.DATOS",null,"Sensibilidad a la radiación térmica",null,"Sensibilidad a los impulsos electromagnéticos",null,"ERROR.EN.USO"]
[null,null,null,null,"Semanal","NO",null,"ERROR.EN.USO",null,"Ausencia de planes de continuidad",null,"Ausencia de planes de continuidad",null,"Ausencia de un eficiente control de cambios de configuración"]
[null,null,null,"MONITOREO","Mensual",null,null,"NEGACIÓN.DE.ACCIONES",null,null,null,null,null,"Configuración incorrecta de parámetros"]
[null,null,null,"Monitoreo permanente y se deja registro mensual ","Bimensual",null,null,"INCUMPLIMIENTO.DE.LA.DISPONIBILIDAD.DEL.PERSONAL",null,"HURTO.DE.EQUIPO",null,"MANIPULACIÓN.DE.HARDWARE",null,"Entrenamiento insuficiente en seguridad"]
[null,null,null,null,"Trimestral",null,null,"FUGA.DE.INFORMACIÓN",null,"Almacenamiento sin protección",null,"Ausencia de control en el acceso a los recursos de hardware",null,"Falta de conciencia de seguridad"]
[null,null,null,null,"Cuatrimestral",null,null,"INFECCIÓN.POR.MALWARE",null,"Ausencia de protección física de edificación, puertas o ventanas",null,null,null,"Ausencia de procedimientos para el manejo de información clasificada"]
[null,null,null,null,"Semestral",null,null,"No_Aplica",null,"Trabajo no supervisado del personal externo o de limpieza",null,"MANIPULACIÓN.DE.SOFTWARE"]
[null,null,null,"Cargos Responsables","Anual",null,null,null,null,"Ausencia de control de los activos que  se encuentran fuera delas instalaciones",null,"Ausencia o insuficiencia de pruebas de software",null,"NEGACIÓN.DE.ACCIONES"]
[null,null,null,"Seleccione",null,null,null,null,null,null,null,"Ausencia de copias de respaldo",null,"Ausencia de pruebas de envío y recepción de mensajes"]
[null,"EVALUACIÓN IMPACTO (PREGUNTAS)",null,"Jefe de Oficina",null,null,null,"No_Aplica",null,"FALLA.DEL.EQUIPO",null,null,null,"Ausencia de mecanismos de autenticación para conexiones no autorizadas"]
[null,"SI",null,"Director",null,null,null,"No_Aplica",null,"Ausencia de planes de continuidad",null,"MAL.FUNCIONAMIENTO.DEL.EQUIPO",null,"Ausencia de asignación adecuada de responsabilidades en la seguridad de la información"]
[null,"NO",null,"Subdirector",null,null,null,null,null,"Ausencia de equipo de respaldo",null,"Ausencia de equipo de respaldo"]
[null,"NO APLICA",null,"Coordinador",null,null,null,null,null,"Ausencia de acuerdos de nivel de servicios o insuficiencia de los mismos",null,"Ausencia de acuerdos de nivel de servicios o insuficiencia de los mismos",null,"INCUMPLIMIENTO.DE.LA.DISPONIBILIDAD.DEL.PERSONAL"]
[null,null,null,"Asesor",null,null,null,null,null,null,null,null,null,"Falta de personal"]
[null,null,null,"Profesional Especializado",null,null,null,null,null,null,null,"FUGA.DE.INFORMACIÓN"]
[null,null,null,"Profesional designado",null,null,null,null,null,null,null,"Falta de clasificación de la información",null,"INFECCIÓN.POR.MALWARE"]
[null,null,null,"Secretario Ejecutivo",null,null,null,null,null,null,null,"Clasificación inadecuada de la información",null,"Ausencia o falta de actualización de software antimalware"]
[null,null,null,"Técnico Administrativo",null,null,null,null,null,null,null,"Falta o Ausencia de actualizaciones en los sistemas"]
[null,null,null,"Contratista",null,null,null,null,null,null,null,"Ausencia o inadecuada segmentación de red"]
[null,null,null,null,null,null,null,null,null,null,null,"Ausencia de elementos de control para prevenir la fuga de información"]

{"sheet":"Hoja2","index":6,"n_rows":0,"n_cols":0,"rows_kept":0,"cut":false,"hidden":true,"merged":[]}

{"sheet":"ACTIVOS DE INFORMACIÓN","index":7,"n_rows":455,"n_cols":23,"rows_kept":455,"cut":false,"hidden":false,"merged":[]}
["PROCESO","DEPENDENCIA RESPONSABLE DE LA PRODUCCIÓN DE LA INFORMACIÓN","DEPENDENCIA RESPONSABLE DE LA CUSTODIA Y ACCESO A LA INFORMACIÓN","NOMBRE O TÍTULO DE LA CATEGORIA DE LA INFORMACIÓN  (SERIE)","NOMBRE O TÍTULO DE LA INFORMACIÓN","DESCRIPCIÓN DEL CONTENIDO DE LA  CATEGORIA DE LA INFORMACIÓN","IDIOMA","MEDIO DE CONSERVACIÓN Y/O SOPORTE","FORMATO","ESTADO DE LA INFORMACIÓN","MODO DE CONSULTA","CONFIDENCIALIDAD","INTEGRIDAD","DISPONIBILIDAD","FECHA DE GENERACIÓN DE LA INFORMACIÓN","FRECUENCIA DE LA ACTUALIZACIÓN","LUGAR DE CONSULTA","OBJETIVO LEGITIMO DE LA EXCEPCIÓN","FUNDAMENTO CONSTITUCIONAL O LEGAL","FUNDAMENTO JURIDICO DE LA EXCEPCIÓN","EXCEPCIÓN TOTAL O PARCIAL","FECHA DE LA CALIFICACIÓN","PLAZO DE LA CLASIFICACIÓN O RESERVA"]
["Administración de Recursos y Seguridad","División de Seguridad","Oficina de Planeación","Informe ","Informe Cualitativo Trimestral","Se refiere al Informe de las actividades desarroolada por la División de Seguridad, en desarrollo de sus 3 componentes del Sistema de Gestión de Calidad (Estudio de Seguridad, Protección a Personas y Seguridad Instalaciones). De igual forma se incluye información relacionada a respuesta a derechos de peticiones, reuniones de coordinación y capacitación entre otros temas. ","Español","Electrónico","Documento pdf","Disponible para Consulta","Strategos"]
["Administración de Recursos y Seguridad","División de Seguridad","Oficina de Planeación","Informe ","Informe Cualitativo Anual","Recopilación de de las actividades desarroolada por la División de Seguridad durante el año, en desarrollo de sus 3 componentes del Sistema de Gestión de Calidad (Estudio de Seguridad, Protección a Personas y Seguridad Instalaciones). De igual forma se incluye información relacionada a respuesta a derechos de peticiones, reuniones de coordinación y capacitación entre otros temas. ","Español","Electrónico","Documento pdf","Disponible para Consulta","Strategos http://strategos.procuraduria.gov.co/Strategos2018/explicaciones/gestionarExplicaciones.action?defaultLoader=true&objetoId=22&objetoKey=Organizacion&tipo=1","Información Pública","Alta","Alta","2021-01-01","Anual","http://strategos.procuraduria.gov.co/Strategos2018/explicaciones/gestionarExplicaciones.action?defaultLoader=true&objetoId=22&objetoKey=Organizacion&tipo=1"]
["Administración de recursos y seguridad","División Administrativa","SECRETARÍA GENERAL - División Administrativa.     ","INFORMES","Informes de gestión","Información relacionada con las actividades del Grupo.","Español","Electrónico / Papel","Documento de texto/ Hoja de Cálculo","Publicada","www.procuraduria.gov.co/portal/transparencia.page","Información Pública","Media","Alta"]
["Administración de recursos y seguridad","División Administrativa","SECRETARÍA GENERAL - División Administrativa.     ","CONCEPTOS","Conceptos Tecnicos","Estado tecnico-mecanico de los vehiculos","Español","Electrónico / Papel","Documento de texto (.doc, .txt, .rtf, .pdf)","Disponible para Consulta","Petición Verbal o Escrita","Información Pública","Media","Alta"]
["Administración de recursos y seguridad","División Administrativa","SECRETARÍA GENERAL - División Administrativa.     ","HISTORIAL DE VEHICULOS","Historial de Vehiculos","Documentos legales vigentes de los vehiculos","Español","Papel","Documento de texto (.doc, .txt, .rtf, .pdf)","Disponible para Consulta","Formato de Solicitud y/o Correo Electrónico","Información Pública","Alta","Alta"]
["Administración de recursos y seguridad","División Administrativa","SECRETARÍA GENERAL - División Administrativa.     ","PLANES Y PROGRAMAS","POA","Se consolida informacion como: servicios operativos de transporte, comisiones y mantenimientos preventivos y correctivos del parque automotor.","Español","Electrónico","Documento de texto (.doc, .txt, .rtf, .pdf)","Disponible para Consulta","Formato de Solicitud y/o Correo Electrónico","Información Pública","Alta","Alta"]
["Administración de recursos y seguridad","SECRETARÍA GENERAL - División Administrativa.     ","SECRETARÍA GENERAL - División Administrativa.     ","INFORMES","Informes de Gestión ","Recopilacion infomracion para stategos","Español","Electrónico / Papel","Documento de texto (.doc, .txt, .rtf, .pdf)","Disponible para Consulta","Petición dirigida  a División Administrativa","Información Pública","Media","Media","Según requerimiento","Por autonomía del responsable","Archivo Fisico /electrónico de la Oficina"]
["Administración de recursos y seguridad","SECRETARÍA GENERAL - División Administrativa.     ","SECRETARÍA GENERAL - División Administrativa.     ","PLANES Y PROGRAMAS","Plan Anual de Adquisiciones ","Es la información correspondiente a la adquisición de bienes y servicios dentro de los procesos de contratación de entidad los cuales responden a vigencia anual. El plan anual de adquisiciones contiene la siguiente información: Objeto del contrato, fecha estimada de contratación, duración del contrato, modalidad de contratación, fuente de recursos"]
["Administración de recursos y seguridad","SECRETARÍA GENERAL - División Administrativa.     ","SECRETARÍA GENERAL - División Administrativa.     ","PLANES Y PROGRAMAS","Plan operativo ","Es la información que esta relacionada con metas e indicadores  de la gestión de la division administrativa que son actualizados de manera mensual, trimestral y semestral y consignados finalmente en Strategos por la oficina de Planeación. ","Español","Electrónico / Papel","Documento de texto (.doc, .txt, .rtf, .pdf)","Disponible para Consulta","www.procuraduria.gov.co/portal/transparencia.page","Información Pública","Media","Alta","2023-01-01","Anual","www.procuraduria.gov.co/portal/transparencia.page"]
["Administración de recursos y seguridad","SECRETARÍA GENERAL - División Administrativa.     ","SECRETARÍA GENERAL - División Administrativa.     ","DERECHOS DE PETICIÓN","Requerimientos de funcionarios","Requerimientos de funcionarios","Español","Electrónico / Papel","Documento de texto (.doc, .txt, .rtf, .pdf)","Disponible para Consulta","Petición dirigida  a División Administrativa","Información Pública","Media","Media","Según requerimiento","Por autonomía del responsable","SIGDEA"]
["Administración de Recursos y Seguridad","SECRETARÍA GENERAL - División Administrativa- Grupo Inmuebles    ","SECRETARÍA GENERAL - División Administrativa.     ","DERECHOS DE PETICIÓN","RESPUESTA DERECHOS DE PETICION RADICADOS  AL  GRUPO DE  INMUEBLES ","RESPUESTA DESRECHOS  DE  PETICION  GRUPO  DE  INMUEBLES","Español","Electrónico/papel","Documento de texto (.doc, .txt, .rtf, .pdf)","Disponible para Consulta","Petición dirigida  a División Administrativa","Información Pública","Alta","Media","2022-01-01","Por autonomía del responsable","Archivo Fisico de la Oficina"]
["Administración de Recursos y Seguridad","SECRETARÍA GENERAL - División Administrativa- Grupo Inmuebles    ","DESPACHO DEL PROCURADOR GENERAL- Oficina de Planeación","INFORMES","INFORME DE GESTION","ACTIVIDADES EJECUTADAS DUTANTE EL PERIODO","Español","Electrónico / Papel","Documento de texto (.doc, .txt, .rtf, .pdf)","Publicada","www.procuraduria.gov.co/portal/transparencia.page","Información Pública","Alta","Alta","2012-01-01","Anual","www.procuraduria.gov.co/portal/transparencia.page"]
["Administración de Recursos y Seguridad","SECRETARÍA GENERAL - División Administrativa- Grupo Inmuebles    ","SECRETARÍA GENERAL - División Administrativa.     ","TÍTULOS DE BIENES E INMUEBLES ","AMAZONAS - Leticia Carrera 8 No.11 -106/114","PLANOS - ESCRITURAS - CERTIFICADO  DE  LIBERTAD -AVALUO  COMERCIAL - ACTA DE ENTREGA DE INMUEBLE - LICENCIA DE  CONSTRUCCION POR CAD A DEPENDENCIA TERRITORIAL","Español","Papel","Documento de texto (.doc, .txt, .rtf, .pdf)","Disponible para Consulta","Petición dirigida  a División Administrativa","Información Pública","Alta","Media","2012-01-01","Por autonomía del responsable","Archivo Fisico de la Oficina"]
["Administración de Recursos y Seguridad","SECRETARÍA GENERAL - División Administrativa- Grupo Inmuebles    ","SECRETARÍA GENERAL - División Administrativa.     ","CONCEPTOS","CONCEPTOS TECNICO ARRENDAMIENTO","CONCEPTO  TECNICO  PARA TOMAR EN  ARRIEDO  SEDES PARA EL FUNCIONAMIENTO DE LA  PROCURADURIA ","Español","Papel","Documento de texto (.doc, .txt, .rtf, .pdf)","Disponible para Consulta","Petición dirigida a la Oficina Juridica","Información Pública","Alta","Media","2012-01-01","Por autonomía del responsable","Archivo Fisico de la Oficina"]
["Administración de Recursos y Seguridad","SECRETARÍA GENERAL - División Administrativa- Grupo Inmuebles    ","SECRETARÍA GENERAL - División Administrativa.     ","CONCEPTOS","CONCEPTOS TECNICO COMODATO","CONCEPTO  TECNICO  PARA  RECIBIR EN  COMODATO","Español","Papel","Documento de texto (.doc, .txt, .rtf, .pdf)","Disponible para Consulta","Petición dirigida a la Oficina Juridica","Información Pública","Alta","Media","2012-01-01","Por autonomía del responsable","Archivo Fisico de la Oficina"]
["Administración de Recursos y Seguridad","SECRETARÍA GENERAL - División Administrativa- Grupo Inmuebles    ","SECRETARÍA GENERAL - División Administrativa.     ","PLANES Y  PROGRAMAS ","PLAN OPERATIVO ANUAL  (POA)","PLAN OPERATIVO ANUAL ","Español","Electrónico / Papel","Hoja de Cálculo (.xls, .xlt, .csv)","Disponible para Consulta","www.procuraduria.gov.co/portal/transparencia.page","Información Pública","Alta","Alta","2012-01-01","Por autonomía del responsable","www.procuraduria.gov.co/portal/transparencia.page"]
["Administración de recursos y seguridad","SECRETARÍA GENERAL - División Administrativa- grupo Muebles y servicios administrataivos   ","SECRETARÍA GENERAL - División Administrativa.     ","CONCEPTOS","Conceptos Tecnicos","Estado tecnico-mecanico de los vehiculos","Español","Electrónico / Papel","Documento de texto (.doc, .txt, .rtf, .pdf)","Disponible para Consulta","Petición Verbal o Escrita","Información Pública","Media","Alta","2022-10-01","Por autonomía del responsable","Oficina Productora de la información"]
["Administración de recursos y seguridad","SECRETARÍA GENERAL - División Administrativa- grupo Muebles y servicios administrataivos   ","SECRETARÍA GENERAL - División Administrativa.     ","HISTORIAL DE VEHICULOS","Historial de Vehiculos","Documentos legales vigentes de los vehiculos","Español","Papel","Documento de texto (.doc, .txt, .rtf, .pdf)","Disponible para Consulta","Formato de Solicitud y/o Correo Electrónico","Información Pública","Alta","Alta",2022,"Por autonomía del responsable","Oficina Productora de la información"]
["Administración de recursos y seguridad","SECRETARÍA GENERAL - División Administrativa- grupo Muebles y servicios administrataivos   ","SECRETARÍA GENERAL - División Administrativa.     ","INFORMES","Informes de gestión","Información relacionada con las actividades del Grupo.","Español","Electrónico / Papel","Documento de texto/ Hoja de Cálculo","Publicada","www.procuraduria.gov.co/portal/transparencia.page","Información Pública","Media","Alta",2022,"Por acuerdo entre las Partes","www.procuraduria.gov.co/portal/transparencia.page"]
["Administración de recursos y seguridad","SECRETARÍA GENERAL - División Administrativa- grupo Muebles y servicios administrataivos   ","SECRETARÍA GENERAL - División Administrativa.     ","PLANES Y PROGRAMAS","POA","Se consolida informacion como: servicios operativos de transporte, comisiones y mantenimientos preventivos y correctivos del parque automotor.","Español","Electrónico","Documento de texto (.doc, .txt, .rtf, .pdf)","Disponible para Consulta","Formato de Solicitud y/o Correo Electrónico","Información Pública","Alta","Alta",2022,"Mensual","STRATEGOS"]
["Administración de recursos y seguridad","SECRETARÍA GENERAL - División Administrativa- Grupo Almacen e Inventarios   ","SECRETARÍA GENERAL - División Administrativa-Grupo almacen e inventarios","BOLETIN DIARIO DE ALMACÉN","Consolidado de Movimientos diarios.","Consolidado de documentación correspondiente a los movimientos realizados en un asiento diario, se compone de Listado de Comprobantes, Cierre de Asiento diarios y comprobantes con sus respectivos soportes.","Español","Electrónico /Papel","Documento de texto (.doc, .txt, .rtf, .pdf)","Disponible para Consulta","Petición dirigida  a División Administrativa","Información Pública","Media","Media"," Enero a Diciembre","Por autonomía del responsable","Electrónico /Papel"]
["Administración de recursos y seguridad","SECRETARÍA GENERAL - División Administrativa- Grupo Almacen e Inventarios   ","SECRETARÍA GENERAL - División Administrativa-Grupo almacen e inventarios  ","INVENTARIOS","Reporte Verificación Fisica de Inventarios.","Control y seguimiento de los elementos en Bodega,  asignados a los funcionarios y novedades administrativas a nivel nacional."]
["Administración de recursos y seguridad","SECRETARÍA GENERAL - División Administrativa- Grupo Almacen e Inventarios   ","SECRETARÍA GENERAL - División Administrativa-Grupo almacen e inventarios    ","DERECHOS DE PETICIÓN","Oficios de Solicitud y Oficios de Respuesta","Son oficios en su mayoria de clientes internos ó funcionarios realizando diversidad de solicitudes administrativas. ","Español","Electrónico / Papel","Documento de texto (.doc, .txt, .rtf, .pdf)","Disponible para Consulta","Petición dirigida  a División Administrativa","Información Pública","Media","Media"," Enero a Diciembre","Por autonomía del responsable","SIGDEA / Papel"]
["Administración de recursos y seguridad","División  Administrativa ","SECRETARÍA GENERAL - División Administrativa.     ","HISTORIAL DE VEHICULOS","Historial de Vehiculos","Documentos legales vigentes de los vehiculos","Español","Papel","Documento de texto (.doc, .txt, .rtf, .pdf)","Disponible para Consulta","Formato de Solicitud y/o Correo Electrónico","Información Pública","Alta","Alta"]
["Administración de recursos y seguridad","División  Administrativa ","SECRETARÍA GENERAL - División Administrativa.     ","INFORMES","Informes de gestión","Información relacionada con las actividades del Grupo.","Español","Electrónico / Papel","Documento de texto/ Hoja de Cálculo","Publicada","www.procuraduria.gov.co/portal/transparencia.page","Información Pública","Media","Alta"]
["Administración de recursos y seguridad","División  Administrativa ","SECRETARÍA GENERAL - División Administrativa.     ","CONCEPTOS","Conceptos Tecnicos","Estado tecnico-mecanico de los vehiculos","Español","Electrónico / Papel","Documento de texto (.doc, .txt, .rtf, .pdf)","Disponible para Consulta","Petición Verbal o Escrita","Información Pública","Media","Alta"]
["Administración de recursos y seguridad","División  Administrativa ","SECRETARÍA GENERAL - División Administrativa.     ","PLANES Y PROGRAMAS","POA","Se consolida informacion como: servicios operativos de transporte, comisiones y mantenimientos preventivos y correctivos del parque automotor.","Español","Electrónico","Documento de texto (.doc, .txt, .rtf, .pdf)","Disponible para Consulta","Formato de Solicitud y/o Correo Electrónico","Información Pública","Alta","Alta"]
["Adquisición de bienes y servicios","DESPACHO DEL VICEPROCURADOR GENERAL","DESPACHO DEL PROCURADOR GENERAL","SIN CLASIFICAR","Conjunto de datos abiertos - Procesos de contratación de la Entidad","Conjunto de datos disupuestos por la PGN para consulta de los ciudadanos y otras entidades","Español","Electrónico","Hoja de Cálculo (.xls, .xlt, .csv)","Publicada","https://www.procuraduria.gov.co/portal/datos_abiertos.page","Información Pública","Media","Alta","2022-01-01","Diaria","https://www.datos.gov.co/Organismos-de-Control/Procesos-de-Contrataci-n-de-la-PGN/u25v-6uqm"]
["Adquisición de bienes y servicios","SECRETARÍA GENERAL","SECRETARIA GENERAL","DERECHOS DE PETICIÓN","Solicitudes de Información Externas"]
["Adquisición de bienes y servicios","SECRETARÍA GENERAL","SECRETARIA GENERAL","MANUALES","Manual de Contratación","Descripción de las modalidades de contratación aplicadas","Español","Electrónico / Papel","Documento de texto (.doc, .txt, .rtf, .pdf)","Publicada","www.procuraduria.gov.co/portal/transparencia.page","Información Pública","Alta","Alta",null,null,null,"N/A ","N/A ","N/A ","N/A ","N/A ","N/A "]
["Atención al ciudadano","DESPACHO DEL VICEPROCURADOR GENERAL-  División de registro y control de correspondencia (Actualmente División de Relacionamiento con el Ciudadano)","DESPACHO DEL VICEPROCURADOR GENERAL-  División de registro y control de correspondencia (Actualmente División de Relacionamiento con el Ciudadano)","DERECHOS DE PETICIÓN","DERECHOS DE PETICION - DRCC","Derechos de petición tramitados por la División de Registro y Control y Correspondencia (Actualmente División de Relacionamiento con el Ciudadano)","Español","Electrónico / Papel","Documento de Texto / Base de datos","Disponible para Consulta","Solicitud  Formal","Información Pública Clasificada","Media","Media",2010,"Diaria","Archivo Fisico / Sistema de Gestión Documental SIGDEA","Información exceptuada por daño de derechos a personas naturales o jurídicas","Art. 18 Ley 1712 de 2014","Derecho a la intimidad, derecho a la salud o seguridad"]
["Atención al ciudadano","Procuraduría Delegada para Asuntos Civiles","Procuraduría Delegada para Asuntos Civiles","DERECHOS DE PETICIÓN","RESPUESTAS A PETICIONARIOS","COMUNICACIONES DE INTERVENCIÓN Y DE RESULTADOS DE VISITA A EXPEDIENTE ","Español","Electrónico","Documento de texto (.doc, .txt, .rtf, .pdf)","Disponible para Consulta","Formato de Solicitud y/o Correo Electrónico","Información Pública","Alta","Alta",2022,"Diaria","Archivo Fisico /electrónico de la Oficina"]
["Atención al ciudadano","División de registro y control de correspondencia","DESPACHO DEL VICEPROCURADOR GENERAL-  División de registro y control de correspondencia","SIN CLASIFICAR","Conjunto de datos abiertos - Datos de las PQRSDF de la Sede Electrónica","Conjunto de datos disupuestos por la PGN para consulta de los ciudadanos y otras entidades","Español","Electrónico","Hoja de Cálculo (.xls, .xlt, .csv)","Publicada","https://www.procuraduria.gov.co/portal/datos_abiertos.page","Información Pública","Media","Alta","2017-02-14","Diaria","https://www.datos.gov.co/Organismos-de-Control/Datos-abiertos-de-las-PQRSDF-de-la-Sede-Electr-nic/s226-fj9i"]
["Atención al ciudadano","División de registro y control de correspondencia","DESPACHO DEL VICEPROCURADOR GENERAL-  División de registro y control de correspondencia","División de registro y control de correspondencia","Conjunto de datos abiertos - Datos de las PQRSDF de la Sede Electrónica","Conjunto de datos disupuestos por la PGN para consulta de los ciudadanos y otras entidades","Español","Electrónico","Hoja de Cálculo (.xls, .xlt, .csv)","Publicada","https://www.procuraduria.gov.co/portal/datos_abiertos.page","Información Pública","Media","Alta","2022-01-01","Diaria","https://www.datos.gov.co/Organismos-de-Control/Datos-abiertos-de-las-PQRSDF-de-la-Sede-Electr-nic/s226-fj9i"]
["Atención al ciudadano","DESPACHO DEL VICEPROCURADOR GENERAL-  División de registro y control de correspondencia (Actualmente División de Relacionamiento con el Ciudadano)","DESPACHO DEL VICEPROCURADOR GENERAL-  División de registro y control de correspondencia (Actualmente División de Relacionamiento con el Ciudadano)","INFORMES","INFORMES DE GESTIÓN ANUAL - DRCC","Informe anual de gestión de la División de Registro y Control y Correspondencia (Actualmente División de Relacionamiento con el Ciudadano)","Español","Electrónico / Papel","Documento de Texto / Base de datos","Disponible para Consulta","Solicitud  Formal","Información Pública","Media","Media",2010,"Mensual","Archivo Fisico","N.A.","N.A.","N.A.","N.A.","N.A.","N.A."]
["Atención al ciudadano","DESPACHO DEL VICEPROCURADOR GENERAL-  División de registro y control de correspondencia (Actualmente División de Relacionamiento con el Ciudadano)","DESPACHO DEL PROCURADOR GENERAL- Oficina de Planeación","PLANES Y PROGRAMAS","PLAN OPERATIVO ANUAL (POA) - DRCC","Registro de información en sistema Strategos en cumplimiento del Plan Operativo Anual (POA) de la División de Registro y Control y Correspondencia (Actualmente División de Relacionamiento con el Ciudadano)","Español","Electrónico / Papel","Documento de Texto / Base de datos","Disponible para Consulta","Solicitud  Formal","Información Pública","Alta","Media",2010,"Mensual","Archivo Fisico / Sistema Strategos","N.A.","N.A.","N.A.","N.A.","N.A.","N.A."]
["Atención al ciudadano","Procuraduría Delegada para la Casación Penal","Procuraduría Delegada de Intervención 1. Primera para la Casación Penal","DERECHOS DE PETICIÓN","Derechos de petición","Respuesta a Derechos de Petición","Español","Electrónico / Papel","Documento de texto (.doc, .txt, .rtf, .pdf)","Disponible para Consulta","Petición verbal o escrtia","Información Pública","Alta","Alta","octubre de 2022","Diaria","Archivo Fisico /electrónico de la Oficina"]
["Comunicaciones","TWITER y FACEBOOK","GRUPO DE TRABAJO UNIDAD DE GESTION DE INFORMACION E INTELIGENCIA - UGII ","TWITER y FACEBOOK","Modelo de analítico - Redes Sociales","Monitoreo periódico de las redes sociales de los temas y cuentas seleccionadas, enriquecido con análisis de sentimiento, extracción de palabras claves y estadísticas agregadas de las publicaciones analizadas.","Español","Electrónico","Documento de Texto / Base de datos","Disponible para Consulta","Solicitud con radicación formal","Información Pública","Media","Media","2020-06-09","Diaria","Redes Sociales - Introducción (awa-pgnanalitica.azurewebsites.net)",null,null,null,null,"2020-12-31"]
["Conciliación","Procuraduría Delegada para  Conciliación Administrativa","DESPACHO DEL VICEPROCURADOR GENERAL y Procuraduría Delegada para  Conciliación Administrativa","SIN CLASIFICAR","Conjunto de datos abiertos - Proceso de Intervención y Conciliación Extrajudicial Administrativa","Conjunto de datos disupuestos por la PGN para consulta de los ciudadanos y otras entidades","Español","Electrónico","Hoja de Cálculo (.xls, .xlt, .csv)","Publicada","https://www.procuraduria.gov.co/portal/datos_abiertos.page","Información Pública","Media","Alta","2022-01-01","Mensual","https://www.datos.gov.co/Justicia-y-Derecho/Proceso-de-Intervenci-n-y-Conciliaci-n-Extrajudici/tenr-dreq"]
["Conciliación","Procuraduría delegada Preventivas y de control de gestion_2","Procuraduría Delegada para la Investigación y juzgamiento Penal","CONCILIACIONES","Audiencias de conciliacion sobre denuncia","Audiencia en la cual se puede llegar a acuerdo antes de continuar con el proceso","Español","Electrónico / Papel","Documento de texto (.doc, .txt, .rtf, .pdf)","Disponible para Consulta","Formato de Solicitud y/o Correo Electrónico","Información Pública Reservada","Alta","Media",null,null,null,"Ley 1712 de 2014. Art. 19: Información exceptuada por daño a los intereses públicos. Es toda aquella información pública reservada, cuyo acceso podrá ser rechazado o denegado de manera motivada y por escrito en las siguientes circunstancias, siempre que dicho acceso estuviere expresamente prohibido por una norma legal o constitucional:"]
["Conciliación","Procuraduría Delegada para Conciliación","Procuraduría Delegada para Conciliación","PLANES Y PROGRAMAS","POAS anuales, proyectos, Acuerdos de desempeño de los PJ.","Definición de metas anuales y proyectos estratégicos","Español","Electrónico ","Documento de texto (.doc, .txt, .rtf, .pdf)","Publicada","Solicitud Formal",null,"Anual","Media"]
["Conciliación","Procuraduría delegada de Intervencion_3","Procuraduría Delegada para la Investigación y juzgamiento Penal","CONCILIACIONES","Audiencias de conciliacion sobre denuncia","Audiencia en la cual se puede llegar a acuerdo antes de continuar con el proceso","Español","Electrónico / Papel","Documento de texto (.doc, .txt, .rtf, .pdf)","Disponible para Consulta","Formato de Solicitud y/o Correo Electrónico","Información Pública Reservada","Alta","Media",null,null,null,"Ley 1712 de 2014. Art. 19: Información exceptuada por daño a los intereses públicos. Es toda aquella información pública reservada, cuyo acceso podrá ser rechazado o denegado de manera motivada y por escrito en las siguientes circunstancias, siempre que dicho acceso estuviere expresamente prohibido por una norma legal o constitucional:"]
["Conocimiento e Innovación","DESPACHO DEL VICEPROCURADOR GENERAL","Procuraduría Delegada  para la Defensa  del Patrimonio Público, la Transparencia y la Integridad.","SIN CLASIFICAR","Conjunto de datos abiertos - ITA (Índice de Transparencia y Acceso a la Información)","Conjunto de datos disupuestos por la PGN para consulta de los ciudadanos y otras entidades","Español","Electrónico","Hoja de Cálculo (.xls, .xlt, .csv)","Publicada","https://www.procuraduria.gov.co/portal/datos_abiertos.page","Información Pública","Media","Alta","2022-01-01","Anual","https://www.datos.gov.co/Organismos-de-Control/ITA-ndice-de-Transparencia-y-Acceso-a-la-Informaci/im79-n45d"]
["Conocimiento e Innovación","DESPACHO DEL VICEPROCURADOR GENERAL","Procuraduría Delegada  para la Defensa  del Patrimonio Público, la Transparencia y la Integridad.","SIN CLASIFICAR","Conjunto de datos abiertos - INTEGRA (Índice integral de legalidad)","Conjunto de datos disupuestos por la PGN para consulta de los ciudadanos y otras entidades","Español","Electrónico","Hoja de Cálculo (.xls, .xlt, .csv)","Publicada","https://www.procuraduria.gov.co/portal/datos_abiertos.page","Información Pública","Media","Alta","2022-01-01","Anual","https://www.datos.gov.co/Funci-n-p-blica/INTEGRA-ndice-Integral-de-Legalidad-/i594-3uqz"]
["Conocimiento e Innovación","DESPACHO DEL VICEPROCURADOR GENERAL","DESPACHO DEL VICEPROCURADOR GENERAL-Grupo SIRI","SIN CLASIFICAR","Conjunto de datos abiertos - Antecedentes de SIRI","Conjunto de datos disupuestos por la PGN para consulta de los ciudadanos y otras entidades","Español","Electrónico","Hoja de Cálculo (.xls, .xlt, .csv)","Publicada","https://www.procuraduria.gov.co/portal/datos_abiertos.page","Información Pública","Media","Alta","2022-01-01","Diaria","https://www.datos.gov.co/Funci-n-p-blica/Antecedentes-de-SIRI/iaeu-rcn6"]
["Conocimiento e Innovación","JURISDICCIÓN ESPECIAL PARA PAZ","GRUPO DE TRABAJO UNIDAD DE GESTION DE INFORMACION E INTELIGENCIA - UGII ","SIN CLASIFICAR","Modelo de analítico - Minería de texto de documentos de la JEP","Implementación de un modelo descriptivo y que ayuda a los funcionarios de la Procuraduría a analizar los macroprocesos de la JEP para lo cual pone a disposición un proceso de minería de texto de los documentos que permite reconocer el texto, identificar entidades, clasificar los documentos según temáticas y realizar búsquedas personalizadas.","Español","Electrónico","Documento de Texto / Base de datos","Disponible para Consulta","Solicitud con radicación formal","Información Pública Clasificada","Media","Media","2020-06-05","Por demanda","Minería de texto JEP - Introducción (awa-pgnanalitica.azurewebsites.net)","Ley 1712 de 2014, Artículo 19, literales e. El debido proceso y la igualdad de las partes en los procesos judiciales y f. La administración efectiva de la justicia"]
["Conocimiento e Innovación","ENTIDADES PÚBLICAS (A través deSECOP)","GRUPO DE TRABAJO UNIDAD DE GESTION DE INFORMACION E INTELIGENCIA - UGII ","SIN CLASIFICAR","Modelo analítico - Riesgos en Contratación","El modelo de contratación tiene como objetivo identificar posibles patrones o situaciones de riesgo en los procesos de contratación que realizan las entidades públicas a nivel nacional y territorial, mediante el uso de 26 indicadores y 4 índices, propuestos en la Guía preventiva para la contratación y FEDESARROLLO (estudio elaborado por el IMCO).​","Español","Electrónico","Documento de Texto / Base de datos","Disponible para Consulta","Solicitud con radicación formal","Información Pública","Media","Media","2020-06-30","Por autonomía del responsable","Riesgos Contratación - Introducción (awa-pgnanalitica.azurewebsites.net)",null,null,null,null,"2020-12-31"]
["Conocimiento e Innovación","CONSEJO NACIONAL ELECTORAL, GRUPO SIRI, DEPARTAMENTO DE LA FUNCIÓN PÚBLICA, ENTIDADES PÚBLICAS (A través deSECOP)","GRUPO DE TRABAJO UNIDAD DE GESTION DE INFORMACION E INTELIGENCIA - UGII L","CONSEJO NACIONAL ELECTORAL, GRUPO SIRI, DEPARTAMENTO DE LA FUNCIÓN PÚBLICA, ENTIDADES PÚBLICAS (A través deSECOP)","Modelo analitico Electoral","Implementación de un modelo descriptivo que permita el análisis de los resultados de las elecciones y que sirva también de soporte numérico para la procuraduría Séptima Delegada ante el Consejo de Estado, en cuanto a las demandas de nulidad  que por los resultados de votaciones se presentan.​","Español","Electrónico","Documento de Texto / Base de datos","Disponible para Consulta","Solicitud con radicación formal","Información Pública","Media","Media","2020-12-01","Por autonomía del responsable","Modelo Proceso Electoral - Introducción (awa-pgnanalitica.azurewebsites.net)"]
["Conocimiento e Innovación","DEPENDENCIAS DE LA PROCURADURÍA GENERAL DE LA NACIÓN (A través del SIM)","GRUPO DE TRABAJO UNIDAD DE GESTION DE INFORMACION E INTELIGENCIA - UGII ","SIN CLASIFICAR","Modelo analitico Buscador SIM","Identifica casos particulares dentro de las indagaciones realizadas por parte de los funcionarios de la PGN. Visualiza un reporte de clasificación que caracteriza la información con base en 30 temáticas definidas por la PGN, su base de datos fuentes es el Sistema de Información Misional-SIM","Español","Electrónico","Documento de Texto / Base de datos","Disponible para Consulta","Solicitud con radicación formal","Información Pública Reservada","Media","Media","2020-08-18","Diaria","Clasificación y Búsqueda Procesos SIM - Introducción (awa-pgnanalitica.azurewebsites.net)","Ley 1712 de 2014, Artículo 19, literal d) La prevención, investigación y persecución de los delitos y las faltas disciplinarias, mientras que no se haga efectiva la medida de aseguramiento o se formule pliego de cargos, según el caso"]
["Conocimiento e Innovación","DIVISIÓN DE REGISTRO DE SANCIONES Y CAUSAS DE INHABILIDAD","DIVISIÓN DE REGISTRO DE SANCIONES Y CAUSAS DE INHABILIDAD","REGISTRO DE SANCIONES E INHABILIDADES DISCIPLINARIOS","FORMULARIO DE REGISTRO DE SANCIONES DISCIPLINARIAS","REGISTRO DE SANCIONES E INHABILIDADES REPORTADAS A LA PGN POR AUTORIDADES DISCIPLINARIAS EN EL SISTEMA SIRI","ESPAÑOL","FÍSICO - DIGITAL","WORD - EXCEL - PDF","PUBLICADA","https://www.datos.gov.co/Funci-n-p-blica/Antecedentes-de-SIRI/iaeu-rcn6"]
["Conocimiento e Innovación","DESPACHO DEL VICEPROCURADOR GENERAL","Procuraduría Delegada para la  Defensa de los derechos de la Infancia, la Adolescencia, la Familia y las Mujeres","SIN CLASIFICAR","Modelo Analítico de Garantía de Derechos de Infancia Adolescencia y Juventud","El modelo permite centralizar y analizar los datos reportados por las entidades territoriales, relacionados con la vigilancia superior a la gestión pública frente a la garantía de los derechos de los niños, niñas, adolescentes y jóvenes, en el marco del proceso de rendición pública de cuentas territorial.","Español","Electrónico","Documento de Texto / Base de datos","Disponible para Consulta","Solicitud con radicación formal","No Clasificada","Media","Media"]
["Control Interno Disciplinario","Veeduria","Veeduria","PROCESOS DISCIPLINARIOS","Proceso  disciplinario contra servidores de la Procuraduria","Durante la etapa procesal de Investigación Disciplinaria, solamente están legitimados para acceder a la información los Sujetos Procesales.","Español","Papel","Documento de Texto / Base de datos","Disponible para Consulta"," Solicitud Formal y/o Correo Electrónico","Información Pública Reservada","Alta","No Clasificada","2016-11-21","Por autonomía del responsable","Dependencia responsable de la custodia de la información"," Artículo 18 - 19  Literal d) de la Ley 1712 de 2014","Ley 1952 de 2019 Artículo 115 ",null,"Total","2016-11-21"]
["Direccionamiento y Planeación Institucional","DESPACHO DEL PROCURADOR -Grupo de Cooperación Internacional","OFICINA DE PLANEACIÓN","PLANES Y PROGRAMAS","PLAN OPERATIVO ANUAL ( POA)","Actividades que adelanta el GCI en desarrollo de las funciones asignadas legal y reglamentariamente.","ESPAÑOL","ELECTRÓNICO","Base de Datos (.mdb, .sql)","Disponible para Consulta"," Solicitud Formal y/o Correo Electrónico","Información Pública","Alta","Alta"]
["Direccionamiento y Planeación Institucional","DESPACHO DEL PROCURADOR -Grupo de Cooperación Internacional","OFICINA DE PLANEACIÓN","PLANES Y PROGRAMAS","INFORMES DE GESTIÓN","Informes cualitativos que contendrá los resultados, logros, impacto y avance de la gestion del GCI, previo análisis realizado con los funcionarios de la dependencia, de acuerdo al instructivo elaborado por la Oficina de Planeación para tal fin. Estos informes servirán de insumo para la elaboración del Informe de Gestión que entrega anualmente el Procurador (a) General de la Nación y el informe al Congreso de ia República y a la Contraloría General de la República.","ESPAÑOL","ELECTRÓNICO","DOCUMENTO DE TEXTO","Disponible para Consulta"," Solicitud Formal y/o Correo Electrónico","Información Pública","Alta","Alta"]
["Direccionamiento y Planeación Institucional","DESPACHO DEL PROCURADOR -Grupo de Cooperación Internacional","Secretaría General- Grupo de Contratación","PROYECTOS","INSTRUMENTOS DE COOPERACIÓN - CELEBRADOS","Todo acuerdo de voluntades que se suscriba entre la PGN y organismos y agencias de cooperación internacional, gobiernos extranjeros y sus representaciones en el país e instituciones extranjeras de naturaleza pública y/o privadas, con el objetivo de coordinar, cooperar o colaborar en la realización de acciones de interés común a las Partes tales como: los convenios, acuerdos, cartas de entendimiento, memorandos de entendimiento, cartas locales de entendimiento, o similares, independientemente de la denominación que adopten. ","ESPAÑOL ","ELECTRÓNICO","DOCUMENTO DE TEXTO","Disponible para Consulta"," Solicitud Formal y/o Correo Electrónico","Información Pública","Alta","Alta"]
["Direccionamiento y Planeación Institucional","DESPACHO DEL PROCURADOR -Grupo de Cooperación Internacional","DESPACHO DEL PROCURADOR -Grupo de Cooperación Internacional","PROYECTOS","INSTRUMENTOS DE COOPERACIÓN - FORMALIZADOS","Son proyectos o iniciativas de cooperación internacional que no requieren suscripción entre la PGN y el cooperante.","ESPAÑOL ","ELECTRÓNICO","DOCUMENTO DE TEXTO","Disponible para Consulta"," Solicitud Formal y/o Correo Electrónico","Información Pública","Alta","Alta"]
["Direccionamiento y Planeación Institucional","DESPACHO DEL PROCURADOR -Grupo de Cooperación Internacional","Secretaría General- Grupo de Contratación","PROYECTOS","ESTUDIOS PREVIOS","Son aquellos análisis, documentos y trámites que debe adelantar la PGN antes de suscribir un instrumento de cooperación internacional.","ESPAÑOL","ELECTRÓNICO","DOCUMENTO DE TEXTO","Disponible para Consulta"," Solicitud Formal y/o Correo Electrónico","Información Pública","Alta","Alta"]
["Direccionamiento y Planeación Institucional","DESPACHO DEL PROCURADOR -Grupo de Cooperación Internacional","DESPACHO DEL PROCURADOR -Grupo de Cooperación Internacional","PROYECTOS","COMUNICACIONES","Correo electrónico institucional, SIGDEA,oficios remisorios.","ESPAÑOL","ELECTRÓNICO","DOCUMENTO DE TEXTO","Disponible para Consulta"," Solicitud Formal y/o Correo Electrónico","Información Pública","Alta","Alta"]
["Direccionamiento y Planeación Institucional","DESPACHO DEL PROCURADOR -Grupo de Cooperación Internacional","DESPACHO DEL PROCURADOR -Grupo de Cooperación Internacional","PROYECTOS","ACTAS","Documento que se constiituye como evidencia de reuniones del GCI, para la gestión, ejecución y seguimiento de los instrumentos de cooperación internacional.","ESPAÑOL","ELECTRÓNICO","DOCUMENTO DE TEXTO","Disponible para Consulta"," Solicitud Formal y/o Correo Electrónico","Información Pública","Alta","Alta"]
["Direccionamiento y Planeación Institucional","DESPACHO DEL PROCURADOR -Grupo de Cooperación Internacional","DESPACHO DEL PROCURADOR -Grupo de Cooperación Internacional","PROYECTOS","INFORMES DE SEGUIMIENTO","Informes de seguimiento que realiza el GCI a los instrumentos de cooperación internacional en ejecución. ","ESPAÑOL","ELECTRÓNICO","DOCUMENTO DE TEXTO","Disponible para Consulta"," Solicitud Formal y/o Correo Electrónico","Información Pública","Alta","Alta"]
["Direccionamiento y Planeación Institucional","Oficina de Planeación","Oficina de Planeación","Anteproyecto de Presupuesto","Registro de Anteproyecto","Se refiere a la información que se registra con relación a la solicitud del presupuesto de la entidad en cada vigencia","Español","Electrónico ","Documento de texto (.doc, .txt, .rtf, .pdf)","Disponible para Consulta","Petición dirigida a la Oficina de Planeación","Información Pública","Alta","Alta","Anual","Anual","Archivo Físico /electrónico de la Oficina"]
["Direccionamiento y Planeación Institucional","Oficina de Planeación","Oficina de Planeación","Anteproyecto de Presupuesto","Oficio de Solicitud Dependencias","Solicitud remitida a cada una de las dependencias para que expongan sus necesidades presupuestales","Español","Electrónico ","Documento de texto (.doc, .txt, .rtf, .pdf)","Disponible para Consulta","Petición dirigida a la Oficina de Planeación","Información Pública","Alta","Alta","Anual","Anual","Archivo Electrónico de la oficina"]
["Direccionamiento y Planeación Institucional","Oficina de Planeación","Oficina de Planeación","Anteproyecto de Presupuesto","Oficio de Respuesta","Oficio que remite cada dependencia con las necesidades presupuestales","Español","Electrónico ","Documento de texto (.doc, .txt, .rtf, .pdf)","Disponible para Consulta","Petición dirigida a la Oficina de Planeación","Información Pública","Alta","Alta","Anual","Anual","Archivo Electrónico de la oficina"]
["Direccionamiento y Planeación Institucional","Oficina de Planeación","Oficina de Planeación","Anteproyecto de Presupuesto","Anexos","Formatos que soportan la solicitud de presupuesto","Español","Electrónico ","Documento de texto (.doc, .txt, .rtf, .pdf)","Disponible para Consulta","Petición dirigida a la Oficina de Planeación","Información Pública","Alta","Alta","Anual","Anual","Archivo Electrónico de la oficina"]
["Direccionamiento y Planeación Institucional","Oficina de Planeación","Oficina de Planeación","Estudios ","Estudios de Planta de Personal","Informe que contiene el estudio con las necesidades y cargas de cada puesto de trabajo","Español","Electrónico ","Documento de texto (.doc, .txt, .rtf, .pdf)","Disponible para Consulta","Petición dirigida a la Oficina de Planeación","Información Pública","Alta","Alta","A solicitud","A solicitud","Archivo Electrónico de la oficina"]
["Direccionamiento y Planeación Institucional","Oficina de Planeación","Oficina de Planeación","Informes","Informes de Ejecución Presupuestal","Resumen de la ejecución del presupuesto asignado a la entidad","Español","Electrónico ","Documento de texto (.doc, .txt, .rtf, .pdf)","Disponible para Consulta","Petición dirigida a la Oficina de Planeación","Información Pública","Alta","Alta","Cada Trimestre","Cada Trimestre","Archivo Electrónico de la oficina"]
["Direccionamiento y Planeación Institucional","Oficina de Planeación","Oficina de Planeación","Informes de Gestión Anual","Informe ","Se describe el avance de la gestión de la entidad para cada anualidad","Español","Electrónico ","Documento de texto (.doc, .txt, .rtf, .pdf)","Disponible para Consulta","Petición dirigida a la Oficina de Planeación","Información Pública","Alta","Alta","Anual","Anual","Archivo Electrónico de la oficina"]
["Direccionamiento y Planeación Institucional","Oficina de Planeación","Oficina de Planeación","Informe de Cuenta Fiscal","Informes","Informe remito a la Contraloría General de la República con los resultados de la gestión de la entidad","Español","Electrónico ","Documento de texto (.doc, .txt, .rtf, .pdf)","Disponible para Consulta","Petición dirigida a la Oficina de Planeación","Información Pública","Alta","Alta","Anual","Anual","Archivo Electrónico de la oficina"]
["Direccionamiento y Planeación Institucional","Oficina de Planeación","Oficina de Planeación","Informe de Cuenta Fiscal","Certificados","Documento que certifica el cargue de la información en el aplicativo dispuesto para ellos","Español","Electrónico ","Documento de texto (.doc, .txt, .rtf, .pdf)","Disponible para Consulta","Petición dirigida a la Oficina de Planeación","Información Pública","Alta","Alta","Anual","Anual","Archivo Electrónico de la oficina"]
["Direccionamiento y Planeación Institucional","Oficina de Planeación","Oficina de Planeación","Informe Anual a la Comisión Legal de Cuentas de Cámara de Representante","Informes","Documento que describe balance de la gestión adelantada por la Entidad en cada vigencia","Español","Electrónico /Físico","Documento de texto (.doc, .txt, .rtf, .pdf)","Disponible para Consulta","Petición dirigida a la Oficina de Planeación","Información Pública","Alta","Alta","Anual","Anual","Archivo Electrónico de la oficina"]
["Direccionamiento y Planeación Institucional","Oficina de Planeación","Oficina de Planeación","Planes y Programas","Plan Anticorrupción y Atención al Ciudadano","Herramienta que contiene descripción de las actividades a desarrollar dentro del plan","Español","Electrónico ","Documento de texto (.doc, .txt, .rtf, .pdf)","Disponible para Consulta","Petición dirigida a la Oficina de Planeación","Información Pública","Alta","Alta","Anual","Anual","Archivo Electrónico de la oficina"]
["Direccionamiento y Planeación Institucional","Oficina de Planeación","Oficina de Planeación","Planes y Programas","Estrategia Anticorrupción y Atención al Ciudadano","Herramienta que contiene descripción de las actividades a desarrollar dentro del plan","Español","Electrónico ","Documento de texto (.doc, .txt, .rtf, .pdf)","Disponible para Consulta","Petición dirigida a la Oficina de Planeación","Información Pública","Alta","Alta","Anual","Anual","Archivo Electrónico de la oficina"]
["Direccionamiento y Planeación Institucional","Oficina de Planeación","Oficina de Planeación","Planes y Programas","Acta de mesas de trabajo","Memoria que contiene las principales decisiones tomadas con respecto al sistema de gestión de calidad","Español","Electrónico ","Documento de texto (.doc, .txt, .rtf, .pdf)","Disponible para Consulta","Petición dirigida a la Oficina de Planeación","Información Pública","Alta","Alta","Anual","Anual","Archivo Electrónico de la oficina"]
["Direccionamiento y Planeación Institucional","Oficina de Planeación","Oficina de Planeación","Planes y Programas","Oficio de Solicitud","Documento que contiene por parte del líder del proceso la actualización creación o eliminación documental del proceso a cargo","Español","Electrónico ","Documento de texto (.doc, .txt, .rtf, .pdf)","Disponible para Consulta","Petición dirigida a la Oficina de Planeación","Información Pública","Alta","Alta","Anual","Anual","Archivo Electrónico de la oficina"]
["Direccionamiento y Planeación Institucional","Oficina de Planeación","Oficina de Planeación","Planes y Programas","Oficio de respuesta","Documento que contiene el concepto con la aprobación de la solicitud presentada por el líder del proceso","Español","Electrónico ","Documento de texto (.doc, .txt, .rtf, .pdf)","Disponible para Consulta","Petición dirigida a la Oficina de Planeación","Información Pública","Alta","Alta","Anual","Anual","Archivo Electrónico de la oficina"]
["Direccionamiento y Planeación Institucional","Oficina de Planeación","Oficina de Planeación","Planes de Contingencia Logística","Planes de Contingencia Logística","Herramienta que contiene descripción de las actividades a desarrollar dentro del plan","Español","Electrónico ","Documento de texto (.doc, .txt, .rtf, .pdf)","Disponible para Consulta","Petición dirigida a la Oficina de Planeación","Información Pública","Alta","Alta","A solicitud","A solicitud","Archivo Electrónico de la oficina"]
["Direccionamiento y Planeación Institucional","Oficina de Planeación","Oficina de Planeación","Plan de Desarrollo Estratégico","Plan de Desarrollo Estratégico","Documento que indica las líneas de acción a desarrollar durante el periodo del  Procurador General de la Nación","Español","Electrónico ","Documento de texto (.doc, .txt, .rtf, .pdf)","Disponible para Consulta","Petición dirigida a la Oficina de Planeación","Información Pública","Alta","Alta","A solicitud","A solicitud","Archivo Electrónico de la oficina"]
["Direccionamiento y Planeación Institucional","Oficina de Planeación","Oficina de Planeación","Proyectos","Proyectos de Inversión DNP","Documento que describe las actividades a desarrollar y los recursos necesario para su realización","Español","Electrónico ","Documento de texto (.doc, .txt, .rtf, .pdf)","Disponible para Consulta","Petición dirigida a la Oficina de Planeación","Información Pública","Alta","Alta","A solicitud","A solicitud","Archivo Electrónico de la oficina"]
["Direccionamiento y Planeación Institucional","Oficina de Planeación","Oficina de Planeación","Proyectos","Oficio de solicitud de inscripción","Documento que contiene la actualización creación o eliminación del proyecto ","Español","Electrónico ","Documento de texto (.doc, .txt, .rtf, .pdf)","Disponible para Consulta","Petición dirigida a la Oficina de Planeación","Información Pública","Alta","Alta","A solicitud","A solicitud","Archivo Electrónico de la oficina"]
["Direccionamiento y Planeación Institucional","Oficina de Planeación","Oficina de Planeación","Proyectos","Archivo MGA (Metodología General Ajustada)","Herramienta para formular el proyecto","Español","Electrónico ","Documento de texto (.doc, .txt, .rtf, .pdf)","Disponible para Consulta","Petición dirigida a la Oficina de Planeación","Información Pública","Alta","Alta","A solicitud","A solicitud","Archivo Electrónico de la oficina"]
["Direccionamiento y Planeación Institucional","Oficina de Planeación","Oficina de Planeación","Proyectos","Fichas EBI (Estadísticas Básicas de Inversión","Documento resumen del proyecto formulado","Español","Electrónico ","Documento de texto (.doc, .txt, .rtf, .pdf)","Disponible para Consulta","Petición dirigida a la Oficina de Planeación","Información Pública","Alta","Alta","A solicitud","A solicitud","Archivo Electrónico de la oficina"]
["Direccionamiento y Planeación Institucional","Oficina de Planeación","Oficina de Planeación","Proyectos","Informes","Documento que contiene los principales avances, ejecución y logros del proyecto","Español","Electrónico ","Documento de texto (.doc, .txt, .rtf, .pdf)","Disponible para Consulta","Petición dirigida a la Oficina de Planeación","Información Pública","Alta","Alta","A solicitud","A solicitud","Archivo Electrónico de la oficina"]
["Direccionamiento y Planeación Institucional","Oficina de Planeación","Oficina de Planeación","Proyectos","Oficios de aprobación","Documento con la repuesta de solicitud presentada","Español","Electrónico ","Documento de texto (.doc, .txt, .rtf, .pdf)","Disponible para Consulta","Petición dirigida a la Oficina de Planeación","Información Pública","Alta","Alta","A solicitud","A solicitud","Archivo Electrónico de la oficina"]
["Disciplinario","DESPACHO DEL PROCURADOR GENERAL- Procuraduría Auxiliar para Asuntos Disciplinarios","DESPACHO DEL PROCURADOR GENERAL- Procuraduría Auxiliar para Asuntos Disciplinarios","CONCEPTOS","Conceptos en matería disciplinaria","Emitir conceptos en matería disciplinaria, con el fin de orientar el cumplimiento  de las funciones por parte de las dependencias de la PGN, Las Personerías y las Oficinas de Control Interno Disciplinario","Español","Electrónico / Papel","Documento de texto (.doc, .txt, .rtf, .pdf)","Disponible para Consulta","Solicitud con radicación formal","Información Pública","Media","Media","2021-01-27","Trimestral","Oficina Productora de la información"]
["Disciplinario","DESPACHO DEL PROCURADOR GENERAL- Procuraduría Auxiliar para Asuntos Disciplinarios","DESPACHO DEL PROCURADOR GENERAL- Procuraduría Auxiliar para Asuntos Disciplinarios","DERECHOS DE PETICIÓN","Respuesta a solicitudes de información","Dar contestación a las diferentes peticiones sobre trámite de asuntos de competencia de la Auxiliar Disciplinaria y solicitudes de Información por parte de dependencias internas y entes externos","Español","Electrónico / Papel","Documento de texto (.doc, .txt, .rtf, .pdf)","Disponible para Consulta","Solicitud con radicación formal","Información Pública Reservada","Media","Media","2021-01-01","Diaria","Oficina Productora de la información","articulo 18, literal a: \" el derecho de toda persona a la intimidad\" ","númeral 3, articulo 24  de la Ley 1755 de 2015","Evitar que se cause daño a derechos de las personas o a intereses públicos","la excepción es parcial, por lo que solo una parte del documento corresponderia a esta calificación","2021-01-01","15 años"]
["Disciplinario","DESPACHO DEL PROCURADOR GENERAL- Procuraduría Auxiliar para Asuntos Disciplinarios","DESPACHO DEL PROCURADOR GENERAL- Procuraduría Auxiliar para Asuntos Disciplinarios","PLANES Y PROGRAMAS","Plan Operativo Anual","Informe mensual de la gestión de la dependencia","Español","Electrónico / Papel","Documento de texto/ Hoja de Cálculo","Disponible para Consulta","Formato de Solicitud y/o Correo Electrónico","Información Pública","Media","Media","2021-01-01","Mensual","Oficina Productora de la información"]
["Disciplinario","DESPACHO DEL PROCURADOR GENERAL- Procuraduría Auxiliar para Asuntos Disciplinarios","DESPACHO DEL PROCURADOR GENERAL- Procuraduría Auxiliar para Asuntos Disciplinarios","PROCESOS DISCIPLINARIOS","Disciplinario","La Procuraduría Auxiliar para Asuntos Disciplinarios, no tiene competencia para manejar procesos, por lo que actualmente tramita impedimentos, recusaciones, solicitudes, revocatorias y consultas","Español","Electrónico / Papel","Documento de texto (.doc, .txt, .rtf, .pdf)","Disponible para Consulta","Formato de Solicitud y/o Correo Electrónico","Información Pública Reservada","Media","Media","2021-01-01","Mensual","Oficina Productora de la información","artículo 19, Ley 1712 de 2014: \"La información reservada se refiere a casos en los que la entrega de la información al público puede causar daño a bienes o intereses públicos\". Artículo 19, literal d: \"La prevención, investigación y persecución de los delitos y las faltas disciplinarias, mientras que no se haga efectiva la medida de aseguramiento o se formule pliego de cargos, según el caso\".","Ley 734 de 2002, Artículo 95. Reserva de la actuación disciplinaria. En el procedimiento ordinario las actuaciones disciplinarias serán reservadas hasta cuando se formule el pliego de cargos o la providencia que ordene el archivo definitivo, sin perjuicio de los derechos de los sujetos procesales. En el procedimiento especial ante el Procurador General de la Nación y en el procedimiento verbal, hasta la decisión de citar a audiencia","procesos que aún se encuentran en etapa de práctica de pruebas, y requieren de la reserva hasta tanto no se cumplan los presupuestos para proferir otro tipo de decisiones o llegar hasta el pliego de cargos, cuando ya no tendria reserva alguna","total","2021-01-01","5 años o hasta que se cite audiencia"]
["Disciplinario","DIRECCION NACIONAL DE INVESTIGACIONES ESPECIALES","Oficina de Planeación","DERECHOS DE PETICIÓN","DERECHOS DE PETICIÓN","Evidencia de las violaciones de Derechos Humanos y graves infracciones al Derecho Internacional Humanitario","Español","Papel","Documento de texto (.doc, .txt, .rtf, .pdf)","Disponible para consulta","Petición dirigida a la Oficina  de Comunicaciones","Información Pública","Alta","Alta"]
["Disciplinario","DIRECCION NACIONAL DE INVESTIGACIONES ESPECIALES","DIRECCION NACIONAL DE INVESTIGACIONES ESPECIALES","PROCESOS DISCIPLINARIOS","PROCESOS DISCIPLINARIOS","El Disciplinario de esta dependencia se desarrolla como evidencia de las violaciones de Derechos Humanos y graves infracciones al Derecho Internacional Humanitario","Español","Papel","Documento de texto (.doc, .txt, .rtf, .pdf)","Disponible para consulta","Petición dirigida a la Oficina  de Comunicaciones","Información Pública","Alta","Alta"]
["Disciplinario","DESPACHO DEL VICEPROCURADOR GENERAL-  División de registro y control de correspondencia (Actualmente División de Relacionamiento con el Ciudadano)","DESPACHO DEL VICEPROCURADOR GENERAL-  División de registro y control de correspondencia (Actualmente División de Relacionamiento con el Ciudadano)","PROCESOS DISCIPLINARIOS","PROCESOS DISCIPLINARIOS - DRCC","Inicio de procesos de investigación a servidores públicos de la División de Registro y Control y Correspondencia (Actualmente División de Relacionamiento con el Ciudadano).   Corresponde a las actividades de realización de la conducta, noticia disciplinaria y evaluación de noticia disciplinaria.","Español","Electrónico / Papel","Documento de Texto / Base de datos","Disponible para Consulta","Solicitud  Formal","Información Pública Reservada","Alta","Media",2010,"Diaria","Archivo Fisico","Preservar la inviolabilidad de la reserva sumarial en razón al contenido sensible de la información que está en proceso de ser validada como prueba dentro de las investigaciones en curso","Artículo 95 de la Ley 734 de 2002   -   Artículo 18 Literal a) y Artículo 19 Literal d) de la Ley 1712 de 2014","Durante la etapa procesal de Investigación Disciplinaria, solamente están legitimados para acceder a la información los Sujetos Procesales.","Parcial",2002,"Hasta pliego de cargos"]
["Disciplinario","Sala Disciplinaria Ordinaria de Juzgamiento","Sala Disciplinaria Ordinaria de Juzgamiento","ACTAS","Acta de Sala","Acta que consolida las decisiones proyectadas","Español","Electrónico / Papel","Documento de Texto","Disponible para Consulta","Petición dirigida a la Oficina  de Comunicaciones","Información Pública","Alta","Alta"]
["Disciplinario","Sala Disciplinaria Ordinaria de Juzgamiento","Sala Disciplinaria Ordinaria de Juzgamiento","DERECHOS DE PETICIÓN","Derechos de Petición",null,"Español","Electrónico / Papel","Documento de Texto","Disponible para Consulta","Petición dirigida a la Oficina  de Comunicaciones","Información Pública","Alta","Alta"]
["Disciplinario","Sala Disciplinaria Ordinaria de Juzgamiento","Sala Disciplinaria Ordinaria de Juzgamiento","PLANES Y PROGRAMAS","Plan Operativo Anual","Consolidación POA","Español","Electrónico","Hoja de Cálculo","Disponible para Consulta","Strategos","Información Pública","Alta ","Alta"]
["Disciplinario","Sala Disciplinaria de Juzgamiento de Servidores Públicos de Elección Popular","Cada dependencia productora del Disciplinario (Quien falló en primera instancia)"]
["Disciplinario","Procuraduría delegada Preventivas y de control de gestion_2","Procuraduría Delegada para la Investigación y juzgamiento Penal","PROCESOS DISCIPLINARIOS","Procesos Discipliniarios ","Procesos que se adelantan en algunas Entidades  por desiganción especial:  ","Español","Electrónico / Papel","Documento de texto (.doc, .txt, .rtf, .pdf)","Disponible para Consulta","Petición Verbal o Escrita","Información Pública Reservada","Alta","Alta",null,null,null,"Ley 1712 de 2014. Art. 19: Información exceptuada por daño a los intereses públicos. Es toda aquella información pública reservada, cuyo acceso podrá ser rechazado o denegado de manera motivada y por escrito en las siguientes circunstancias, siempre que dicho acceso estuviere expresamente prohibido por una norma legal o constitucional:"]
["Disciplinario","Procuraduria Delegada Preventiva Y De Control De Gestion 3: Para La Gestion Y La Gobernanza Territorial  ","Procuraduria Delegada Preventiva Y De Control De Gestion 3: Para La Gestion Y La Gobernanza Territorial  ","PROCESOS DISCIPLINARIOS","Procesos Disciplinarios en temas de Vigilancia Administrativa","Aquellos documentos relacionados con la instrucción disciplinaria, posteriores a la apertura de investigación"]
["Disciplinario","Procuraduría Delegada para la Vigilancia Administrativa","Procuraduría Delegada para la Vigilancia Administrativa","CONSECUTIVO DE COMUNICACIONES OFICIALES","Comunicaciones oficiales enviadas, recibidas, e internas","Comunicaciones mediante las cuales se solicita la informacion y se da respuesta a solicitudes.","Español","Electrónico / Papel","Documento de texto (.doc, .txt, .rtf, .pdf)","Disponible para Consulta"," Solicitud Formal y/o Correo Electrónico","Información Pública","Alta","Media",2002,"Diaria","Dependencia responsable de la custodia de la información"]
["Disciplinario","Procuraduría Delegada para la Vigilancia Administrativa","Procuraduría Delegada para la Vigilancia Administrativa","DERECHOS DE PETICIÓN","Derechos de petición:solicitud, respuesta, anexos","Respuestas derecho de petición de información y solicitud de copias.","Español","Electrónico / Papel","Documento de texto (.doc, .txt, .rtf, .pdf)","Disponible para Consulta"," Solicitud Formal y/o Correo Electrónico","Información Pública","Alta","Alta",2002,"Diaria","Dependencia responsable de la custodia de la información"]
["Disciplinario","Procuraduría Delegada para la Vigilancia Administrativa","DESPACHO DEL PROCURADOR GENERAL- Oficina de Planeación","INFORMES","Informes de gestión","Información detallada de procesos disciplinarios requeridos por la Oficina de Planeación seún su criterio ","Español","Electrónico / Papel","Documento de texto (.doc, .txt, .rtf, .pdf)","Publicada","www.procuraduria.gov.co","Información Pública","Alta","Alta",2002,"Semestral","www.procuraduria.gov.co","NO APLICA","NO APLICA","NO APLICA","NO APLICA","NO APLICA","NO APLICA"]
["Disciplinario","Procuraduría Delegada para la Vigilancia Administrativa","DESPACHO DEL PROCURADOR GENERAL- Oficina de Planeación","PLANES Y PROGRAMAS","Plan operativo anual ( POA)","Informe mediante el cual se proyecta metas a cumplir para el año siguiente","Español","Electrónico / Papel","Hoja de Cálculo (.xls, .xlt, .csv)","Disponible para Consulta"," Solicitud Formal y/o Correo Electrónico","Información Pública","Alta","Alta",2007,"Anual","STRATEGOS"]
["Disciplinario","Procuraduría Delegada para la Vigilancia Administrativa","Procuraduría Delegada para la Vigilancia Administrativa","PROCESOS DISCIPLINARIOS","Procesos disciplinarios que se adelantan  de oficio o con ocasión de quejas o informes de servidor público,  presentados contra los servidores públicos  (salvo asignación especial) que tengan rango equivalente o superior al de Secretario General de las entidades que formen parte de las ramas ejecutiva del orden nacional, legislativa o judicial, y de la Contraloría General de la República, la Defensoría del Pueblo, la Organización Electoral, el Banco de la República, la Comisión Nacional de Televisión, las comisiones de regulación de servicios públicos y de otros organismos autónomos del orden nacional, salvo que la competencia esté asignada a otra dependencia de la Procuraduría y otras entidades.","Expedientes que contienen la información de todas y cada una de las actuaciones realizadas por la delegada de oficio o a solicitud de los sujetos procesales, que permiten ir avanzando en el desarrollo del Disciplinario desde la queja o informe o conocimiento oficioso hasta su culminación, que puede suceder con un auto inhibitorio, el archivo de la indagación preliminar, de la investigación disciplinaria o una desicion de fondo definitiva como es el fallo sancionatorio o absolutorio.","Español","Electrónico / Papel","Documento de texto (.doc, .txt, .rtf, .pdf)","Disponible para Consulta"," Solicitud Formal y/o Correo Electrónico","Información Pública Reservada","Alta","Alta",2002,"Diaria","Dependencia responsable de la custodia de la información","protección del debido proceso y derecho de contradicción y defensa del disciplinado. ","art 115 del C.G.D., en el procedimiento ordinario de las actuaciones disciplinarias estarán reservadas hasta cuando se formule pliego de cargos o la providencia que ordena el archivo. En el procedimieno especial abte el PGN y en el procedimiento verbal hasta la decisión de citar a audiencia. El investigado tiene la obligación de guardar la reserva de las pruebas por siposición de ley y de la CP., ","art 115 del C.G.D","la excepción es parcial, por cuanto la reserva solo aplica desde la apertura de la indagación o investigación y hasta la foculación de pliego de cargos o o citación a audiencia. ","Desde la fecha de inicio de indagación o investigación diciplinaria ","Durante la indagación y/o investigación hasta cuando se formule pliego de cargos o citación a audiecia. "]
["Disciplinario","Procuraduría delegada Disciplinarias de intruccion_3","Procuraduría Delegada  para la Vigilancia Administrativa para asuntos sociales y Paz","CONSECUTIVO DE COMUNICACIONES OFICIALES","COMUNICACIONES OFICIALES","Contiene las comunicaciones recibidas por la dependencia que no pertenecen a procesos disciplinarios","Español","Electrónico / Papel","Documento de Texto / Base de datos","Disponible para Consulta","Petición Verbal o Escrita","Información Pública","Alta","Media"]
["Disciplinario","Procuraduría delegada Disciplinarias de intruccion_3","Procuraduría Delegada  para la Vigilancia Administrativa para asuntos sociales y Paz","DERECHOS DE PETICIÓN","PETICIONES ANUAL","Solicitudes y respuestas dadas a las peticiones que no hacen parte de procesos disciplinarios","Español","Electrónico / Papel","Documento de Texto / Base de datos","Disponible para Consulta","Petición Verbal o Escrita","Información Pública","Alta","Media"]
["Disciplinario","Procuraduría delegada Disciplinarias de intruccion_3","Procuraduría Delegada  para la Vigilancia Administrativa para asuntos sociales y Paz","INFORMES","INFORMES DE GESTIÓN ANUAL","Informes de gestión rendidos a Control Interno, Planeación y a solicitud del Despacho del(a) Procurador(a) General","Español","Electrónico","Hoja de Cálculo (.xls, .xlt, .csv)","Disponible para Consulta","Petición Verbal o Escrita","Información Pública","Alta","Media"]
["Disciplinario","Procuraduría delegada Disciplinarias de intruccion_3","Procuraduría Delegada  para la Vigilancia Administrativa para asuntos sociales y Paz","PROCESOS DISCIPLINARIOS","EXPEDIENTE DISCIPLINARIO (individualizado por radicado)","actuaciones disciplinarias adelantadas por la dependencia conforme a las competencias del artículo 25 del Decreto 262 de 2000, Resolución 017 de 2000, Resolución 256 de 2019 y Resolución 207 de 2021","Español","Electrónico / Papel","Documento de Texto / Base de datos","Disponible para Consulta","Petición Verbal o Escrita","Información Pública Reservada","Alta","Media",null,null,null,"protección del debido proceso y derecho de contradicción y defensa del disciplinado. ","art 95 de la ley 734 de 2002, Establece que la actuación disciplinaria en el procedimiento ordinario goza de reserva legal hasta la formulación de cargos o la decisión de archivo definitivo. En el procedimieno especial,ante el PGN y en el procedimiento verbal hasta la decisión de citar a audiencia. El investigado y sujetos procesales tienen la obligación de guardar la reserva de las pruebas por disposición de ley y de la CP.","art 95 de la Ley 734 de 2002","la excepción es parcial, por cuanto la reserva solo aplica hasta la formulación de pliego de cargos o o citación a audiencia. ","Desde la fecha de inicio de indagación o investigación diciplinaria ","Durante la indagación y/o investigación hasta cuando se formule pliego de cargos, citación a audiencia o decisión de archivo definitivo. "]
["Disciplinario","Procuraduría delegada Disciplinarias de intruccion_3","Procuraduría Delegada  para la Vigilancia Administrativa para asuntos sociales y Paz","PLANES Y PROGRAMAS","PLAN OPERATIVO ANUAL (POA)","Informe mediante el cual se proyecta metas a cumplir para el año siguiente","Español","Electrónico","Hoja de Cálculo (.xls, .xlt, .csv)","Disponible para Consulta","Petición  Dirigida a Oficina de  Planeación","Información Pública","Alta","Media"]
["Disciplinario","Procuraduría delegada Disciplinarias de intruccion_5","Procuraduría Delegada para la Economía y Hacienda Publica","INFORMES","Informes de gestión","Contiene información trimestral de la dependencia","Español","Papel","Documento de texto (.doc, .txt, .rtf, .pdf)","Disponible para Consulta","Formato de Solicitud y/o Correo Electrónico","Información Pública","Alta","Media"]
["Disciplinario","Procuraduría Delegada para la Contratación Estatal","Procuraduría Delegada para la Contratación Estatal","DERECHOS DE PETICIÓN","DERECHO DE PETICION","Toda persona tiene derecho a presentar peticiones respetuosas a las autoridades, en los términos señalados en el Código de Procedimiento Administrativo y de lo Contencioso Administrativo. Ley estatutaria 1755 del 30 de junio de 20015 y Resolución 009 de 2017 por la cual se reglamenta el derecho de petición en la Procuraduría General de la Nación.","Español","Electrónico / Papel","Documento de Texto / Base de datos","Disponible para Consulta","Solicitud con radicación formal","Información Pública","Alta","Media",2016,"Diaria","Oficina Productora de la información"]
["Disciplinario","Procuraduría Delegada para la Contratación Estatal","Procuraduría Delegada para la Contratación Estatal","PLANES Y PROGRAMAS","PLAN OPERATIVO ANUAL POA","Componente día a día del POA: Se entenderá como componente del día a día las actividades que adelanta la dependencia en desarrollo de las funciones asignadas"]
["Disciplinario","Procuraduría Delegada para la Contratación Estatal","Procuraduría Delegada para la Contratación Estatal","PROCESOS DISCIPLINARIOS","Disciplinario","Es un proceso para investigar y sancionar la conducta de los servidores públicos y particulares disciplinables, originado en el incumplimiento de deberes funcionales, la extralimitación en el ejercicio de derechos y funciones, la violación de los regímenes de prohibiciones, inhabilidades, incompatibilidade, impedimentos y conflictos de intereses y demás normas jurídicas, cuando se trate de conductas relacionadas con la contratación estatal, desde los actos preparatorios, comprendiendo todos los requisitos y procedimientos presupuestales hasta la liquidación del contrato y el pago de las obligaciones que de él surjan según la competencia establecida en el Decreto Ley 262 de 2000, artículo 25 en concordancia con las Resoluciones 017 de 2000 y 530 de 2019."]
["Disciplinario","Procuraduría Delegada Disciplinaria de Instrucción 10 para la Fuerza Publica","Procuraduría Delegada Disciplinaria de Instrucción 10 para la Fuerza Publica","DERECHOS DE PETICIÓN","Derechos de petición","Solicitudes de quejosos, sujetos procesales y/o ciudadanía en general , respuestas y anexos"]
["Disciplinario","Procuraduría Delegada Disciplinaria de Instrucción 10 para la Fuerza Publica","Procuraduría Delegada Disciplinaria de Instrucción 10 para la Fuerza Publica","PLANES Y PROGRAMAS","Plan Operativo Anual (POA)","Plan Operativo Anual, Actas, Informes, Relaciones, Certificaciones","Español","Electrónico / Papel","Hoja de Cálculo (.xls, .xlt, .csv)","Disponible para Consulta","Formato de Solicitud y/o Correo Electrónico","Información Pública","Media","Media","2015-12-29","Anual","SIM","N/A ","N/A ","N/A ","N/A ",2020,"N/A "]
["Disciplinario","Procuraduría Delegada Disciplinaria de Juzgamiento 3","Procuraduría Delegada Disciplinaria de Juzgamiento 3","DERECHOS DE PETICIÓN","DERECHOS DE PETICIÓN","La información y/o contenido por cada derecho de petición varía conforme al motivo de la solicitud, que, en la mayoria de los casos estan relacionados a un Disciplinario en etapa de juzgamiento especifico o de manera general a fallos proferidos por la Delegada Disciplinaria de Juzgamiento 3. Otros Derechos de petición son de periodistas, veedurias, etc., sobre procesos disciplinarios de impacto nacional.","Español","Papel","Documento de texto (.doc, .txt, .rtf, .pdf)","Disponible para Consulta","Solicitud con radicación formal","Información Pública","Alta","Media","2022-01-01","Conforme a los terminos de Ley","Archivo fisico o por medio digitalizado"]
["Disciplinario","Procuraduría Delegada Disciplinaria de Instrucción 10 para la Fuerza Publica","Procuraduría Delegada Disciplinaria de Instrucción 10 para la Fuerza Publica","PROCESOS DISCIPLINARIOS","Procesos Disciplinarios","Procesos disciplinarios adelantados en etapa de INSTRUCCIÓN  a la entrada de la Ley 2094 de 2021, en virtud de la competencia asignada por Decreto 262 de 2000, modificado por el Decreto 1851 de 2021 y normas complementarias ","Español","Electrónico / Papel /Imagen/ Video/ Audio/otros","Documento de texto (.doc, .txt, .rtf, .pdf) / Base de datos / Imagen / Audio / Video"]
["Disciplinario","Procuraduría Delegada Disciplinaria de Instrucción 10 para la Fuerza Publica","Procuraduría Delegada Disciplinaria de Instrucción 10 para la Fuerza Publica","PROCESOS DISCIPLINARIOS","Procesos Disciplinarios","Procesos disciplinarios adelantados en etapa de INSTRUCCIÓN  a la entrada de la Ley 2094 de 2021, en virtud de la competencia asignada por Decreto 262 de 2000, modificado por el Decreto 1851 de 2021 y normas complementarias"]
["Disciplinario","Procuraduría Delegada Disciplinaria de Instrucción 10 para la Fuerza Publica","Procuraduría Delegada Disciplinaria de Instrucción 10 para la Fuerza Publica","PROCESOS DISCIPLINARIOS","Procesos Disciplinarios","Procesos disciplinarios adelantados  en etapa de INSTRUCCIÓN  a la entrada de la Ley 2094 de 2021, en virtud de la competencia asignada por Decreto 262 de 2000, modificado por el Decreto 1851 de 2021 y normas complementarias, relacionados con asuntos que involucren violación al DIH y/o DDHH, cuando los sujetos disciplinables sean oficiales superiores de la Fuerza Pública, salvo en los casos de competencia de la Delegada para la Defensa de los Derechos Humanos y que la conducta investigada se cometa en razón, con"]
["Disciplinario","Procuraduría Delegada Disciplinaria de Juzgamiento 3","Procuraduría Delegada Disciplinaria de Juzgamiento 3","PLANES Y PROGRAMAS","PLANES Y PROGRAMAS","Al referirse acerca de planes y programas por parte de las Delegadas de Juzgamiento Disciplinario , corresponden a las directrices y/o solicitudes realizadas desde las Oficinas de Control Interno, Planeación, División de Documentación o desde el Despacho de la Procuradora General de la Nación, tales como: PAI, INICIATIVAS ADICIONALES DLE DESPACHO, PAAC, SGC, TRD, matriz de riegos de gestión y corrupción,  ACTAS RAE, INFORMES AL CONGRESO, INFORMES CUALITATIVOS, entre otros. ","Español","Papel","Documento de texto (.doc, .txt, .rtf, .pdf)","Disponible para Consulta","Solicitud con radicación formal","Información Pública","Alta","Media","2022-01-01","CUATRIMESTRAL","Archivo fisico o por medio digitalizado"]
["Disciplinario","Procuraduría Delegada Disciplinaria de Juzgamiento 3","Procuraduría Delegada Disciplinaria de Juzgamiento 3","PROCESOS DISCIPLINARIOS","PROCESOS DISCIPLINARIOS","Los Procesos Disciplinarios, hacen referencia a los expedientes remitidos por las Delegadas de instrucción para adelantar el juzgamiento de sujetos disciplinables a los que el funcionario de instrucción les ha notificado auto de cargos o auto de citación a audiencia, a través del procedimiento establecido en el Código Disciplinario Único C.D.U., del Código General Disciplinario C.G.D., o de regímenes especiales y demás normatividad vigente, con el fin de cumplir con la función misional disciplinaria de la Procuraduría General de la Nación  ","Español","Papel","Documento de texto (.doc, .txt, .rtf, .pdf)","Disponible para Consulta","Solicitud con radicación formal","Información Pública","Alta","Media","2022-01-01","Conforme a los terminos de Ley","Expediente fisico o digitalizado"]
["Disciplinario","Procuraduría delegada con funciones mixtas_7","Procuraduría Delegada para la  Defensa de la Infancia, Adolesnecia y","PROCESOS DISCIPLINARIOS","Procesos disciplinarios","Autos y comunicaciones proferidas en desarrollo de la actuación discplinaria"]
["Disciplinario","Procuraduría delegada con funciones mixtas_9","Procuraduría Delegada para la Vigilancia Administrativa","CONSECUTIVO DE COMUNICACIONES OFICIALES","Comunicaciones oficiales enviadas, recibidas, e internas","Comunicaciones mediante las cuales se solicita la informacion y se da respuesta a solicitudes.","Español","Electrónico / Papel","Documento de texto (.doc, .txt, .rtf, .pdf)","Disponible para Consulta"," Solicitud Formal y/o Correo Electrónico","Información Pública","Alta","Media"]
["Disciplinario","Procuraduría delegada con funciones mixtas_9","Procuraduría Delegada para la Vigilancia Administrativa","DERECHOS DE PETICIÓN","Derechos de petición:solicitud, respuesta, anexos","Respuestas derecho de petición de información y solicitud de copias.","Español","Electrónico / Papel","Documento de texto (.doc, .txt, .rtf, .pdf)","Disponible para Consulta"," Solicitud Formal y/o Correo Electrónico","Información Pública","Alta","Alta"]
["Disciplinario","Procuraduría delegada con funciones mixtas_10","Procuraduría Delegada para la moralidad Pública","DERECHOS DE PETICIÓN","DERECHOS DE PETICIÓN","La información y/o contenido por cada derecho de petición varia conforme al motivo de la solicitud, que, en la mayoria de los casos estan relacionados a un Disciplinario en especifico o de manera general a fallos proferidos por la Delegada para la Moralidad Pública. ","Español","Papel","Documento de texto (.doc, .txt, .rtf, .pdf)","Disponible para Consulta","Solicitud con radicación formal","Información Pública Reservada","Alta","Media",null,null,null,"Literal d) artículo 19 Ley 1712 de 2014. La prevención, investigación y persecución de los delitos"]
["Disciplinario","Procuraduría delegada con funciones mixtas_10","Procuraduría Delegada para la moralidad Pública","PROCESOS DISCIPLINARIOS","PROCESOS DISCIPLINARIOS","Los Procesos Disciplinarios, hacen referencia a los expedientes por cada una de la investigaciones disciplinarias que se llevan al interior de la Delegada, la información varia conforme al asunto de la denuncia y/o motivo por el cual se diera apertura a la investigación. En lo que respecta desde la Procuraduría Delegada para la Moralidad Pública se encontraran procesos en etapa de juzgamiento conforme a la entrada de la Ley 2094 de 2021.  ","Español","Papel","Documento de texto (.doc, .txt, .rtf, .pdf)","Disponible para Consulta","Solicitud con radicación formal","Información Pública Reservada - Pública a partir de cargos","Alta","Media",null,null,null,"Literal d) artículo 19 Ley 1712 de 2014. La prevención, investigación y persecución de los delitos"]
["Disciplinario","Procuraduría delegada con funciones mixtas_10","Procuraduría Delegada para la moralidad Pública","PLANES Y PROGRAMAS","PLANES Y PROGRAMAS","Al referirse acerca de planes y programas por parte de la Delegada para la Moralidad Pública, corresponden a las directrices y/o solicitudes realizadas desde las Oficinas de Control Interno, Planeación, División de Documentación o desde el Despacho General, tales como informes, proyecto estratégico (como ejemplo de ello la guía de ordenamiento territorial), PAAC, matriz de riegos, entre otros. ","Español","Papel","Documento de texto (.doc, .txt, .rtf, .pdf)","Disponible para Consulta","Solicitud con radicación formal","Información Pública","Alta","Media",null,null,null,null,null,null,null,2020]
["Disciplinario","Procuraduría delegada de Intervencion_3","Procuraduría Delegada para la Investigación y juzgamiento Penal","PROCESOS DISCIPLINARIOS","Procesos Discipliniarios ","Procesos que se adelantan en algunas Entidades  por desiganción especial","Español","Electrónico / Papel","Documento de texto (.doc, .txt, .rtf, .pdf)","Disponible para Consulta","Petición Verbal o Escrita","Información Pública Reservada","Alta","Alta",null,null,null,"Ley 1712 de 2014. Art. 19: Información exceptuada por daño a los intereses públicos. Es toda aquella información pública reservada, cuyo acceso podrá ser rechazado o denegado de manera motivada y por escrito en las siguientes circunstancias, siempre que dicho acceso estuviere expresamente prohibido por una norma legal o constitucional:"]
["Disciplinario ","Delegada Disciplinaria de Instrucción 7 - Segunda para la contratación estatal ","Delegada Disciplinaria de Instrucción 7 - Segunda para la contratación estatal ","DERECHOS DE PETICIÓN","DERECHO DE PETICION ","DAR RESPUESTA A LAS PETICIONES CON BASE EN LA LEY 1755 DE 2015 EN TELAS RELACIONADOS CON CONTRATACIÓN ESTATAL ","ESPAÑOL","FISICO Y ELECTRONICO ","DOCUMENTO TEXTO ","DISPONIBLE PARA CONSULTA ","PETICION DIRIGIDA A LA DEPENDENCIA ","INFORMACION PUBLICA RESEVADA ","ALTA ","ALTA ","2022-01-01","DIARIO ","ARCHIVO FISICO Y ELECTRONICO ","ART.19 LEY 1712/2014 INC. A) D) E)","articulo 18 de la ley 1712 de 2014","ARTICULO 115 DE LA LEY 1952/2019 - ART.115 LEY 2094/2021    "]
["Disciplinario ","Delegada Disciplinaria de Instrucción 7 - Segunda para la contratación estatal ","PLANEACION ","PLAN OPERATIVO ANUAL","PLAN OPERATIVO","INFORMES ","ESPAÑOL ","FISICO Y ELECTRONICO ","DOCUMENTO TEXTO ","DISPONIBLE PARA CONSULTA","INFORMES SOLICITADOS A LA DEPENDENCIA ","INFORMACION PUBLICA ","ALTA","ALTA","2022-03-01","TRIMESTRAL ","ARCHIVO FISICO Y ELECTRONICO ",null,"DTO.2106/2019 - MEMORANDO INTERNO 002 DE 2022"]
["Disciplinario ","Delegada Disciplinaria de Instrucción 7 - Segunda para la contratación estatal ","Delegada Disciplinaria de Instrucción 7 - Segunda para la contratación estatal ","PROCESOS DISCIPLINARIOS","PROCESOS DISCIPLINARIOS ","DISCIPLINARIO EN CONTRATACION ","ESPAÑOL","FISICO Y ELECTRONICO ","DOCUMENTO TEXTO ","DISPONIBLE PARA CONSULTA ","DECISIONES TOMADAS POR LA DEPENDENCIA ","INFORMACION PUBLICA RESERVADA","ALTA","ALTA","2022-01-01","DIARIO ","ARCHIVO FISICO Y ELECTRONICO ","ART.19 LEY 1712/2014 INC. A) D) E)","articulo 18 de la ley 1712 de 2014","ARTICULO 115 DE LA LEY 1952 DE 2019 - ARTICULO 115 DE LA LEY 2094/2021",null,null,"N7a"]
["Disciplinario ","DELEGADA DISCIPLINARIA DE  INSTRUCCIÓN 8. TERCERA DE CONTRATACION ESTATAL","DELEGADA DISCIPLINARIA DE  INSTRUCCIÓN 8. TERCERA DE CONTRATACION ESTATAL","DERECHOS DE PETICIÓN","DERECHOS DE PETICIÓN","Contiene las solicitudes de los quejosos, implicados y/o sus apoderados o de ciudadanos en general.","Español","Electrónico","Documento de texto (.doc, .txt, .rtf, .pdf)","Disponible para Consulta","Petición dirigida a la Oficina  de  Control y Registro","Información Pública","Alta","Alta","2022-01-01","diario","SIGDEA Y/O EXPEDIENTE"]
["Disciplinario ","DELEGADA DISCIPLINARIA DE  INSTRUCCIÓN 8. TERCERA DE CONTRATACION ESTATAL","DELEGADA DISCIPLINARIA DE  INSTRUCCIÓN 8. TERCERA DE CONTRATACION ESTATAL","PROCESOS DISCIPLINARIOS","PROCESOS DISCIPLINARIOS","Las gestiones disciplinarias de acuerdo a lo que corresponde a cada etapa procesal","Español","Papel","Documento de texto (.doc, .txt, .rtf, .pdf)","Disponible para Consulta","Petición Verbal o Escrita","Información Pública","Alta","Alta","2022-01-01","diario","FÍSICO EN LA DELEGADA"]
["Disciplinario ","DELEGADA DISCIPLINARIA DE  INSTRUCCIÓN 8. TERCERA DE CONTRATACION ESTATAL","DELEGADA DISCIPLINARIA DE  INSTRUCCIÓN 8. TERCERA DE CONTRATACION ESTATAL","PLANES Y PROGRAMAS","PLAN DE ACCIÓN INSTITUCIONAL","Contiene el plan de acción institucional antes  proyecto estratégico","Español","Electrónico","Hoja de Cálculo (.xls, .xlt, .csv)","Disponible para Consulta","Formato de Solicitud y/o Correo Electrónico","Información Pública","Alta","Alta","2022-01-01","anual","STRATEGOS"]
["Disciplinario ","PROCURADURIA DELEGADA DISCIPLINARIA DE JUZGAMIENTO 2","PROCURADURIA DELEGADA DISCIPLINARIA DE JUZGAMIENTO 2","CONSECUTIVO DE COMUNICACIONES OFICIALES ","Comunicaciones Internas y Externas ","Comunicaciones mediante las cuales se da cumplimiento a las decisiones proferidas en cada procesos disciplinario, respuesta a peticiones o solicitud de información ","Español","Electrónico/ papel ","Documento de texto (.doc, .txt, .rtf, .pdf)","Disponible para Consulta","Solicitud formal ","Información Pública","Alta","Media ","2021-2022","Diaria ","Archivo Fisico /electrónico de la Delegada"]
["Disciplinario ","PROCURADURIA DELEGADA DISCIPLINARIA DE JUZGAMIENTO 2","DESPACHO PROCURADORA GENERAL, OFICINA DE PLANEACION ","INFORMES ","Informes de Gestión","Informes de gestión, Informe PAC, Informe de Riesgos, Informe Cualitativo Trimestral ","Español","Electrónico/ papel ","Documento de texto (.doc, .txt, .rtf, .pdf)","Disponible para Consulta","Solicitud dirigida a la Oficina de Planeación ","Información Pública","Alta","Media ","2021-2022","Mensual- Trimestral- Cuatrimestral ","Archivo Fisico /electrónico de la Delegada /www.procuraduria.gov.co/portal/transparencia.page"]
["Disciplinario ","PROCURADURIA DELEGADA DISCIPLINARIA DE JUZGAMIENTO 2","PROCURADURIA DELEGADA DISCIPLINARIA DE JUZGAMIENTO 2","PROCESOS DISCIPLINARIOS","Disciplinario -Juzgamiento ","Procesos disciplinarios en estapa de juzgamiento etapa de cargos notificados los cuales son proferidos por las Procuradurías Delegadas _Resolución 150 de 2022","Español","Electrónico / Papel","Documento de texto (.doc, .txt, .rtf, .pdf)","Disponible para Consulta","Solicitud  Formal","Información Pública","Alta","Baja","2021-2022","Diaria","Archivo Fisico /electrónico de la Delegada"]
["Disciplinario ","PROCURADURIA DELEGADA DISCIPLINARIA DE JUZGAMIENTO 2","PROCURADURIA DELEGADA DISCIPLINARIA DE JUZGAMIENTO 2","DERECHOS DE PETICIÓN","Comunicaciones externas enviadas ","Comunicaciones mediante las cuales se ofrece respuesta a los derechos de petición presentados ante la Dependencia dentro del término legal.","Español","Electrónico / Papel","Documento de texto (.doc, .txt, .rtf, .pdf)","Disponible para Consulta","Solicitud  Formal","Información Pública","Alta","Media","2021-2022","Diaria","Archivo Fisico de la Oficina"]
["Disciplinario ","PROCURADURIA DELEGADA DISCIPLINARIA DE JUZGAMIENTO 2","PROCURADURIA DELEGADA DISCIPLINARIA DE JUZGAMIENTO 2","ACCIONES DE TUTELA","Comunicaciones internas enviadas ","Comunicaciones mediante las cuales se rinde informe a la Oficina Jurídica, dentro de término ","Español","Electrónico / Papel","Documento de texto (.doc, .txt, .rtf, .pdf)","Disponible para Consulta","Solicitud  Formal","Información Pública","Alta","Media","2021-2022",null,"Archivo Fisico de la Oficina",null,null,null,null," "]
["Documental","DEPENDENCIAS DE LA PROCURADURÍA GENERAL DE LA NACIÓN","DESPACHO DEL VICEPROCURADOR GENERAL","SIN CLASIFICAR","Conjunto de datos abiertos - Datos de Registro de Activos de Información","Conjunto de datos disupuestos por la PGN para consulta de los ciudadanos y otras entidades","Español","Electrónico","Hoja de Cálculo (.xls, .xlt, .csv)","Publicada","https://www.procuraduria.gov.co/portal/datos_abiertos.page","Información Pública","Media","Alta","2022-01-01","Anual","https://www.datos.gov.co/Organismos-de-Control/Matriz-de-Datos-de-Registro-de-Activos-de-Informac/23qk-hrmh"]
["Documental","DEPENDENCIAS DE LA PROCURADURÍA GENERAL DE LA NACIÓN","DESPACHO DEL VICEPROCURADOR GENERAL","DEPENDENCIAS DE LA PROCURADURÍA GENERAL DE LA NACIÓN","Conjunto de datos abiertos - Datos de Registro de Activos de Información","Conjunto de datos disupuestos por la PGN para consulta de los ciudadanos y otras entidades","Español","Electrónico","Hoja de Cálculo (.xls, .xlt, .csv)","Publicada","https://www.procuraduria.gov.co/portal/datos_abiertos.page","Información Pública","Media","Alta","2022-01-01","Anual","https://www.datos.gov.co/Organismos-de-Control/Matriz-de-Datos-de-Registro-de-Activos-de-Informac/23qk-hrmh"]
["Documental","DESPACHO DEL VICEPROCURADOR GENERAL-  División de registro y control de correspondencia (Actualmente División de Relacionamiento con el Ciudadano)","DESPACHO DEL PROCURADOR GENERAL-  Oficina de Sistemas (Actualmente Oficina de Tecnología, Innovación y Transformacion Digital)","CONSECUTIVO DE COMUNICACIONES OFICIALES","CONSECUTIVO DE COMUNICACIONES OFICIALES - DRCC","Oficios internos, oficios externos y memorandos generados en el sistema de gestión documental, acorde a las funciones asignadas a la División de Registro y Control y Correspondencia (Actualmente División de Relacionamiento con el Ciudadano)","Español","Electrónico / Papel","Documento de Texto / Base de datos","Disponible para Consulta","Solicitud  Formal","Información Pública","Media","Media",2010,"Diaria","Archivo Fisico / Sistema de Gestión Documental SIGDEA","N.A.","N.A.","N.A.","N.A.","N.A.","N.A."]
["Documental","DESPACHO DEL VICEPROCURADOR GENERAL-  División de registro y control de correspondencia (Actualmente División de Relacionamiento con el Ciudadano)","DESPACHO DEL VICEPROCURADOR GENERAL-  División de registro y control de correspondencia (Actualmente División de Relacionamiento con el Ciudadano)","REGISTROS DE CONTROL","REGISTROS DE CONTROL-  DRCC","Registro Planillas de Salida de Correspondencia (SIGDEA, SIAF y SIRI)","Español","Electrónico / Papel","Documento de Texto / Base de datos","Disponible para Consulta","Solicitud  Formal","Información Pública","Media","Media",2016,"Diaria","Archivo Fisico","N.A.","N.A.","N.A.","N.A.","N.A.","N.A."]
["Evaluación Institucional","Oficina de Control Interno","Oficina  de control  Interno","ACTAS","Actas del comité de Coordinación del Sistema de Control Interno","Actas de reuniones del comité de coordinación","Español","Electrónico/ Papel","Documento de Texto ","Disponible para Consulta","Petición dirigida a la Oficina  de  Control Interno","Información pública","Alta","Alta"]
["Evaluación Institucional","Oficina de Control Interno","Oficina  de control  Interno","INFORMES","Informes a Otras Entidades","Informes presentados a entidades externas","Español","Electrónico/ Papel","Documento de Texto / Base de datos","Disponible para Consulta","Petición dirigida a la Oficina  de  Control Interno","Información pública","Alta","Alta"]
["Evaluación Institucional","Oficina de Control Interno","Oficina de Control Interno","INFORMES","Informes de auditoría","Resultados  de las auditarias realizadas a las diferentes dependencias de la Entidad","Español","Electrónico/ Papel","Documento de Texto / Base de datos","Disponible para Consulta","Petición dirigida a la Oficina  de  Control Interno-","Información pública clasificada","Alta","Alta",null,null,null,"Artículos 18 y 19  Ley 1712 de 2014. De la información pública se exceptúan las listas de chequeo y papeles de trabajo que contenga información sensible que pueda afectar a personas naturales o intereses públicos. ","Ley 1712 de 2014, artículos 18, y  parágrafo del artículo 19: \"Se exceptúan también los documentos que contengan las opiniones o puntos de vista que formen parte del proceso deliberativo de los servidores públicos\".","Ley 1712 de 2014, artículos 18, y  parágrafo del artículo 19: \"Se exceptúan también los documentos que contengan las opiniones o puntos de vista que formen parte del proceso deliberativo de los servidores públicos\".","Parcial","Desde el momento de la producción de las listas de chequeo y papeles de trabajo.","Limitado a menos que medie orden de autoridad competente."]
["Evaluación Institucional","Oficina de Control Interno","Oficina de Control Interno","INFORMES","Infomes de gestión","Gestión realizada por la Oficina de Control  Interno, presentado al  Señor Procurador General de la Nación","Español","Electrónico/ Papel","Documento de Texto ","Disponible para Consulta","Petición dirigida a la Oficina  de  Control Interno","Información pública","Alta","Alta"]
["Evaluación Institucional","Oficina de Control Interno","Oficina  de control  Interno","INFORMES","Informe de Seguimiento del Plan de Mejoramiento Continuo","Resultado  al seguimientos de las auditorias realIzadas a las dependencias","Español","Electrónico/ Papel","Documento de Texto","Disponible para Consulta","Petición dirigida a la Oficina  de  Control Interno-","Información pública clasificada","Alta","Alta",null,null,null,"Artículos 18 y 19  Ley 1712 de 2014. De la información pública se exceptúan las listas de chequeo y papeles de trabajo que contenga información sensible que pueda afectar a personas naturales o intereses públicos. ","Ley 1712 de 2014, artículos 18, y  parágrafo del artículo 19: \"Se exceptúan también los documentos que contengan las opiniones o puntos de vista que formen parte del proceso deliberativo de los servidores públicos\".","Ley 1712 de 2014, artículos 18, y  parágrafo del artículo 19: \"Se exceptúan también los documentos que contengan las opiniones o puntos de vista que formen parte del proceso deliberativo de los servidores públicos\".","Parcial","Desde el momento de la producción de las listas de chequeo y papeles de trabajo.","Limitado a menos que medie orden de autoridad competente."]
["Evaluación Institucional","Oficina de Control Interno","Oficina  de control  Interno","PLANES Y PROGRAMAS","Plan Operativo Anual (POA)","Programa  para la ejecución anual de las auditorias  de la oficina de control Interno","Español","Electrónico/ Papel","Documento de Texto","Disponible para Consulta","Petición dirigida a la Oficina  de  Control Interno","Información pública","Alta","Alta"]
["Evaluación Institucional","Procuraduria Delegada Preventiva Y De Control De Gestion 3: Para La Gestion Y La Gobernanza Territorial  ","Procuraduria Delegada Preventiva Y De Control De Gestion 3: Para La Gestion Y La Gobernanza Territorial  ","INFORMES","Informes de gestión, informes, relación de procesos disciplinarios","Informes de Gestión ","Español","Papel","Documento de texto (.doc, .txt, .rtf, .pdf)","Disponible para Consulta","Información disponible en el Archivo  Fisisco / Digital ","Información Pública","Alta","Alta","Cuando se entregan los informes de gestión al solicitante","Por acuerdo entre las Partes","Archivo Físico de la Oficina"]
["Evaluación Institucional","Procuraduria Delegada Preventiva Y De Control De Gestion 3: Para La Gestion Y La Gobernanza Territorial  ","Procuraduria Delegada Preventiva Y De Control De Gestion 3: Para La Gestion Y La Gobernanza Territorial  ","PLANES Y PROGRAMAS","Matriz de Plan Operativo Anual ","Plan Operativo Anual( POA)","Español","Papel","Documento de texto (.doc, .txt, .rtf, .pdf)","Disponible para Consulta","Petición  Dirigida a Oficina de  Planeación","Información Pública","Alta","Alta","Cada Año","Anual","www.procuraduria.gov.co/portal/transparencia.page"]
["Evaluación Institucional","Procuraduría Delegada para Asuntos Civiles","Procuraduría Delegada para Asuntos Civiles","PLANES Y PROGRAMAS","PLAN OPERATIVO ANUAL","INDICADORES DE GESTION DE LA DELEGADA","Español","Electrónico","Documento de texto (.doc, .txt, .rtf, .pdf)","Disponible para Consulta","Formato de Solicitud y/o Correo Electrónico","Información Pública","Alta","Media",2022,"Diaria","Archivo Fisico /electrónico de la Oficina"]
["Financiera","Coordinaciones Administrativas","SECRETARÍA GENERAL -División Financiera.     ","CERTIFICADO DE DISPONIBILIDAD PRESUPUESTAL","CERTIFICADO DE DISPONIBILIDAD PRESUPUESTAL","DOCUMENTO QUE GARANTIZA LA EXISTENCIA DE APROPIACION PRESUPUESTAL DISPONIBLE Y LIBRE DE AFECTACION  PARA LA ASUNCION DE COMPROMISOS CON CARGO  AL PRESUPUESTO DE LA RESPECTIVA VIGENCIA","Español","Electrónico / Papel","Documento de Texto / Base de datos","Disponible para Consulta","Petición dirigida a la Oficina Financiera","Información Pública","No Clasificada","Alta"]
["Financiera","División  Financiera","SECRETARÍA GENERAL -División Financiera.     ","INFORMES","INFORME DE EJECUCIÓN PRESUPUESTAL DE LA VIGENCIA","DOCUMENTO QUE CONSOLIDA POR RUBROS PRESUPUESTALES LOS GASTOS EFECTUADOS CON CARGO AL PRESUPUESTO ASIGNADO A LA ENTIDAD","Español","Electrónico / Papel","Documento de Texto / Base de datos","Publicada","Petición dirigida a la Oficina Financiera","Información Pública","No Clasificada","Alta"]
["Financiera","División  Financiera","SECRETARÍA GENERAL -División Financiera.     ","INFORMES","INFORME DE EJECUCIÓN PRESUPUESTAL DE VIGENCIA FUTURA","DOCUMENTO QUE CONSOLIDA LOS CUPOS AUTORIZADOS Y COMPROMETIDOS CON COMPROMISOS PARA AÑOS FUTUROS (VIGENCIAS FUTURAS),","Español","Electrónico / Papel","Documento de Texto / Base de datos","Disponible para Consulta","Petición dirigida a la Oficina Financiera","Información Pública","No Clasificada","Alta"]
["Financiera","División  Financiera","SECRETARÍA GENERAL -División Financiera.     ","MODIFICACIONES PRESUPUESTALES","MODIFICACIONES PRESUPUESTALES","RESOLUCIONES (ACTOS ADMINISTRATIVOS) MEDIANTE LOS CUALES SE MODIFICA EL ANEXO DEL DECRETO DE LIQUIDACION DE LA VIGENCIA RESPECTIVA","Español","Electrónico / Papel","Documento de Texto / Base de datos","Disponible para Consulta","Petición dirigida a la Oficina Financiera","Información Pública","No Clasificada","Alta"]
["Financiera","División  Financiera","SECRETARÍA GENERAL -División Financiera.     ","REGISTRO PRESUPUESTAL","REGISTRO PRESUPUESTAL","IMPUTACION PRESUPUESTAL LA CUAL AFECTA EN FORMA DEFINITIVA LA APROPIACION GARANTIZANDO QUE ESTA SOLO SE UTILIZARA PARA ESTE FIN. DOCUMENTO GENERADO A TRAVES DEL SIIF","Español","Electrónico / Papel","Documento de Texto / Base de datos","Disponible para Consulta","Petición dirigida a la Oficina Financiera","Información Pública","No Clasificada","Alta"]
["Financiera","División  Financiera","SECRETARÍA GENERAL -División Financiera.     ","REGISTROS DE CONTROL","OFICIOS Y DOCUMENTOS ANEXOS","DOCUMENTO QUE SOLICITA LA REDUCCION DE COMPROMISOS REGISTRADOS PRESUPUESTALMENTE, POR REINTEGROS EFECTUADOS A LA DTN","Español","Electrónico / Papel","Documento de texto/ Hoja de Cálculo","Disponible para Consulta","Petición dirigida a la Oficina Financiera","Información Pública","No Clasificada","Media"]
["Intervención","DESPACHO DEL PROCURADOR GENERAL","DESPACHO DEL PROCURADOR GENERAL- Procuraduría Auxiliar para  Asuntos Constitucionales","CONCEPTOS DE LA PROCURADORA ANTE LA CORTE CONSTITUCIONAL  ","CONCEPTOS DE LA PROCURADORA ANTE LA CORTE CONSTITUCIONAL  ","Conceptos que se proyectan para firma de la Procuradora General de la Nación en el marco del control posterior, automático o previo de constitucionalidad ante la Corte Constitucional y aquellos de nulidad por inconstitucionalidad ante el Consejo de Estado.","Español","Electrónico / Papel","Documento de texto (.doc, .txt, .rtf, .pdf)","Publicada","www.procuraduria.gov.co/portal/transparencia.page","Información Pública","Alta","Alta","2022-01-01",null,"Archivo Fisico /electrónico de la Oficina"]
["Intervención","DESPACHO DEL PROCURADOR GENERAL- Procuraduría Auxiliar para  Asuntos Constitucionales","DESPACHO DEL PROCURADOR GENERAL- Procuraduría Auxiliar para  Asuntos Constitucionales","CONSULTAS CONSTITUCIONALES","CONSULTAS CONSTITUCIONALES","Resolución de consultas que formulen los servidores de la Procuraduría General, el Defensor del Pueblo y los Personeros, en relación con el cumplimiento de las funciones del Ministerio Público distintas de las de carácter disciplinario. ","Español","Electrónico / Papel","Documento de texto (.doc, .txt, .rtf, .pdf)","Disponible para Consulta","Petición Verbal o Escrita","Información Pública","Alta","Media","2022-01-01",null,"Archivo Fisico /electrónico de la Oficina"]
["Intervención","DESPACHO DEL PROCURADOR GENERAL- Procuraduría Auxiliar para  Asuntos Constitucionales","DESPACHO DEL PROCURADOR GENERAL- Procuraduría Auxiliar para  Asuntos Constitucionales","PROCESOS DE INSISTENCIA PARA LA REVISIÓN FALLOS TUTELAS","PROCESOS DE INSISTENCIA PARA LA REVISIÓN FALLOS TUTELAS","Solicitudes de insistencia para la selección y revisión de acciones de tutela ante la Corte Constitucional.","Español","Electrónico / Papel","Documento de texto (.doc, .txt, .rtf, .pdf)","Disponible para Consulta","Solicitud con radicación formal","Información Pública","Alta","Media","2022-01-01",null,"Archivo Fisico /electrónico de la Oficina"]
["Intervención","DESPACHO DEL PROCURADOR GENERAL- Procuraduría Auxiliar para  Asuntos Constitucionales","DESPACHO DEL PROCURADOR GENERAL- Procuraduría Auxiliar para  Asuntos Constitucionales","PROCESOS DE INTERVENCIÓN EN ACCIONES DE TUTELA","PROCESOS DE INTERVENCIÓN EN ACCIONES DE TUTELA","Intervención en acciones de tutela seleccionadas  por la Corte Constitucional en sede de revisión. ","Español","Electrónico / Papel","Documento de texto (.doc, .txt, .rtf, .pdf)","Disponible para Consulta","Solicitud con radicación formal","Información Pública","Alta","Media","2022-01-01",null,"Archivo Fisico /electrónico de la Oficina"]
["Intervención","DESPACHO DEL PROCURADOR GENERAL- Procuraduría Auxiliar para  Asuntos Constitucionales","DESPACHO DEL PROCURADOR GENERAL- Procuraduría Auxiliar para  Asuntos Constitucionales","PROCESOS DE SEGUIMIENTO AL CUMPLIMIENTO DE LAS ORDENES JUDICIALES.","PROCESOS DE SEGUIMIENTO AL CUMPLIMIENTO DE LAS ORDENES JUDICIALES.","Seguimiento y acompañamiento al cumplimiento de las órdenes dictadas por la Corte Constitucional.","Español","Electrónico / Papel","Documento de texto (.doc, .txt, .rtf, .pdf)","Disponible para Consulta","Solicitud con radicación formal y de oficio","Información Pública","Alta","Media","2022-01-01",null,"Archivo Fisico /electrónico de la Oficina"]
["Intervención","Procuraduría Delegada para Conciliación","Procuraduría Delegada para Conciliación","AGENCIAS ESPECIALES","Trámite de asignacion agencias y resoluciones","Asuntos reasignados a los Procuradores judiciales Administrativos / Resoluciones de asignación de despachos judiciales por movimientos del personal o nuevos nombramientos","Español","Electrónico ","Documento de Texto / Base de datos","Disponible para Consulta","Solicitud Formal",null,"mensual","Media"]
["Intervención","Procuraduría delegada Preventivas y de control de gestion_2","Procuraduría Delegada para la Investigación y juzgamiento Penal","AGENCIAS ESPECIALES","AGENCIA ESPECIAL","Proceso de Intervención que se adelanta por designación especial en temas específicos                                                                                                                                                                      ","Español","Electrónico / Papel","Documento de texto (.doc, .txt, .rtf, .pdf)","Disponible para Consulta","Formato de Solicitud y/o Correo Electrónico","Información Pública Reservada","Alta","Media",null,null,null,"Ley 1712 de 2014. Art. 19: Información exceptuada por daño a los intereses públicos. Es toda aquella información pública reservada, cuyo acceso podrá ser rechazado o denegado de manera motivada y por escrito en las siguientes circunstancias, siempre que dicho acceso estuviere expresamente prohibido por una norma legal o constitucional:"]
["Intervención","Procuraduría delegada Preventivas y de control de gestion_2","Procuraduría Delegada para la Investigación y juzgamiento Penal","CONCEPTOS","CONCEPTOS","Opinión o juicio sobre un tema en específico. En la PGN en general se profieren dentro de la función misional de intervención.","Español","Electrónico / Papel","Documento de texto (.doc, .txt, .rtf, .pdf)","Disponible para Consulta","Formato de Solicitud y/o Correo Electrónico","Información Pública Clasificada","Alta","Media",null,null,null,"Ley 1712 de 2014. Art. 19: Información exceptuada por daño a los intereses públicos. Es toda aquella información pública reservada, cuyo acceso podrá ser rechazado o denegado de manera motivada y por escrito en las siguientes circunstancias, siempre que dicho acceso estuviere expresamente prohibido por una norma legal o constitucional:"]
["Intervención","Procuraduría delegada Preventivas y de control de gestion_2","Procuraduría Delegada para la Investigación y juzgamiento Penal","DERECHOS DE PETICIÓN","DERECHO PETICIÓN","Garantía del orden constitucional otorgado en su artículo 23 que se ha concedido a los ciudadanos para que estos puedan presentar peticiones a las autoridades, para que se les suministre información sobre situaciones de interés general y/o particular","Español","Electrónico / Papel","Documento de texto (.doc, .txt, .rtf, .pdf)","Disponible para Consulta","Formato de Solicitud y/o Correo Electrónico","Información Pública","Alta","Media"]
["Intervención","Procuraduría delegada Preventivas y de control de gestion_2","DESPACHO DEL PROCURADOR GENERAL- Oficina de Planeación","PLANES Y PROGRAMAS","Plan Operativo anual POA","Seguimiento al cumplimiento en la gestión de las actividades de la dependencia","Español","Electrónico / Papel","Documento de texto (.doc, .txt, .rtf, .pdf)","Disponible para Consulta","Petición  Dirigida a Oficina de  Planeación","Información Pública","Alta","Media"]
["Intervención","Procuraduría delegada Preventivas y de control de gestion_2","Procuraduría Delegada para la Investigación y juzgamiento Penal","INFORMES","Informes de gestión anual","Consolidado de información sobre la gestión adelantada por la dependencia anualmente.","Español","Electrónico / Papel","Documento de texto (.doc, .txt, .rtf, .pdf)","Disponible para Consulta","Formato de Solicitud y/o Correo Electrónico","Información Pública","Alta","Media"]
["Intervención","Procuraduría Delegada para Conciliación","Procuraduría Delegada para Conciliación","CONCEPTOS","Conceptos del Delegado","Conceptos rendidos ante diferentes salas del consejo de estado","Español","Electrónico ","Documento de Texto / Base de datos","Disponible para Consulta","Solicitud Formal",null,"Mensual","Media"]
["Intervención","Procuraduría Delegada para Conciliación","Procuraduría Delegada para Conciliación","DERECHOS DE PETICIÓN","Respuestas","Respuestas a Derechos de Petición de competencia","Español","Electrónico ","Documento de Texto / Base de datos","Disponible para Consulta","Solicitud Formal",null,"mensual","Media"]
["Intervención","Procuraduría Delegada para Conciliación","Procuraduría Delegada para Conciliación","REGISTROS DE CONTROL","Informes estadísticos, POAS, ","Sistema de registro estadístico de 200 procuradurías judiciales administrativas","Español","Electrónico ","Base de Datos (.mdb, .sql)","Publicada","https://www.procuraduria.gov.co/Pages/datos-abiertos.aspx",null,"Mensual","Media"]
["Intervención","Procuraduría Delegada para Asuntos Civiles","Procuraduría Delegada para Asuntos Civiles","INTERVENCIÓN ANTE AUTORIDADES JUDICIALES","INTERVENCIONES EN PROCESOS CIVILES Y COMERCIALES","INTERVENCIONES ORALES Y ESCRITAS, VISITAS A EXPEDIENTE","Español","Electrónico","Documento de texto (.doc, .txt, .rtf, .pdf)","Publicada","Formato de Solicitud y/o Correo Electrónico","Información Pública","Alta","Alta",2022,"Diaria","Archivo Fisico /electrónico de la Oficina"]
["Intervención","Procuraduría Delegada para Asuntos Civiles","Procuraduría Delegada para Asuntos Civiles","INTERVENCIÓN ANTE AUTORIDADES CON FUNCIONES JURISDICCIONALES","INTERVENCIONES EN PROCESOS DE PROTECCION AL CONSUMIDOS  Y DE REORGANIZACUION EMPRESARIAL","INTERVENCIONES ORALES Y ESCRITAS, VISITAS A EXPEDIENTE","Español","Electrónico","Documento de texto (.doc, .txt, .rtf, .pdf)","Publicada","Formato de Solicitud y/o Correo Electrónico","Información Pública","Alta","Alta",2022,"Diaria","Archivo Fisico /electrónico de la Oficina"]
["Intervención","Procuraduría Delegada para Asuntos Civiles","Procuraduría Delegada para Asuntos Civiles","INTERVENCIÓN ANTE OTRAS AUTORIDADES ADMINISTRATIVAS","INTERVENCION EN PROCESOS POLICIVOS","INTERVENCIONES ORALES Y ESCRITAS, VISITAS A EXPEDIENTE","Español","Electrónico","Documento de texto (.doc, .txt, .rtf, .pdf)","Publicada","Formato de Solicitud y/o Correo Electrónico","Información Pública","Alta","Alta",2022,"Diaria","Archivo Fisico /electrónico de la Oficina"]
["Intervención","Procuraduría Delegada para Conciliación","Procuraduría Delegada para Conciliación","PROCESOS DE INTERVENCIÓN","Actuaciones judiciales","Intervenciones, demandas ante el Consejo de Estado","Español","Electrónico ","Documento de Texto / Base de datos","Disponible para Consulta","Solicitud Formal",null,"Mensual","Media"]
["Intervención","Procuraduría Delegada para Conciliación","Procuraduría Delegada para Conciliación","IMPEDIMENTOS EN CONCILIACIÓN","Trámite de impedimentos de los Procuradores Judiciales Administrativos","Cambio de despacho de asuntos asignados en conciliación a los Procuradores judiciales Administrativos","Español","Electrónico ","Documento de Texto / Base de datos","Disponible para Consulta","Solicitud Formal",null,"mensual","Media"]
["Intervención","Procuraduría Delegada para Conciliación","Procuraduría Delegada para Conciliación","PROCESO DE CALIFICACION DE SERVICIOS","Calificaciones individuales","Calificación de servicios de los procuradores judiciales administrativos y funcionarios","Español","Electrónico ","Documento de texto (.doc, .txt, .rtf, .pdf)","Disponible para Consulta","Solicitud Formal",null,"Mensual","Media"]
["Intervención","Procuradurias Judiciales Administrativas","Procuradurias Judiciales Administrativas","CONCILIACIÓN EXTRAJUDICIAL ADMINISTRATIVA","Actuaciones de Conciliación Extrajudicial Administrativa","autos y actas de las actuaciones del trámite de conciliación extrajudicial","Español","Electrónico ","Documento de Texto / Base de datos","Disponible para Consulta","Solicitud Formal",null,"mensual","Media",null,null,null,"Contiene documentos de interés exclusivo de las partes","Ley 1581 de 2012","Los datos personales de los convocantes y apoderados judiciales y las pretensiones económicas no deben ser públicos sin autoización expresa","Parcial","Dia de la radicación de cada expediente","Autorizacion expresa"]
["Intervención","Procuraduría Delegada para Conciliación","Procuraduría Delegada para Conciliación","REGISTROS DE CONTROL","Registro de los repartos de conciliación extrajudicial administrativa.","Planillas de reparto de conciliaciones Extrajudiciales Administrativas","Español","Electrónico ","Documento de Texto / Base de datos","Disponible para Consulta","Solicitud Formal",null,"semanal","Media"]
["Intervención","Procuraduría delegada con funciones mixtas_7","Procuraduría Delegada para la  Defensa de la Infancia, Adolesnecia y","PROCESOS DE INTERVENCIÓN","Procesos de  Intervención en Materia Administrativa  en Familia - ICBF y otros","Intervención judicial y administriva conforme a las funciones señaladas en la Ley 1098 de 2006","Español","Electrónico / Papel","Documento de texto (.doc, .txt, .rtf, .pdf)","Disponible para Consulta","Solicitud  Formal","Información Pública Reservada","Alta","Media","Año 2021","Por autonomía del responsable","SIM","Art. 18 Ley 1712 de 2014. a) El derecho de toda persona a la intimidad"]
["Intervención","Procuraduría delegada con funciones mixtas_11","DESPACHO DEL PROCURADOR GENERAL DE LA NACIÓN -Procuradurìa Delegada con funciones DE Coordinación DE Intervención ante LA Jurisdicción Especial para LA Paz","DERECHOS DE PETICION","Escritos de solicitud"]
["Intervención","Procuraduría delegada con funciones mixtas_11","DESPACHO DEL PROCURADOR GENERAL DE LA NACIÓN -Procuradurìa Delegada con funciones DE Coordinación DE Intervención ante LA Jurisdicción Especial para LA Paz","INTERVENCIÓN","Resolución de delegación","La Procuradurìa Delegada con Funciones de Coordinación de Intervención ante la Jurisdicción Especial para la Paz, en ejercicio de la competencia conferida por la Resolución 0365 del 1 de septiembre de 2020, que delegó en el Procurador Delegado con funciones de Coordinación de Intervención para la Jurisdicción Especial para la Paz, la facultad de asignar a los servidores públicos que sean profesionales del derecho y que se desempeñen como Asesores, Código 1AS, Grados 25 o 24, adscritos a las Procuradurías Primera, Segunda y Tercera Delegadas con funciones de Intervención para la Jurisdicción Especial para la Paz y a la Procuraduría Delegada con funciones de Coordinación de Intervención para la Jurisdicción Especial para la Paz, para que intervengan en representación del Ministerio Público en la práctica de versiones voluntarias y trámites probatorios adelantados por la Sala de Reconocimiento de Verdad, de Responsabilidad y de Determinación de los Hechos y Conductas de la JEP","Español","Electrónico","Documento de Texto / Base de datos","Disponible para Consulta"," Solicitud Formal y/o Correo Electrónico","Información Pública","Media","15 años en Gestion"]
["Intervención","Procuraduría delegada con funciones mixtas_11","DESPACHO DEL PROCURADOR GENERAL DE LA NACIÓN -Procuradurìa Delegada con funciones DE Coordinación DE Intervención ante LA Jurisdicción Especial para LA Paz","INTERVENCIÓN","Documento de Intervención (oral o escrito)","Intervención misional por disposición del artículo 77 de la Ley 1957 de 2019 y el Decreto 1511 de 2018, las Procuradoras Delegadas de Intervención ante la JEP actúan como interviniente especial, asumiendo, entre otras funciones, la de actuar como agente del Ministerio Público y dirigir la intervención ante la Jurisdicción Especial para la Paz en defensa del orden jurídico, los derechos de las víctimas, el patrimonio público y los derechos y garantías fundamentales.","Español","Electrónico","Documento de Texto / Base de datos","Disponible para Consulta","SIM-SIGDEA","Semiprivada","Media","15 años en Gestion"]
["Intervención","Procuraduría delegada con funciones mixtas_11","DESPACHO DEL PROCURADOR GENERAL DE LA NACIÓN -Procuradurìa Delegada con funciones DE Coordinación DE Intervención ante LA Jurisdicción Especial para La Paz","INTERVENCIÓN","Remision del pronunciamiento","Corresponde al documento soporte de prueba de envio al destinatario final.","Español","Electrónico"]
["Intervención","Procuraduría delegada con funciones mixtas_11","DESPACHO DEL PROCURADOR GENERAL DE LA NACIÓN -Procuradurìa Delegada con funciones DE Coordinación DE Intervención ante LA Jurisdicción Especial para LA Paz","INTERVENCIÓN","Acciones o recursos"]
["Intervención","Procuraduría delegada con funciones mixtas_11","DESPACHO DEL PROCURADOR GENERAL DE LA NACIÓN -Procuradurìa Delegada con funciones DE Coordinación DE Intervención ante LA Jurisdicción Especial para LA Paz","INTERVENCIÓN","Comunicaciones","Corresponde a documentos de trámite dentro de las actuaciones de intervencion misional.","Español","Electrónico","Documento de Texto / Base de datos","Disponible para Consulta","SIM-SIGDEA","Información Pública","Media","15 años en Gestion"]
["Intervención","Procuraduría delegada de Intervencion_1","Procuraduría Delegada para para la Casación Penal","CONCEPTOS","Conceptos de Casación Penal","Conceptos de casación emitidos en procesos de Ley 600 de 2000","Español","Electrónico / Papel","Documento de Texto / Base de datos","Disponible para Consulta","Petición Verbal o Escrita","Información Pública","Alta","Media"]
["Intervención","Procuraduría delegada de Intervencion_1","Procuraduría Delegada para para la Casación Penal","CONCEPTOS","Conceptos Extradición","Conceptos en trámites de extradición que se surten en la Sala Penal de la Corte Suprema de Justicia","Español","Electrónico / Papel","Documento de texto/ Hoja de Cálculo","Disponible para Consulta","Petición Verbal o Escrita","Información Pública","Alta","Media"]
["Intervención","Procuraduría delegada de Intervencion_1","Procuraduría Delegada para para la Casación Penal","CONCEPTOS","Conceptos Acción de Revisión","Conceptos de en el trámite de la Acción de Revisión ante la Sala de Casación Penal de la Corte Suprema de Jusitica","Español","Electrónico / Papel","Documento de texto/ Hoja de Cálculo","Disponible para Consulta","Petición Verbal o Escrita","Información Pública","Alta","Media"]
["Intervención","Procuraduría delegada de Intervencion_1","Procuraduría Delegada para para la Casación Penal","CONCEPTOS","Conceptos Insistencias","Conceptos en solicitudes de insistencia contra autos inadmisorios de demandas de casación","Español","Electrónico / Papel","Documento de texto/ Hoja de Cálculo","Disponible para Consulta","Petición Verbal o Escrita","Información Pública","Alta","Media"]
["Intervención","Procuraduría delegada de Intervencion_1","Procuraduría Delegada para para la Casación Penal","DERECHOS DE PETICIÓN","Derechos de petición","Derechos de petición","Español","Electrónico / Papel","Documento de texto (.doc, .txt, .rtf, .pdf)","Disponible para Consulta","Petición Verbal o Escrita","Información Pública","Alta","Media"]
["Intervención","Procuraduría delegada de Intervencion_1","Procuraduría Delegada para para la Casación Penal","INFORMES","Informes de Gestión","Informes de gestión trimestral y anual","Español","Electrónico / Papel","Documento de texto (.doc, .txt, .rtf, .pdf)","Disponible para Consulta","Petición Verbal o Escrita","Información Pública","Alta","Media"]
["Intervención","Procuraduría delegada de Intervencion_1","Procuraduría Delegada para para la Casación Penal","PLANES Y PROGRAMAS","Plan Operativo Anual","Avances al POA","Español","Electrónico / Papel","Documento de texto (.doc, .txt, .rtf, .pdf)","Disponible para Consulta","Petición Verbal o Escrita","Información Pública","Alta","Media"]
["Intervención","Procuraduría Delegada para la Casación Penal","Procuraduría Delegada de Intervención 1. Primera para la Casación Penal","CONCEPTOS","Conceptos de Casación Penal","Conceptos de casación emitidos en procesos de Ley 600 de 2000","Español","Electrónico / Papel","Documento de texto (.doc, .txt, .rtf, .pdf)","Disponible para Consulta","Solicitud formal a la oficina productora","Información Pública","Alta","Alta","octubre de 2022","Diaria","Archivo Fisico /electrónico de la Oficina"]
["Intervención","Procuraduría Delegada para la Casación Penal","Procuraduría Delegada de Intervención 1. Primera para la Casación Penal","CONCEPTOS","Conceptos de Casación Penal","Conceptos de casación emitidos en procesos de Ley 906 de 2004","Español","Electrónico","Documento de texto (.doc, .txt, .rtf, .pdf)","Disponible para Consulta","Solicitud formal a la oficina productora","Información Pública","Alta","Alta","octubre de 2022","Diaria","Archivo electrónico de la Oficina"]
["Intervención","Procuraduría Delegada para la Casación Penal","Procuraduría Delegada de Intervención 1. Primera para la Casación Penal","CONCEPTOS","Conceptos en Mecanismo de Insistencia","Conceptos de casación en Mecanismos de Insistencia contra autos inadmisorios del recurso de casación","Español","Electrónico / Papel","Documento de texto (.doc, .txt, .rtf, .pdf)","Disponible para Consulta","Solicitud formal a la oficina productora","Información Pública","Alta","Alta","octubre de 2022","Diaria","Archivo Fisico /electrónico de la Oficina"]
["Intervención","Procuraduría Delegada para la Casación Penal","Procuraduría Delegada de Intervención 1. Primera para la Casación Penal","CONCEPTOS","Conceptos Extradición","Conceptos en trámties de extradición que se surten en la Sala de Casación Penal de la Corte Suprema de Justicia","Español","Electrónico / Papel","Documento de texto (.doc, .txt, .rtf, .pdf)","Disponible para Consulta","Solicitud formal a la oficina productora","Información Pública","Alta","Alta","octubre de 2022","Diaria","Archivo Fisico /electrónico de la Oficina"]
["Intervención","Procuraduría Delegada para la Casación Penal","Procuraduría Delegada de Intervención 1. Primera para la Casación Penal","CONCEPTOS","Conceptos Acción de Revisión","Conceptos en el trámite de la Acción de Revisión ante la Sala de Casación Penal de la Corte Suprema de Justicia","Español","Electrónico / Papel","Documento de texto (.doc, .txt, .rtf, .pdf)","Disponible para Consulta","Solicitud formal a la oficina productora","Información Pública","Alta","Alta","octubre de 2022","Diaria","Archivo Fisico /electrónico de la Oficina"]
["Intervención","Procuraduría delegada de Intervencion_3","Procuraduría Delegada para la Investigación y juzgamiento Penal","AGENCIAS ESPECIALES","AGENCIA ESPECIAL","Proceso de Intervención que se adelanta por designación especial en temas especiales                                                                                                                                                                          ","Español","Electrónico / Papel","Documento de texto (.doc, .txt, .rtf, .pdf)","Disponible para Consulta","Formato de Solicitud y/o Correo Electrónico","Información Pública Reservada","Alta","Media",null,null,null,"Ley 1712 de 2014. Art. 19: Información exceptuada por daño a los intereses públicos. Es toda aquella información pública reservada, cuyo acceso podrá ser rechazado o denegado de manera motivada y por escrito en las siguientes circunstancias, siempre que dicho acceso estuviere expresamente prohibido por una norma legal o constitucional:"]
["Intervención","Procuraduria delegada de intervencion ante el Consejo de Estado","Procuraduria delegada de intervencion ante el Consejo de Estado","PROCESOS DE INTERVENCION","Acción popular","Concepto","Español","Electrónico / papel","Documento de texto (.doc, .txt, .rtf, .pdf)","Publicada","Petición dirigida a la Procuraduría General de la Nación o al Consejo de Estado","Información Pública","Alta","Alta","2022-01-01","Diaria","Archivo Fisico /electrónico de la Oficina"]
["Intervención","Procuraduría delegada de Intervencion_3","Procuraduría Delegada para la Investigación y juzgamiento Penal","CONCEPTOS","CONCEPTOS","Opinión o juicio sobre un tema en específico. En la PGN en general se profieren dentro de la función misional de intervención.","Español","Electrónico / Papel","Documento de texto (.doc, .txt, .rtf, .pdf)","Disponible para Consulta","Formato de Solicitud y/o Correo Electrónico","Información Pública Clasificada","Alta","Media",null,null,null,"Ley 1712 de 2014. Art. 19: Información exceptuada por daño a los intereses públicos. Es toda aquella información pública reservada, cuyo acceso podrá ser rechazado o denegado de manera motivada y por escrito en las siguientes circunstancias, siempre que dicho acceso estuviere expresamente prohibido por una norma legal o constitucional:"]
["Intervención","Procuraduría delegada de Intervencion_3","Procuraduría Delegada para la Investigación y juzgamiento Penal","DERECHOS DE PETICIÓN","DERECHO PETICIÓN","Garantía del orden constitucional otorgado en su artículo 23 que se ha concedido a los ciudadanos para que estos puedan presentar peticiones a las autoridades, para que se les suministre información sobre situaciones de interés general y/o particular","Español","Electrónico / Papel","Documento de texto (.doc, .txt, .rtf, .pdf)","Disponible para Consulta","Formato de Solicitud y/o Correo Electrónico","Información Pública","Alta","Media"]
["Intervención","Procuraduría delegada de Intervencion_3","DESPACHO DEL PROCURADOR GENERAL- Oficina de Planeación","PLANES Y PROGRAMAS","Plan Operativo anual POA","Seguimiento al cumplimiento en la gestión de las actividades de la dependencia","Español","Electrónico / Papel","Documento de texto (.doc, .txt, .rtf, .pdf)","Disponible para Consulta","Petición  Dirigida a Oficina de  Planeación","Información Pública","Alta","Media"]
["Intervención","Procuraduría delegada de Intervencion_3","Procuraduría Delegada para la Investigación y juzgamiento Penal","INFORMES","Informes de gestión anual","Consolidado de información sobre la gestión adelantada por la dependencia anualmente.","Español","Electrónico / Papel","Documento de texto (.doc, .txt, .rtf, .pdf)","Disponible para Consulta","Formato de Solicitud y/o Correo Electrónico","Información Pública","Alta","Media"]
["Intervención","Procuraduria delegada de intervencion 8: Tercera ante el Consejo de Estado","Procuraduria delegada de intervencion 8: Tercera ante el "]
["Intervención","Procuraduria delegada de intervencion 8: Tercera ante el Consejo de Estado","Procuraduria delegada de intervencion 8: Tercera ante el "]
["Intervención","Procuraduria Delegada de intervención 9: Cuarta Delegada ante el Consejo de Estado","Procuraduria Delegada de intervención 9: Cuarta Delegada ante el Consejo de Estado","Procesos de Intervención","Consecutivo de conceptos de fondo","Se refiere a los memoriale de intervención mediante el cual el Ministerio Público presenta su concepto en procesos ante el Consejo de Estado Sección Tercera Subsección A","Español","Físico / Electrónico","Papel y PDF","Disponible para Consulta","Por medio de solicitud o consulta a través del SIM","Información Pública","Alta","Alta","2011-07-01","Mensual","Archivo Fisico /electrónico de la Oficina / SIM"]
["Intervención","Procuraduria Delegada de intervención 9: Cuarta Delegada ante el Consejo de Estado","Procuraduria Delegada de intervención 9: Cuarta Delegada ante el Consejo de Estado","Conciliaciones extrajudiciales","Procesos de conciliación extrajudicial","Conciliaciones extrajudiciales recibidas por reparto de la Procuradoría primera Delegada","Español","Físico / Electrónico","Papel y PDF","Disponible para Consulta","Por medio de solicitud o consulta a través del SIM","Información Pública","Alta","Alta","2011-07-01","Mensual","Archivo Fisico /electrónico de la Oficina / SIM"]
["Intervención","Procuraduria Delegada de intervención 9: Cuarta Delegada ante el Consejo de Estado","Procuraduria Delegada de intervención 9: Cuarta Delegada ante el Consejo de Estado","Derechos de petición","Derechos de petición","Solicitudes de información, o de intervención o vigilancia judicial sobre procesos que se adelantan en el Consejo de Estado Sección Tercera Subsección A","Español","Físico / Electrónico","Papel y PDF","Disponible para Consulta","Por medio de solicitud o consulta a través del SIGDEA","Información Pública","Alta","Alta","2011-07-01","Mensual","Archivo Fisico /electrónico de la Oficina / SIGDEA"]
["Intervención","Procuraduria Delegada de intervención 9: Cuarta Delegada ante el Consejo de Estado","Procuraduria Delegada de intervención 9: Cuarta Delegada ante el Consejo de Estado","Informes","Informes cualitativos trimestrales  e informes de gestión","Informes presentados ante el despacho del Procurardor(a) General de la Nación, con mención de casos relevantes en los que se haya intervenido como Ministerio Público","Español","Físico / Electrónico","Papel y PDF","Disponible para Consulta","Por medio de solicitud o consulta a través del STRATEGOS","Información Pública","Alta","Alta","2011-07-01","Mensual","Archivo Fisico /electrónico de la Oficina / STRATEGOS"]
["Intervención","Procuraduria Delegada de intervención 9: Cuarta Delegada ante el Consejo de Estado","Procuraduria Delegada de intervención 9: Cuarta Delegada ante el Consejo de Estado","Planes y programas","Plan Operativo Anual POA","La Delegada anualmente plantea metas de gestión a travé de los Planes Operativos Anuales y registra el cumplimiento de estas metas en el Strategos mensualmente","Español","Electrónico","Papel y archivo excel","Disponible para Consulta","Por medio de solicitud o consulta a través del STRATEGOS","Información Pública","Alta","Alta","2011-07-01","Mensual","Archivo Fisico /electrónico de la Oficina / STRATEGOS"]
["Intervención","Procuraduria delegada de intervencion 10 ante el Consejo de Estado","Procuraduria delegada de intervencion ante el Consejo de Estado","AGENCIAS ESPECIALES","Agencias especiales","Solicitud, auto y informes","Español","Electrónico / papel","Documento de texto (.doc, .txt, .rtf, .pdf)","Disponible para Consulta","Petición dirigida a la Procuraduría General de la Nación","Información Pública","Alta","Alta","2022-01-01","Diaria","Archivo Fisico /electrónico de la Oficina"]
["Intervención","Procuraduria delegada de intervencion ante el Consejo de Estado","Procuraduria delegada de intervencion ante el Consejo de Estado","CONCILIACIONES ","Conciliaciones pre-judiciales","Solicitud de conciliacion y anexos, auto admisorio y/o inadmisorio, citación(es), escrito de subsanación y anexos, oficios, acta de audiencia de consiliación, constancia de cumplimiento de requisito de procedibilidad  ","Español","Electrónico / papel","Documento de texto (.doc, .txt, .rtf, .pdf)","Disponible para Consulta","Petición dirigida a la Procuraduría General de la Nación","Información Pública","Alta","Alta","2022-01-01","Diaria","Archivo Fisico /electrónico de la Oficina"]
["Intervención","Procuraduria delegada de intervencion ante el Consejo de Estado","Procuraduria delegada de intervencion ante el Consejo de Estado","CONCILIACIONES ","Conciliación judicial","Estudio de conciliación","Español","Electrónico / papel","Documento de texto (.doc, .txt, .rtf, .pdf)","Disponible para Consulta","Petición dirigida a la Procuraduría General de la Nación","Información Pública","Alta","Alta","2022-01-01","Diaria","Archivo Fisico /electrónico de la Oficina"]
["Intervención","Procuraduria delegada de intervencion ante el Consejo de Estado","Procuraduria delegada de intervencion ante el Consejo de Estado","DERECHOS DE PETICION","Derechos de petición","Solicitud, respuesta y anexos","Español","Electrónico / papel","Documento de texto (.doc, .txt, .rtf, .pdf)","Disponible para Consulta","Petición dirigida a la Procuraduría General de la Nación","Información Pública","Alta","Alta","2022-01-01","Diaria","Archivo Fisico /electrónico de la Oficina"]
["Intervención","Procuraduria delegada de intervencion ante el Consejo de Estado","Procuraduria delegada de intervencion ante el Consejo de Estado","INFORMES","Informe de gestión anual","Informe de gestión anual","Español","Electrónico / papel","Documento de texto (.doc, .txt, .rtf, .pdf)","Disponible para Consulta","Petición dirigida a la Procuraduria delegada de intervencion Quinta ante el Consejo de Estado","Información Pública","Alta","Alta","2022-01-01","Anual","Archivo Fisico /electrónico de la Oficina"]
["Intervención","Procuraduria delegada de intervencion ante el Consejo de Estado","Procuraduria delegada de intervencion ante el Consejo de Estado","PLANES Y PROGRAMAS","Plan operativo anual","Plan operativo anual","Español","Electrónico / papel","Documento de texto (.doc, .txt, .rtf, .pdf)","Disponible para Consulta","Petición dirigida a la Procuraduria delegada de intervencion Quinta ante el Consejo de Estado","Información Pública","Alta","Alta","2022-01-01","Anual","Archivo Fisico /electrónico de la Oficina"]
["Intervención","Procuraduria delegada de intervencion ante el Consejo de Estado","Procuraduria delegada de intervencion ante el Consejo de Estado","PROCESOS DE INTERVENCION","Acción de nulidad","Concepto","Español","Electrónico / papel","Documento de texto (.doc, .txt, .rtf, .pdf)","Publicada","Petición dirigida a la Procuraduría General de la Nación o al Consejo de Estado","Información Pública","Alta","Alta","2022-01-01","Diaria","Archivo Fisico /electrónico de la Oficina"]
["Intervención","Procuraduria delegada de intervencion ante el Consejo de Estado","Procuraduria delegada de intervencion ante el Consejo de Estado","PROCESOS DE INTERVENCION","Acción de nulidad y restablecimiento del derecho","Concepto","Español","Electrónico / papel","Documento de texto (.doc, .txt, .rtf, .pdf)","Publicada","Petición dirigida a la Procuraduría General de la Nación o al Consejo de Estado","Información Pública","Alta","Alta","2022-01-01","Diaria","Archivo Fisico /electrónico de la Oficina"]
["Intervención","Procuraduria delegada de intervencion ante el Consejo de Estado","Procuraduria delegada de intervencion ante el Consejo de Estado","PROCESOS DE INTERVENCION","Acción de repetición","Concepto","Español","Electrónico / papel","Documento de texto (.doc, .txt, .rtf, .pdf)","Publicada","Petición dirigida a la Procuraduría General de la Nación o al Consejo de Estado","Información Pública","Alta","Alta","2022-01-01","Diaria","Archivo Fisico /electrónico de la Oficina"]
["Intervención","Procuraduria delegada de intervencion ante el Consejo de Estado","Procuraduria delegada de intervencion ante el Consejo de Estado","PROCESOS DE INTERVENCION","Acción de reparación directa","Concepto","Español","Electrónico / papel","Documento de texto (.doc, .txt, .rtf, .pdf)","Publicada","Petición dirigida a la Procuraduría General de la Nación o al Consejo de Estado","Información Pública","Alta","Alta","2022-01-01","Diaria","Archivo Fisico /electrónico de la Oficina"]
["Intervención","Procuraduria delegada de intervencion ante el Consejo de Estado","Procuraduria delegada de intervencion ante el Consejo de Estado","PROCESOS DE INTERVENCION","Acción contractual","Concepto","Español","Electrónico / papel","Documento de texto (.doc, .txt, .rtf, .pdf)","Publicada","Petición dirigida a la Procuraduría General de la Nación o al Consejo de Estado","Información Pública","Alta","Alta","2022-01-01","Diaria","Archivo Fisico /electrónico de la Oficina"]
["Intervención","Procuraduria delegada de intervencion ante el Consejo de Estado","Procuraduria delegada de intervencion ante el Consejo de Estado","PROCESOS DE INTERVENCION","Acción de grupo","Concepto","Español","Electrónico / papel","Documento de texto (.doc, .txt, .rtf, .pdf)","Publicada","Petición dirigida a la Procuraduría General de la Nación o al Consejo de Estado","Información Pública","Alta","Alta","2022-01-01","Diaria","Archivo Fisico /electrónico de la Oficina"]
["Intervención","Procuraduria delegada de intervencion ante el Consejo de Estado","Procuraduria delegada de intervencion ante el Consejo de Estado","PROCESOS DE INTERVENCION","Acción de tutela","Concepto","Español","Electrónico / papel","Documento de texto (.doc, .txt, .rtf, .pdf)","Publicada","Petición dirigida a la Procuraduría General de la Nación o al Consejo de Estado","Información Pública","Alta","Alta","2022-01-01","Diaria","Archivo Fisico /electrónico de la Oficina"]
["Intervención","Procuraduria delegada de intervencion ante el Consejo de Estado","Procuraduria delegada de intervencion ante el Consejo de Estado","PROCESOS DE INTERVENCION","Acción de revisión de asuntos agrarios ","Concepto","Español","Electrónico / papel","Documento de texto (.doc, .txt, .rtf, .pdf)","Publicada","Petición dirigida a la Procuraduría General de la Nación o al Consejo de Estado","Información Pública","Alta","Alta","2022-01-01","Diaria","Archivo Fisico /electrónico de la Oficina"]
["Intervención","Procuraduria delegada de intervencion ante el Consejo de Estado","Procuraduria delegada de intervencion ante el Consejo de Estado","PROCESOS DE INTERVENCION","Acción de nulidad electoral","Concepto","Español","Electrónico / papel","Documento de texto (.doc, .txt, .rtf, .pdf)","Publicada","Petición dirigida a la Procuraduría General de la Nación o al Consejo de Estado","Información Pública","Alta","Alta","2022-01-01","Diaria","Archivo Fisico /electrónico de la Oficina"]
["Intervención","Procuraduria delegada de intervencion ante el Consejo de Estado","Procuraduria delegada de intervencion ante el Consejo de Estado","PROCESOS DE INTERVENCION","Perdida de investidura","Concepto","Español","Electrónico / papel","Documento de texto (.doc, .txt, .rtf, .pdf)","Publicada","Petición dirigida a la Procuraduría General de la Nación o al Consejo de Estado","Información Pública","Alta","Alta","2022-01-01","Diaria","Archivo Fisico /electrónico de la Oficina"]
["Intervención","Procuraduria delegada de intervencion ante el Consejo de Estado","Procuraduria delegada de intervencion ante el Consejo de Estado","PROCESOS DE INTERVENCION","Proceso ejecutivo","Concepto","Español","Electrónico / papel","Documento de texto (.doc, .txt, .rtf, .pdf)","Publicada","Petición dirigida a la Procuraduría General de la Nación o al Consejo de Estado","Información Pública","Alta","Alta","2022-01-01","Diaria","Archivo Fisico /electrónico de la Oficina"]
["Intervención","Procuraduria delegada de intervencion ante el Consejo de Estado","Procuraduria delegada de intervencion ante el Consejo de Estado","PROCESOS DE INTERVENCION","Recurso de anulación de audo arbitral","Concepto","Español","Electrónico / papel","Documento de texto (.doc, .txt, .rtf, .pdf)","Publicada","Petición dirigida a la Procuraduría General de la Nación o al Consejo de Estado","Información Pública","Alta","Alta","2022-01-01","Diaria","Archivo Fisico /electrónico de la Oficina"]
["Intervención","Procuraduria delegada de intervencion ante el Consejo de Estado","Procuraduria delegada de intervencion ante el Consejo de Estado","PROCESOS DE INTERVENCION","Recurso extraordinario de revisión","Concepto","Español","Electrónico / papel","Documento de texto (.doc, .txt, .rtf, .pdf)","Publicada","Petición dirigida a la Procuraduría General de la Nación o al Consejo de Estado","Información Pública","Alta","Alta","2022-01-01","Diaria","Archivo Fisico /electrónico de la Oficina"]
["Intervención","Procuraduria delegada de intervencion ante el Consejo de Estado","Procuraduria delegada de intervencion ante el Consejo de Estado","PROCESOS DE INTERVENCION","Recurso de unificación de jurisprudencia","Concepto","Español","Electrónico / papel","Documento de texto (.doc, .txt, .rtf, .pdf)","Publicada","Petición dirigida a la Procuraduría General de la Nación o al Consejo de Estado","Información Pública","Alta","Alta","2022-01-01","Diaria","Archivo Fisico /electrónico de la Oficina"]
["Intervención","Procuraduria delegada de intervencion ante el Consejo de Estado","Procuraduria delegada de intervencion ante el Consejo de Estado","PROCESOS DE INTERVENCION","Incidente de impacto fiscal","Concepto","Español","Electrónico / papel","Documento de texto (.doc, .txt, .rtf, .pdf)","Publicada","Petición dirigida a la Procuraduría General de la Nación o al Consejo de Estado","Información Pública","Alta","Alta","2022-01-01","Diaria","Archivo Fisico /electrónico de la Oficina"]
["Intervención","Procuraduria delegada de intervencion ante el Consejo de Estado","Procuraduria delegada de intervencion ante el Consejo de Estado","INVENTARIOS","Inventario de archivos de gestión","Inventario, transferencia","Español","Electrónico / papel","Documento de texto (.doc, .txt, .rtf, .pdf)","Publicada","Petición dirigida a la Procuraduria delegada de intervencion Quinta ante el Consejo de Estado, División de Documentación","Información Pública","Alta","Alta","2022-01-01","Diaria","Archivo Fisico /electrónico de la Oficina"]
["Intervención","Procuraduría Delegada ante el Consejo de Estado","Procuraduría Delegada de Intervención 12: Séptima ante el Consejo de Estado","PROCEDIMIENTO ADMINISTRATIVO","Matríz de procesos de la Delegada","Contiene los datos básicos de los procesos  de intervención  de la Delegada,  con actualización permanente","Español","Electrónico","Hoja de Cálculo (.xls, .xlt, .csv)","Disponible para Consulta"," Solicitud Formal y/o Correo Electrónico","Información Pública","Alta","Media","A partir de Enero de 2021","Semanal","Archivo Fisico /electrónico de la Oficina"]
["Intervención","Procuraduría Delegada ante el Consejo de Estado","Procuraduría Delegada de Intervención 12: Séptima ante el Consejo de Estado","CONCEPTOS","Conceptos de fondo","Consecutivo de conceptos emitidos como intervención del Ministerio Público en procesos ante Consejo de Estado","Español","Electrónico","Hoja de Cálculo (.xls, .xlt, .csv)","Disponible para Consulta"," Solicitud Formal y/o Correo Electrónico","Información Pública","Alta","Alta","A partir de Enero de 2021","Semanal","Archivo Fisico /electrónico de la Oficina",null,null,null,null,2011]
["Intervención","Procuraduría Delegada ante el Consejo de Estado","Procuraduría Delegada de Intervención 12: Séptima ante el Consejo de Estado","CONCILIACIÓN EXTRAJUDICIAL ADMINISTRATIVA","Conceptos de Conciliación Judicial","Consecutivo de conceptos emitidos como intervención del Ministerio Público en procesos de conciliación extrajudicial","Español","Electrónico","Hoja de Cálculo (.xls, .xlt, .csv)","Disponible para Consulta"," Solicitud Formal y/o Correo Electrónico","Información Pública","Alta","Alta","A partir de Enero de 2021","Semanal","Archivo Fisico /electrónico de la Oficina",null,null,null,null,2011]
["Intervención","Procuraduría Delegada ante el Consejo de Estado","Procuraduría Delegada de Intervención 12: Séptima ante el Consejo de Estado","DERECHOS DE PETICIÓN","Respuesta a Derechos de Petición","Solicitudes de intervención, de prelación de fallo o información en procesos ante el Consejo de Estado","Español","Electrónico","Documento de texto (.doc, .txt, .rtf, .pdf)","Disponible para Consulta"," Solicitud Formal y/o Correo Electrónico","Información Pública","Alta","Alta","A partir de Enero de 2021","Semanal","Archivo Fisico /electrónico de la Oficina",null,null,null,null,2011]
["Intervención","Procuraduría Delegada ante el Consejo de Estado","Procuraduría Delegada de Intervención 12: Séptima ante el Consejo de Estado","INFORMES","Informes cualitativos","Informes presentados al despacho con casos relevantes de la delegada","Español","Electrónico","Documento de texto (.doc, .txt, .rtf, .pdf)","Disponible para Consulta"," Solicitud Formal y/o Correo Electrónico","Información Pública","Media","Media","A partir de Enero de 2021","Mensual","Archivo Fisico /electrónico de la Oficina",null,null,null,null,2011]
["Intervención","Procuraduría Delegada ante el Consejo de Estado","Procuraduría Delegada de Intervención 12: Séptima ante el Consejo de Estado","INFORMES","Informes Ejecutivos y de Gestión","Informes presentados al despacho describiendo gestión y logros de la delegada","Español","Electrónico","Documento de texto (.doc, .txt, .rtf, .pdf)","Disponible para Consulta"," Solicitud Formal y/o Correo Electrónico","Información Pública","Media","Media","A partir de Enero de 2021","Semestral","Archivo Fisico /electrónico de la Oficina",null,null,null,null,2011]
["Intervención","Procuraduría Delegada ante el Consejo de Estado","Procuraduría Delegada de Intervención 12: Séptima ante el Consejo de Estado","MAPAS DE RIESGOS","Plan Operativo anual POA","Mapa de riesgos externos e internos","Español","Electrónico","Documento de texto (.doc, .txt, .rtf, .pdf)","Publicada"," Solicitud Formal y/o Correo Electrónico","Información Pública","Media","Media","A partir de Enero de 2021","Trimestral","Archivo Fisico /electrónico de la Oficina",null,null,null,null,2011]
["Mejoramiento Continuo","Oficina de Planeación","Oficina de Planeación","Manual de Procesos y  Procedimientos","Manual de funciones","Carta descriptivas de cada uno de los empleos de la entidad","Español","Electrónico ","Documento de texto (.doc, .txt, .rtf, .pdf)","Disponible para Consulta","Petición dirigida a la Oficina de Planeación","Información Pública","Alta","Alta","A solicitud","A solicitud","Archivo Electrónico de la oficina"]
["Mejoramiento Continuo","Oficina de Planeación","Oficina de Planeación","Manual de Procesos y  Procedimientos","Manual de Calidad","Documento descriptivo del cumplimiento de los requisitos de la norma de calidad en el sistema de gestión de la entidad","Español","Electrónico ","Documento de texto (.doc, .txt, .rtf, .pdf)","Disponible para Consulta","Petición dirigida a la Oficina de Planeación","Información Pública","Alta","Alta","A solicitud","A solicitud","Archivo Electrónico de la oficina"]
["Mejoramiento Continuo","Oficina de Planeación","Oficina de Planeación","Manual de Procesos y  Procedimientos","Acta de modificación de documentos de procesos del sistema de gestión de calidad","Memoria que contiene las principales decisiones tomadas con respecto al sistema de gestión de calidad","Español","Electrónico ","Documento de texto (.doc, .txt, .rtf, .pdf)","Disponible para Consulta","Petición dirigida a la Oficina de Planeación","Información Pública","Alta","Alta","A solicitud","A solicitud","Archivo Electrónico de la oficina"]
["Mejoramiento Continuo","Oficina de Planeación","Oficina de Planeación","Manual de Procesos y  Procedimientos","Resoluciones","Acto administrativo que adopta disposiciones sobre el sistema de gestión de calidad","Español","Electrónico ","Documento de texto (.doc, .txt, .rtf, .pdf)","Disponible para Consulta","Petición dirigida a la Oficina de Planeación","Información Pública","Alta","Alta","A solicitud","A solicitud","Archivo Electrónico de la oficina"]
["Mejoramiento Continuo","Oficina de Planeación","Oficina de Planeación","Manual de Procesos y  Procedimientos","Caracterizaciones, Instructivo, guías y  procedimientos","documento que describe el quehacer de un proceso","Español","Electrónico ","Documento de texto (.doc, .txt, .rtf, .pdf)","Disponible para Consulta","Petición dirigida a la Oficina de Planeación","Información Pública","Alta","Alta","A solicitud","A solicitud","Archivo Electrónico de la oficina"]
["Mejoramiento Continuo","Oficina de Planeación","Oficina de Planeación","Manual de Procesos y  Procedimientos","Formatos","Documento que apoya el quehacer de un proceso","Español","Electrónico ","Documento de texto (.doc, .txt, .rtf, .pdf)","Disponible para Consulta","Petición dirigida a la Oficina de Planeación","Información Pública","Alta","Alta","A solicitud","A solicitud","Archivo Electrónico de la oficina"]
["Mejoramiento Continuo","Oficina de Planeación","Oficina de Planeación","Manual de Procesos y  Procedimientos","Oficio de Solicitud","Documento que contiene por parte del líder del proceso la actualización creación o eliminación documental del proceso a cargo","Español","Electrónico ","Documento de texto (.doc, .txt, .rtf, .pdf)","Disponible para Consulta","Petición dirigida a la Oficina de Planeación","Información Pública","Alta","Alta","A solicitud","A solicitud","Archivo Electrónico de la oficina"]
["Mejoramiento Continuo","Oficina de Planeación","Oficina de Planeación","Manual de Procesos y  Procedimientos","Oficio de respuesta","Documento que contiene el concepto con la aprobación de la solicitud presentada por el líder del proceso","Español","Electrónico ","Documento de texto (.doc, .txt, .rtf, .pdf)","Disponible para Consulta","Petición dirigida a la Oficina de Planeación","Información Pública","Alta","Alta","A solicitud","A solicitud","Archivo Electrónico de la oficina"]
["Mejoramiento Continuo","Oficina de Planeación","Oficina de Planeación","Mapas de Riesgos","Matriz de riesgo","Herramienta que contiene la identificación de los riesgos y sus controles ","Español","Electrónico ","Documento de texto (.doc, .txt, .rtf, .pdf)","Disponible para Consulta","Petición dirigida a la Oficina de Planeación","Información Pública","Alta","Alta","A solicitud","A solicitud","Archivo Electrónico de la oficina"]
["Mejoramiento Continuo","Oficina de Planeación","Oficina de Planeación","Mapas de Riesgos","Acta de mesas de trabajo","Memoria que contiene las principales decisiones tomadas con respecto al sistema de gestión de calidad","Español","Electrónico ","Documento de texto (.doc, .txt, .rtf, .pdf)","Disponible para Consulta","Petición dirigida a la Oficina de Planeación","Información Pública","Alta","Alta","A solicitud","A solicitud","Archivo Electrónico de la oficina"]
["Mejoramiento Continuo","Oficina de Planeación","Oficina de Planeación","Mapas de Riesgos","Oficio de Solicitud","Documento que contiene por parte del líder del proceso la actualización creación o eliminación documental del proceso a cargo","Español","Electrónico ","Documento de texto (.doc, .txt, .rtf, .pdf)","Disponible para Consulta","Petición dirigida a la Oficina de Planeación","Información Pública","Alta","Alta","A solicitud","A solicitud","Archivo Electrónico de la oficina"]
["Mejoramiento Continuo","Oficina de Planeación","Oficina de Planeación","Mapas de Riesgos","Oficio de respuesta","Documento que contiene el concepto con la aprobación de la solicitud presentada por el líder del proceso","Español","Electrónico ","Documento de texto (.doc, .txt, .rtf, .pdf)","Disponible para Consulta","Petición dirigida a la Oficina de Planeación","Información Pública","Alta","Alta","A solicitud","A solicitud","Archivo Electrónico de la oficina"]
["Mejoramiento Continuo","Oficina de Planeación","Oficina de Planeación","Plan de Mejoramiento","Plan","Herramienta que contiene descripción de las actividades a desarrollar dentro del plan","Español","Electrónico ","Documento de texto (.doc, .txt, .rtf, .pdf)","Disponible para Consulta","Petición dirigida a la Oficina de Planeación","Información Pública","Alta","Alta","A solicitud","A solicitud","Archivo Electrónico de la oficina"]
["Mejoramiento Continuo","Oficina de Planeación","Oficina de Planeación","Plan de Mejoramiento","Acciones preventivas","Describe las actividades que ayudaran a prevenir la ocurrencia de un evento","Español","Electrónico ","Documento de texto (.doc, .txt, .rtf, .pdf)","Disponible para Consulta","Petición dirigida a la Oficina de Planeación","Información Pública","Alta","Alta","A solicitud","A solicitud","Archivo Electrónico de la oficina"]
["Mejoramiento Continuo","Oficina de Planeación","Oficina de Planeación","Plan de Mejoramiento","Acciones Correctivas","Describe las actividades que ayudaran a corregir la ocurrencia de un evento","Español","Electrónico ","Documento de texto (.doc, .txt, .rtf, .pdf)","Disponible para Consulta","Petición dirigida a la Oficina de Planeación","Información Pública","Alta","Alta","A solicitud","A solicitud","Archivo Electrónico de la oficina"]
["Mejoramiento Continuo","Oficina de Planeación","Oficina de Planeación","Plan de Mejoramiento","Seguimiento","Describe las actividades a verificar el cumplimiento de las acciones preventivas y correctivas levantadas","Español","Electrónico ","Documento de texto (.doc, .txt, .rtf, .pdf)","Disponible para Consulta","Petición dirigida a la Oficina de Planeación","Información Pública","Alta","Alta","Semestral","Semestral","Archivo Electrónico de la oficina"]
["Preventivo","DESPACHO DEL PROCURADOR GENERAL- Procuraduría Auxiliar para  Asuntos Constitucionales","DESPACHO DEL PROCURADOR GENERAL- Procuraduría Auxiliar para  Asuntos Constitucionales","PROCESO DE SUPERVIGILANCIA AL DERECHO DE PETICIÓN","PROCESO DE SUPERVIGILANCIA AL DERECHO DE PETICIÓN","Supervigilancia y pedagogía  al ejercicio del derecho de peticion  en el marco del artículo 23 de la Constitución y la Ley 1755 de 2015. ","Español","Electrónico / Papel","Documento de texto (.doc, .txt, .rtf, .pdf)","Disponible para Consulta","Solicitud con radicación formal","Información Pública","Alta","Media","2022-01-01",null,"Archivo Fisico /electrónico de la Oficina"]
["Preventivo","CONSEJO NACIONAL ELECTORAL, GRUPO SIRI, DEPARTAMENTO DE LA FUNCIÓN PÚBLICA, ENTIDADES PÚBLICAS (A través deSECOP)","GRUPO DE TRABAJO UNIDAD DE GESTION DE INFORMACION E INTELIGENCIA - UGII ","SIN CLASIFICAR","Modelo analitico Electoral","Implementación de un modelo descriptivo que permita el análisis de los resultados de las elecciones y que sirva también de soporte numérico para la procuraduría Séptima Delegada ante el Consejo de Estado, en cuanto a las demandas de nulidad  que por los resultados de votaciones se presentan.​","Español","Electrónico","Documento de Texto / Base de datos","Disponible para Consulta","Solicitud con radicación formal","Información Pública","Media","Media","2020-12-01","Por autonomía del responsable","Modelo Proceso Electoral - Introducción (awa-pgnanalitica.azurewebsites.net)"]
["Preventivo","Procuraduría delegada Preventivas y de control de gestion_4","Procuraduría Delegada para Asuntos Étnicos","ACCIONES PREVENTIVAS DE ORIENTACIÓN","Actuaciones preventivas en escenarios de orientación","Atención que se brinda al ciudadano de manera presencial, por correo electrónico o por vía telefónica en los diferentes temas preventivos que gestiona la dependencia.","Español","Electrónico / Papel","Documento de Texto / Base de datos","Disponible para Consulta","Petición Verbal o Escrita","Información Pública","Alta","Media"]
["Preventivo","Procuraduría Delegada Preventiva y de Control de Gestión 2. Segunda para la Vigilancia Preventiva de la Función Pública ","Procuraduría Delegada Preventiva y de Control de Gestión 2. Segunda para la Vigilancia Preventiva de la Función Pública ","ACCIONES PREVENTIVAS DE ORIENTACIÓN","Acciones Preventivas en escenarios de Orientación ","Atención que se brinda al ciudadano de manera presencial, por correo electrónico o por vía telefónica en los diferentes temas preventivos que gestiona la dependencia.","Español","Electrónico / Papel","Documento de texto (.doc, .txt, .rtf, .pdf)","Disponible para Consulta","Petición Verbal o Escrita","Información Pública","Alta","Media",2016,"Diaria","SIGDEA"]
["Preventivo","Procuraduría Delegada Preventiva y de Control de Gestión 2. Segunda para la Vigilancia Preventiva de la Función Pública ","Procuraduría Delegada Preventiva y de Control de Gestión 2. Segunda para la Vigilancia Preventiva de la Función Pública ","ACCIONES PREVENTIVAS DE MITIGACIÓN ASUNTOS ABREVIADOS","Actuaciones preventivas en asuntos abreviados en escenario de mitigación","Peticiones o quejas presentadas ante la PGN, las cuales activan el Preventivo, información de actividades preventivas primarias que se desarrollan en un lapso inferior a 6 meses, buscando el resarcimiento de los derechos vulnerados.","Español","Electrónico / Papel","Documento de texto (.doc, .txt, .rtf, .pdf)","Disponible para Consulta","Petición Verbal o Escrita","Información Pública","Alta","Media",2016,"Diaria","SIM"]
["Preventivo","Procuraduría Delegada Preventiva y de Control de Gestión 2. Segunda para la Vigilancia Preventiva de la Función Pública ","Procuraduría Delegada Preventiva y de Control de Gestión 2. Segunda para la Vigilancia Preventiva de la Función Pública ","ACCIONES PREVENTIVAS DE MITIGACIÓN ASUNTOS ORDINARIOS","Actuaciones preventivas en asuntos ordinarios en escenario de mitigación","Peticiones o quejas  presentadas ante la PGN que requieren  una mayor atención y la realización de actividades adicionales, que toman mayor tiempo dada la complejidad del tema, con el fin de mitigar los efectos negativos generados por la vulneración o desconocmiento de un derecho sobre un individuo o grupo poblacional, o a restablecer tales derechos.","Español","Electrónico / Papel","Documento de texto (.doc, .txt, .rtf, .pdf)","Disponible para Consulta","Petición Verbal o Escrita","Información Pública","Alta","Media",2016,"Diaria","SIM"]
["Preventivo","Procuraduría Delegada Preventiva y de Control de Gestión 2. Segunda para la Vigilancia Preventiva de la Función Pública ","Procuraduría Delegada Preventiva y de Control de Gestión 2. Segunda para la Vigilancia Preventiva de la Función Pública ","ACCIONES PREVENTIVAS DE ANTICIPACIÓN CASO","Actuaciones preventivas en caso preventivo en escenario de anticipación","Actuaciones que buscan anticipar riesgos de ocurrencia de un hecho particular y concreto que implique vulneración de derechos o que afecten el adecuado ejercicio de la gestión pública en relación con el goce efectivo de los mismos. ","Español","Electrónico / Papel","Documento de texto (.doc, .txt, .rtf, .pdf)","Disponible para Consulta","Petición Verbal o Escrita","Información Pública","Alta","Media",2016,"Diaria","SIM"]
["Preventivo","Procuraduría Delegada Preventiva y de Control de Gestión 2. Segunda para la Vigilancia Preventiva de la Función Pública ","Procuraduría Delegada Preventiva y de Control de Gestión 2. Segunda para la Vigilancia Preventiva de la Función Pública ","ACCIONES PREVENTIVAS DE ANTICIPACIÓN PROYECTO","Actuaciones preventivas en proyecto preventivo en escenario de anticipación","Actuaciones que tienen por finalidad anticipar el riesgo de ocurrencia de hechos que impliquen la vulneración de derechos que puedan afectar a un grupo poblacional y la materialización de riesgos que puedan afectar su garantía.","Español","Electrónico / Papel","Documento de texto (.doc, .txt, .rtf, .pdf)","Disponible para Consulta","Petición Verbal o Escrita","Información Pública","Alta","Media",2016,"Diaria","SIM"]
["Preventivo","Procuraduría delegada Preventivas y de control de gestion_4","Procuraduría Delegada para Asuntos Étnicos","ACCIONES PREVENTIVAS DE MITIGACIÓN ASUNTOS ABREVIADOS","Actuaciones preventivas en asuntos abreviados","Peticiones o quejas presentadas ante la PGN, las cuales activan el Preventivo, información de actividades preventivas primarias que se desarrollan en un lapso inferior a 6 meses, buscando el resarcimiento de los derechos vulenerados.","Español","Electrónico / Papel","Documento de Texto / Base de datos","Disponible para Consulta","Petición Verbal o Escrita","Información Pública","Alta","Media"]
["Preventivo","Procuraduria Delegada Preventiva Y De Control De Gestion 3: Para La Gestion Y La Gobernanza Territorial  ","Procuraduria Delegada Preventiva Y De Control De Gestion 3: Para La Gestion Y La Gobernanza Territorial  ","ACTUACIONES  PREVENTIVAS","Actuaciones preventivas en escenarios de orientacion, que no implican actuaciones adicionales."," Orientacion,atencion al publico. ","Español","Papel","Documento de texto (.doc, .txt, .rtf, .pdf)","Disponible para Consulta","Petición Verbal o Escrita","Información Pública","Alta","Media","2022-01-01","Diaria","www.procuraduria.gov.co/portal/transparencia.page"]
["Preventivo","Procuraduria Delegada Preventiva Y De Control De Gestion 3: Para La Gestion Y La Gobernanza Territorial  ","Procuraduria Delegada Preventiva Y De Control De Gestion 3: Para La Gestion Y La Gobernanza Territorial  ","ACTUACIONES  PREVENTIVAS","Actuaciones preventivas en Asuntos Abreviados","Solicitudes, requerimientos y respuestas a usuarios, plasmadas en comunicaciones y/o de oficio, para "]
["Preventivo","Procuraduria Delegada Preventiva Y De Control De Gestion 3: Para La Gestion Y La Gobernanza Territorial  ","Procuraduria Delegada Preventiva Y De Control De Gestion 3: Para La Gestion Y La Gobernanza Territorial  ","ACTUACIONES  PREVENTIVAS","Actuaciones preventivas en Asuntos Ordinarios","Solicitudes, requerimientos y respuestas a usuarios, plasmadas en comunicaciones y/o de oficio, para "]
["Preventivo","Procuraduria Delegada Preventiva Y De Control De Gestion 3: Para La Gestion Y La Gobernanza Territorial  ","Procuraduria Delegada Preventiva Y De Control De Gestion 3: Para La Gestion Y La Gobernanza Territorial  ","ACTUACIONES  PREVENTIVAS","Actuaciones Preventivas de Caso Preventivo","Actuaciones preventivas en un escenario de anticipación en donde se vulneran derechos relacionados con las personas y el interés del Estado para "]
["Preventivo","Procuraduria Delegada Preventiva Y De Control De Gestion 3: Para La Gestion Y La Gobernanza Territorial  ","Procuraduria Delegada Preventiva Y De Control De Gestion 3: Para La Gestion Y La Gobernanza Territorial  ","ACTUACIONES  PREVENTIVAS","Proyectos Preventivos","Fomulación de Proyectos Estratégicos “PE”, de conformidad con el plan Operativo Anual de la entidad, a desarrollar en cada anualidad de acuerdo a temas de Servicios Publicos, Ordenamiento Territorial, Gestion del Riesgo y Planes de Desarrollo Territorial","Español","Papel","Documento de texto (.doc, .txt, .rtf, .pdf)","Disponible para Consulta","Petición Verbal o Escrita","Información Pública","Alta","Media","2022-01-01","Mensual","www.procuraduria.gov.co/portal/transparencia.page"]
["Preventivo","Procuraduría delegada Preventivas y de control de gestion_4","Procuraduría Delegada para Asuntos Étnicos","ACCIONES PREVENTIVAS DE MITIGACIÓN ASUNTOS ORDINARIOS","Actuaciones preventivas en asuntos ordinarios","Peticiones o quejas  presentadas ante la PGN que requieren  una mayor atención y la realización de actividades adicionales, que toman mayor tiempo dada la complejidad del tema, con el fin de mitigar los efectos negativos generados por la vulneración o desconocmiento de un derecho sobre un individuo o grupo poblacional, o a restablecer tales derechos.","Español","Electrónico / Papel","Documento de Texto / Base de datos","Disponible para Consulta","Petición Verbal o Escrita","Información Pública","Alta","Media"]
["Preventivo","Procuraduría delegada Preventivas y de control de gestion_4","Procuraduría Delegada para Asuntos Étnicos","ACCIONES PREVENTIVAS DE ANTICIPACIÓN CASO","Actuaciones preventivas de caso preventivo","Tipo de actuación que busca anticipar riesgos de ocurrencia de"]
["Preventivo","Procuraduría delegada Preventivas y de control de gestion_4","DESPACHO DEL PROCURADOR GENERAL- Oficina de Planeación","PLANES Y PROGRAMAS","Plan Operativo Anual POA","Programación de metas anuales de acuerdo al Plan Estratégico de la entidad","Español","Electrónico / Papel","Hoja de Cálculo (.xls, .xlt, .csv)","Disponible para Consulta","Petición Verbal o Escrita","Información Pública","Alta","Media"]
["Preventivo","Procuraduría Delegada para la Defensa de los derechos Humanos","Procuraduría Delegada para la Defensa de los derechos Humanos","ACCIONES PREVENTIVAS DE ORIENTACIÓN","Actuaciones preventivas en escenarios de orientación","Orientación a los Ciudadanos Respecto de las Rutas de Atención y Gestiones Adelantadas con el Objeto de Mitigar la Violación de un Derecho o la Restitución del Mismo,","Español","Electrónico / Papel","Documento de Texto / Base de datos","Disponible para Consulta","Solicitud  Formal","Información Pública Clasificada ","Alta","Alta",2000,"Por autonomía del responsable","SIM","Literal a) artículo 18 de la Ley 1712 de 2014. El derecho de toda persona a la intimidad, bajo las limitaciones propias que impone la condición de servidor público, en concordancia con lo estipulado por el artículo 24 de la Ley 1437 de 2011.","Artículo 15 Constitución Política. Derecho fundamental a la intimidad. "]
["Preventivo","Procuraduría Delegada para la Defensa de los derechos Humanos","Procuraduría Delegada para la Defensa de los derechos Humanos","ACCIONES PREVENTIVAS DE MITIGACIÓN ASUNTOS ABREVIADOS","Actuaciones preventivas en asuntos abreviados","Actuaciones Encaminadas a Reestablecer Derechos o Mitigar el Efecto de Acciones Negativas, que Implica Repuesta Inmediatas y de Corto Plazo.","Español","Electrónico / Papel","Documento de Texto / Base de datos","Disponible para Consulta","Solicitud  Formal","Información Pública Clasificada","Alta","Media",2000,"Por autonomía del responsable","SIM","Literal a) artículo 18 de la Ley 1712 de 2014. El derecho de toda persona a la intimidad, bajo las limitaciones propias que impone la condición de servidor público, en concordancia con lo estipulado por el artículo 24 de la Ley 1437 de 2011.","Artículo 15 Constitución Política. Derecho fundamental a la intimidad. "]
["Preventivo","Procuraduría Delegada para la Defensa de los derechos Humanos","Procuraduría Delegada para la Defensa de los derechos Humanos","ACCIONES PREVENTIVAS DE MITIGACIÓN ASUNTOS ABREVIADOS","Actuaciones preventivas en asuntos abreviados","Actuaciones Encaminadas a Reestablecer Derechos o Mitigar el Efecto de Acciones Negativas, que Implica Respuesta Inmediatas y de Corto Plazo, que contengan información relacionada con la a) defensa y seguridad nacional, b) La seguridad pública, c) Las relaciones internacionales"]
["Preventivo","Procuraduría Delegada para la Defensa de los derechos Humanos","Procuraduría Delegada para la Defensa de los derechos Humanos","ACCIONES PREVENTIVAS DE MITIGACIÓN ASUNTOS ORDINARIOS","Actuaciones preventivas en asuntos ordinarios","Actuaciones Orientada a Mitigar los Efectos Generados sobre un Individuo o una Comunidad.","Español","Electrónico / Papel","Documento de Texto / Base de datos","Disponible para Consulta","Solicitud  Formal","Información Pública Clasificada","Alta","Media",2000,"Por autonomía del responsable","SIM","Literal a) artículo 18 de la Ley 1712 de 2014. El derecho de toda persona a la intimidad, bajo las limitaciones propias que impone la condición de servidor público, en concordancia con lo estipulado por el artículo 24 de la Ley 1437 de 2011.","Artículo 15 Constitución Política. Derecho fundamental a la intimidad. "]
["Preventivo","Procuraduría Delegada para la Defensa de los derechos Humanos","Procuraduría Delegada para la Defensa de los derechos Humanos","ACCIONES PREVENTIVAS DE MITIGACIÓN ASUNTOS ORDINARIOS","Actuaciones preventivas en asuntos ordinarios","Actuaciones Orientada a Mitigar los Efectos Generados sobre un Individuo o una Comunidad, que contengan información relacionada con la a) defensa y seguridad nacional, b) La seguridad pública, c) Las relaciones internacionales"]
["Preventivo","Procuraduría Delegada para la Defensa de los derechos Humanos","Procuraduría Delegada para la Defensa de los derechos Humanos","ACCIONES PREVENTIVAS DE CASO PREVENTIVO","Actuaciones preventivas de caso preventivo","Actuaciones Orientada a Mitigar los Efectos Generados sobre un Individuo o una Comunidad.","Español","Electrónico / Papel","Documento de Texto / Base de datos","Disponible para Consulta","Solicitud  Formal","Información Pública Clasificada.","Alta","Media",2000,"Por autonomía del responsable","SIM","Literal a) artículo 18 de la Ley 1712 de 2014. El derecho de toda persona a la intimidad, bajo las limitaciones propias que impone la condición de servidor público, en concordancia con lo estipulado por el artículo 24 de la Ley 1437 de 2011.","Artículo 15 Constitución Política. Derecho fundamental a la intimidad. "]
["Preventivo","Procuraduría Delegada para la Defensa de los derechos Humanos","Procuraduría Delegada para la Defensa de los derechos Humanos","ACCIONES PREVENTIVAS DE CASO PREVENTIVO","Actuaciones preventivas de caso preventivo","Actuaciones Orientada a Mitigar los Efectos Generados sobre un Individuo o una Comunidad, que contengan información relacionada con la a) defensa y seguridad nacional, b) La seguridad pública, c) Las relaciones internacionales"]
["Preventivo","Procuraduría Delegada para la Defensa de los derechos Humanos","Procuraduría Delegada para la Defensa de los derechos Humanos","PROYECTOS PREVENTIVOS","Proyectos preventivos","Actuación Encaminada a la Anticipación de la Materialización de los Riesgos que Impliquen la Vulneración de los Derechos, su Formulación Sigue la Metodología del Marco Lógico","Español","Electrónico / Papel","Documento de Texto / Base de datos","Disponible para Consulta","Solicitud  Formal","Información Pública Clasificada.","Alta","Media",2000,"Por autonomía del responsable","SIM","Literal a) artículo 18 de la Ley 1712 de 2014. El derecho de toda persona a la intimidad, bajo las limitaciones propias que impone la condición de servidor público, en concordancia con lo estipulado por el artículo 24 de la Ley 1437 de 2011.","Artículo 15 Constitución Política. Derecho fundamental a la intimidad. "]
["Preventivo","Procuraduría Delegada para la Defensa de los derechos Humanos","Procuraduría Delegada para la Defensa de los derechos Humanos","PROYECTOS PREVENTIVOS","Proyectos preventivos","Actuación Encaminada a la Anticipación de la Materialización de los Riesgos que Impliquen la Vulneración de los Derechos, su Formulación Sigue la Metodología del Marco Lógico,  y  que contengan información relacionada con la a) defensa y seguridad nacional, b) La seguridad pública, c) Las relaciones internacionales"]
["Preventivo","Procuraduría Delegada para la Defensa de los derechos Humanos","Procuraduría Delegada para la Defensa de los derechos Humanos","ACTAS","Actas de la Comisión Asesora de Depuración de Archivos de Inteligencia y Contrainteligencia","Contiene las Decisiones Tomadas por la Comisión Asesora para la Depuración de Datos y Archivos de Inteligencia y Contrainteligencia","Español","Papel","Documento de texto (.doc, .txt, .rtf, .pdf)","Disponible para Consulta","Solicitud  Formal","Información Pública Reservada","Alta","Media",2015,"No Cambia","Archivo Físico","Literal a) artículo 19 de la Ley 1712 de 2014. Información Exceptuada por Daño a los Intereses Públicos, en concordancia con lo estipulado por el artículo 24 de la Ley 1437 de 2011.","Ley 57 de 1985. “…ARTÍCULO 12. Toda persona tiene derecho a consultar los documentos que reposen en las oficinas públicas y a que se les expida copia de los mismos, siempre que dichos documentos no tengan carácter reservado conforme a la Constitución o a la ley o no hagan relación a la defensa o seguridad nacional…”.          "]
["Preventivo","Procuraduría Delegada para la Defensa de los derechos Humanos","Procuraduría Delegada para la Defensa de los derechos Humanos","CONSECUTIVO DE COMUNICACIONES OFICIALES","Consecutivos de comunicaciones","Contiene Comunicaciones Oficiales Dirigidas al Procurador Delegado para la Defensa de los Derechos Humanos y Comisiones Suscritas por el con Destino a Instancias Internas y Externas.","Español","Electrónico / Papel","Documento de texto (.doc, .txt, .rtf, .pdf)","Disponible para Consulta","Solicitud  Formal","Información Pública Clasificada","Alta","Media",2000,"No Cambia","SIGDEA","Literal a) artículo 18 de la Ley 1712 de 2014. El derecho de toda persona a la intimidad, bajo las limitaciones propias que impone la condición de servidor público, en concordancia con lo estipulado por el artículo 24 de la Ley 1437 de 2011.","Ley 1712 de 2014. “…ARTÍCULO 6o. DEFINICIONES. d) Información pública reservada. Es aquella información que estando en poder o custodia de un sujeto obligado en su calidad de tal, es exceptuada de acceso a la ciudadanía por daño a intereses públicos y bajo cumplimiento de la totalidad de los requisitos consagrados en el artículo 19 de esta ley"]
["Preventivo","Procuraduría delegada con funciones mixtas_1","Procuraduría Delegada para la Defensa de los derechos Humanos","ACCIONES PREVENTIVAS DE ORIENTACIÓN","Actuaciones preventivas en escenarios de orientación","Orientación a los Ciudadanos Respecto de las Rutas de Atención y Gestiones Adelantadas con el Objeto de Mitigar la Violación de un Derecho o la Restitución del Mismo,","Español","Electrónico / Papel","Documento de Texto / Base de datos","Disponible para Consulta","Solicitud  Formal","Información Pública Clasificada ","Alta","Alta",null,null,null,"Literal a) artículo 18 de la Ley 1712 de 2014. El derecho de toda persona a la intimidad, bajo las limitaciones propias que impone la condición de servidor público, en concordancia con lo estipulado por el artículo 24 de la Ley 1437 de 2011.","Artículo 15 Constitución Política. Derecho fundamental a la intimidad. "]
["Preventivo","Procuraduría delegada con funciones mixtas_1","Procuraduría Delegada para la Defensa de los derechos Humanos","ACCIONES PREVENTIVAS DE MITIGACIÓN ASUNTOS ABREVIADOS","Actuaciones preventivas en asuntos abreviados","Actuaciones Encaminadas a Reestablecer Derechos o Mitigar el Efecto de Acciones Negativas, que Implica Respuesta Inmediatas y de Corto Plazo.","Español","Electrónico / Papel","Documento de Texto / Base de datos","Disponible para Consulta","Solicitud  Formal","Información Pública Clasificada","Alta","Media",null,null,null,"Literal a) artículo 18 de la Ley 1712 de 2014. El derecho de toda persona a la intimidad, bajo las limitaciones propias que impone la condición de servidor público, en concordancia con lo estipulado por el artículo 24 de la Ley 1437 de 2011.","Artículo 15 Constitución Política. Derecho fundamental a la intimidad. "]
["Preventivo","Procuraduría delegada con funciones mixtas_1","Procuraduría Delegada para la Defensa de los derechos Humanos","ACCIONES PREVENTIVAS DE MITIGACIÓN ASUNTOS ABREVIADOS","Actuaciones preventivas en asuntos abreviados","Actuaciones Encaminadas a Reestablecer Derechos o Mitigar el Efecto de Acciones Negativas, que Implica Respuesta Inmediatas y de Corto Plazo, que contengan información relacionada con la a) defensa y seguridad nacional, b) La seguridad pública, c) Las relaciones internacionales"]
["Preventivo","Procuraduría delegada con funciones mixtas_1","Procuraduría Delegada para la Defensa de los derechos Humanos","ACCIONES PREVENTIVAS DE MITIGACIÓN ASUNTOS ORDINARIOS","Actuaciones preventivas en asuntos ordinarios","Actuaciones Orientada a Mitigar los Efectos Generados sobre un Individuo o una Comunidad.","Español","Electrónico / Papel","Documento de Texto / Base de datos","Disponible para Consulta","Solicitud  Formal","Información Pública Clasificada","Alta","Media",null,null,null,"Literal a) artículo 18 de la Ley 1712 de 2014. El derecho de toda persona a la intimidad, bajo las limitaciones propias que impone la condición de servidor público, en concordancia con lo estipulado por el artículo 24 de la Ley 1437 de 2011.","Artículo 15 Constitución Política. Derecho fundamental a la intimidad. "]
["Preventivo","Procuraduría delegada con funciones mixtas_1","Procuraduría Delegada para la Defensa de los derechos Humanos","ACCIONES PREVENTIVAS DE MITIGACIÓN ASUNTOS ORDINARIOS","Actuaciones preventivas en asuntos ordinarios","Actuaciones Orientada a Mitigar los Efectos Generados sobre un Individuo o una Comunidad, que contengan información relacionada con la a) defensa y seguridad nacional, b) La seguridad pública, c) Las relaciones internacionales"]
["Preventivo","Procuraduría delegada con funciones mixtas_1","Procuraduría Delegada para la Defensa de los derechos Humanos","ACCIONES PREVENTIVAS DE CASO PREVENTIVO","Actuaciones preventivas de caso preventivo","Actuaciones Orientada a Mitigar los Efectos Generados sobre un Individuo o una Comunidad.","Español","Electrónico / Papel","Documento de Texto / Base de datos","Disponible para Consulta","Solicitud  Formal","Información Pública Clasificada.","Alta","Media",null,null,null,"Literal a) artículo 18 de la Ley 1712 de 2014. El derecho de toda persona a la intimidad, bajo las limitaciones propias que impone la condición de servidor público, en concordancia con lo estipulado por el artículo 24 de la Ley 1437 de 2011.","Artículo 15 Constitución Política. Derecho fundamental a la intimidad. "]
["Preventivo","Procuraduría delegada con funciones mixtas_1","Procuraduría Delegada para la Defensa de los derechos Humanos","ACCIONES PREVENTIVAS DE CASO PREVENTIVO","Actuaciones preventivas de caso preventivo","Actuaciones Orientada a Mitigar los Efectos Generados sobre un Individuo o una Comunidad, que contengan información relacionada con la a) defensa y seguridad nacional, b) La seguridad pública, c) Las relaciones internacionales"]
["Preventivo","Procuraduría delegada con funciones mixtas_1","Procuraduría Delegada para la Defensa de los derechos Humanos","PROYECTOS PREVENTIVOS","Proyectos preventivos","Actuación Encaminada a la Anticipación de la Materialización de los Riesgos que Impliquen la Vulneración de los Derechos, su Formulación Sigue la Metodología del Marco Lógico","Español","Electrónico / Papel","Documento de Texto / Base de datos","Disponible para Consulta","Solicitud  Formal","Información Pública Clasificada.","Alta","Media",null,null,null,"Literal a) artículo 18 de la Ley 1712 de 2014. El derecho de toda persona a la intimidad, bajo las limitaciones propias que impone la condición de servidor público, en concordancia con lo estipulado por el artículo 24 de la Ley 1437 de 2011.","Artículo 15 Constitución Política. Derecho fundamental a la intimidad. "]
["Preventivo","Procuraduría delegada con funciones mixtas_1","Procuraduría Delegada para la Defensa de los derechos Humanos","PROYECTOS PREVENTIVOS","Proyectos preventivos","Actuación Encaminada a la Anticipación de la Materialización de los Riesgos que Impliquen la Vulneración de los Derechos, su Formulación Sigue la Metodología del Marco Lógico,  y  que contengan información relacionada con la a) defensa y seguridad nacional, b) La seguridad pública, c) Las relaciones internacionales"]
["Preventivo","Procuraduría delegada con funciones mixtas_1","Procuraduría Delegada para la Defensa de los derechos Humanos","ACTAS","Actas de la Comisión Asesora de Depuración de Archivos de Inteligencia y Contrainteligencia","Contiene las Decisiones Tomadas por la Comisión Asesora para la Depuración de Datos y Archivos de Inteligencia y Contrainteligencia","Español","Papel","Documento de texto (.doc, .txt, .rtf, .pdf)","Disponible para Consulta","Solicitud  Formal","Información Pública Reservada","Alta","Media",null,null,null,"Literal a) artículo 19 de la Ley 1712 de 2014. Información Exceptuada por Daño a los Intereses Públicos, en concordancia con lo estipulado por el artículo 24 de la Ley 1437 de 2011.","Ley 57 de 1985. “…ARTÍCULO 12. Toda persona tiene derecho a consultar los documentos que reposen en las oficinas públicas y a que se les expida copia de los mismos, siempre que dichos documentos no tengan carácter reservado conforme a la Constitución o a la ley o no hagan relación a la defensa o seguridad nacional…”.          "]
["Preventivo","Procuraduría delegada con funciones mixtas_1","Procuraduría Delegada para la Defensa de los derechos Humanos","CONSECUTIVO DE COMUNICACIONES OFICIALES","Consecutivos de comunicaciones","Contiene Comunicaciones Oficiales Dirigidas al Procurador Delegado para la Defensa de los Derechos Humanos y Comisiones Suscritas por el con Destino a Instancias Internas y Externas.","Español","Electrónico / Papel","Documento de texto (.doc, .txt, .rtf, .pdf)","Disponible para Consulta","Solicitud  Formal","Información Pública Clasificada","Alta","Media",null,null,null,"Literal a) artículo 18 de la Ley 1712 de 2014. El derecho de toda persona a la intimidad, bajo las limitaciones propias que impone la condición de servidor público, en concordancia con lo estipulado por el artículo 24 de la Ley 1437 de 2011.","Ley 1712 de 2014. “…ARTÍCULO 6o. DEFINICIONES. d) Información pública reservada. Es aquella información que estando en poder o custodia de un sujeto obligado en su calidad de tal, es exceptuada de acceso a la ciudadanía por daño a intereses públicos y bajo cumplimiento de la totalidad de los requisitos consagrados en el artículo 19 de esta ley"]
["Preventivo","Procuraduría Delegada para Asuntos Civiles","Procuraduría Delegada para Asuntos Civiles","ACCIONES PREVENTIVAS DE ANTICIPACIÓN PROYECTO","PROYECTO PREVENTIVO DE GESTIÓN BIEN DE USO E INTERES PUBLICO Y/O CULTURAL","GESTIÓN PARA ANTICIPAR UN RIESGO PARTICULAR Y CONCRETO QUE AFECTE UN DERECHO O BIEN DE USO PUBLICO.","Español","Electrónico","Documento de texto (.doc, .txt, .rtf, .pdf)","Disponible para Consulta","Solicitud  Formal","Información Pública","Alta","Media",2022,"Diaria","Archivo Fisico /electrónico de la Oficina"]
["Preventivo","Procuraduría Delegada para Asuntos Civiles","Procuraduría Delegada para Asuntos Civiles","ACCIONES PREVENTIVAS DE ANTICIPACIÓN CASO","CASO PREVENTIVO EN BIEN DE USO PUBLICO","GESTIÓN PARA ANTICIPAR UN RIESGO PARTICULAR Y CONCRETO QUE AFECTE UN DERECHO O BIEN DE USO PUBLICO.","Español","Electrónico","Documento de texto (.doc, .txt, .rtf, .pdf)","Disponible para Consulta","Solicitud  Formal","Información Pública","Alta","Media",2022,"Diaria","Archivo Fisico /electrónico de la Oficina"]
["Preventivo","Procuraduría Delegada para Asuntos Civiles","Procuraduría Delegada para Asuntos Civiles","ACCIONES PREVENTIVAS DE MITIGACIÓN ASUNTOS ORDINARIOS","ASUNTO PREVENTIVO EN BIENES DE USO PUBLICO","GESTION PARA RESTABLECER DERECHOS O MITIGAR EFECTOS NEGATIVOS FRENTE A UN BIEN DE USO PUBLICO.","Español","Electrónico","Documento de texto (.doc, .txt, .rtf, .pdf)","Disponible para Consulta","Solicitud  Formal","Información Pública","Alta","Media",2022,"Diaria","Archivo Fisico /electrónico de la Oficina"]
["Preventivo","Procuraduría Delegada para Asuntos Civiles","Procuraduría Delegada para Asuntos Civiles","ACCIONES PREVENTIVAS DE MITIGACIÓN ASUNTOS ABREVIADOS","ASUNTO ABREVIADO PREVENTIVO EN BIENES DE USO PUBLICO","GESTION PARA RESTABLECER DERECHOS O MITIGAR EFECTOS NEGATIVOS FRENTE A UN BIEN DE USO PUBLICO.","Español","Electrónico","Documento de texto (.doc, .txt, .rtf, .pdf)","Disponible para Consulta","Solicitud  Formal","Información Pública","Alta","Media",2022,"Diaria","Archivo Fisico /electrónico de la Oficina"]
["Preventivo","Procuraduría Delegada para Asuntos Civiles","Procuraduría Delegada para Asuntos Civiles","ACCIONES PREVENTIVAS DE ORIENTACIÓN","ORIENTACION AL CIUDADANO","RESOLVER INQUIETUDES DEL PUBLICO SOBRE BIENES DE INTERÉS PÚBLICO  Y ASUNTOS CIVILES.","Español","Electrónico","Documento de texto (.doc, .txt, .rtf, .pdf)","Disponible para Consulta","Petición Verbal o Escrita","Información Pública","Alta","Media",2022,"Diaria","Archivo Fisico /electrónico de la Oficina"]
["Preventivo","Procuraduría Delegada para Asuntos Civiles","Procuraduría Delegada para Asuntos Civiles","CONCILIACIONES","CONCILIACION EN MATERIA CIVIL Y COMERCIAL","MECANISMO ALTERNATIVO DE RESOLUCION DE CONFLICTOS Y QUE IMPLICA EL  AGOTAMIENTO DEL REQUISITO DE PROCEDIBILIDAD PARA ACUDIR A LA JURISDCCION ORDINARIA.","Español","Electrónico","Documento de texto (.doc, .txt, .rtf, .pdf)","Disponible para Consulta","Solicitud  Formal","Información Pública Clasificada","Alta","Media",2022,"Diaria","Archivo Fisico /electrónico de la Oficina"]
["Preventivo","Procuraduría Delegada para Conciliación","Procuraduría Delegada para Conciliación","PROCESOS PREVENTIVOS","Informes de visitas y capacitaciones","Visitas y capacitaciones a los Comités de Conciliación de las entidades públicas","Español","Electrónico ","Documento de Texto / Base de datos","Disponible para Consulta","Solicitud Formal",null,"mensual","Media"]
["Preventivo","Procuraduría delegada con funciones mixtas_7","Procuraduría Delegada para la  Defensa de la Infancia, Adolescencia, la familia y la mujer","CONCEPTOS","Conceptos Juridicos","Concepto jurídico sobre conflicto de competencia emitido por la Delegada ante el Corte Suprema y Corte Constitucional","Español","Electrónico","Documento de texto (.doc, .txt, .rtf, .pdf)","Disponible para Consulta","Solicitud  Formal","Información Pública Reservada","Alta","Media","Año 2021","Por autonomía del responsable","Archivo Fisico de la Oficina","Art. 18 Ley 1712 de 2014. a) El derecho de toda persona a la intimidad"]
["Preventivo","Procuraduría delegada con funciones mixtas_7","Procuraduría Delegada para la  Defensa de la Infancia, Adolescencia, la familia y la mujer","INFORMES","Informes de Gestión","Resultados y logros de la delegada, consolidados en un informe de carácter cualitativo (logros) con una frecuencia trimestral","Español","Electrónico","Documento de texto (.doc, .txt, .rtf, .pdf)","Disponible para Consulta","Petición Verbal o Escrita","Información Pública","Alta","Media","Año 2021","Mensual","Archivo Fisico de la Oficina"]
["Preventivo","Procuraduría delegada con funciones mixtas_7","Procuraduría Delegada para la  Defensa de la Infancia, Adolescencia, la familia y la mujer","INFORMES","Informes del Plan Operativo Anual","Reporte estadísticas actuaciones realizadas en ejercicio de la función preventiva","Español","Electrónico","Documento de texto (.doc, .txt, .rtf, .pdf)","Disponible para Consulta","Petición Verbal o Escrita","Información Pública","Alta","Media","Año 2021","Mensual","Archivo Fisico de la Oficina"]
["Preventivo","Procuraduría delegada con funciones mixtas_7","Procuraduría Delegada para la  Defensa de la Infancia, Adolescencia, la familia y la mujer","INFORMES","Informes de Visita","Actuaciones preventivas que reunen las condiciones de temporalidad y criterios para ser Caso Preventivo","Español","Electrónico","Documento de texto (.doc, .txt, .rtf, .pdf)","Disponible para Consulta","Solicitud  Formal","Información Pública Reservada","Alta","Media","Año 2021","Mensual","Archivo Fisico de la Oficina","Art. 18 Ley 1712 de 2014. a) El derecho de toda persona a la intimidad"]
["Preventivo","Procuraduría delegada con funciones mixtas_7","Procuraduría Delegada para la  Defensa de la Infancia, Adolesnecia y","ACTUACIONES  PREVENTIVAS","Actuaciones preventivas en escenarios de orientación ","Busca resolver las inquietudes del público o usuarios que acuden a la PGN y el Centro de Atención al Público en Familia- CAP, en busca de orientación relacionada con el ejercicio y goce efectivo de los derechos y las funciones de entidades públicas o particulares que ejercen funciones públicas. Tambíen aplica cuando no se asume un asunto por competencia, pero se brindan recomendaciones al respecto.","Español","Electrónico / Papel","Documento de texto (.doc, .txt, .rtf, .pdf)","Disponible para Consulta","Solicitud  Formal","Información Pública Reservada","Alta","Media","Año 2021","Diaria","SIGDEA","Art. 18 Ley 1712 de 2014. a) El derecho de toda persona a la intimidad"]
["Preventivo","Procuraduría delegada con funciones mixtas_7","Procuraduría Delegada para la  Defensa de la Infancia, Adolesnecia y","ACTUACIONES  PREVENTIVAS","Actuaciones preventivas en Asuntos Abreviados","Busca actuar preventivamente ante la ocurrencia de hechos que ya implicaron la vulneración o desconocimiento de un derecho de la población objeto de intervención de la Delegada a fin de evitar que se propaguen o profundicen los efectos adversos, su reiteración, y restituir el derecho violado mediante la ejecución de actividades primarias en donde se obtiene resultados inmediatos o en el corto plazo. ","Español","Electrónico / Papel","Documento de texto (.doc, .txt, .rtf, .pdf)","Disponible para Consulta","Solicitud  Formal","Información Pública Reservada","Alta","Media","Año 2021","Diaria","SIM","Art. 18 Ley 1712 de 2014. a) El derecho de toda persona a la intimidad"]
["Preventivo","Procuraduría delegada con funciones mixtas_7","Procuraduría Delegada para la  Defensa de la Infancia, Adolesnecia y","ACTUACIONES  PREVENTIVAS","Actuaciones preventivas en Asuntos Ordinarios ","Busca actuar preventivamente ante la ocurrencia de hechos que ya implicaron la vulneración o desconocimiento de un derecho de la población objeto de intervención de la Delegada a fin de evitar que se propaguen o profundicen los efectos adversos, su reiteración, y restituir el derecho violado mediante la ejecución de actividades preventivas de mayor complejidad  en donde se obtiene resultados en el corto plazo y  mediano plazo.","Español","Electrónico / Papel","Documento de texto (.doc, .txt, .rtf, .pdf)","Disponible para Consulta","Solicitud  Formal","Información Pública","Alta","Media","Año 2021","Mensual","SIM"]
["Preventivo","Procuraduría delegada con funciones mixtas_7","Procuraduría Delegada para la  Defensa de la Infancia, Adolesnecia y","ACTUACIONES  PREVENTIVAS","Actuaciones preventivas de Caso Preventivo ","Busca actuar preventivamente para anticiparse a la ocurrencia de hechos que puedan vulnerar los derechos de las personas objeto de intervención de la Delegada o amenacen el adecuado ejercicio de la función pública con la finalidad de verificar el cumplimiento legal y los principios que rigen la función administrativa a traves del desarrollo de las actividades preventivas. ","Español","Electrónico / Papel","Documento de texto/ Hoja de Cálculo","Disponible para Consulta","Solicitud  Formal","Información Pública","Alta","Media","Año 2021","Mensual","SIM"]
["Preventivo","Procuraduría delegada con funciones mixtas_7","Procuraduría Delegada para la  Defensa de la Infancia, Adolesnecia y","ACTUACIONES  PREVENTIVAS","Proyectos preventivos ","Busca actuar preventivamente para anticiparse a la ocurrencia de hechos que puedan vulnerar los derechos de las personas o amenacen el adecuado ejercicio de la función pública, con la finalidad de contribuir al mejoramiento de la gestión y/o política pública. ","Español","Electrónico / Papel","Documento de texto (.doc, .txt, .rtf, .pdf)","Disponible para Consulta","Solicitud  Formal","Información Pública","Alta","Media","Año 2021","Mensual","SIM"]
["Relatoría","Grupo de Relatoria","DESPACHO VICEPROCURADOR GENERAL- Grupo Relatoría","PUBLICACIONES INSTITUCIONALES","PUBLICACIONES REALIZADAS EN LA RELATORÌA","Textos a cargo de la dependencia, actualizaciones con notas de vigencia.Ley Disciplinaria y Decreto 262","Español","Electrónico","Documento de texto (.doc, .txt, .rtf, .pdf)","Publicada","Petición dirigida a  Relatoria","Información Pública","Alta","Alta","Por acuerdo entre las Partes","Por acuerdo entre las Partes","Link Relatoria"]
["Relatoría","DESPACHO DEL VICEPROCURADOR GENERAL","DESPACHO DEL VICEPROCURADOR GENERAL","SIN CLASIFICAR","Conjunto de datos abiertos - Datos de Relatoría","Conjunto de datos dispuestos por la PGN para consulta de los ciudadanos y otras entidades","Español","Electrónico","Hoja de Cálculo (.xls, .xlt, .csv)","Publicada","https://www.procuraduria.gov.co/portal/datos_abiertos.page","Información Pública","Media","Alta","2016-04-16","Diaria","https://www.datos.gov.co/Organismos-de-Control/Datos-abiertos-de-la-Relator-a-de-la-Procuradur-a-/rhun-uf37"]
["Relatoría","Grupo de Relatoria","DESPACHO VICEPROCURADOR GENERAL- Grupo Relatoría","MEMORIA INSTITUCIONAL","PUBLICACIÓN DE DECISIONES DE LA PGN","Base de Datos SIREL con la información enviada por las dependencias de la entidad para ser publicada en la Web","Español","Electrónico","Documento de Texto / Base de datos","Publicada","Petición dirigida a  Relatoria","Información Pública","Alta","Alta","Diaria","Diaria","SIM - SIREL"]
["Relatoría","Grupo de Relatoria","DESPACHO VICEPROCURADOR GENERAL- Grupo Relatoría","CONSOLIDADOS DE INFORMACIÓN","DOCUMENTOS ENVIADOS POR LAS DEPENDENCIAS",null,"Español","Internet/One Drive","Hoja de Cálculo (.xls, .xlt, .csv)","Disponible para Consulta","Petición dirigida a  Relatoria","Información Pública","Alta","Alta","Diaria","Mensual","One Drive"]
["Relatoría","Grupo de Relatoria","DESPACHO VICEPROCURADOR GENERAL- Grupo Relatoría","DERECHO DE PETICIÓN ","SOLICITUD","Respuestas a solicitudes de los peticionarios sobre información.","Español","Electrónico","Documento de texto (.doc, .txt, .rtf, .pdf)","Disponible para Consulta","Petición dirigida a  Relatoria","Información Pública","Alta","Alta","A solicitud del peticionario","Diaria","SIGDEA"]
["Relatoría","Grupo de Relatoria","DESPACHO VICEPROCURADOR GENERAL- Grupo Relatoría","INFORMES","INFORMES DE GESTION","Consolidados de la gestión del Grupo de Relatoría","Español","Electrónico","Documento de texto (.doc, .txt, .rtf, .pdf)","Disponible para Consulta","Petición dirigida a  Relatoria","Información Pública","Alta","Alta","Mensual, Trimestral, Anual","Mensual","ESTRATEGOS"]
["Talento Humano","Oficina de Selección y Carrera","Oficina de Selección y Carrera"]
["Talento Humano","Oficina de Selección y Carrera","Oficina de Selección y Carrera","Derechos de Petición","1. Oficios de Solicitud"]
["Talento Humano","Oficina de Selección y Carrera","Oficina de Selección y Carrera","Planes y Programas","Plan Operativo Anual (POA)"]
["Talento Humano","Oficina de Selección y Carrera","Oficina de Selección y Carrera","Proceso de Calificación de Servicios","1. Calificación en periodo de prueba"]
["Talento Humano","INSTITUTO DE ESTUDIOS DEL MINISTERIO PÚBLICO- Consejo Académico y Dirección ","INSTITUTO DE ESTUDIOS DEL MINISTERIO PÚBLICO- Consejo Académico y Dirección ","ACTAS","Actas de Comité de Direccion","Registro de las reuniones para consolidación de proyectos e iniciativas implementadas  e indicadores y resultados obtenidos en el IEMP durante la vigencia","Español","Electrónico / Papel","Documento de texto (.doc, .txt, .rtf, .pdf)","Disponible para Consulta","Petición dirigida al Instituto de Estudios","Información Pública","Alta","Media","2020-12-03","Por acuerdo entre las Partes","Archivo Fisico y electrónico de la Oficina"]
["Talento Humano","INSTITUTO DE ESTUDIOS DEL MINISTERIO PÚBLICO- Consejo Académico y Dirección ","INSTITUTO DE ESTUDIOS DEL MINISTERIO PÚBLICO- Consejo Académico y Dirección ","ACTAS","Actas de Consejo Academico","Consolidación de directrices par la planeación de los proyectos a realizar por el IEMP en la vigencia","Español","Electrónico / Papel","Documento de texto (.doc, .txt, .rtf, .pdf)","Disponible para Consulta","Petición dirigida al Instituto de Estudios","Información Pública","Alta","Media","2020-12-03","Por acuerdo entre las Partes","Archivo Fisico y electrónico de la Oficina"]
["Talento Humano","INSTITUTO DE ESTUDIOS DEL MINISTERIO PÚBLICO- Consejo Académico y Dirección ","INSTITUTO DE ESTUDIOS DEL MINISTERIO PÚBLICO- Consejo Académico y Dirección ","DERECHOS DE PETICIÓN","Derechos de Peticion","solictudes de informacion o requerimientos realizados al IEMP","Español","Electrónico / Papel","Documento de texto (.doc, .txt, .rtf, .pdf)","Disponible para Consulta","Petición dirigida al Instituto de Estudios","Información Pública","Alta","Media","2022-10-28","Diaria","Archivo Fisico y electrónico de la Oficina"]
["Talento Humano","INSTITUTO DE ESTUDIOS DEL MINISTERIO PÚBLICO- Consejo Académico y Dirección ","INSTITUTO DE ESTUDIOS DEL MINISTERIO PÚBLICO- Consejo Académico y Dirección ","INFORMES","Informes de Gestion","Reporte de gestion de las actividades y funcionamiento del IEMP","Español","Electrónico / Papel","Documento de texto (.doc, .txt, .rtf, .pdf)","Disponible para Consulta","Petición dirigida al Instituto de Estudios","Información Pública","Alta","Media","2022-10-08","Trimestral","Archivo Fisico y electrónico de la Oficina"]
["Talento Humano","INSTITUTO DE ESTUDIOS DEL MINISTERIO PÚBLICO- Consejo Académico y Dirección ","INSTITUTO DE ESTUDIOS DEL MINISTERIO PÚBLICO- Consejo Académico y Dirección ","MEMORIA INSTITUCIONAL","Memoria Institucional","Se refiere a información sobre la misión y gestión del IEMP","Español","Electrónico","Documento de texto (.doc, .txt, .rtf, .pdf)","Disponible para Consulta","Petición dirigida al Instituto de Estudios","Información Pública","Alta","Media","2022-10-28","Diaria","Archivo Fisico y electrónico de la Oficina"]
["Talento Humano","INSTITUTO DE ESTUDIOS DEL MINISTERIO PÚBLICO- Consejo Académico y Dirección ","INSTITUTO DE ESTUDIOS DEL MINISTERIO PÚBLICO- Consejo Académico y Dirección ","ACTAS","Actas Comité de Esquema","Actas de reunion comité ","Español","Disco Duro","Documento de texto (.doc, .txt, .rtf, .pdf)","Disponible para Consulta","Petición dirigida al Instituto de Estudios","Información Pública","Alta","Media","2019-12-01","Anual","Archivo Fisico y electrónico de la Oficina"]
["Talento Humano","INSTITUTO DE ESTUDIOS DEL MINISTERIO PÚBLICO- Consejo Académico y Dirección ","INSTITUTO DE ESTUDIOS DEL MINISTERIO PÚBLICO- Consejo Académico y Dirección ","ACTAS","Actas Comité de certificación","Actas aprobación de certificación","Español","Disco Duro","Documento de texto (.doc, .txt, .rtf, .pdf)","Disponible para Consulta","Petición dirigida al Instituto de Estudios","Información Pública","Alta","Media","2019-12-01","Anual","Archivo Fisico y electrónico de la Oficina"]
["Talento Humano","INSTITUTO DE ESTUDIOS DEL MINISTERIO PÚBLICO- Consejo Académico y Dirección ","INSTITUTO DE ESTUDIOS DEL MINISTERIO PÚBLICO- Consejo Académico y Dirección ","ACTAS","Actas del proceso","Actas de otras actividades del proceso","Español","Disco Duro","Documento de texto (.doc, .txt, .rtf, .pdf)","Disponible para Consulta","Petición dirigida al Instituto de Estudios","Información Pública","Alta","Media","2019-12-01","Anual","Archivo Fisico y electrónico de la Oficina"]
["Talento Humano","INSTITUTO DE ESTUDIOS DEL MINISTERIO PÚBLICO- Consejo Académico y Dirección ","INSTITUTO DE ESTUDIOS DEL MINISTERIO PÚBLICO- Consejo Académico y Dirección ","PORTAFOLIO","Portafolio","Soporte documental de una persona certificada","Español","Disco Duro","Documento de texto (.doc, .txt, .rtf, .pdf)","Disponible para Consulta","Petición dirigida al Instituto de Estudios","Información Pública","Alta","Media","2019-12-01","Anual","Archivo Fisico y electrónico de la Oficina"]
["Talento Humano","INSTITUTO DE ESTUDIOS DEL MINISTERIO PÚBLICO- División de Administrativa y Financiera   ","INSTITUTO DE ESTUDIOS DEL MINISTERIO PÚBLICO- División de Administrativa y Financiera   ","INFORMES","Informes de Control Interno","Informes proyectados para dar respuesta a Auditorías o Solicitudes de Información de la OCI","Español","Electrónico","Documento de texto (.doc, .txt, .rtf, .pdf)","Disponible para Consulta","Petición dirigida al Instituto de Estudios","Información Pública","Alta","Media","2022-10-21","Por acuerdo entre las Partes","Archivo Fisico y electrónico de la Oficina"]
["Talento Humano","INSTITUTO DE ESTUDIOS DEL MINISTERIO PÚBLICO- División de Administrativa y Financiera   ","INSTITUTO DE ESTUDIOS DEL MINISTERIO PÚBLICO- División de Administrativa y Financiera   ","INFORMES","Informes de Gestión","Informes y reportes del Sistema Strategos, Informes Cualitativos RAE, e Informe al Congreso","Español","Electrónico","Documento de texto (.doc, .txt, .rtf, .pdf)","Disponible para Consulta","Petición dirigida al Instituto de Estudios","Información Pública","Alta","Media","2022-10-08","Trimestral","Archivo Fisico y electrónico de la Oficina"]
["Talento Humano","INSTITUTO DE ESTUDIOS DEL MINISTERIO PÚBLICO- División de Administrativa y Financiera   ","INSTITUTO DE ESTUDIOS DEL MINISTERIO PÚBLICO- División de Administrativa y Financiera   ","INFORMES","Informes del Sistema de Gestíón de Calidad - SIG","Informes Anuales derivados de la Revisión por la Dirección y de las auditorias  ","Español","Electrónico","Documento de texto (.doc, .txt, .rtf, .pdf)","Disponible para Consulta","Petición dirigida al Instituto de Estudios","Información Pública","Alta","Media","2022-10-05","Anual","Archivo Fisico y electrónico de la Oficina"]
["Talento Humano","INSTITUTO DE ESTUDIOS DEL MINISTERIO PÚBLICO- División de Administrativa y Financiera   ","INSTITUTO DE ESTUDIOS DEL MINISTERIO PÚBLICO- División de Administrativa y Financiera   ","BOLETlN DIARIO DE ALMACÉN","Boletín Diario de Almacen","Registros de salidas y entradas, comprobantes contables ","Español","Papel","Documento de texto (.doc, .txt, .rtf, .pdf)","Disponible para Consulta","Petición dirigida al Instituto de Estudios","Información Pública","Alta","Media","2022-09-30","Mensual","Archivo Fisico"]
["Talento Humano","INSTITUTO DE ESTUDIOS DEL MINISTERIO PÚBLICO- División de Administrativa y Financiera   ","INSTITUTO DE ESTUDIOS DEL MINISTERIO PÚBLICO- División de Administrativa y Financiera   ","INVENTARIOS","Inventarios de Archivos","Copia del registro de archivos transferidos a archivo central. ","Español","Papel","Documento de texto (.doc, .txt, .rtf, .pdf)","Disponible para Consulta","Petición dirigida al Instituto de Estudios","Información Pública","Alta","Media","2021-07-06","Por acuerdo entre las Partes","Archivo Fisico y electrónico de la Oficina"]
["Talento Humano","INSTITUTO DE ESTUDIOS DEL MINISTERIO PÚBLICO- División de Administrativa y Financiera   ","INSTITUTO DE ESTUDIOS DEL MINISTERIO PÚBLICO- División de Administrativa y Financiera   ","INVENTARIOS","Inventario de Equipos Audiovisuales","Registro de inventario a cargo de cada servidor publico de acuerdo a la planilla generada y legalizada con las correspondientes respectivas firmas  ","Español","Papel","Documento de texto (.doc, .txt, .rtf, .pdf)","Disponible para Consulta","Petición dirigida al Instituto de Estudios","Información Pública","Alta","Media","2021-12-31","Anual","Archivo Fisico"]
["Talento Humano","INSTITUTO DE ESTUDIOS DEL MINISTERIO PÚBLICO- División de Administrativa y Financiera   ","INSTITUTO DE ESTUDIOS DEL MINISTERIO PÚBLICO- División de Administrativa y Financiera   ","INVENTARIOS","Inventario de Activos, Insumos y Editorial","Registro de bienes devolutivos y de elementos de consumo","Español","Papel","Documento de texto (.doc, .txt, .rtf, .pdf)","Disponible para Consulta","Petición dirigida al Instituto de Estudios","Información Pública","Alta","Media","2022-09-30","Mensual","Archivo Fisico"]
["Talento Humano","INSTITUTO DE ESTUDIOS DEL MINISTERIO PÚBLICO- División de Administrativa y Financiera   ","INSTITUTO DE ESTUDIOS DEL MINISTERIO PÚBLICO- División de Administrativa y Financiera   ","MANUALES","Manual de Politicas de Seguridad de la Información","Copia de politicas de seguridad de la información impartidas por la PGN","Español","Papel","Documento de texto (.doc, .txt, .rtf, .pdf)","Disponible para Consulta","Petición dirigida al Instituto de Estudios","Información Pública","Alta","Media","2019-09-25","Por autonomía del responsable","Archivo Fisico y electrónico de la Oficina"]
["Talento Humano","INSTITUTO DE ESTUDIOS DEL MINISTERIO PÚBLICO- División de Administrativa y Financiera   ","INSTITUTO DE ESTUDIOS DEL MINISTERIO PÚBLICO- División de Administrativa y Financiera   ","REGISTROS DE CONTROL","Registro de Préstado de Documentos","Planilla de prestamo de documentos archivo de gestión ","Español","Papel","Documento de texto (.doc, .txt, .rtf, .pdf)","Disponible para Consulta","Petición dirigida al Instituto de Estudios","Información Pública","Alta","Media","2022-09-07","Por acuerdo entre las Partes","Archivo Fisico y electrónico de la Oficina"]
["Talento Humano","INSTITUTO DE ESTUDIOS DEL MINISTERIO PÚBLICO- División de Administrativa y Financiera   ","INSTITUTO DE ESTUDIOS DEL MINISTERIO PÚBLICO- División de Administrativa y Financiera   ","CONTRATOS Y CONVENIOS","Contratación Directa de Persona Jurídica","Expedientes correspondientes acuerdo de voluntades entre el IEMP y personas juridicas privadas para brindar bienes y/o servicios a la entidad","Español","Electrónico / Papel","Documento de texto (.doc, .txt, .rtf, .pdf)","Disponible para Consulta","Petición dirigida al Instituto de Estudios","Información Pública","Alta","Media","2022-01-28","Por autonomía del responsable","Archivo Fisico y electrónico de la Oficina"]
["Talento Humano","INSTITUTO DE ESTUDIOS DEL MINISTERIO PÚBLICO- División de Administrativa y Financiera   ","INSTITUTO DE ESTUDIOS DEL MINISTERIO PÚBLICO- División de Administrativa y Financiera   ","CONTRATOS Y CONVENIOS","Contratación Directa de Persona Natural","Expedientes acuerdo de voluntades entre el IEMP y personas naturales  para brindar bienes y/o servicios a la entidad","Español","Electrónico / Papel","Documento de texto (.doc, .txt, .rtf, .pdf)","Disponible para Consulta","Petición dirigida al Instituto de Estudios","Información Pública","Alta","Media","2022-10-14","Por autonomía del responsable","Archivo Fisico y electrónico de la Oficina"]
["Talento Humano","INSTITUTO DE ESTUDIOS DEL MINISTERIO PÚBLICO- División de Administrativa y Financiera   ","INSTITUTO DE ESTUDIOS DEL MINISTERIO PÚBLICO- División de Administrativa y Financiera   ","CONTRATOS Y CONVENIOS","Convenios Interadministrativos","Expedientes acuerdo de voluntades entre el IEMP y personas juridicas de derecho público (entidades estatales) para brindar bienes y/o servicios a la entidad","Español","Electrónico / Papel","Documento de texto (.doc, .txt, .rtf, .pdf)","Disponible para Consulta","Petición dirigida al Instituto de Estudios","Información Pública","Alta","Media","2022-09-27","Por autonomía del responsable","Archivo Fisico y electrónico de la Oficina"]
["Talento Humano","INSTITUTO DE ESTUDIOS DEL MINISTERIO PÚBLICO- División de Administrativa y Financiera   ","INSTITUTO DE ESTUDIOS DEL MINISTERIO PÚBLICO- División de Administrativa y Financiera   ","PROYECTOS","Proyectos Convocatorias a Concurso","Expedientes sobre procesos de selección de posible oferentes que puedan suministrar bienes y servicios a la entidad","Español","Electrónico / Papel","Documento de texto (.doc, .txt, .rtf, .pdf)","Disponible para Consulta","Petición dirigida al Instituto de Estudios","Información Pública","Alta","Media","2022-01-28","Por autonomía del responsable","Archivo Fisico y electrónico de la Oficina"]
["Talento Humano","INSTITUTO DE ESTUDIOS DEL MINISTERIO PÚBLICO- División de Administrativa y Financiera   ","INSTITUTO DE ESTUDIOS DEL MINISTERIO PÚBLICO- División de Administrativa y Financiera   ","ACTAS","Actas del Comité de Inversiones","Registra decisiones tomadas en el comité sobre la monetización de los Titulos del Tesoro Nacional para el funcionamiento del IEMP","Español","Papel","Documento de texto (.doc, .txt, .rtf, .pdf)","Disponible para Consulta","Petición dirigida al Instituto de Estudios","Información Pública","Alta","Media","2015-11-15","Por acuerdo entre las Partes","Archivo Fisico y electrónico de la Oficina"]
["Talento Humano","INSTITUTO DE ESTUDIOS DEL MINISTERIO PÚBLICO- División de Administrativa y Financiera   ","INSTITUTO DE ESTUDIOS DEL MINISTERIO PÚBLICO- División de Administrativa y Financiera   ","ESTADOS FINANCIEROS","Balance general","Estados financieros emitidos según la normatividad de la Contaduría General de la Nación - CGN","Español","Electrónico / Papel","Documento de texto/ Hoja de Cálculo","Publicada","Información disponible en el Archivo  Fisisco / Digital ","Información Pública","Alta","Alta","2022-09-30","Mensual","Archivo Fisico y electrónico de la Oficina"]
["Talento Humano","INSTITUTO DE ESTUDIOS DEL MINISTERIO PÚBLICO- División de Administrativa y Financiera   ","INSTITUTO DE ESTUDIOS DEL MINISTERIO PÚBLICO- División de Administrativa y Financiera   ","COMPROBANTES CONTABLES","Comprobantes contables","Soportes de pagos y registros contables","Español","Electrónico / Papel","Documento de texto/ Hoja de Cálculo","Disponible para Consulta","Petición dirigida al Instituto de Estudios","Información Pública","Alta","Media","2022-09-30","Mensual","Archivo Fisico y electrónico de la Oficina"]
["Talento Humano","INSTITUTO DE ESTUDIOS DEL MINISTERIO PÚBLICO- División de Administrativa y Financiera   ","INSTITUTO DE ESTUDIOS DEL MINISTERIO PÚBLICO- División de Administrativa y Financiera   ","CONCILIACIONES","Conciliaciones bancarias","Conciliaciones con el área de Tesorería","Español","Electrónico / Papel","Documento de texto/ Hoja de Cálculo","Disponible para Consulta","Petición dirigida al Instituto de Estudios","Información Pública","Alta","Media","2022-09-30","Mensual","Archivo Fisico y electrónico de la Oficina"]
["Talento Humano","INSTITUTO DE ESTUDIOS DEL MINISTERIO PÚBLICO- División de Administrativa y Financiera   ","INSTITUTO DE ESTUDIOS DEL MINISTERIO PÚBLICO- División de Administrativa y Financiera   ","INFORMES","Informes a Organismos de Control","Informes de acuerdo a solicitudes o auditorias realizadas por Organismos de Control","Español","Electrónico","Documento de texto (.doc, .txt, .rtf, .pdf)","Disponible para Consulta","Petición dirigida al Instituto de Estudios","Información Pública","Alta","Alta","2022-09-30","Anual","Archivo Fisico y electrónico de la Oficina"]
["Talento Humano","INSTITUTO DE ESTUDIOS DEL MINISTERIO PÚBLICO- División de Administrativa y Financiera   ","INSTITUTO DE ESTUDIOS DEL MINISTERIO PÚBLICO- División de Administrativa y Financiera   ","INFORMES","Informes de Operaciones de Tesorería","Manejo De Los Tes Que Tenia El Iemp","Español","Papel","Documento de texto (.doc, .txt, .rtf, .pdf)","Disponible para Consulta","Petición dirigida al Instituto de Estudios","Información Pública","Alta","Media","2015-11-15","Mensual","Archivo Fisico y electrónico de la Oficina"]
["Talento Humano","INSTITUTO DE ESTUDIOS DEL MINISTERIO PÚBLICO- División de Administrativa y Financiera   ","INSTITUTO DE ESTUDIOS DEL MINISTERIO PÚBLICO- División de Administrativa y Financiera   ","INVERSIONES","Inversiones","Inversión De Los Dineros Disponibles Con Que Contaba Para Su Funcionamiento El Iemp","Español","Papel","Documento de texto (.doc, .txt, .rtf, .pdf)","Disponible para Consulta","Petición dirigida al Instituto de Estudios","Información Pública","Alta","Media","2015-11-15","Mensual","Archivo Fisico y electrónico de la Oficina"]
["Talento Humano","INSTITUTO DE ESTUDIOS DEL MINISTERIO PÚBLICO- División de Administrativa y Financiera   ","INSTITUTO DE ESTUDIOS DEL MINISTERIO PÚBLICO- División de Administrativa y Financiera   ","ANTEPROYECTO DE PRESUPUESTO","Anteproyecto de Presupuesto","Reposan los documentos relacionados con la elaboración del proyecto de presupuesto del IEMP que se presenta en las Mesas de Gasto de Mediano Plazo para discusión ","Español","Electrónico","Documento de texto (.doc, .txt, .rtf, .pdf)","Disponible para Consulta","Petición dirigida al Instituto de Estudios","Información Pública","Alta","Media","2022-05-01","ANUAL","Archivo Fisico y electrónico de la Oficina"]
["Talento Humano","INSTITUTO DE ESTUDIOS DEL MINISTERIO PÚBLICO- División de Administrativa y Financiera   ","INSTITUTO DE ESTUDIOS DEL MINISTERIO PÚBLICO- División de Administrativa y Financiera   ","BANCO DE PROYECTOS DE INVERSIÓN","Banco de Proyectos de Inversión","Documentación de los proyectos de Inversión","Español","Electrónico","Documento de texto (.doc, .txt, .rtf, .pdf)","Disponible para Consulta","Petición dirigida al Instituto de Estudios","Información Pública","Alta","Alta","2022-10-15","Mensual","Archivo Fisico y electrónico de la Oficina"]
["Talento Humano","INSTITUTO DE ESTUDIOS DEL MINISTERIO PÚBLICO- División de Administrativa y Financiera   ","INSTITUTO DE ESTUDIOS DEL MINISTERIO PÚBLICO- División de Administrativa y Financiera   ","INFORMES","Informes de Ejecución Presupuestal","Detalla la ejecución mes a mes del presupuesto asignado al Insituto en cada vigencia","Español","Electrónico","Documento de texto/ Hoja de Cálculo","Disponible para Consulta","Petición dirigida al Instituto de Estudios","Información Pública","Alta","Media","2022-10-05","Mensual","Archivo Fisico y electrónico de la Oficina"]
["Talento Humano","INSTITUTO DE ESTUDIOS DEL MINISTERIO PÚBLICO- División de Administrativa y Financiera   ","INSTITUTO DE ESTUDIOS DEL MINISTERIO PÚBLICO- División de Administrativa y Financiera   ","PLANES Y PROGRAMAS","Plan Operativo Anual (POA)","Plan Operativo Anual","Español","Electrónico","Documento de texto (.doc, .txt, .rtf, .pdf)","Disponible para Consulta","Petición dirigida al Instituto de Estudios","Información Pública","Alta","Alta","2022-10-15","Mensual","Archivo Fisico y electrónico de la Oficina"]
["Talento Humano","INSTITUTO DE ESTUDIOS DEL MINISTERIO PÚBLICO- División de Administrativa y Financiera   ","INSTITUTO DE ESTUDIOS DEL MINISTERIO PÚBLICO- División de Administrativa y Financiera   ","PLANES Y PROGRAMAS","Programa Anual de Caja PAC (Distribución del Programa PAC Mensualizado)","Distribución Anual Del Presupuesto Asignado Por Ley Al Iemp","Español","Electrónico","Documento de texto (.doc, .txt, .rtf, .pdf)","Disponible para Consulta","Petición dirigida al Instituto de Estudios","Información Pública","Alta","Media","2022-01-03","Anual","Archivo Fisico y electrónico de la Oficina"]
["Talento Humano","INSTITUTO DE ESTUDIOS DEL MINISTERIO PÚBLICO- División de Investigaciones Sociopóliticas     ","INSTITUTO DE ESTUDIOS DEL MINISTERIO PÚBLICO- División de Investigaciones Sociopóliticas     ","ACTAS","Actas Comité Editorial","Registra las decisiones que toma el comité editorial del IEMP con respecto a los documentos que aprueba o no para su publicación en la vigencia correspondiente.","Español","Electrónico / Papel","Documento de texto (.doc, .txt, .rtf, .pdf)","Disponible para Consulta","Petición dirigida al Instituto de Estudios","Información Pública","Alta","Media","2022-06-25","Por acuerdo entre las Partes","Archivo Fisico y electrónico de la Oficina"]
["Talento Humano","INSTITUTO DE ESTUDIOS DEL MINISTERIO PÚBLICO- División de Investigaciones Sociopóliticas     ","INSTITUTO DE ESTUDIOS DEL MINISTERIO PÚBLICO- División de Investigaciones Sociopóliticas     ","ACTAS","Actas del comité de investigaciones ","Registra las decisiones del Comité de Investigaciones en cuanto a la aprobación de las investigaciones que se realizarán en vigencia correspondiente ","Español","Electrónico / Papel","Documento de texto (.doc, .txt, .rtf, .pdf)","Disponible para Consulta","Petición dirigida al Instituto de Estudios","Información Pública","Alta","Media","2022-06-09","Por acuerdo entre las Partes","Archivo Fisico y electrónico de la Oficina"]
["Talento Humano","INSTITUTO DE ESTUDIOS DEL MINISTERIO PÚBLICO- División de Investigaciones Sociopóliticas     ","INSTITUTO DE ESTUDIOS DEL MINISTERIO PÚBLICO- División de Investigaciones Sociopóliticas     ","INFORMES ","Informes de gestión","Registra información relacionada con la gestión de la División de investigaciones, en cuanto a investigaciones","Español","Electrónico","Documento de texto (.doc, .txt, .rtf, .pdf)","Disponible para Consulta","Petición dirigida al Instituto de Estudios","Información Pública","Alta","Media","2022-02-10","Por acuerdo entre las Partes","Archivo Fisico y electrónico de la Oficina"]
["Talento Humano","INSTITUTO DE ESTUDIOS DEL MINISTERIO PÚBLICO- División de Investigaciones Sociopóliticas     ","INSTITUTO DE ESTUDIOS DEL MINISTERIO PÚBLICO- División de Investigaciones Sociopóliticas     ","PLANES Y PROGRAMAS","Programa de amonestación para adolescentes","Documentacion relativa al Programa de Amonestación para adolescentes","Español","Electrónico / papel","Documento de texto (.doc, .txt, .rtf, .pdf)","Disponible para Consulta","Petición dirigida al Instituto de Estudios","Información Pública Reservada","Alta","Baja","2022-10-28","Por autonomía del responsable ","Archivo Fisico y electrónico de la Oficina","Artículos 18 y 19 Ley 1098 de 2006","Información exceptuada por daño de derechos a personas naturales o jurídicas","Artículo 153 Ley 1098 de 2006"]
["Talento Humano","INSTITUTO DE ESTUDIOS DEL MINISTERIO PÚBLICO- División de Investigaciones Sociopóliticas     ","INSTITUTO DE ESTUDIOS DEL MINISTERIO PÚBLICO- División de Investigaciones Sociopóliticas     ","PROYECTOS ","Proyectos de investigación ","Investigaciones sociopoliticas y  socioeconómicas de interés general para el Ministerio Público","Español","Electrónico / Papel","Documento de texto (.doc, .txt, .rtf, .pdf)","Disponible para Consulta","Petición dirigida al Instituto de Estudios","Información Pública","Alta","Media","2022-06-09","Por acuerdo entre las Partes","Archivo Fisico y electrónico de la Oficina"]
["Talento Humano","INSTITUTO DE ESTUDIOS DEL MINISTERIO PÚBLICO- División de Investigaciones Sociopóliticas     ","INSTITUTO DE ESTUDIOS DEL MINISTERIO PÚBLICO- División de Investigaciones Sociopóliticas     ","PUBLICACIONES INSTITUCIONALES","Publicaciones Institucionales ","Se trata de las obras que publica el IEMP, por solicitud de funcionarios o autores externos, para lo cual se firma la cesión de derechos de autor, se tramita ISBN ante la CCL e ISNN ante la Biblioteca Nacional y se lleva el registro editorial de control del proceso  ","Español","Electrónico / Papel","Documento de texto (.doc, .txt, .rtf, .pdf)","Publicada","Petición dirigida al Instituto de Estudios","Información Pública","Alta","Media","2022-10-31","Por acuerdo entre las Partes","Archivo Fisico y electrónico de la Oficina"]
["Talento Humano","INSTITUTO DE ESTUDIOS DEL MINISTERIO PÚBLICO- División de Capacitacion     ","INSTITUTO DE ESTUDIOS DEL MINISTERIO PÚBLICO- División de Capacitacion     ","INFORMES","Informes de Gestión","Recoge la información sobre la gestión realizada por la División durante cada periodo.","Español","Electrónico","Documento de texto (.doc, .txt, .rtf, .pdf)","Disponible para Consulta","Petición dirigida al Instituto de Estudios","Información Pública","Alta","Media","2022-10-10","Trimestral","Archivo Fisico y electrónico de la Oficina"]
["Talento Humano","INSTITUTO DE ESTUDIOS DEL MINISTERIO PÚBLICO- División de Capacitacion     ","INSTITUTO DE ESTUDIOS DEL MINISTERIO PÚBLICO- División de Capacitacion     ","PLANES Y PROGRAMAS","Programas Aacademicos","Reune la información que soporta cada evento de formación realizado por la División.","Español","Electrónico / Papel","Documento de texto/ Hoja de Cálculo","Disponible para Consulta","Petición dirigida al Instituto de Estudios","Información Pública","Alta","Alta","2022-10-28","Diario","Archivo Fisico y electrónico de la Oficina"]
["Talento Humano","Instituto de Estudios del Ministerio Publico- División de Capacitacion     ","INSTITUTO DE ESTUDIOS DEL MINISTERIO PÚBLICO- División de Administrativa y Financiera   ","INFORMES","Informes de Control Interno","Se refiere a los informes de auditoria de control interno del IEMP","Español","Electrónico","Documento de texto (.doc, .txt, .rtf, .pdf)","Disponible para Consulta","Petición dirigida al Instituto de Estudios","Información Pública","Alta","Alta","2021-01-01","Semestral","Archivo Fisico /electrónico de la Oficina"]
["Talento Humano","SECRETARÍA GENERAL","SECRETARIA GENERAL","DECRETOS ","DECRETOS","Decisiones  proferidas por el Procurador General de la Nación. Serie documental de carácter dispositivo, de actividades y misional. ","Español","Papel","Documento de texto (.doc, .txt, .rtf, .pdf)","Disponible para Consulta","Petición dirigida a Secretaría General","Información Pública","Alta","Media",null,null,null,"N/A ","N/A ","N/A ","N/A ","N/A ","N/A "]
["Talento Humano","SECRETARÍA GENERAL","SECRETARIA GENERAL","DERECHOS DE PETICIÓN","Oficio de solicitud"]
["Talento Humano","SECRETARÍA GENERAL","SECRETARIA GENERAL","RESOLUCIONES","Resolución ","Resoluciones proferidas por el Procurador General de la Nación y el Secretario General de la Procuraduría General de la Nación, de carácter dispositivo, de actividades y misional.","Español","Papel","Documento de texto (.doc, .txt, .rtf, .pdf)","Disponible para Consulta","Petición dirigida a Secretaría General","Información Pública","Alta","Media",null,null,null,"N/A ","N/A ","N/A ","N/A ","N/A ","N/A "]
["Talento Humano","SECRETARÍA GENERAL-División de Gestión Humana.  ","SECRETARÍA GENERAL-División de Gestión Humana.  ","PLANES Y PROGRAMAS","PLAN DE EMERGENCIAS","REGLAMENTO - BRIGADA DE EMERGENCIA","Español","Electrónico / Papel","Documento de texto (.doc, .txt, .rtf, .pdf)","Disponible para Consulta","Formato de Solicitud y/o Correo Electrónico","Información Pública","Alta","Alta","2022-12-31","Anual","Archivo Fisico de la Oficina"]
["Talento Humano","SECRETARÍA GENERAL-División de Gestión Humana.  ","SECRETARÍA GENERAL-División de Gestión Humana.  ","PLANES Y PROGRAMAS","PLAN DE EMERGENCIAS","REGISTRO ENTRENAMIENTO, CAPACITACIÓN Y COMPETENCIA ","Español","Electrónico / Papel","Documento de texto (.doc, .txt, .rtf, .pdf)","Disponible para Consulta","Formato de Solicitud y/o Correo Electrónico","Información Pública","Alta","Alta","2022-12-31","Anual","Archivo Fisico de la Oficina"]
["Talento Humano","SECRETARÍA GENERAL-División de Gestión Humana.  ","SECRETARÍA GENERAL-División de Gestión Humana.  ","PLANES Y PROGRAMAS","PLAN DE EMERGENCIAS","OFICIO DE CONFORMACIÓN DE GRUPOS ","Español","Electrónico / Papel","Documento de texto (.doc, .txt, .rtf, .pdf)","Disponible para Consulta","Formato de Solicitud y/o Correo Electrónico","Información Pública","Alta","Alta","2022-12-31","Anual","Archivo Fisico de la Oficina"]
["Talento Humano","SECRETARÍA GENERAL-División de Gestión Humana.  ","SECRETARÍA GENERAL-División de Gestión Humana.  ","PLANES Y PROGRAMAS","PLAN DE EMERGENCIAS","SUMINISTRO DE ELEMENTOS ","Español","Electrónico / Papel","Documento de texto (.doc, .txt, .rtf, .pdf)","Disponible para Consulta","Formato de Solicitud y/o Correo Electrónico","Información Pública","Alta","Alta","2022-12-31","Anual","Archivo Fisico de la Oficina"]
["Talento Humano","SECRETARÍA GENERAL-División de Gestión Humana.  ","SECRETARÍA GENERAL-División de Gestión Humana.  ","PLANES Y PROGRAMAS","PLAN DE EMERGENCIAS","PLAN ","Español","Electrónico / Papel","Documento de texto (.doc, .txt, .rtf, .pdf)","Disponible para Consulta","Formato de Solicitud y/o Correo Electrónico","Información Pública","Alta","Alta","2022-12-31","Anual","Archivo Fisico de la Oficina"]
["Talento Humano","SECRETARÍA GENERAL-División de Gestión Humana.  ","SECRETARÍA GENERAL-División de Gestión Humana.  ","PLANES Y PROGRAMAS","PLAN DE SISTEMA DE GESTIÓN DE SEGURIDAD Y SALUD EN EL TRABAJO ","PROGRAMA DE MEDICINA PREVENTIVA Y DEL TRABAJO ","Español","Electrónico / Papel","Documento de texto (.doc, .txt, .rtf, .pdf)","Disponible para Consulta","Formato de Solicitud y/o Correo Electrónico","Información Pública","Alta","Media","2022-12-31","Anual","Archivo Fisico de la Oficina"]
["Talento Humano","SECRETARÍA GENERAL-División de Gestión Humana.  ","SECRETARÍA GENERAL-División de Gestión Humana.  ","PLANES Y PROGRAMAS","PLAN DE SISTEMA DE GESTIÓN DE SEGURIDAD Y SALUD EN EL TRABAJO ","PROGRAMA PARA LA PREVENCIÓN DE DESÓRDENES MÚSCULO ESQUELÉTICOS","Español","Electrónico / Papel","Documento de texto (.doc, .txt, .rtf, .pdf)","Disponible para Consulta","Formato de Solicitud y/o Correo Electrónico","Información Pública","Alta","Media","2022-12-31","Anual","Archivo Fisico de la Oficina"]
["Talento Humano","SECRETARÍA GENERAL-División de Gestión Humana.  ","SECRETARÍA GENERAL-División de Gestión Humana.  ","PLANES Y PROGRAMAS","PLAN DE SISTEMA DE GESTIÓN DE SEGURIDAD Y SALUD EN EL TRABAJO ","PROGRAMA PARA LA PREVENCIÓN DEL RIESGO PSICOSOCIAL","Español","Electrónico / Papel","Documento de texto (.doc, .txt, .rtf, .pdf)","Disponible para Consulta","Formato de Solicitud y/o Correo Electrónico","Información Pública","Alta","Media","2022-12-31","Anual","Archivo Fisico de la Oficina"]
["Talento Humano","SECRETARÍA GENERAL-División de Gestión Humana.  ","SECRETARÍA GENERAL-División de Gestión Humana.  ","PLANES Y PROGRAMAS","PLAN DE SISTEMA DE GESTIÓN DE SEGURIDAD Y SALUD EN EL TRABAJO ","PROGRAMA PARA LA PREVENCIÓN Y EL CONTROL DE LA FARMACODEPENDENCIA, EL ALCOHOLISMO Y EL TABAQUISMO","Español","Electrónico / Papel","Documento de texto (.doc, .txt, .rtf, .pdf)","Disponible para Consulta","Formato de Solicitud y/o Correo Electrónico","Información Pública","Alta","Media","2022-12-31","Anual","Archivo Fisico de la Oficina"]
["Talento Humano","SECRETARÍA GENERAL-División de Gestión Humana.  ","SECRETARÍA GENERAL-División de Gestión Humana.  ","PLANES Y PROGRAMAS","PLAN DE SISTEMA DE GESTIÓN DE SEGURIDAD Y SALUD EN EL TRABAJO ","PROGRAMA DE HIGIENE Y SEGURIDAD INDUSTRIAL ","Español","Electrónico / Papel","Documento de texto (.doc, .txt, .rtf, .pdf)","Disponible para Consulta","Formato de Solicitud y/o Correo Electrónico","Información Pública","Alta","Media","2022-12-31","Anual","Archivo Fisico de la Oficina"]
["Talento Humano","SECRETARÍA GENERAL-División de Gestión Humana.  ","SECRETARÍA GENERAL-División de Gestión Humana.  ","REGISTROS DE CONTROL","REGISTRO DE CONTROL DE INCLUSIÓN EN NÓMINA DE PENSIONADOS","OFICIO DE SOLICITUD DE INCLUSIÓN DE NÓMINA DE PENSIONADOS ","Español","Electrónico / Papel","Documento de texto (.doc, .txt, .rtf, .pdf)","Disponible para Consulta","Solicitud  Formal","Información Pública Reservada","Alta","Media","Por requerimiento","Por acuerdo entre las Partes","SIGDEA","N° 3 del artículo 24 de la  Ley 1437 de 2011"]
["Talento Humano","SECRETARÍA GENERAL-División de Gestión Humana.  ","SECRETARÍA GENERAL-División de Gestión Humana.  ","REGISTROS DE CONTROL","REGISTRO DE CONTROL DE INCLUSIÓN EN NÓMINA DE PENSIONADOS","ANEXOS DE SOLICITUD DE INCLUSIÓN DE NÓMINA DE PENSIONADOS ","Español","Electrónico / Papel","Documento de texto (.doc, .txt, .rtf, .pdf)","Disponible para Consulta","Solicitud  Formal","Información Pública Reservada","Alta","Baja","Por requerimiento","Por acuerdo entre las Partes","SIGDEA","N° 3 del artículo 24 de la  Ley 1437 de 2011"]
["Talento Humano","SECRETARÍA GENERAL-División de Gestión Humana.  ","SECRETARÍA GENERAL-División de Gestión Humana.  ","REGISTROS DE CONTROL","REGISTRO DE CONTROL DE INCLUSIÓN EN NÓMINA DE PENSIONADOS","ANEXOS OFICIO DE INCLUSIÓN EN NÓMINA DE PENSIONADOS Y SOLICITUD A LA SUPERINTENDENCIA DE SALUD","Español","Electrónico / Papel","Documento de texto (.doc, .txt, .rtf, .pdf)","Disponible para Consulta","Solicitud  Formal","Información Pública Reservada","Alta","Baja","Por requerimiento","Por acuerdo entre las Partes","SIGDEA","N° 3 del artículo 24 de la  Ley 1437 de 2011"]
["Talento Humano","SECRETARÍA GENERAL-División de Gestión Humana.  ","SECRETARÍA GENERAL-División de Gestión Humana.  ","REGISTROS DE CONTROL","REGISTRO DE CONTROL DE RECONOCIMIENTO ECONOMICO DE LICENCIAS E INCAPACIDADES","OFICIO DE SOLICITUD DE   RECONOCIMIENTO ECONOMICO DE LICENCIAS E INCAPACIDADES ","Español","Electrónico / Papel","Documento de texto (.doc, .txt, .rtf, .pdf)","Disponible para Consulta","Solicitud  Formal","Información Pública Reservada","Alta","Baja","Por requerimiento","Por acuerdo entre las Partes","SIGDEA","Reserva información historia clinica ","N° 3  artículo 24 de la Ley 1437  de 2011 "]
["Talento Humano","SECRETARÍA GENERAL-División de Gestión Humana.  ","SECRETARÍA GENERAL-División de Gestión Humana.  ","DERECHOS DE PETICIÓN","OFICIOS DE RESPUESTA","RESPUESTA DE SOLICITUD Y ANEXOS  ","Español","Electrónico / Papel","Documento de texto (.doc, .txt, .rtf, .pdf)","Disponible para Consulta","Formato de Solicitud y/o Correo Electrónico","Información Pública Reservada","Alta","Media","Por requerimiento","Por acuerdo entre las Partes","SIGDEA","Derecho a la privacidad  e intimidad","N° 3  artículo 24 de la Ley 1437  de 2011 "]
["Talento Humano","SECRETARÍA GENERAL-División de Gestión Humana.  ","SECRETARÍA GENERAL-División de Gestión Humana.  ","INFORMES","INFORMES DE GESTIÓN","INFORME DE GESTIÓN Y ANEXOS ","Español","Electrónico / Papel","Documento de texto (.doc, .txt, .rtf, .pdf)","Disponible para Consulta","Formato de Solicitud y/o Correo Electrónico","Información Pública","Alta","Alta","Por requerimiento","Anual","SIGDEA",null,null,null,null,null,"5 años"]
["Talento Humano","SECRETARÍA GENERAL-División de Gestión Humana.  ","SECRETARÍA GENERAL-División de Gestión Humana.  ","PLANES Y PROGRAMAS","PROGRAMA ACONDICIONAMIENTO FÍSICO, RECREACIÓN Y DEPORTES GRUPO BIENESTAR","PROGRAMA ACONDICIONAMIENTO FÍSICO, RECREACIÓN Y DEPORTES ","Español","Electrónico / Papel","Documento de texto (.doc, .txt, .rtf, .pdf)","Disponible para Consulta","Información disponible en el Archivo  Fisisco / Digital ","Información Pública","Alta","Alta",44562,"Anual","Archivo Fisico"]
["Talento Humano","SECRETARÍA GENERAL-División de Gestión Humana.  ","SECRETARÍA GENERAL-División de Gestión Humana.  ","PLANES Y PROGRAMAS","PROGRAMA LÚDICO Y VACACIONAL GRUPO BIENESTAR","PROGRAMA LÚDICO Y VACACIONAL ","Español","Electrónico / Papel","Documento de texto (.doc, .txt, .rtf, .pdf)","Disponible para Consulta","Información disponible en el Archivo  Fisisco / Digital ","Información Pública","Alta","Alta",44562,"Anual","Archivo Fisico"]
["Talento Humano","SECRETARÍA GENERAL-División de Gestión Humana.  ","SECRETARÍA GENERAL-División de Gestión Humana.  ","PLANES Y PROGRAMAS","PROGRAMA CULTURA Y ARTE GRUPO BIENESTAR","PROGRAMA CULTURA Y ARTE ","Español","Electrónico / Papel","Documento de texto (.doc, .txt, .rtf, .pdf)","Disponible para Consulta","Información disponible en el Archivo  Fisisco / Digital ","Información Pública","Alta","Alta",44562,"Anual","Archivo Fisico"]
["Talento Humano","SECRETARÍA GENERAL-División de Gestión Humana.  ","SECRETARÍA GENERAL-División de Gestión Humana.  ","PLANES Y PROGRAMAS","PROGRAMA CAPACITACIÓN NO FORMAL GRUPO BIENESTAR","PROGRAMA CAPACITACIÓN NO FORMAL ","Español","Electrónico / Papel","Documento de texto (.doc, .txt, .rtf, .pdf)","Disponible para Consulta","Información disponible en el Archivo  Fisisco / Digital ","Información Pública","Alta","Alta",44562,"Anual","Archivo Fisico"]
["Talento Humano","SECRETARÍA GENERAL-División de Gestión Humana.  ","SECRETARÍA GENERAL-División de Gestión Humana.  ","PLANES Y PROGRAMAS","PROGRAMA PROMOCIÓN DE LA SALUD Y PREVENCIÓN DE LA ENFERMEDAD GRUPO BIENESTAR","PROGRAMA PROMOCIÓN DE LA SALUD Y PREVENCIÓN DE LA ENFERMEDAD ","Español","Electrónico / Papel","Documento de texto (.doc, .txt, .rtf, .pdf)","Disponible para Consulta","Información disponible en el Archivo  Fisisco / Digital ","Información Pública","Alta","Alta",44562,"Anual","Archivo Fisico"]
["Talento Humano","SECRETARÍA GENERAL-División de Gestión Humana.  ","SECRETARÍA GENERAL-División de Gestión Humana.  ","PLANES Y PROGRAMAS","PROGRAMA PROMOCIÓN DE SERVICIOS GRUPO BIENESTAR","PROGRAMA PROMOCIÓN DE SERVICIOS ","Español","Electrónico / Papel","Documento de texto (.doc, .txt, .rtf, .pdf)","Disponible para Consulta","Información disponible en el Archivo  Fisisco / Digital ","Información Pública","Alta","Alta",44562,"Anual","Archivo Fisico"]
["Talento Humano","SECRETARÍA GENERAL-División de Gestión Humana.  ","SECRETARÍA GENERAL-División de Gestión Humana.  ","PLANES Y PROGRAMAS","PROGRAMA ORIENTACIÓN PSICOLÓGICA \"ESTAR BIEN\" GRUPO BIENESTAR","PROGRAMA ORIENTACIÓN PSICOLÓGICA \"ESTAR BIEN\" ","Español","Electrónico / Papel","Documento de texto (.doc, .txt, .rtf, .pdf)","Disponible para Consulta","Solicitud  Formal","Información Pública Reservada","Alta","Baja","Por requerimiento","Por acuerdo entre las Partes","Archivo Fisico de la Oficina","Derecho a la privacidad  e intimidad","N° 3  artículo 24 de la Ley 1437  de 2011 "]
["Talento Humano","SECRETARÍA GENERAL-División de Gestión Humana.  ","SECRETARÍA GENERAL-División de Gestión Humana.  ","PLANES Y PROGRAMAS","PROGRAMA  CLIMA LABORAL GRUPO BIENESTAR","PROGRAMA  CLIMA LABORAL GRUPO BIENESTAR ","Español","Electrónico / Papel","Documento de texto (.doc, .txt, .rtf, .pdf)","Disponible para Consulta","Información disponible en el Archivo  Fisisco / Digital ","Información Pública","Alta","Alta",44562,"Anual","Archivo Fisico"]
["Talento Humano","SECRETARÍA GENERAL-División de Gestión Humana.  ","SECRETARÍA GENERAL-División de Gestión Humana.  ","PLANES Y PROGRAMAS","PROGRAMA PREPARACIÓN AL PRE PENSIONADO GRUPO BIENESTAR","PROGRAMA PREPARACIÓN AL PRE PENSIONADO ","Español","Electrónico / Papel","Documento de texto (.doc, .txt, .rtf, .pdf)","Disponible para Consulta","Información disponible en el Archivo  Fisisco / Digital ","Información Pública","Alta","Alta",44562,"Anual","Archivo Fisico"]
["Talento Humano","SECRETARÍA GENERAL-División de Gestión Humana.  ","SECRETARÍA GENERAL-División de Gestión Humana.  ","PLANES Y PROGRAMAS","PROGRAMA CULTURA ORGANIZACIONAL GRUPO BIENESTAR","PROGRAMA CULTURA ORGANIZACIONAL ","Español","Electrónico / Papel","Documento de texto (.doc, .txt, .rtf, .pdf)","Disponible para Consulta","Información disponible en el Archivo  Fisisco / Digital ","Información Pública","Alta","Alta",44562,"Anual","Archivo Fisico"]
["Talento Humano","SECRETARÍA GENERAL-División de Gestión Humana.  ","SECRETARÍA GENERAL-División de Gestión Humana.  ","PLANES Y PROGRAMAS","PROGRAMA COMPENSACIÓN EMOCIONAL GRUPO BIENESTAR","PROGRAMA COMPENSACIÓN EMOCIONAL ","Español","Electrónico / Papel","Documento de texto (.doc, .txt, .rtf, .pdf)","Disponible para Consulta","Información disponible en el Archivo  Fisisco / Digital ","Información Pública","Alta","Alta",44562,"Anual","Archivo Fisico"]
["Talento Humano","SECRETARÍA GENERAL-División de Gestión Humana.  ","SECRETARÍA GENERAL-División de Gestión Humana.  ","PLANES Y PROGRAMAS","PLAN OPERATIVO ANUAL (POA)  GRUPO BIENESTAR  ","PLAN OPERATIVO ANUAL (POA)  GRUPO BIENESTAR  ","Español","Electrónico / Papel","Documento de texto (.doc, .txt, .rtf, .pdf)","Disponible para Consulta","Formato de Solicitud y/o Correo Electrónico","Información Pública","Alta","Alta",44562,"Anual","Archivo Fisico"]
["Talento Humano","SECRETARÍA GENERAL-División de Gestión Humana.  ","SECRETARÍA GENERAL-División de Gestión Humana.  ","DERECHOS DE PETICIÓN","SOLICITUDES VARIAS DE CESANTIAS.","DERECHOS DE PETICION, CERTIFICADOS Y SOLICITUDES VARIAS.","Español","Electrónico / Papel","Documento de texto (.doc, .txt, .rtf, .pdf)","Disponible para Consulta","Formato de Solicitud y/o Correo Electrónico","Información Pública Reservada","Alta","Media","Por requerimiento","Por acuerdo entre las Partes","SIGDEA","Derecho a la privacidad  e intimidad","N° 3  artículo 24 de la Ley 1437  de 2011 "]
["Talento Humano","SECRETARÍA GENERAL-División de Gestión Humana.  ","SECRETARÍA GENERAL-División de Gestión Humana.  ","PROCEDIMIENTO ADMINISTRATIVO","ACTOS ADMINISITRATIVOS Y ANEXOS","ACTOS ADMINISTRATIVOS EN TEMA CESANTIAS ","Español","Electrónico / Papel","Documento de texto (.doc, .txt, .rtf, .pdf)","Disponible para Consulta","Formato de Solicitud y/o Correo Electrónico","Información Pública Reservada","Alta","Media","Por requerimiento","Por acuerdo entre las Partes","SIGDEA"]
["Talento Humano","SECRETARÍA GENERAL-División de Gestión Humana.  ","SECRETARÍA GENERAL-División de Gestión Humana.  ","DERECHOS DE PETICIÓN","ANEXOS","DOCUMENTO CON REQUERIMIENTO - ","Español","Electrónico / Papel","Documento de texto (.doc, .txt, .rtf, .pdf)","Disponible para Consulta","Formato de Solicitud y/o Correo Electrónico","Información Pública Reservada","Alta","Baja","Por requerimiento","Por acuerdo entre las Partes","Archivo Fisico de la Oficina","Se revisa cada caso en particular, buscando determinar si procede la  excepcion total o parcial.","N° 3 del artículo 24 de la  Ley 1437 de 2011"]
["Talento Humano","SECRETARÍA GENERAL-División de Gestión Humana.  ","SECRETARÍA GENERAL-División de Gestión Humana.  ","HISTORIAS LABORALES","FOTO","FOTOGRAFÍAS DEL FUNCIONARIO AL MOMENTO DEL INGRESO","Español","Electrónico / Papel","Documento de texto (.doc, .txt, .rtf, .pdf)","Disponible para Consulta","Formato de Solicitud y/o Correo Electrónico","Información Pública Reservada","Alta","Baja","Por requerimiento","Por acuerdo entre las Partes","Archivo Fisico de la Oficina","Se revisa cada caso en particular, buscando determinar si procede la  excepcion total o parcial.","N° 3 del artículo 24 del CPACA (modificado por el artículo 1de la Ley 1755 de 2015)"]
["Talento Humano","SECRETARÍA GENERAL-División de Gestión Humana.  ","SECRETARÍA GENERAL-División de Gestión Humana.  ","HISTORIAS LABORALES","FORMATO UNICO DE HOJA DE VIDA","REGISTRO DATOS PRINCIPALES DEL FUNCIONARIO","Español","Electrónico / Papel","Documento de texto (.doc, .txt, .rtf, .pdf)","Disponible para Consulta","Formato de Solicitud y/o Correo Electrónico","Información Pública Reservada","Alta","Baja","Por requerimiento","Por acuerdo entre las Partes","Archivo Fisico de la Oficina","no reporta ","no reporta ","no reporta ","no reporta ","no reporta ","82 años"]
["Talento Humano","SECRETARÍA GENERAL-División de Gestión Humana.  ","SECRETARÍA GENERAL-División de Gestión Humana.  ","HISTORIAS LABORALES","REGISTRO CIVIL DE NACIMIENTO","DOCUMENTO PÚBLICO QUE LEGALMENTE PRUEBA LA EXISTENCIA DE UNA PERSONA ","Español","Electrónico / Papel","Documento de texto (.doc, .txt, .rtf, .pdf)","Disponible para Consulta","Formato de Solicitud y/o Correo Electrónico","Información Pública Reservada","Alta","Baja","Por requerimiento","Por acuerdo entre las Partes","Archivo Fisico de la Oficina","Se revisa cada caso en particular, buscando determinar si procede la  excepcion total o parcial.","N° 3 del artículo 24 de la  Ley 1437 de 2011"]
["Talento Humano","SECRETARÍA GENERAL-División de Gestión Humana.  ","SECRETARÍA GENERAL-División de Gestión Humana.  ","HISTORIAS LABORALES","CÉDULA DE CIUDADANIA O EXTRANJERIA","DOCUMENTO EMITIDO POR UNA AUTORIDAD ADMINISTRATIVA COMPETENTE PARA PERMITIR LA IDENTIFICACION PERSONAL DE LOS CIUDADANOS ","Español","Electrónico / Papel","Documento de texto (.doc, .txt, .rtf, .pdf)","Disponible para Consulta","Formato de Solicitud y/o Correo Electrónico","Información Pública Reservada","Alta","Baja","Por requerimiento","Por acuerdo entre las Partes","Archivo Fisico de la Oficina","Se revisa cada caso en particular, buscando determinar si procede la  excepcion total o parcial.","N° 3 del artículo 24 de la  Ley 1437 de 2011"]
["Talento Humano","SECRETARÍA GENERAL-División de Gestión Humana.  ","SECRETARÍA GENERAL-División de Gestión Humana.  ","HISTORIAS LABORALES","LIBRETA MILITAR","DOCUMENTO OFICIAL COLOMBIANO EN EL QUE SE COMPRUEBA Y VERIFICA LA SITUACIÓN MILITAR DE UNA PERSONA.","Español","Electrónico / Papel","Documento de texto (.doc, .txt, .rtf, .pdf)","Disponible para Consulta","Formato de Solicitud y/o Correo Electrónico","Información Pública","Alta","Alta","Por requerimiento","Por acuerdo entre las Partes","Archivo Fisico de la Oficina"]
["Talento Humano","SECRETARÍA GENERAL-División de Gestión Humana.  ","SECRETARÍA GENERAL-División de Gestión Humana.  ","HISTORIAS LABORALES","ESTUDIO DE SEGURIDAD","ES UN MINUCIOSO ANÁLISIS QUE SE REALIZA PARA DETERMINAR SI UNA PERSONA ES REALMENTE QUIEN DICE SER, Y PARA CONOCER SU HISTORIA DE COMPORTAMIENTO SOCIAL Y CRIMINAL"]
["Talento Humano","SECRETARÍA GENERAL-División de Gestión Humana.  ","SECRETARÍA GENERAL-División de Gestión Humana.  ","HISTORIAS LABORALES","LICENCIA DE CONDUCCION","DOCUMENTO PÚBLICO DE CARÁCTER PERSONAL E INTRANSFERIBLE EXPEDIDO POR AUTORIDAD COMPETENTE, EN EL CUAL AUTORIZA A UNA PERSONA PARA LA CONDUCCIÓN DE VEHÍCULOS CON VALIDEZ EN TODO EL TERRITORIO NACIONAL.","Español","Electrónico / Papel","Documento de texto (.doc, .txt, .rtf, .pdf)","Disponible para Consulta","Formato de Solicitud y/o Correo Electrónico","Información Pública","Alta","Alta","Por requerimiento","Por acuerdo entre las Partes","Archivo Fisico de la Oficina"]
["Talento Humano","SECRETARÍA GENERAL-División de Gestión Humana.  ","SECRETARÍA GENERAL-División de Gestión Humana.  ","HISTORIAS LABORALES","RESOLUCIÓN DE LAS LISTAS DE ELEGIBLES","ACTO ADMINISTRATIVO DE CARÁCTER PARTICULAR, CUYO FIN ES DE ESTABLECER UN ORDEN PARA PROVEER LOS CARGOS ESTRICTAMENTE OFERTADOS Y NO OTROS, LO QUE OBLIGA A LAS ENTIDADES NOMINADORAS A PROVEER EXCLUSIVAMENTE EL NÚMERO DE PLAZAS OFERTADAS EN CADA UNA DE LAS CONVOCATORIAS ","Español","Electrónico / Papel","Documento de texto (.doc, .txt, .rtf, .pdf)","Disponible para Consulta","Formato de Solicitud y/o Correo Electrónico","Información Pública","Alta","Alta","Por requerimiento","Por acuerdo entre las Partes","Archivo Fisico de la Oficina"]
["Talento Humano","SECRETARÍA GENERAL-División de Gestión Humana.  ","SECRETARÍA GENERAL-División de Gestión Humana.  ","HISTORIAS LABORALES","ACTO ADMINISTRATIVO DE NOMBRAMIENTO","ES UN ACTO QUE ESTÁ SUJETO A LA VERIFICACIÓN DE UNOS PRESUPUESTOS LEGALES QUE CONDUCEN A FORMALIZAR EL NOMBRAMIENTO Y A COMPLETAR LA INVESTIDURA DEL SERVIDOR","Español","Electrónico / Papel","Documento de texto (.doc, .txt, .rtf, .pdf)","Disponible para Consulta","Formato de Solicitud y/o Correo Electrónico","Información Pública","Alta","Alta","Por requerimiento","Por acuerdo entre las Partes","Archivo Fisico de la Oficina"]
["Talento Humano","SECRETARÍA GENERAL-División de Gestión Humana.  ","SECRETARÍA GENERAL-División de Gestión Humana.  ","HISTORIAS LABORALES","COMUNICACIÓN DE NOMBRAMIENTO","INFORME AL FUNCIONARIO ACERCA DE SU NOMBRAMIENTO","Español","Electrónico / Papel","Documento de texto (.doc, .txt, .rtf, .pdf)","Disponible para Consulta","Formato de Solicitud y/o Correo Electrónico","Información Pública","Alta","Alta","Por requerimiento","Por acuerdo entre las Partes","Archivo Fisico de la Oficina"]
["Talento Humano","SECRETARÍA GENERAL-División de Gestión Humana.  ","SECRETARÍA GENERAL-División de Gestión Humana.  ","HISTORIAS LABORALES","OFICIO DE ACEPTACIÓN DEL NOMBRAMIENTO EN EL CARGO","DOCMENTO EN EL QUE SE MANIFIESTA LA ACEPTACIÓN AL NOMBRAMIENTO","Español","Electrónico / Papel","Documento de texto (.doc, .txt, .rtf, .pdf)","Disponible para Consulta","Formato de Solicitud y/o Correo Electrónico","Información Pública","Alta","Alta","Por requerimiento","Por acuerdo entre las Partes","Archivo Fisico de la Oficina"]
["Talento Humano","SECRETARÍA GENERAL-División de Gestión Humana.  ","SECRETARÍA GENERAL-División de Gestión Humana.  ","HISTORIAS LABORALES","SOLICITUD DE PRORROGA DE POSESION","DOCUMENTO EN EL QUE SE SOLICITA EXTENDER EL TIEMPO DISPUESTO PARA LA POSESION AL CARGO","Español","Electrónico / Papel","Documento de texto (.doc, .txt, .rtf, .pdf)","Disponible para Consulta","Formato de Solicitud y/o Correo Electrónico","Información Pública","Alta","Alta","Por requerimiento","Por acuerdo entre las Partes","Archivo Fisico de la Oficina"]
["Talento Humano","SECRETARÍA GENERAL-División de Gestión Humana.  ","SECRETARÍA GENERAL-División de Gestión Humana.  ","HISTORIAS LABORALES","RESOLUCIÓN DE PRORROGA","DOCUMENTO ADMINISTRATIVO QUE SOPORTA LA PRORROGA CONCEDIDA PARA LA POSESIÓN","Español","Electrónico / Papel","Documento de texto (.doc, .txt, .rtf, .pdf)","Disponible para Consulta","Formato de Solicitud y/o Correo Electrónico","Información Pública","Alta","Alta","Por requerimiento","Por acuerdo entre las Partes","Archivo Fisico de la Oficina"]
["Talento Humano","SECRETARÍA GENERAL-División de Gestión Humana.  ","SECRETARÍA GENERAL-División de Gestión Humana.  ","HISTORIAS LABORALES","CERTIFICADOS ACADÉMICOS FORMALES E INFORMALES","DOCUMENTO OFICIAL QUE ACREDITA LOS ESTUDIOS QUE UNA PERSONA HA CURSADO Y SUPERADO CON ÉXITO","Español","Electrónico / Papel","Documento de texto (.doc, .txt, .rtf, .pdf)","Disponible para Consulta","Formato de Solicitud y/o Correo Electrónico","Información Pública Clasificada","Alta","Baja","Por requerimiento","Por acuerdo entre las Partes","Archivo Fisico de la Oficina","Proteger el derecho a la intimidad de las personas. ","N° 3 del artículo 24 de la  Ley 1437 de 2011"]
["Talento Humano","SECRETARÍA GENERAL-División de Gestión Humana.  ","SECRETARÍA GENERAL-División de Gestión Humana.  ","HISTORIAS LABORALES","PUBLICACIONES","HACER REFERENCIA AL ACTO MEDIANTE EL CUAL SE HACE PÚBLICO O SE DA A CONOCER DETERMINADA INFORMACIÓN, ACTO, DATO, ETC.","Español","Electrónico / Papel","Documento de texto (.doc, .txt, .rtf, .pdf)","Disponible para Consulta","Formato de Solicitud y/o Correo Electrónico","Información Pública","Alta","Alta","Por requerimiento","Por acuerdo entre las Partes","Archivo Fisico de la Oficina"]
["Talento Humano","SECRETARÍA GENERAL-División de Gestión Humana.  ","SECRETARÍA GENERAL-División de Gestión Humana.  ","HISTORIAS LABORALES","TARJETA PROFESIONAL","DOCUMENTO PÚBLICO QUE ACREDITA LA FORMACIÓN ACADÉMICA E IDONEIDAD PROFESIONAL DE UN INDIVIDUO EN UN ÁREA ESPECÍFICA DEL CONOCIMIENTO. EN COLOMBIA LA TARJETA PROFESIONAL ES REQUISITO INDISPENSABLE PARA EJERCER LAS PROFESIONES QUE IMPLICAN UN RIESGO SOCIAL","Español","Electrónico / Papel","Documento de texto (.doc, .txt, .rtf, .pdf)","Disponible para Consulta","Formato de Solicitud y/o Correo Electrónico","Información Pública Clasificada","Alta","Baja","Por requerimiento","Por acuerdo entre las Partes","Archivo Fisico de la Oficina","Proteger el derecho a la intimidad de las personas.","N° 3 del artículo 24 de la  Ley 1437 de 2011"]
["Talento Humano","SECRETARÍA GENERAL-División de Gestión Humana.  ","SECRETARÍA GENERAL-División de Gestión Humana.  ","HISTORIAS LABORALES","CERTIFICADOS LABORALES","DOCUMENTO EXPEDIDO POR EL PATRONO AL TRABAJADOR, Y DONDE SE HACE CONSTAR, DANDO FE DE ELLO, LOS SERVICIOS PRESTADOS.","Español","Electrónico / Papel","Documento de texto (.doc, .txt, .rtf, .pdf)","Disponible para Consulta","Formato de Solicitud y/o Correo Electrónico","Información Pública Clasificada","Alta","Baja","Por requerimiento","Por acuerdo entre las Partes","Archivo Fisico de la Oficina","Proteger el derecho a la intimidad de las personas. ","N° 3 del artículo 24 de la  Ley 1437 de 2011"]
["Talento Humano","SECRETARÍA GENERAL-División de Gestión Humana.  ","SECRETARÍA GENERAL-División de Gestión Humana.  ","HISTORIAS LABORALES","CONTRATOS U ORDENES DE PRESTACIONES DE SERVICIOS","DOCUMENTO MEDIANTE EL CUAL UNA PERSONA, NORMALMENTE UN PROFESIONAL EN ALGÚN ÁREA, SE OBLIGA CON RESPECTO A OTRA A REALIZAR UNA SERIE DE SERVICIOS A CAMBIO DE UN PRECIO.","Español","Electrónico / Papel","Documento de texto (.doc, .txt, .rtf, .pdf)","Disponible para Consulta","Formato de Solicitud y/o Correo Electrónico","Información Pública Clasificada","Alta","Baja","Por requerimiento","Por acuerdo entre las Partes","Archivo Fisico de la Oficina","Proteger el derecho a la intimidad de las personas. ","N° 3 del artículo 24 de la  Ley 1437 de 2011"]
["Talento Humano","SECRETARÍA GENERAL-División de Gestión Humana.  ","SECRETARÍA GENERAL-División de Gestión Humana.  ","HISTORIAS LABORALES","DECLARACIONES EXTRAJUICIO SOBRE EJERCICIO DE LA PROFESION U OFICIO","MANIFESTACIÓN LIBRE Y ESPONTÁNEA CON LA QUE UNA PERSONA PUEDE ANTE UN NOTARÍO BAJO LA GRAVEDAD DE JURAMENTO, CONFIRMAR O DAR FE DE UN TESTIMONIO SOBRE SU PROFESIÓN U OFICIO ","Español","Electrónico / Papel","Documento de texto (.doc, .txt, .rtf, .pdf)","Disponible para Consulta","Formato de Solicitud y/o Correo Electrónico","Información Pública Clasificada","Alta","Baja","Por requerimiento","Por acuerdo entre las Partes","Archivo Fisico de la Oficina","Proteger el derecho a la intimidad de las personas. ","N° 3 del artículo 24 de la  Ley 1437 de 2011"]
["Talento Humano","SECRETARÍA GENERAL-División de Gestión Humana.  ","SECRETARÍA GENERAL-División de Gestión Humana.  ","HISTORIAS LABORALES","CERTIFICADO DE ANTECEDENTES JUDICIALES","DOCUMENTO EN ELO QUE SE REGISTRA LA INFORMACIÓN SOBRE LOS ANTECEDENTES JUDICIALES DE LA PERSONA, CON BASE EN LA INFORMACIÓN APORTADA POR AL RAMA JUDICIAL, ES DECIR INFORMA SI LA PERSONA TIENE O HA TENIDO ALGUNA CONDENA O SI ES REQUERIDO POR ALGUNA AUTORIDAD JUDICIAL.","Español","Electrónico / Papel","Documento de texto (.doc, .txt, .rtf, .pdf)","Disponible para Consulta","Formato de Solicitud y/o Correo Electrónico","Información Pública Clasificada","Alta","Baja","Por requerimiento","Por acuerdo entre las Partes","Archivo Fisico de la Oficina","Proteger el derecho a la intimidad de las personas. ","N° 3 del artículo 24 de la  Ley 1437 de 2011"]
["Talento Humano","SECRETARÍA GENERAL-División de Gestión Humana.  ","SECRETARÍA GENERAL-División de Gestión Humana.  ","HISTORIAS LABORALES","CERTIFICADO DE ANTECEDENTES FISCALES","DOCUMENTO QUE INDICA SI EN EL BOLETÍN DE RESPONSABILIDADES FISCALES ESTÁ O NO REGISTRADO EL NOMBRE DE UNA PERSONA NATURAL O JURÍDICA, A QUIEN SE LE HAYA DICTADO UN FALLO DE RESPONSABILIDAD FISCAL Y NO LO HAYA CUMPLIDO.","Español","Electrónico / Papel","Documento de texto (.doc, .txt, .rtf, .pdf)","Disponible para Consulta","Formato de Solicitud y/o Correo Electrónico","Información Pública Clasificada","Alta","Baja","Por requerimiento","Por acuerdo entre las Partes","Archivo Fisico de la Oficina","Proteger el derecho a la intimidad de las personas. ","N° 3 del artículo 24 de la  Ley 1437 de 2011"]
["Talento Humano","SECRETARÍA GENERAL-División de Gestión Humana.  ","SECRETARÍA GENERAL-División de Gestión Humana.  ","HISTORIAS LABORALES","CERTIFICADO DE ANTECEDENTES DISCIPLINARIOS","DOCUMENTO QUE MUESTRA SI UNA PERSONA TIENE ALGUNA INHABILIDAD PARA DESEMPEÑAR UN CARGO PÚBLICO EN VISTA  DE QUE HAYA SIDO SANCIONADO PENALMENTE O POR UN ASUNTO DISCIPLINARIO O QUE HAYA PERDIDO SU INVESTIDURA COMO SERVIDOR PÚBLICO","Español","Electrónico / Papel","Documento de texto (.doc, .txt, .rtf, .pdf)","Disponible para Consulta","Formato de Solicitud y/o Correo Electrónico","Información Pública Clasificada","Alta","Baja","Por requerimiento","Por acuerdo entre las Partes","Archivo Fisico de la Oficina","Proteger el derecho a la intimidad de las personas. ","N° 3 del artículo 24 de la  Ley 1437 de 2011"]
["Talento Humano","SECRETARÍA GENERAL-División de Gestión Humana.  ","SECRETARÍA GENERAL-División de Gestión Humana.  ","HISTORIAS LABORALES","CERTIFICADO DE ANTECEDENTES PROFESIONALES","DOCUMENTO EN EL QUE SE REGISTRAN LOS ANTECEDENTES DEONTOLÓGICOS Y ÉTICOS REGISTRADOS EN EL DESARROLLO DE LA PROFESIÓN","Español","Electrónico / Papel","Documento de texto (.doc, .txt, .rtf, .pdf)","Disponible para Consulta","Formato de Solicitud y/o Correo Electrónico","Información Pública Clasificada","Alta","Baja","Por requerimiento","Por acuerdo entre las Partes","Archivo Fisico de la Oficina","Proteger el derecho a la intimidad de las personas.","N° 3 del artículo 24 de la  Ley 1437 de 2011"]
["Talento Humano","SECRETARÍA GENERAL-División de Gestión Humana.  ","SECRETARÍA GENERAL-División de Gestión Humana.  ","HISTORIAS LABORALES","ACTA DE COMPROMISO PARA EL CUMPLIMIENTO DE LA CARTA DE VALORES Y PRINCIPIOS ÉTICOS","DOCUMENTO MEDIANTE EL CUAL SE OFICIALIZA LA OBLIGACIÓN Y RESPONSABILIDADES QUE UNA PERSONA ADQUIERE CON LA ENTIDAD","Español","Electrónico / Papel","Documento de texto (.doc, .txt, .rtf, .pdf)","Disponible para Consulta","Formato de Solicitud y/o Correo Electrónico","Información Pública","Alta","Alta","Por requerimiento","Por acuerdo entre las Partes","Archivo Fisico de la Oficina"]
["Talento Humano","SECRETARÍA GENERAL-División de Gestión Humana.  ","SECRETARÍA GENERAL-División de Gestión Humana.  ","HISTORIAS LABORALES","DECLARACIÓN DE BIENES Y RENTAS","DOCUMENTO QUE PERMITE A LOS FUNCIONARIOS PÚBLICOS PRESENTAR DATOS CERTEROS SOBRE LOS BIENES PATRIMONIALES QUE POSEE PARA DESEMPEÑARSE EN LA ACTIVIDAD PÚBLICA, TALES COMO CASAS, VEHÍCULOS, INGRESOS Y EGRESOS","Español","Electrónico / Papel","Documento de texto (.doc, .txt, .rtf, .pdf)","Disponible para Consulta","Formato de Solicitud y/o Correo Electrónico","Información Pública Reservada","Alta","Baja","Por requerimiento","Por acuerdo entre las Partes","Archivo Fisico de la Oficina","Proteger el derecho a la intimidad de las personas.","N° 3 del artículo 24 de la  Ley 1437 de 2011"]
["Talento Humano","SECRETARÍA GENERAL-División de Gestión Humana.  ","SECRETARÍA GENERAL-División de Gestión Humana.  ","HISTORIAS LABORALES","CERTIFICADO DE APTITUD FÍSICA","CERTIFICADO DE CARÁCTER PREVENTIVO,  A TRAVÉS DE ÉL SE PUEDEN DETECTAR PATOLOGÍAS Y PREVENIR RIESGOS","Español","Electrónico / Papel","Documento de texto (.doc, .txt, .rtf, .pdf)","Disponible para Consulta","Formato de Solicitud y/o Correo Electrónico","Información Pública Reservada","Alta","Baja","Por requerimiento","Por acuerdo entre las Partes","Archivo Fisico de la Oficina","Se revisa cada caso en particular, buscando determinar si procede la  excepcion total o parcial.","N° 3 del artículo 24 de la  Ley 1437 de 2011"]
["Talento Humano","SECRETARÍA GENERAL-División de Gestión Humana.  ","SECRETARÍA GENERAL-División de Gestión Humana.  ","HISTORIAS LABORALES","AFILIACIÓN A EPS","SOPORTE DE VINCULACIÓN A UNA ENTIDAD PRESTADORA DE SERVICIOS DE SALUD","Español","Electrónico / Papel","Documento de texto (.doc, .txt, .rtf, .pdf)","Disponible para Consulta","Formato de Solicitud y/o Correo Electrónico","Información Pública Reservada","Alta","Baja","Por requerimiento","Por acuerdo entre las Partes","Archivo Fisico de la Oficina","Se revisa cada caso en particular, buscando determinar si procede la  excepcion total o parcial.","N° 3 del artículo 24 de la  Ley 1437 de 2011"]
["Talento Humano","SECRETARÍA GENERAL-División de Gestión Humana.  ","SECRETARÍA GENERAL-División de Gestión Humana.  ","REGISTROS DE CONTROL","REGISTRO CONTROL DE PERMISOS SINDICALES","REGISTRO DE PERMISOS SINDICALES"]
["Talento Humano","SECRETARÍA GENERAL-División de Gestión Humana.  ","SECRETARÍA GENERAL-División de Gestión Humana.  ","HISTORIAS LABORALES","AFILIACION A AFP","SOPORTE DE VINCULACION A UNA ADMINISTRADORA DE FONDOS DE PENSIONES","Español","Electrónico / Papel","Documento de texto (.doc, .txt, .rtf, .pdf)","Disponible para Consulta","Formato de Solicitud y/o Correo Electrónico","Información Pública Reservada","Alta","Baja","Por requerimiento","Por acuerdo entre las Partes","Archivo Fisico de la Oficina","Se revisa cada caso en particular, buscando determinar si procede la  excepcion total o parcial.","N° 3 del artículo 24 de la  Ley 1437 de 2011"]
["Talento Humano","SECRETARÍA GENERAL-División de Gestión Humana.  ","SECRETARÍA GENERAL-División de Gestión Humana.  ","HISTORIAS LABORALES","AFILIACIÓN A CESANTIAS","SOPORTE DE VINCULACION A UN FONDO DE CESANTIAS","Español","Electrónico / Papel","Documento de texto (.doc, .txt, .rtf, .pdf)","Disponible para Consulta","Formato de Solicitud y/o Correo Electrónico","Información Pública Reservada","Alta","Baja","Por requerimiento","Por acuerdo entre las Partes","Archivo Fisico de la Oficina","Se revisa cada caso en particular, buscando determinar si procede la  excepcion total o parcial.","N° 3 del artículo 24 de la  Ley 1437 de 2011"]
["Talento Humano","SECRETARÍA GENERAL-División de Gestión Humana.  ","SECRETARÍA GENERAL-División de Gestión Humana.  ","HISTORIAS LABORALES","AFILIACIÓN A ARL","SOPORTE DE VINCULACION A UNA ADMINISTRADORA DE RIESGOS LABORALES","Español","Electrónico / Papel","Documento de texto (.doc, .txt, .rtf, .pdf)","Disponible para Consulta","Formato de Solicitud y/o Correo Electrónico","Información Pública Reservada","Alta","Baja","Por requerimiento","Por acuerdo entre las Partes","Archivo Fisico de la Oficina","Se revisa cada caso en particular, buscando determinar si procede la  excepcion total o parcial.","Paragrafo del artículo 19 de la Ley 1712 de 2014."]
["Talento Humano","SECRETARÍA GENERAL-División de Gestión Humana.  ","SECRETARÍA GENERAL-División de Gestión Humana.  ","HISTORIAS LABORALES","AFILIACIÓN A CAJA DE COMPENSACIÓN","SOPORTE DE VINCULACION A UNA CAJA DE COMPENSACIÓN FAMILIAR","Español","Electrónico / Papel","Documento de texto (.doc, .txt, .rtf, .pdf)","Disponible para Consulta","Formato de Solicitud y/o Correo Electrónico","Información Pública Reservada","Alta","Baja","Por requerimiento","Por acuerdo entre las Partes","Archivo Fisico de la Oficina","Se revisa cada caso en particular, buscando determinar si procede la  excepcion total o parcial.","Paragrafo del artículo 19 de la Ley 1712 de 2014."]
["Talento Humano","SECRETARÍA GENERAL-División de Gestión Humana.  ","SECRETARÍA GENERAL-División de Gestión Humana.  ","HISTORIAS LABORALES","SEGURO DE VIDA","FORMATO QUE SIRVE COMO SOPORTE PARA EL PAGO DEL BENEFICIO DEL SEGURO DE VIDA, EN EL QUE SE RELACIONAN DATOS PRINCIPALES Y BENEFICIARIOS DEL MISMO","Español","Electrónico / Papel","Documento de texto (.doc, .txt, .rtf, .pdf)","Disponible para Consulta","Formato de Solicitud y/o Correo Electrónico","Información Pública Reservada","Alta","Baja","Por requerimiento","Por acuerdo entre las Partes","Archivo Fisico de la Oficina","Se revisa cada caso en particular, buscando determinar si procede la  excepcion total o parcial.","Paragrafo del artículo 19 de la Ley 1712 de 2014."]
["Talento Humano","SECRETARÍA GENERAL-División de Gestión Humana.  ","SECRETARÍA GENERAL-División de Gestión Humana.  ","HISTORIAS LABORALES","CERTIFICADO DE CUMPLIMIENTO DE REQUISITOS","DOCUMENTO EN EL QUE SE RELACIONAN LOS REQUISITOS QUE SE DEBEN CUMPLIR TENIENDO EN CUENTA EL CARGO A DESEMPEÑAR","Español","Electrónico / Papel","Documento de texto (.doc, .txt, .rtf, .pdf)","Disponible para Consulta","Formato de Solicitud y/o Correo Electrónico","Información Pública","Alta","Alta","Por requerimiento","Por acuerdo entre las Partes","Archivo Fisico de la Oficina"]
["Talento Humano","SECRETARÍA GENERAL-División de Gestión Humana.  ","SECRETARÍA GENERAL-División de Gestión Humana.  ","HISTORIAS LABORALES","ACTA DE POSESIÓN","DOCUMENTO A TRAVES DEL CUAL SE FORMALIZA LA POSESION A UN CARGO","Español","Electrónico / Papel","Documento de texto (.doc, .txt, .rtf, .pdf)","Disponible para Consulta","Formato de Solicitud y/o Correo Electrónico","Información Pública","Alta","Alta","Por requerimiento","Por acuerdo entre las Partes","Archivo Fisico de la Oficina"]
["Talento Humano","SECRETARÍA GENERAL-División de Gestión Humana.  ","SECRETARÍA GENERAL-División de Gestión Humana.  ","HISTORIAS LABORALES","NOVEDADES DE PERSONAL","SITUACIÓN ADMINISTRATIVA QUE GENERA ALGÚN TIPO DE MODIFICACION O APORTE A LA VINCULACION LABORAL","Español","Electrónico / Papel","Documento de texto (.doc, .txt, .rtf, .pdf)","Disponible para Consulta","Formato de Solicitud y/o Correo Electrónico","Información Pública","Alta","Alta","Por requerimiento","Por acuerdo entre las Partes","Archivo Fisico de la Oficina"]
["Talento Humano","SECRETARÍA GENERAL-División de Gestión Humana.  ","SECRETARÍA GENERAL-División de Gestión Humana.  ","HISTORIAS LABORALES","RECLAMACIONES ADMINISTRATIVAS","RECLAMO ESCRITO DEL SERVIDOR PÚBLICO O TRABAJADOR SOBRE EL DERECHO QUE PRETENDA, Y SE AGOTA CUANDO SE HAYA DECIDIDO O CUANDO TRANSCURRIDO EL TIEMPO LEGAL,  DESDE SU PRESENTACIÓN NO HAYA SIDO RESUELTA.","Español","Electrónico / Papel","Documento de texto (.doc, .txt, .rtf, .pdf)","Disponible para Consulta","Formato de Solicitud y/o Correo Electrónico","Información Pública Reservada","Alta","Baja","Por requerimiento","Por acuerdo entre las Partes","Archivo Fisico de la Oficina","Se revisa cada caso en particular, buscando determinar si procede la  excepcion total o parcial.","Paragrafo del artículo 19 de la Ley 1712 de 2014."]
["Talento Humano","SECRETARÍA GENERAL-División de Gestión Humana.  ","SECRETARÍA GENERAL-División de Gestión Humana.  ","HISTORIAS LABORALES","PROCESOS JURÍDICOS","CONJUNTO DE ACTOS JURÍDICOS QUE SE LLEVAN A CABO PARA APLICAR LA LEY A LA RESOLUCIÓN DE UN CASO","Español","Electrónico / Papel","Documento de texto (.doc, .txt, .rtf, .pdf)","Disponible para Consulta","Formato de Solicitud y/o Correo Electrónico","Información Pública Clasificada","Alta","Baja","Por requerimiento","Por acuerdo entre las Partes","Archivo Fisico de la Oficina","Se revisa cada caso en particular, buscando determinar si procede la  excepcion total o parcial.","Paragrafo del artículo 19 de la Ley 1712 de 2014."]
["Talento Humano","SECRETARÍA GENERAL-División de Gestión Humana.  ","SECRETARÍA GENERAL-División de Gestión Humana.  ","HISTORIAS LABORALES","EVALUACIONES DE DESEMPEÑO","ES UN INSTRUMENTO QUE SE UTILIZA PARA COMPROBAR EL GRADO DE CUMPLIMIENTO DE LOS OBJETIVOS LABORALES PROPUESTOS A NIVEL INDIVIDUAL.","Español","Electrónico / Papel","Documento de texto (.doc, .txt, .rtf, .pdf)","Disponible para Consulta","Formato de Solicitud y/o Correo Electrónico","Información Pública Reservada","Alta","Baja","Por requerimiento","Por acuerdo entre las Partes","Archivo Fisico de la Oficina","Se revisa cada caso en particular, buscando determinar si procede la  excepcion total o parcial.","Paragrafo del artículo 19 de la Ley 1712 de 2014."]
["Talento Humano","SECRETARÍA GENERAL-División de Gestión Humana.  ","SECRETARÍA GENERAL-División de Gestión Humana.  ","HISTORIAS LABORALES","SITUACIONES ADMINISTRATIVAS","CONDICIÓNEN LA QUE SE ENCUENTRA UN FUNCIONARIO SEGÚN SU ACTUALIDAD EN LA VINCULACIÓN LABORAL Y SEGÚN PRESTE SERVICIO O DEJE DE HACERLO POR DIFERENTES CAUSAS","Español","Electrónico / Papel","Documento de texto (.doc, .txt, .rtf, .pdf)","Disponible para Consulta","Formato de Solicitud y/o Correo Electrónico","Información Pública Clasificada","Alta","Baja","Por requerimiento","Por acuerdo entre las Partes","Archivo Fisico de la Oficina","Se revisa cada caso en particular, buscando determinar si procede la  excepcion total o parcial.","Paragrafo del artículo 19 de la Ley 1712 de 2014."]
["Talento Humano","SECRETARÍA GENERAL-División de Gestión Humana.  ","SECRETARÍA GENERAL-División de Gestión Humana.  ","HISTORIAS LABORALES","DOCUMENTOS DE RETIRO","DOCUMENTOS REQUERIDOS PARA SOPORTAR LA CORRECTA DESVINCULACIÓN LABORAL DE UN FUNCIONARIO","Español","Electrónico / Papel","Documento de texto (.doc, .txt, .rtf, .pdf)","Disponible para Consulta","Formato de Solicitud y/o Correo Electrónico","Información Pública Clasificada","Alta","Baja","Por requerimiento","Por acuerdo entre las Partes","Archivo Fisico de la Oficina","Se revisa cada caso en particular, buscando determinar si procede la  excepcion total o parcial.","Paragrafo del artículo 19 de la Ley 1712 de 2014."]
["Talento Humano","SECRETARÍA GENERAL-División de Gestión Humana.  ","SECRETARÍA GENERAL-División de Gestión Humana.  ","INFORMES","AUTO COMISORIO","DOCUMENTO SOPORTE DE UNA COMISIÓN PROGRAMADA Y CUMPLIDA","Español","Electrónico / Papel","Documento de texto (.doc, .txt, .rtf, .pdf)","Disponible para Consulta","Formato de Solicitud y/o Correo Electrónico","Información Pública","Alta","Alta","Por requerimiento","Por acuerdo entre las Partes","Archivo Fisico de la Oficina"]
["Talento Humano","SECRETARÍA GENERAL-División de Gestión Humana.  ","SECRETARÍA GENERAL-División de Gestión Humana.  ","INFORMES","AUTO DE VISITA","DOCUMENTO SOPORTE DE UNA VISITA PROGRAMADA Y CUMPLIDA","Español","Electrónico / Papel","Documento de texto (.doc, .txt, .rtf, .pdf)","Disponible para Consulta","Formato de Solicitud y/o Correo Electrónico","Información Pública","Alta","Alta","Por requerimiento","Por acuerdo entre las Partes","Archivo Fisico de la Oficina"]
["Talento Humano","SECRETARÍA GENERAL-División de Gestión Humana.  ","SECRETARÍA GENERAL-División de Gestión Humana.  ","INFORMES","INFORMES DE GESTIÓN","INFORME DE GESTIÓN Y ANEXOS DEL GRUPO DE GESTIÓN DE PERSONAL ","Español","Electrónico / Papel","Documento de texto (.doc, .txt, .rtf, .pdf)","Disponible para Consulta","Petición dirigida a la Oficina de Talento Humano","Información Pública","Alta","Alta","Por requerimiento","Anual","Archivo Fisico de la Oficina"]
["Talento Humano","SECRETARÍA GENERAL-División de Gestión Humana.  ","SECRETARÍA GENERAL-División de Gestión Humana.  ","ACTAS","ACTA DE COMITÉ DE COMISIÓN DE PERSONAL ","ACTA ANEXOS -COMUNICACIONES","Español","Electrónico / Papel","Documento de texto (.doc, .txt, .rtf, .pdf)","Disponible para Consulta","Petición dirigida a la Oficina de Talento Humano","Información Pública","Alta","Baja","Por requerimiento","Por acuerdo entre las Partes","Archivo Fisico de la Oficina",null,null,null,null,null,8]
["Talento Humano","SECRETARÍA GENERAL-División de Gestión Humana.  ","SECRETARÍA GENERAL-División de Gestión Humana.  ","ACTAS","ACTA DEL COMITÉ DE CONVIVENCIA LABORAL","COMUNICACIONES","Español","Electrónico / Papel","Documento de texto (.doc, .txt, .rtf, .pdf)","Disponible para Consulta","Petición dirigida a la Oficina de Talento Humano","Información Pública Reservada","Alta","Baja","Por requerimiento","Por acuerdo entre las Partes","Archivo Fisico de la Oficina","Derecho a la privacidad  e intimidad","N° 3  artículo 24 de la Ley 1437  de 2011 "]
["Talento Humano","SECRETARÍA GENERAL-División de Gestión Humana.  ","SECRETARÍA GENERAL-División de Gestión Humana.  ","ACTAS","ACTA DE COMITÉ DE ESTIMULOS","SOPORTES","Español","Electrónico / Papel","Documento de texto (.doc, .txt, .rtf, .pdf)","Disponible para Consulta","Petición dirigida a la Oficina de Talento Humano","Información Pública","Alta","Baja","Por requerimiento","Anual","Archivo Fisico de la Oficina",null,null,null,null,null,10]
["Talento Humano","SECRETARÍA GENERAL-División de Gestión Humana.  ","SECRETARÍA GENERAL-División de Gestión Humana.  ","ACTAS","ACTA DEL COMITÉ PARITARIO DE SEGURIDAD Y SALUD EN EL TRABAJO- COPASST","ACTA"]
["Talento Humano","SECRETARÍA GENERAL-División de Gestión Humana.  ","SECRETARÍA GENERAL-División de Gestión Humana.  ","INFORMES","INFORMES DE SITUACIONES ADMINISTRATIVAS","QUEJA"]
["Talento Humano","SECRETARÍA GENERAL-División de Gestión Humana.  ","SECRETARÍA GENERAL-División de Gestión Humana.  ","PROCESOS ELECTORALES ","PROCESO ELECTORAL DEL COMITÉ DE CONVIVENCIA LABORAL",null,"Español","Electrónico / Papel","Documento de texto (.doc, .txt, .rtf, .pdf)","Disponible para Consulta","Petición dirigida a la Oficina de Talento Humano","Información Pública","Alta","Baja","Por requerimiento","Por acuerdo entre las Partes","Archivo Fisico de la Oficina",null,null,null,null,null,10]
["Tecnologias de Información","Oficina de Sistemas","Oficina de Sistemas","INFORMES","INFORMES DE SISTEMAS DE INFORMACION - GENERADOS POR EL SISTEMA ARANDA SOBRE INVENTARIO DE TI","Información sobre la atención de las incidencias de los usuarios de la infraestructura técnologica de la Entidad.","Español","Electrónico/ Físico","documento de texto","Disponible para consulta","via WEB","Información Pública","Alta","Media","2017-02-15","diaria","web",null,null,null,null,2021]
["Tecnologias de Información","Oficina de Sistemas","Oficina de Sistemas","INFORMES","INFORMES DE SISTEMAS DE INFORMACION - GENERADOS POR EL SISTEMA SIM","Coleccion de datos referente a la informacion registada en el sistema SIM como procesos, intervinientes, decisiones, conductas, documentos, actividades preventivas, actuaciones …","Español","Electrónico/ Físico","documento de texto","Disponible para consulta","via WEB","Información Pública","Alta","Media","2008-11-28","diaria","web",null,null,null,null,2021]
["Tecnologias de Información","Oficina de Sistemas","Oficina de Sistemas","INFORMES","INFORMES DE GESTIÓN - GENERALES","Informes sobre la gestión de la oficina de sistemas para garantizar la operación de la Entidad.","Español","Electrónico / Papel","documento de texto","Disponible para consulta","Solicitud formal","Información Pública","Alta","Media","2022-01-15","semanal","OneDrive",null,null,null,null,2021]
["Tecnologias de Información","Oficina de Sistemas","Oficina de Sistemas","INFORMES","INFORMES DE SISTEMAS DE INFORMACIÓN","Información referente a Planta de personal, Hojas de Vida, Nómina, Cesantías, Bienestar, Seguridad en el Trabajo, Afiliaciones, CAS, Cas Virtual, Reportes en BI de planta","Español","Papel","documento de texto","Disponible para consulta","Solicitud formal","Información Pública","Alta","Media","1998-12-31","diaria","web",null,null,null,null,2021]
["Tecnologias de Información","Oficina de Sistemas","Oficina de Sistemas","PLANES Y PROGRAMAS","PLAN ESTRATÉGICO DE LAS TECNOLOGÍAS DE LA INFORMACIÓN Y LAS COMUNICACIONES - PETIC","Metodologia, planes, resoluciones y sus anexos.","Español","Papel","documento de texto","Disponible para consulta","Solicitud formal","Información Pública","Alta","Media","2022-01-15","Anual","OneDrive",null,null,null,null,2021]
["Tecnologias de Información","Oficina de Sistemas","Oficina de Sistemas","PLANES Y PROGRAMAS","PLANES DE SEGURIDAD, INTEGRIDAD, DISPONIBILIDAD Y SEGURIDAD DE LA INFORMACIÓN","Documentos con las Politicas, procedimientos y documentación del MSPI Actualizada.","Español","Papel","documento de texto","Disponible para consulta","Solicitud formal","Información Pública","Alta","Media",44655,"semanal","OneDrive",null,null,null,null,2021]
["Tecnologias de Información","Oficina de Sistemas","Oficina de Sistemas","PLANES Y PROGRAMAS","PLAN OPERATIVO ANUAL (POA)","Documentos con los planes de operaciones y los programas a ejecutar.","Español","Electrónico / Papel","documento de texto","Disponible para consulta","Solicitud formal","Información Pública","Alta","Media",44576,"Anual","OneDrive",null,null,null,null,2021]
["Tecnologias de Información","Oficina de Sistemas","Oficina de Sistemas","INFORMES","INFORMES DE SISTEMAS DE INFORMACION -GENERADOS POR EL SIGDEA SIGDEA","Coleccion de datos para portal empleados y sede electrionica referente a la gestion documental, correspondencia de entrada y salida de la Entidad. ","Español","Electrónico/ Físico","documento de texto","Disponible para consulta","via WEB","Información Pública","Alta","Media","2017-02-14","diaria","web",null,null,null,null,2021]

{"sheet":"SEGURIDAD DIGITAL","index":8,"n_rows":61,"n_cols":18,"rows_kept":61,"cut":false,"hidden":false,"merged":[[55,12,59,12],[41,11,59,11],[60,11,62,17],[0,4,0,17],[1,4,1,17],[2,4,2,17],[3,4,3,17],[55,14,57,16],[58,14,59,16],[55,17,57,17],[38,17,40,17],[38,13,40,13],[58,17,59,17],[55,13,57,13],[58,13,59,13],[49,14,51,16],[49,12,54,12],[45,14,48,16],[45,13,48,13],[41,17,44,17],[45,17,48,17],[41,14,44,16],[41,13,44,13],[41,12,48,12],[49,13,51,13],[49,17,51,17],[52,14,54,16],[52,17,54,17],[52,13,54,13],[30,11,40,11],[30,14,30,16],[31,14,32,16],[31,13,32,13],[38,14,40,16],[33,13,34,13],[33,14,34,16],[29,14,29,16],[30,12,34,12],[25,16,25,17],[33,17,34,17],[35,14,37,16],[35,13,37,13],[35,12,40,12],[35,17,37,17],[9,8,10,13],[11,7,12,7],[11,8,12,13],[13,7,14,7],[13,8,14,13],[20,12,20,15],[31,17,32,17],[21,12,21,15],[31,2,31,3],[32,2,32,3],[30,4,30,5],[20,16,20,17],[21,16,21,17],[22,16,22,17],[23,16,23,17],[24,16,24,17],[22,12,22,15],[23,12,23,15],[24,12,24,15],[25,12,25,15],[29,11,29,13],[37,7,38,7],[35,4,35,5],[37,2,38,3],[37,4,38,5],[37,6,38,6],[33,2,33,3],[34,2,34,3],[35,2,35,3],[31,4,31,5],[32,4,32,5],[33,4,33,5],[34,4,34,5],[30,2,30,3],[25,2,25,6],[0,0,3,3],[15,1,15,2],[8,1,8,2],[9,1,10,2],[11,1,12,2],[13,1,14,2],[20,2,20,6],[21,2,21,6],[22,2,22,6],[23,2,23,6],[24,2,24,6],[29,1,30,1],[29,2,29,8],[9,7,10,7]]}
[null,null,null,null,"PROCURADURÍA GENERAL DE LA NACIÓN"]
[null,null,null,null,"SISTEMA DE GESTIÓN Y PRIVACIDAD DE LA INFORMACIÓN"]
[null,null,null,null,"MATRIZ DE RIESGOS DE SEGURIDAD DE LA INFORMACIÓN"]
[null,null,null,null,"CRITERIOS DE CLASIFICACIÓN Y VALORACIÓN"]
[]
[]
[null,"CRITERIOS DE CLASIFICACIÓN DE CONFIDENCIALIDAD,"]
[null," INTEGRIDAD Y DISPONIBILIDAD"]
[null,"CONFIDENCIALIDAD",null,"INTEGRIDAD","DISPONIBILIDAD",null,null,"NIVELES DE CLASIFICACIÓN DE ACTIVOS"]
[null,"Información Pública Reservada",null,"Alta","Alta",null,null,"Alta","Activos de información en los cuales la clasificación de la información en dos (2) o todas las propiedades (confidencialidad, integridad, y disponibilidad) es alta. "]
[null,null,null,"(A)","(1)"]
[null,"Información Pública Clasificada",null,"Media","Media",null,null,"Media","Activos de información en los cuales la clasificación de la información es alta en una (1) de sus propiedades o al menos una de ellas es de nivel medio. "]
[null,null,null,"(M)","(2)"]
[null,"Información Pública",null,"Baja","Baja",null,null,"Baja","Activos de información en los cuales la clasificación de la información en todos sus niveles es baja. "]
[null,null,null,"(B)","(3)"]
[null,"No Clasificada",null,"No Clasificada","No Clasificada"]
[]
[]
[]
[null,"TABLA DE PROBABILIDAD",null,null,null,null,null,null,null,null,"TABLA DE IMPACTO"]
[null,"Nivel","Frecuencia de la Actividad",null,null,null,null,"Probabilidad",null,null,"Nivel","Valoración","Reputacional",null,null,null,"Afectación Económica"]
[null,"Muy Baja","La actividad que conlleva el riesgo se ejecuta como máximo 2 veces por año.",null,null,null,null,0.2,null,null,"Leve",0.2,"El riesgo afecta la imagen de algún área de la organización",null,null,null,"Afectación menor a 10 SMLMV"]
[null,"Baja","La actividad que conlleva el riesgo se ejecuta de 3 a 24 veces al año.",null,null,null,null,0.4,null,null,"Menor",0.4,"El riesgo afecta la imagen de la entidad internamente, de conocimiento general a nivel interno, de junta directiva y accionistas y/o proveedores",null,null,null,"Entre 10 y 50 SMLMV"]
[null,"Media","La actividad que conlleva al riesgo se ejecuta de 24 a 500 veces por año.",null,null,null,null,0.6,null,null,"Moderado",0.6,"El riesgo afecta la imagen de la entidad con algunos usuarios de relevancia frente al logro de los objetivos",null,null,null,"Entre 50 y 100 SMLMV"]
[null,"Alta","La actividad que conlleva el riesgo se ejecuta minimo 500 veces al año y máximo 5000 veces por año.",null,null,null,null,0.8,null,null,"Mayor",0.8,"El riesgo afecta la imagen de la entidad con efecto publicitario sostenible a nivel del sector administrativo, nivel departamental o municipal",null,null,null,"Entre 100 y 500 SMLMV"]
[null,"Muy Alta","La actividad que conlleva el riesgo se ejecuta más de 5000 veces por año.",null,null,null,null,1,null,null,"Catastrófico",1,"El riesgo afecta la imagen de la entidad a nivel nacional, con efecto publicitario sostenido a nivel país",null,null,null,"Mayor a 500 SMLMV"]
[]
[]
[null,"MATRIZ DE CLASIFICACIÓN DE RIESGOS",null,null,null,null,null,null,null,null,null,"ATRIBUTOS PARA DISEÑO DEL CONTROL"]
[null,"PROBABILIDAD","IMPACTO",null,null,null,null,null,null,null,null,"Características",null,null,"Descripción",null,null,"Peso"]
[null,null,"Leve\n20%",null,"Menor\n40%",null,"Moderado\n60%","Mayor\n80%","Catastrófico\n100%",null,null,"Atributos de Eficiencia","Tipo","Preventivo","Va hacia las causas del riesgo, aseguran el resultado final esperado.",null,null,0.25]
[null,"Muy Alta \n100%","A",null,"A",null,"A","A","E",null,null,null,null,"Detectivo","Detecta que algo ocurre y devuelve el proceso a los controles preventivos.\nSe pueden generar reprocesos.",null,null,0.15]
[null,"Alta \n80%","M",null,"M",null,"A","A","E"]
[null,"Media\n60%","M",null,"M",null,"M","A","E",null,null,null,null,"Correctivo","Dado que permiten reducir el impacto de la materialización del riesgo, tienen un costo en su implementación.",null,null,0.1]
[null,"Baja\n40%","B",null,"M",null,"M","A","E"]
[null,"Muy Baja\n20%","B",null,"B",null,"M","A","E",null,null,null,"Implementación","Automático","Son actividades de procesamiento o validación de información que se ejecutan por un sistema y/o aplicativo de manera automática sin la intervención de personas para su realización.",null,null,0.25]
[]
[null,null,"Bajo",null,"Moderado",null,"Alto","Extremo"]
[null,null,null,null,null,null,null,null,null,null,null,null,null,"Manual","Controles que son ejecutados por una persona, tiene implícito el error humano.",null,null,0.15]
[]
[]
[null,null,null,null,null,null,null,null,null,null,null,"Atributos Informativos*","Documentación","Documentado","Controles que están documentados en el proceso, ya sea en manuales, procedimientos, flujogramas o cualquier otro documento propio del proceso.",null,null,"-"]
[]
[]
[]
[null,null,null,null,null,null,null,null,null,null,null,null,null,"Sin Documentado","Identifica a los controles que pese a que se ejecutan en el proceso no se encuentran documentados en ningún documento propio del proceso",null,null,"-"]
[]
[]
[]
[null,null,null,null,null,null,null,null,null,null,null,null,"Frecuencia","Continua","El control se aplica siempre que se realiza la actividad que conlleva el riesgo.",null,null,"-"]
[]
[]
[null,null,null,null,null,null,null,null,null,null,null,null,null,"Aleatoria","El control se aplica aleatoriamente a la actividad que conlleva el riesgo.",null,null,"-"]
[]
[]
[null,null,null,null,null,null,null,null,null,null,null,null,"Evidencia","Con Registro","El control deja un registro permite evidencia la ejecución del control.",null,null,"-"]
[]
[]
[null,null,null,null,null,null,null,null,null,null,null,null,null,"Sin Registro","El control no deja registro de la ejecución del control.",null,null,"-"]
[]
[null,null,null,null,null,null,null,null,null,null,null,"* Los atributos informativos solo permiten darle formalidad al control y su fin es el de conocer el entorno del control y complementar el análisis con elementos cualitativos; sin embargo, estos no tienen una incidencia directa en su efectividad."]